Workbook

Sheet HOME
D3: Assessment Year 2022-23
C8: Sl.No | D8: Schedule Name | E8: Schedule for filing Income tax return | F8: Description ("Click on applicable links to navigate to the respective sheet / schedule.") | G8: Select applicable sheets below by choosing Y/N and Click on Apply | H8: Select sheets to print and click apply
C9: 1 | D9: PART A - GENERAL | E9: Personal Information, Filing Status & Audit Information | F9: Details of Personal Information, Filing Status & Audit Information | G9: Y | H9: Y
C10: =C9+1 -> 2 | D10: PART A - GENERAL(2) | E10: Partners/ Members Information, Nature of Business or Profession | F10: Partners/ Members Information, Nature of business or profession, if more than one trade names please specify upto 3 trade names | G10: Y | H10: Y
C11: =C10+1 -> 3 | D11: Part A Gen_139(8A) | E11: GENERAL INFORMATION _139(8A) | F11: ITR U - INDIAN INCOME TAX UPDATED RETURN | G11: Y | H11: Y
C12: =C11+1 -> 4 | D12: BALANCE_SHEET | E12: PartA-BS | F12: Balance sheet as on 31st day of March, 2022 or date of dissolution. | G12: Y | H12: Y
C13: =C12+1 -> 5 | D13: MANUFACTURING ACCOUNT | E13: Part A Manufacturing Account | F13: Manufacturing Account for the financial year 2021-22 | G13: Y | H13: Y
C14: 6 | D14: TRADING ACCOUNT | E14: Part A-Trading Account | F14: Trading Account for the financial year 2021-22 | G14: Y | H14: Y
C15: 7 | D15: PROFIT_LOSS | E15: PartA-P&L | F15: Profit and Loss Account for the previous year 2021-22 | G15: Y | H15: Y
C16: 8 | D16: PART - A OI | E16: PartA-OI | F16: Other Information (optional in a case not liable for audit under section 44AB) | G16: Y | H16: Y
C17: 9 | D17: QUANTITATIVE_DETAILS | E17: PartA-QD | F17: Quantitative details (optional in a case not liable for audit under section 44AB) | G17: Y | H17: Y
C18: 10 | D18: HOUSE_PROPERTY | E18: Schedule HP | F18: Details of Income from House Property | G18: Y | H18: Y
C19: 11 | D19: BP | E19: Schedule BP | F19: Computation of income from business or profession | G19: Y | H19: Y
C20: 12 | D20: DPM_DOA | E20: Schedule DPM, Schedule DOA | F20: Depreciation on Plant and Machinery & on other assets | G20: Y | H20: Y
C21: 13 | D21: DEP_DCG | E21: Schedule DEP, Schedule DCG | F21: Summary of depreciation on assets & Deemed Capital Gains on sale of depreciable assets | G21: Y | H21: Y
C22: 14 | D22: ESR | E22: Schedule ESR | F22: Deduction under section 35 or 35CCC or 35CCD | G22: Y | H22: Y
C23: 15 | D23: CG | E23: Schedule CG | F23: Details of Income from Capital Gains | G23: Y | H23: Y
C24: 16 | D24: Schedule 112A | E24: Schedule 112A | F24: From sale of equity share in a company or unit of equity oriented fund or unit of a business trust on which STT is paid under section 112A | G24: Y | H24: Y
C25: 17 | D25: Schedule 115AD(1)(iii)(p) | E25: Schedule 115AD(1)(iii) proviso | F25: For NON-RESIDENTS - From sale of equity share in a company or unit of equity oriented fund or unit of a business trust on which STT is paid under section 112A | G25: Y | H25: Y
C26: 18 | D26: OS | E26: Schedule OS | F26: Details of Income from Other Sources | G26: Y | H26: Y
C27: 19 | D27: CYLA-BFLA | E27: Schedule CYLA, Schedule BFLA | F27: Details of Income after Set off of Current years losses &Brought Forward Losses of earlier years | G27: Y | H27: Y
C28: 20 | D28: CFL | E28: Schedule CFL | F28: Details of Losses to be carried forward to future Years | G28: Y | H28: Y
C29: 21 | D29: Unabsorbed Depreciation | E29: Schedule UD | F29: Unabsorbed depreciation and allowance under section 35(4) | G29: Y | H29: Y
C30: 22 | D30: Schedule ICDS | E30: Schedule ICDS | F30: Effect of Income Computation Disclosure Standards on profit | G30: Y | H30: Y
C31: 23 | D31: 10AA | E31: Schedule 10AA | F31: Deduction under section 10AA | G31: Y | H31: Y
C32: 24 | D32: 80G | E32: Schedule 80G | F32: Details of donations entitled for deduction under section 80G | G32: Y | H32: Y
C33: 25 | D33: 80GGA | E33: Schedule 80GGA | F33: Details of donations for scientific research or rural development | G33: Y | H33: Y
C34: 26 | D34: RA | E34: Schedule RA | F34: Details of donations to research associations etc. [deduction under sections 35(1)(ii) or 35(1)(iia) or 35(1)(iii) or 35(2AA)] | G34: Y | H34: Y
C35: 27 | D35: 80 | E35: Schedule 80-IA, Schedule 80-IB, Schedule 80-IC or Schedule 80-IE | F35: Deductions under section 80-IA, 80-IB, 80-IC or 80-IE & Chapter VI-A | G35: Y | H35: Y
C36: 28 | D36: 80P | E36: Schedule 80P | F36: Deductions under section 80P | G36: Y | H36: Y
C37: 29 | D37: VI-A | E37: Schedule VI-A | F37: Deductions under Chapter VI-A | G37: Y | H37: Y
C38: 30 | D38: AMT | E38: Schedule AMT | F38: Computation of Alternate Minimum Tax payable under section 115JC | G38: Y | H38: Y
C39: 31 | D39: AMTC | E39: Schedule AMTC | F39: Computation of tax credit under section 115JD | G39: Y | H39: Y
C40: 32 | D40: SI | E40: Schedule SI | F40: Income chargeable to Income tax at special rates IB | G40: Y | H40: Y
C41: 33 | D41: IF | E41: Schedule IF | F41: Information regarding partnership firms in which you are partner | G41: Y | H41: Y
C42: 34 | D42: EI | E42: Schedule EI | F42: Details of Exempt Income | G42: Y | H42: Y
C43: 35 | D43: Schedule PTI | E43: Schedule PTI | F43: Pass Through Income details from business trust or investment fund as per section 115UA, 115UB | G43: Y | H43: Y
C44: 36 | D44: Schedule TPSA | E44: Schedule TPSA | F44: Details of Tax on secondary adjustments as per section 92CE(2A) | G44: Y | H44: Y
C45: 37 | D45: FSI | E45: Schedule FSI | F45: Details of Income from outside India and tax relief | G45: Y | H45: Y
C46: 38 | D46: TR_FA | E46: Schedule TR, Schedule FA | F46: Summary of tax relief claimed for taxes paid outside India & Schedule FA Details of foreign assets | G46: Y | H46: Y
C47: 39 | D47: Schedule DI | E47: Schedule DI | F47: Details of investments | G47: Y | H47: N
C48: =C46+1 -> 39 | D48: GST | E48: Schedule GST | F48: Information regarding turnover/gross receipt reported for GST | G48: Y | H48: Y
C49: 40 | D49: PARTB - TI - TTI | E49: PartB-TI, PartB-TTI & Verification | F49: Computation of Total Income & Tax Liability on total income | G49: Y | H49: Y
C50: =C49+1 -> 41 | D50: Part B ATI | E50: Part B ATI | F50: Details of Part B ATI | G50: Y | H50: Y
C51: =C50+1 -> 42 | D51: IT | E51: 15A | F51: Details of payments of Advance Tax and Self-Assessment Tax | G51: Y | H51: Y
C52: 43 | D52: TDS | E52: 15B, 15C | F52: Details of Tax Deducted at Source & Tax Collected at Source | G52: Y | H52: Y
C53: 44 | D53: VERIFICATION | E53: Schedule Verification | F53: Schedule Verification | G53: Y | H53: Y
C55: Instructions: 1. Green cells are for data entry 2. Red labels indicate Mandatory fields 3. Do not use CTRL X/CTRL V or Cut/Copy/paste while data entry.

Sheet PART A - GENERAL
C3: FORM | E3: ITR-5 | G3: INDIAN INCOME TAX RETURN | AP3: Assessment Year | BB3: adp059327
G4: [For persons other than,- (i) individual, (ii) HUF, (iii) company and (iv) person filing Form ITR-7] | AP4: Year
G5: (Please see Rule 12 of the Income Tax-Rules,1962) | AP5: 2 0 2 2 - 23
G6: (Please refer instructions)
C7: PERSONAL INFORMATION | E7: Name | O7: Is there any change in the name? If yes, please furnish the old name | W7: PAN | AH7: Limited Liability Partnership Identification Number (LLPIN) issued by MCA, if applicable
E8: YUVA ASSOCIATES | W8: AAAFY4512P
E9: Flat/ Door/ Block No. | O9: Name of Premises/ Building/ Village | W9: Status | AH9: Sub Status
E10: RA, 1020 | W10: 1-Firm | AH10: 1-Partnership Firm
E11: Road / Street / Post Office | O11: Area / Locality | W11: Date of formation (dd/mm/yyyy) | AH11: Date of Commencement of business (dd/mm/yyyy)
O12: RAJA GARDEN | W12: 10/02/1970 | AH12: 23/09/1970
E13: Town/City/District | O13: State | W13: Country | AH13: Pin Code | AM13: No Zip Code.?
E14: NEW DELHI | O14: 09-DELHI | W14: 91-INDIA | AH14: 110027 | AM14: Zip Code
E15: Email Address-1 | H15: Email Address - 2 | T15: Mobile No 1 | AA15: (STD code) | AF15: Office Phone Number | AM15: Mobile No 2 | BB15: =IF(MID(sheet1.SubStatus,1,1)="6",sheet1.SubStatus,sheet1.SubStatus) -> 1-Partnership Firm
E16: YUVA10@GMAIL.COM | H16: RATHORE_INCOMETAX@YAHOO.CO.IN | T16: 91 | U16: 9891475869 | AM16: 91 | AN16: 9811116835
E17: Filing Section: Filed u/s Filed in response to notice u/s. | AF17: 139(1)-On or before due date | BG17: =VLOOKUP(sheet1.ReturnFileSec1,FiledSectionLookUp,2,FALSE) -> 11
E18: Whether you are a business trust? | J18: No | W18: Whether you are a investment fund referred to in section 115UB? | AL18: No
E19: If revised/defective/ in response to notice for Modified, then enter Receipt no. | W19: Date of filing original return (dd/mm/yyyy)
E20: If filed, in response to a notice u/s 139(9)/142(1)/148 or order u/s 119(2)(b) enter unique number/Document Identification Number (DIN) and date of such notice/Order, or if filed u/s 92CD enter date of advance pricing agreement
E21: Unique number/ Document Identification Number (DIN) | W21: Date of such Notice or Order (dd/mm/yyyy)
W22: Residential Status | AL22: RES-Resident
E23: Have you opted for new tax regime u/s 115BAD and filed form 10-IF in AY 2021-22?
E24: If no, Option for current assessment year
E25: Date of filing of form 10IF DD/MM/YYYY
E26: Acknowledgement number
E27: Whether assessee has a unit in an International Financial Services Centre and derives income solely in convertible foreign exchange? | AL27: No
E28: Whether you are recognized as start up by DPIIT | J28: No | W28: If yes, please provide start up recognition number allotted by the DPIIT
E29: Whether certificate from inter-ministerial board for certification is received? | J29: No | W29: If yes, please provide the certification number
E30: In case of non-resident, is there a permanent establishment (PE) in India?
E31: In the case of non-resident, is there a Significant economic presence (SEP) in India | AL31: NA
E32: please provide details of (a) aggregate of payments arising from the transaction or transactions during the previous year as referred in Explanation 2A(a) to Section 9(1)(i).
E33: (b) number of users in India as referred in Explanation 2A(b) to Section 9(1)(i)
E34: Whether you are an FII / FPI? | J34: No | W34: If yes, please provide SEBI Regn. No
E35: Whether this return is being filed by a representative assessee? If yes, please furnish following information | AL35: No
E36: a | F36: Name of representative assessee
E37: b | F37: Capacity of the Representative assessee
E38: c | F38: Address of the representative
E39: d | F39: PAN of the representative
E40: e | F40: Aadhaar No. of the representative
E41: Whether you are Partner in a firm? If yes, please furnish following information | AL41: No
E42: Sl. No. | F42: Name of Firm | G42: PAN
E43: 1
E44: =E43+1 -> 2
E45: =E44+1 -> 3
E46: =E45+1 -> 4
C48: Note : | F48: If field "Whether you are Partner in a Firm ?" is "Yes" then at least one row is mandatory.
E49: Whether you have held unlisted equity shares at any time during the previous year? If yes, please furnish following information in respect of equity shares - | AL49: No
E50: Sl. No. | F50: Name of company | G50: Type of Company | H50: PAN | I50: Opening Balance | P50: Shares acquired during the year | AI50: Shares transferred during the year | AN50: Closing Balance
I51: No. of shares | J51: Cost of acquisition | P51: No. of shares | T51: Date of subscription / purchase (dd/mm/yyyy) | W51: Face value per share | AA51: Issue price per share (incase of fresh issue) | AE51: Purchase price per share (in case of purchase from existing shareholder) | AI51: No. of shares | AL51: Sale consideration | AN51: No. of shares | AR51: Cost of acquisition
F52: (1) | G52: (1b) | H52: (2) | I52: (3) | J52: (4) | P52: (5) | T52: (6) | W52: (7) | AA52: (8) | AE52: (9) | AI52: (10) | AL52: (11) | AN52: (12) | AR52: (13)
E53: 1
E54: =E53+1 -> 2
E55: =E54+1 -> 3
E56: =E55+1 -> 4
C58: Note : | F58: If field "Whether you have held unlisted equity shares at any time during the previous year? " is "Yes" then at least 1 row is mandatory except "Shares acquired during the year" and "Shares transferred during the year".
C59: AUDIT INFORMATION | E59: a1 | F59: Whether liable to maintain accounts as per section 44AA? | AL59: Y-Yes
E60: a2 | F60: Whether assessee is declaring income only under section 44AD/44ADA/44AE/44B/44BB/44BBA? | AL60: N-No
E61: a2i | F61: If No, whether during the year Total sales/turnover/gross receipts of business is between Rs.1 crore and Rs.10 crores? | AL61: Y-Yes
E62: a2ii | F62: If Yes is selected at a2i, whether aggregate of all amounts received including amount received for sales, turnover or gross receipts or on capital account such as capital contribution, loans etc. during the previous year, in cash & non-a/c payee cheque/DD, does not exceed five per cent of the said amount? | AL62: N-No
E63: a2iii | F63: If Yes is selected at a2i, whether aggregate of all payments made including amount incurred for expenditure or on capital account such as asset acquisition, repayment of loans etc. during the previous year, in cash & non-a/c payee cheque/DD, does not exceed five per cent of the said payment? | AL63: N-No
E64: b | F64: Whether liable for audit under section 44AB? | AL64: Y-Yes
E65: c | F65: If (b) is Yes, whether the accounts have been audited by an accountant? If Yes, furnish the following information- | AL65: Y-Yes
E66: i | F66: Date of furnishing of the audit report. (dd/mm/yyyy) | AL66: 30/09/2022
E67: ii | F67: Name of the auditor signing the tax audit report | W67: DIVYA MAHAJAN
E68: iii | F68: Membership no. of the auditor | W68: 012487
E69: iv | F69: Name of the auditor (proprietorship/ firm) | W69: MAHAJAN ASSOCIATES
E70: v | F70: Proprietorship/firm registration number | W70: 17000328
E71: vi | F71: Permanent Account Number (PAN) of the proprietorship/ firm | W71: ASDFM1468W
F72: Aadhaar Number of the auditor (proprietorship)
E73: vii | F73: Date of Audit Report (dd/mm/yyyy) | AL73: 30/09/2022
E74: di | F74: Are you liable for Audit u/s 92E? | AJ74: No
E75: dia | F75: If (di) is Yes, whether the accounts have been audited u/s. 92E?
F76: Date of furnishing audit report? DD/MM/YYYY
E77: diii | F77: If liable to furnish other audit report under Income Tax Act, mention section code(Please see Instruction 5)
E78: Sl. No. | F78: Section Code | G78: Whether have you furnished such other audit report? | H78: Date (dd/mm/yyyy)
E79: 1 | F79: (Select) | G79: (Select)
E80: =E79+1 -> 2 | F80: (Select) | G80: (Select)
E81: =E80+1 -> 3 | F81: (Select) | G81: (Select)
E82: =E81+1 -> 4 | F82: (Select) | G82: (Select)
E83: =E82+1 -> 5 | F83: (Select) | G83: (Select)
E86: If liable to audit under any Act other than the Income-tax Act, mention the Act, section and date of furnishing the audit report?
E87: Sl. No. | F87: Act | G87: Description | H87: Section | I87: Have you got audited under the selected Act other than the Income-tax Act? | J87: Date (dd/mm/yyyy)
E88: 1
E89: =E88+1 -> 2
E90: =E89+1 -> 3
E91: =E90+1 -> 4

Sheet PART A - GENERAL(2)
D3: =CONCATENATE("PARTNERS/ MEMBERS INFORMATION",CHAR(10),"A. Whether there was any change during the previous year in the partners/members of the firm/AOP/BOI ",CHAR(10),"(In case of societies and cooperative banks give details of Managing Committee) If Yes, provide the following details") -> PARTNERS/ MEMBERS INFORMATION A. Whether there was any change during the previous year in the partners/members of the firm/AOP/BOI (In case of societies and cooperative banks give details of Managing Committee) If Yes, provide the following details | K3: N | V3: =MAX(0,SUM(PMInfo.SharePercentage)-PARTNERSHARE_IND_RETIRED) -> 100 | W3: =SUMIF(PMInfo.StatusCode,"=FOREIGN_COMPANY",PMInfo.SharePercentage) -> 0 | X3: =IF(ISNA(MATCH(MID(sheet1.MainStatus,1,1),{"1","3"},0)),FALSE,IF(ISNA(MATCH(MID(sheet1.MainStatus,1,1),{"3"},0)),TRUE,IF(ISNA(MATCH(MID(sheet1.SubStatus,1,1),{"1","2","3","4","5","6","7"},0)),FALSE,TRUE))) -> TRUE
D4: Sl. No. | E4: Name of the Partner/member | F4: Admitted/Retired | G4: Date of admission/ retirement (dd/mm/yyyy) | H4: Percentage of share (if determinate) | W4: =IF(MID(sheet1.MainStatus,1,1)="1",SUMIF(PMInfo.StatusCode,"=INDIVIDUAL_RETIRED_PARTNER",PMInfo.SharePercentage),0) -> 0
D5: 1 | F5: (Select)
D6: =D5+1 -> 2 | F6: (Select)
D8: B. Is any member of the AOP/BOI or executor of AJP a foreign company? | K8: NO
D9: C. If Yes, mention the percentage of share of the foreign company in the AOP/BOI or executor of AJP.
D10: D. Whether total income of any member of the AOP/BOI or executor of AJP (excluding his share from such association or body or Executor of AJP) exceeds the maximum amount which is not chargeable to tax in the case of that member? | K10: N
C11: PARTNERS/ MEMBERS/TRUST INFORMATION | D11: E- Particulars of persons who were partners/ members in the firm/AOP/BOI or settlor/trustee/beneficiary in the trust or executors in case of estate of deceased /executor in case of estate of insolvent as on 31st day of March, 2022 or date of dissolution
D12: Sl.No. | E12: Name and address | L12: Percentage of share (if determinate) | M12: PAN | N12: Aadhaar Number | O12: Aadhaar Enrolment Id (if eligible for Aadhaar) | P12: Designated Partner Identification No in case Partner in LLP | Q12: Status (see instruction) | R12: Rate of Interest on Capital | S12: Remuneration paid/ payable
E13: Name | F13: Address | G13: City | H13: State | I13: Country | J13: Pin Code | K13: Zip Code
D14: (1) | E14: (2) | L14: (3) | M14: (4) | N14: (5) | P14: (6) | Q14: (7) | R14: (8) | S14: (9)
D15: 1 | E15: YUVA KUMAR | F15: M-32, SECTOR-6, DWARKA | G15: NEW DELLHI | H15: 09-Delhi | I15: 91-INDIA | J15: 110075 | L15: 75 | M15: AANPK7889K | N15: 687542587459 | Q15: INDIVIDUAL_WORKING_PARTNER [AS PER EXPL.4 TO SEC.40(b)] | R15: 5 | S15: 480000 | W15: =SUM(PMInfo.SharePercentage) -> 100
D16: =D15+1 -> 2 | E16: MANISH RANA | F16: M-32, SECTOR-6, DWARKA | G16: NEW DELHI | H16: 09-Delhi | I16: 91-INDIA | J16: 110075 | L16: 25 | M16: AASPR3279J | N16: 587469851254 | Q16: INDIVIDUAL_WORKING_PARTNER [AS PER EXPL.4 TO SEC.40(b)] | R16: 5 | S16: 480000 | W16: =SUM(PMInfo.Rem) -> 960000
D17: =D16+1 -> 3
D18: 4
D19: 5
D20: 6
D21: 7
D22: 8
D23: 9
D24: 10
D25: 11
C27: For persons referred to in section 160(1)(iii) or (iv) | D27: F | E27: To be filled in case of persons referred to in section 160(1)(iii) or (iv) | M27: Select Yes/No
D28: 1 | E28: Whether shares of the beneficiary are determinate or known?
D29: 2 | E29: Whether the person referred in section 160(1)(iv) has Business Income?
D30: 3 | E30: Whether the person referred in section 160(1)(iv) is declared by a Will and /or is exclusively for the benefit of any dependent relative of the settlor and/or is the only trust declared by the settlor?
D31: 4 | E31: please furnish the following details (as applicable):
E32: (i) | F32: Whether all the beneficiaries has income below basic exemption limit?
E33: (ii) | F33: Whether the relevant income or any part thereof is receivable under a trust declared by any person by will and such trust is the only trust so declared by him?
E34: (iii) | F34: Whether the trust is non-testamentary trust created before 01-03-1970 for the exclusive benefit of relatives/member of HUF of the settlor mainly dependent on him/Family?
E35: (iv) | F35: Whether the trust is created on behalf of a provident fund, superannuation fund, gratuity fund, pension fund or any other fund created bona fide by a person carrying on Business or profession exclusive for the employees in such Business or Profession?
D37: Nature of business/profession, if more than one business or profession indicate the three main activities/ products (OTHER THAN THOSE DECLARING INCOME UNDER 44AD, 44ADA AND 44AE) .
D38: Sl. No. | E38: Code (Please see instructions) | F38: Trade name of business, if any | G38: Description
D39: 1 | E39: 09010-Wholesale of household goods | F39: YUVA ASSOCIATES
D40: 2
D41: 3
D42: 4
D43: 5

Sheet Part A Gen_139(8A) (hidden)
C3: FORM | E3: ITR-U | J3: INDIAN INCOME TAX UPDATED RETURN
J4: [ For persons to update income within twenty-four months from end of the relevant assessment year] (Refer Instructions for eligibility ) (Please see rule 12AC of the Income-tax Rules, 1962)
E5: PART A GENERAL INFORMATION – 139(8A)
E6: (A1) PAN | T6: (A2) Name
E7: =IF(sheet1.PAN="","",sheet1.PAN) -> AAAFY4512P | T7: =IF(sheet1.FirstName="","",sheet1.FirstName) -> YUVA ASSOCIATES
E8: (A3) Aadhaar Number (Please enter Aadhaar Number. Applicable to Individual only) | Y8: (A3a) Aadhaar Enrolment Id (28 digits) (If eligible for Aadhaar No.) | AP8: (A4) Assessment Year
AP9: AY 2022-23
E10: (A5) Whether return previously filed for this assessment year? | AS10: (Select)
E11: (A6) If Yes, Whether U/s | Z11: (Select)
E12: (A7) If applicable, enter form filed, acknowledgement no. or Receipt no. and date of filing original return (DD/MM/YYYY)
E13: ITR Type | Z13: (Select)
E14: Acknowledgement Number | AA14: Date of Filing of Original Return
E15: (A8) Are you eligible for filing an updated return as per the conditions laid out in first, second and third provisos to section 139(8A)? | AS15: (Select)
E16: (A9) Please choose the ITR form for updating your income (ITRs 1-7 to be selected from drop-down and filled as per the details made available by e-filing utility– see instruction) | AS16: ITR5
E17: (A10) Reasons for updating your income: | AZ17: =COUNTIF(U_ReasonsForUpdatingIncome,"Reduction of carried forward loss") -> 0 | BA17: =COUNTIF(U_ReasonsForUpdatingIncome,"Reduction of unabsorbed depreciation") -> 0 | BB17: =COUNTIF(U_ReasonsForUpdatingIncome,"Reduction of tax credit u/s 115JB/115JC") -> 0
E22: (A11) Are you filing the updated return during the period
E23: (A12) (a) Are you filing the updated return to reduce carried forward loss or unabsorbed depreciation or tax credit?
E24: (b) If Yes , please specify the assessment years where carried forward loss or unabsorbed depreciation or tax credit is being affected because of the updated return | AZ24: =COUNTIF(U_UnabsorbedDepreciationYear,"2023") -> 0 | BA24: =COUNTIF(U_UnabsorbedDepreciationYear,"2024") -> 0
E25: Sl.No. | F25: Assessment Year | L25: Whether return has been filed after giving effect of Sl. No. 12a above | AA25: Return Filed, if yes is selected
E26: 1
E27: 2

Sheet BALANCE_SHEET
C3: Part A-BS | F3: Balance Sheet as on 31st March, 2022 OR DATE OF DISSOLUTION (fill items A and B in a case where regular books of accounts are maintained, otherwise fill item C)
D4: A | E4: Sources of Funds
C5: SOURCES OF FUNDS | D5: 1 | E5: Partners’ / members’ fund
E6: a | F6: Partners’ / members’ capital | K6: a | L6: 15000000
E7: b | F7: Reserves and Surplus
F8: i | G8: Revaluation Reserve | I8: bi | J8: 0
F9: ii | G9: Capital Reserve | I9: bii | J9: 0
F10: iii | G10: Statutory Reserve | I10: biii | J10: 0
F11: iv | G11: Any other Reserve | I11: biv | J11: 0
F12: v | G12: Credit balance of Profit and loss account | I12: bv | J12: 0
F13: vi | G13: Total (bi + bii + biii + biv + bv) | K13: bvi | L13: =SUM(J8:J12) -> 0
E14: c | F14: Total partners’/ members’ fund (a + bvi) | K14: 1c | L14: =BS.TotResrNSurp+BS.PartnerOrMemberCap -> 15000000
D15: 2 | E15: Loan funds
E16: a | F16: Secured loans
F17: i | G17: Foreign Currency Loans | I17: ai | J17: 0
F18: ii | G18: Rupee Loans
G19: A | H19: From Banks | I19: iiA | J19: 0
G20: B | H20: From others | I20: iiB | J20: 0
G21: C | H21: Total ( iiA + iiB) | I21: iiC | J21: =SUM(J19:J20) -> 0
F22: iii | G22: Total secured loans (ai + iiC) | K22: aiii | L22: =BS.ForeignCurrLoan+BS.TotRupeeLoan -> 0
E23: b | F23: Unsecured loans (including Deposits)
F24: i | G24: Foreign Currency Loans | I24: bi | J24: 0
F25: ii | G25: Rupee Loans
G26: A | H26: From Banks | I26: iiA | J26: 1275000
G27: B | H27: From persons specified in section 40A(2)(b) of the I. T. Act | I27: iiB | J27: 0
G28: C | H28: From others | I28: iiC | J28: 0
G29: D | H29: Total Rupee Loans ( iiA + iiB + iiC) | I29: iiD | J29: =SUM(J26:J28) -> 1275000
F30: iii | G30: Total unsecured loans (bi + iiD) | K30: biii | L30: =BSUnSec.TotRupeeLoan+BSUnSec.ForeignCurrencyLoans -> 1275000
E31: c | F31: Total Loan Funds (aiii + biii) | K31: 2c | L31: =BS.TotUnSecrLoan+BS.TotSecrLoan -> 1275000
D32: 3 | E32: Deferred tax liability | K32: 3 | L32: 0
D33: 4 | E33: Advances
E34: i | F34: From persons specified in section 40A(2)(b) of the I. T. Act | I34: i | J34: 0
E35: ii | F35: From Others | I35: ii | J35: 0
E36: iii | F36: Total Advances (i + ii) | K36: 4iii | L36: =SUM(J34:J35) -> 0
D37: 5 | E37: Sources of funds (1c + 2c +3 + 4iii) | K37: 5 | L37: =BS.DeferredTax+BS.TotLoanFund+BS.TotPartnerOrMemberFund+BSAdv.TotalAdvances -> 16275000
D38: B | E38: Application of funds
D39: 1 | E39: Fixed assets
E40: a | F40: Gross: Block | I40: 1a | J40: 5500000
E41: b | F41: Depreciation | I41: 1b | J41: 1000000
E42: c | F42: Net Block (a – b) | I42: 1c | J42: =MAX(J40-J41,0) -> 4500000
E43: d | F43: Capital work-in-progress | I43: 1d | J43: 0
E44: e | F44: Total (1c + 1d) | K44: 1e | L44: =J42+J43 -> 4500000
D45: 2 | E45: Investments
E46: a | F46: Long-term investments
F47: i | G47: Investment in property | I47: i | J47: 0
F48: ii | G48: Equity instruments
G49: A | H49: Listed equities | I49: A | J49: 9000000
G50: B | H50: Unlisted equities | I50: B | J50: 0
G51: C | H51: Total | I51: iiC | J51: =BS.ListedEquities+BS.UnListedEquities -> 9000000
F52: iii | G52: Preference Shares | I52: iii | J52: 0
F53: iv | G53: Government or trust securities | I53: iv | J53: 0
F54: v | G54: Debenture or bonds | I54: v | J54: 0
F55: vi | G55: Mutual Funds | I55: vi | J55: 0
F56: vii | G56: Others | I56: vii | J56: 0
F57: viii | G57: Total Long-term investments (i + iiC + iii + iv + v + vi + vii) | K57: aviii | L57: =SUM(J52:J56)+BS.Total+BS.InvInProperty -> 9000000
E58: b | F58: Short-term investments
F59: i | G59: Equity instruments
G60: A | H60: Listed equities | I60: A | J60: 0
G61: B | H61: Unlisted equities | I61: B | J61: 0
G62: C | H62: Total | I62: iC | J62: =BSS.UnListedEquities+BSS.ListedEquities -> 0
F63: ii | G63: Preference Shares | I63: ii | J63: 900000
F64: iii | G64: Government or trust securities | I64: iii | J64: 0
F65: iv | G65: Debenture or bonds | I65: iv | J65: 0
F66: v | G66: Mutual Funds | I66: v | J66: 0
F67: vi | G67: Others | I67: vi | J67: 0
F68: vii | G68: Total Short-term investments (iC + ii + iii + iv + v + vi) | K68: bvii | L68: =SUM(J63:J67)+BSS.Total -> 900000
E69: c | F69: Total investments (aviii + bvii) | K69: 2c | L69: =L68+L57 -> 9900000
D70: 3 | E70: Current assets, loans and advances
E71: a | F71: Current assets
F72: i | G72: Inventories
G73: A | H73: Raw materials | I73: iA | J73: 0
G74: B | H74: Work in progress | I74: iB | J74: 0
G75: C | H75: Finished Goods | I75: iC | J75: 1100000
G76: D | H76: Stock-in-trade (in respect of goods acquired for trading) | I76: iD | J76: 0
G77: E | H77: Stores/consumables including packing material | I77: iE | J77: 0
G78: F | H78: Loose tools | I78: iF | J78: 0
G79: G | H79: Others | I79: iG | J79: 0
G80: H | H80: Total (iA + iB + iC + iD + iE + iF + iG) | K80: iH | L80: =SUM(J73:J79) -> 1100000
F81: ii | G81: Sundry Debtors
G82: A | H82: Outstanding for more than one year | I82: A | J82: 0
G83: B | H83: Others | I83: B | J83: 750000
G84: C | H84: Total Sundry Debtors | K84: iiC | L84: =SUM(J82:J83) -> 750000
F85: iii | G85: Cash and Bank Balances
G86: A | H86: Balance with banks | I86: iiiA | J86: 1125000
G87: B | H87: Cash-in-hand | I87: iiiB | J87: 150000
G88: C | H88: Others | I88: iiiC | J88: 0
G89: D | H89: Total Cash and cash equivalents (iiiA + iiiB + iiiC) | K89: iiiD | L89: =J87+J86+J88 -> 1275000
F90: iv | G90: Other Current Assets | K90: aiv | L90: 0
F91: v | G91: Total current assets (iH +iiC + iiiD + aiv) | K91: av | L91: =BS.TotCashOrBankBal+BS.SundryDebtors+BS.TotInventries+BS.OthCurrAsset -> 3125000
E92: b | F92: Loans and advances
F93: i | G93: Advances recoverable in cash or in kind or for value to be received | I93: bi | J93: 0
F94: ii | G94: Deposits, loans and advances to corporates and others | I94: bii | J94: 0
F95: iii | G95: Balance with Revenue Authorities | I95: biii | J95: 0
F96: iv | G96: Total (bi + bii + biii) | K96: biv | L96: =SUM(J93:J95) -> 0
F97: v | G97: Loans and advances included in biv which is
F98: a | G98: for the purpose of business or profession | I98: a | J98: 0
F99: b | G99: not for the purpose of business or profession | I99: b | J99: 0
E100: c | F100: Total (av + biv) | K100: 3c | L100: =BS.TotLoanAdv+BS.TotCurrAsset -> 3125000
E101: d | F101: Current liabilities and provisions
F102: i | G102: Current liabilities
G103: A | H103: Sundry Creditors
G104: 1 | H104: Outstanding for more than one year | I104: 1
G105: 2 | H105: Other | I105: 2 | J105: 1250000
G106: 3 | H106: Total | I106: A3 | J106: =SUM(J104:J105) -> 1250000
G107: B | H107: Liability for Leased Assets | I107: iB | J107: 0
G108: C | H108: Interest Accrued and due on borrowings | I108: iC | J108: 0
G109: D | H109: Interest accrued but not due on borrowings | I109: iD | J109: 0
G110: E | H110: Income received in advance | I110: iE | J110: 0
G111: F | H111: Other payables | I111: iF | J111: 0
G112: G | H112: Total (A3 + iB + iC + iD + iE + iF) | K112: iG | L112: =SUM(J106:J111) -> 1250000
F113: ii | G113: Provisions
G114: A | H114: Provision for Income Tax | I114: iiA | J114: 0
G115: B | H115: Provision for Wealth Tax | I115: iiB
G116: B | H116: Provision for Leave encashment/Superannuation/ Gratuity | I116: iiB | J116: 0
G117: C | H117: Other Provisions | I117: iiC | J117: 0
G118: D | H118: Total (iiA + iiB + iiC) | K118: iiE | L118: =SUM(J114:J117) -> 0
F119: iii | G119: Total (iG + iiD) | K119: diii | L119: =BS.TotProvisions+BS.TotCurrLiabilities -> 1250000
E120: e | F120: Net current assets (3c – diii) | K120: 3e | L120: =BS.TotCurrAssetLoanAdv-BS.TotCurrLiabilitiesProvision -> 1875000
D121: 4 | E121: a | F121: Miscellaneous expenditure not written off or adjusted | I121: 4a | J121: 0
E122: b | F122: Deferred tax asset | I122: 4b | J122: 0
E123: c | F123: Debit balancein ProfitLoss account accumulated balance | I123: 4c | J123: 0
E124: d | F124: Total (4a + 4b + 4c) | K124: 4d | L124: =SUM(J121:J123) -> 0
D125: 5 | E125: Total, application of funds (1e + 2c + 3e +4d) | K125: 5 | L125: =BS.TotMiscAdjust+BS.NetCurrAsset+BS.TotInvestments+BS.TotFixedAsset -> 16275000
C126: NO ACCOUNT CASE | D126: C | E126: In a case where regular books of account of business or profession are not maintained, furnish the following information as on 31st day of March, 2022, in respect of business or profession
E127: 1 | F127: Amount of total sundry debtors | K127: C1 | L127: 0
E128: 2 | F128: Amount of total sundry creditors | K128: C2 | L128: 0
E129: 3 | F129: Amount of total stock-in-trade | K129: C3 | L129: 0
E130: 4 | F130: Amount of the cash balance | K130: C4 | L130: 0

Sheet MANUFACTURING ACCOUNT
C3: Schedule Manufacturing Account | G3: Manufacturing Account for the financial year 2021-22 (fill items 1 to 3 in a case where regular books of accounts are maintained, otherwise fill items 62 to 66 as applicable)
C4: 1 | D4: Debits to manufacturing account
D5: A | E5: Opening Inventory
E6: i | F6: Opening stock of raw-material | P6: Ai
E7: ii | F7: Opening stock of Work in progress | P7: Aii
E8: iii | F8: Total (i + ii) | P8: Aiii | Q8: =ManuFactureAcc_OpenStockRawMaterial+ManuFactureAcc_OpenStockWorkProgress -> 0
D9: B | E9: Purchases (net of refunds and duty or tax, if any) | P9: B
D10: C | E10: Direct wages | P10: C
D11: D | E11: Direct expenses (Di + Dii + Diii) | P11: D | Q11: =SUM(Q12:Q14) -> 0
E12: i | F12: Carriage inward | P12: Di
E13: ii | F13: Power and fuel | P13: Dii
E14: iii | F14: Other direct expenses | P14: Diii
D15: E | E15: Factory Overheads
E16: i | F16: Indirect wages | P16: Ei
E17: ii | F17: Factory rent and rates | P17: Eii
E18: iii | F18: Factory Insurance | P18: Eiii
E19: iv | F19: Factory fuel and power | P19: Eiv
E20: v | F20: Factory general expenses | P20: Ev
E21: vi | F21: Depreciation of factory machinery | P21: Evi
E22: vii | F22: Total (i+ii+iii+iv+v+vi) | P22: Evii | Q22: =SUM(Q16:Q21) -> 0
D23: F | E23: Total of Debits to Manufacturing Account (Aiii+B+C+D+Evii) | P23: F | Q23: =ManuFactureAcc_TotalOpeningInventary+ManuFactureAcc_Purchases+ManuFactureAcc_DirectWages+ManuFactureAcc_TotalOfDirectExpenses+ManuFactureAcc_TotalFactoryOverheads -> 0
C24: 2 | D24: Closing Stock
E25: i | F25: Raw material | P25: i
E26: ii | F26: Work-in-progress | P26: ii
E27: iii | F27: Total (2i +2ii) | P27: iii | Q27: =SUM(Q25:Q26) -> 0
C28: 3 | E28: Cost of Goods Produced – transferred to Trading Account (1F-2) | P28: 3 | Q28: =ManuFactureAcc_TotalOfDebitstoManuFacturingAcc-ManuFactureAcc_TotalClosingClock -> 0

Sheet TRADING ACCOUNT
C3: Part A-Trading Account | G3: Trading Account for the financial year 2021-22 (fill items 4 to 12 in a case where regular books of accounts are maintained, otherwise fill items 62 to 66 as applicable)
D4: 4 | E4: Revenue from operations
E5: A | F5: Sales/ Gross receipts of business (net of returns and refunds and duty or tax, if any
F6: i | G6: Sale of goods | I6: i | J6: 19200000
F7: ii | G7: Sale of Services | I7: ii | J7: 2400000
F8: iii | G8: Other operating revenues (specify nature and amount)
G9: Sl. No. | H9: Nature | J9: Amount
G10: 1 | I10: =1 -> 1
G11: =G10+1 -> 2 | I11: =I10+1 -> 2
F12: Total | J12: =SUM(TradingAcc_RevenueAmount) -> 0
C13: CREDITS OF TRADING ACCOUNT
F14: iv | G14: Total (i + ii + iii) | K14: Aiv | L14: =SUM(TradingAcc_SalesOfGoods,TradingAcc_SalesOfServices,SUM(TradingAcc_RevenueAmount)) -> 21600000
E15: B | F15: Gross receipts from Profession | K15: B | L15: 0
E16: C | F16: Duties, taxes and cess, received or receivable, in respect of goods and services sold or supplied
F17: i | G17: Union Excise duties | I17: i | J17: 0
F18: ii | G18: Service tax | I18: ii | J18: 0
F19: iii | G19: VAT/ Sales tax | I19: iii | J19: 0
F20: iv | G20: Central Goods & Service Tax (CGST) | I20: iv | J20: 0
F21: v | G21: State Goods & Services Tax (SGST) | I21: v | J21: 0
F22: vi | G22: Integrated Goods & Services Tax (IGST) | I22: vi | J22: 1536000
F23: vii | G23: Union Territory Goods & Services Tax (UTGST) | I23: vii | J23: 0
F24: viii | G24: Any other duty, tax and cess | I24: viii | J24: 0
F25: ix | G25: Total (i+ii+iii+iv+v+vi+vii+viii) | K25: Cix | L25: =SUM(J17:J24) -> 1536000
E26: D | F26: Total Revenue from operations (Aiv + B+ Cix) | K26: 4D | L26: =TradingAcc_RevenueTotal+TradingAcc_GrossRecieptsFromProfession+TradingAcc_TotalDutiesTaxesCess -> 23136000
D27: 5 | E27: Closing Stock of Finished Goods | K27: 5 | L27: 1100000
D28: 6 | E28: Total of credits to Trading Account (4D + 5 ) | K28: 6 | L28: =TradingAcc_TotalRevenueFromOperations+TradingAcc_ClosingStockOfFinishedStocks -> 24236000
D29: 7 | E29: Opening Stock of Finished Goods | K29: 7 | L29: 440000
D30: 8 | E30: Purchases (net of refunds and duty or tax, if any) | K30: 8 | L30: 8640000
D31: 9 | E31: Direct Expenses (9i + 9ii + 9iii) | K31: 9 | L31: =SUM(TradingAcc_CarriageInward,TradingAcc_PowerAndFuel,SUM(TradingAcc_OtherDirectAmount)) -> 422400
E32: i | F32: Carriage inward | I32: i | J32: 192000
E33: ii | F33: Power and fuel | I33: ii | J33: 153600
E34: iii | F34: Other direct expenses
G35: Sl. No. | H35: Nature | J35: Amount
G36: 1 | H36: MISC | I36: =1 -> 1 | J36: 76800
G37: =G36+1 -> 2 | I37: =I36+1 -> 2
I38: Total | J38: =SUM(TradingAcc_OtherDirectAmount) -> 76800
C39: DEBITS TO TRADING ACCOUNT
D40: 10 | E40: Duties and taxes, paid or payable, in respect of goods and services purchased
E41: i | F41: Custom duty | I41: i
E42: ii | F42: Counter veiling duty | I42: ii
E43: iii | F43: Special additional duty | I43: iii
E44: iv | F44: Union excise duty | I44: iv
E45: v | F45: Service Tax | I45: v
E46: vi | F46: VAT/ Sales tax | I46: vi
E47: vii | F47: Central Goods & Service Tax (CGST) | I47: vii
E48: viii | F48: State Goods & Services Tax (SGST) | I48: viii
E49: ix | F49: Integrated Goods & Services Tax (IGST) | I49: ix | J49: 480000
E50: x | F50: Union Territory Goods & Services Tax (UTGST) | I50: x
E51: xi | F51: Any other tax, paid or payable | I51: xi
E52: xii | F52: Total (10i + 10ii + 10iii + 10iv + 10v + 10vi + 10vii + 10viii + 10ix + 10x+10xi) | K52: 10xii | L52: =SUM(J41:J51) -> 480000
D53: 11 | E53: Cost of goods produced – Transferred from Manufacturing Account | K53: 11 | L53: =ManuFactureAcc_CostOfGoodsProduced -> 0
D54: 12 | E54: Gross Profit from Business/Profession - transferred to Profit and Loss account (6-7-8-9-10xii-11) | K54: 12 | L54: =TradingAcc_TotalOfCreditsToTradingAccount-TradingAcc_OpeningStockOfFinishedGoods-TradingAcc_Purchases-TradingAcc_TotalDirectExpenses-TradingAcc_TotalDuties-TradingAcc_CostOfGoods -> 14253600

Sheet PROFIT_LOSS
C3: Part A-P& L | F3: Profit and Loss Account for the financial year 2021-22 (fill items 13 to 61 in a case where regular books of accounts are maintained, otherwise fill items 62 to 66 as applicable)
D4: 13 | E4: Gross profit transferred from Trading Account | N4: 13 | O4: =TradingAcc_GrossProfitOrLoss -> 14253600
D5: 14 | E5: Other income
E6: i | F6: Rent | K6: i | L6: 0
E7: ii | F7: Commission | K7: ii | L7: 0
E8: iii | F8: Dividend income | K8: iii | L8: 0
E9: iv | F9: Interest income | K9: iv | L9: 0
E10: v | F10: Profit on sale of fixed assets | K10: v | L10: 0
E11: vi | F11: Profit on sale of investment being securities chargeable to Securities Transaction Tax (STT) | K11: vi | L11: 0
E12: vii | F12: Profit on sale of other investment | K12: vii | L12: 0
E13: viii | F13: Gain (Loss) on account of foreign exchange fluctuation u/s 43AA | K13: viii | L13: 0
E14: ix | F14: Profit on conversion of inventory into capital asset u/s 28(via) (FMV of inventory as on the date of conversion) | K14: ix | L14: 0
E15: x | F15: Agricultural income | K15: x | L15: 0
E16: xi | F16: Any other income (specify nature and amount)
F17: Sl. No. | G17: Nature | H17: Amount
F18: 1
F19: =F18+1 -> 2
F20: Total | H20: =SUM(PL.Amount) -> 0
E22: xii | F22: Total of other income (i + ii + iii + iv + v + vi + vii + viii + ix +x+ xic) | N22: 14xii | O22: =SUM(L6:L15)+PL.MiscOthIncome -> 0
D23: 15 | E23: Total of credits to profit and loss account (13+14xii) | N23: 15 | O23: =SUM(PL.GrossProfitTrnsfFrmTrdAcc,PL.TotOthIncome) -> 14253600
D24: 16 | E24: Freight outward | N24: 16 | O24: 0
D25: 17 | E25: Consumption of stores and spare parts | N25: 17 | O25: 0
D26: 18 | E26: Power and fuel | N26: 18 | O26: 0
D27: 19 | E27: Rents | N27: 19 | O27: 600000
D28: 20 | E28: Repairs to building | N28: 20 | O28: 375000
D29: 21 | E29: Repairs to machinery | N29: 21 | O29: 300000
D30: 22 | E30: Compensation to employees
E31: i | F31: Salaries and wages | K31: 22i | L31: 2400000
E32: ii | F32: Bonus | K32: 22ii | L32: 240000
E33: iii | F33: Reimbursement of medical expenses | K33: 22iii | L33: 0
E34: iv | F34: Leave encashment | K34: 22iv | L34: 0
E35: v | F35: Leave travel benefits | K35: 22v | L35: 0
E36: vi | F36: Contribution to approved superannuation fund | K36: 22vi | L36: 0
E37: vii | F37: Contribution to recognised provident fund | K37: 22vii | L37: 0
E38: viii | F38: Contribution to recognised gratuity fund | K38: 22viii | L38: 0
E39: ix | F39: Contribution to any other fund | K39: 22ix | L39: 0
E40: x | F40: Any other benefit to employees in respect of which an expenditure has been incurred | K40: 22x | L40: 0
E41: xi | F41: Total compensation to employees (total of 22i to 22x) | N41: 22xi | O41: =SUM(L31:L40) -> 2640000
E42: xii | F42: Whether any compensation, included in 22xi, paid to non-residents | K42: xiia | L42: No
F43: If Yes, amount paid to non-residents | K43: xiib
D44: 23 | E44: Insurance
E45: i | F45: Medical Insurance | K45: 23i | L45: 0
E46: ii | F46: Life Insurance | K46: 23ii | L46: 0
E47: iii | F47: Keyman’s Insurance | K47: 23iii | L47: 0
E48: iv | F48: Other Insurance including factory, office, car, goods,etc. | K48: 23iv | L48: 0
E49: v | F49: Total expenditure on insurance (23i+23ii+23iii+23iv) | N49: 23v | O49: =SUM(L45:L48) -> 0
D50: 24 | E50: Workmen and staff welfare expenses | N50: 24 | O50: 480000
D51: 25 | E51: Entertainment | N51: 25 | O51: 0
D52: 26 | E52: Hospitality | N52: 26 | O52: 0
D53: 27 | E53: Conference | N53: 27 | O53: 0
D54: 28 | E54: Sales promotion including publicity (other than advertisement) | N54: 28 | O54: 0
D55: 29 | E55: Advertisement | N55: 29 | O55: 912000
D56: 30 | E56: Commission
E57: i | F57: Paid outside India, or paid in India to a non-resident other than a company or a foreign company | K57: i | L57: 0
E58: ii | F58: To others | K58: ii | L58: 270000
E59: iii | F59: Total (i + ii) | N59: 30iii | O59: =SUM(L57:L58) -> 270000
D60: 31 | E60: Royalty
E61: i | F61: Paid outside India, or paid in India to a non-resident other than a company or a foreign company | K61: i | L61: 0
E62: ii | F62: To others | K62: ii | L62: 0
E63: iii | F63: Total (i + ii) | N63: 31iii | O63: =SUM(L61:L62) -> 0
D64: 32 | E64: Professional / Consultancy fees / Fee for technical services
E65: i | F65: Paid outside India, or paid in India to a non-resident other than a company or a foreign company | K65: i | L65: 0
E66: ii | F66: To others | K66: ii | L66: 0
E67: iii | F67: Total (i + ii) | N67: 32iii | O67: =SUM(L65:L66) -> 0
D68: 33 | E68: Hotel , boarding and Lodging | N68: 33 | O68: 0
D69: 34 | E69: Traveling expenses other than on foreign traveling | N69: 34 | O69: 90000
D70: 35 | E70: Foreign travelling expenses | N70: 35 | O70: 0
D71: 36 | E71: Conveyance expenses | N71: 36 | O71: 0
D72: 37 | E72: Telephone expenses | N72: 37 | O72: 30000
D73: 38 | E73: Guest House expenses | N73: 38 | O73: 0
D74: 39 | E74: Club expenses | N74: 39 | O74: 0
D75: 40 | E75: Festival celebration expenses | N75: 40 | O75: 0
D76: 41 | E76: Scholarship | N76: 41 | O76: 0
D77: 42 | E77: Gift | N77: 42 | O77: 0
D78: 43 | E78: Donation | N78: 43 | O78: 0
D79: 44 | E79: Rates and taxes, paid or payable to Government or any local body (excluding taxes on income)
E80: i | F80: Union excise duty | K80: 44i | L80: 0
E81: ii | F81: Service tax | K81: 44ii | L81: 0
E82: iii | F82: VAT/ Sales tax | K82: 44iii | L82: 0
E83: iv | F83: Cess | K83: 44iv | L83: 0
E84: v | F84: Central Goods & Service Tax (CGST) | K84: 44v | L84: 0
E85: vi | F85: State Goods & Services Tax (SGST) | K85: 44vi | L85: 0
E86: vii | F86: Integrated Goods & Services Tax (IGST) | K86: 44vii | L86: 1056000
E87: viii | F87: Union Territory Goods & Services Tax (UTGST) | K87: 44viii | L87: 0
E88: ix | F88: Any other rate, tax, duty or cess including STT and CTT | K88: 44ix | L88: 0
E89: x | F89: Total rates and taxes paid or payable (44i+44ii+44iii+44iv+44v+ 44vi + 44vii + 44viii + 44ix) | N89: 44x | O89: =SUM(L80:L88) -> 1056000
D90: 45 | E90: Audit fee | N90: 45 | O90: 150000
D91: 46 | E91: Salary/Remuneration to Partners of the firm | N91: 46 | O91: 960000
D92: 47 | E92: Other expenses (Specify nature and amount)
E93: Sl. No. | F93: Nature | G93: Amount
E94: 1 | F94: MISC | G94: 1810000
E95: =E94+1 -> 2
E97: Total | N97: 47 | O97: =SUM(PLOE.ExpenseAmt) -> 1810000
D98: 48 | E98: Bad debts (specify PAN of the person, if available, for whom Bad Debt for amount of Rs. 1 lakh or more is claimed and amount) (Note: If no entry is made in first row then other rows will not be considered)
D99: i | E99: Sl. No. | F99: PAN | G99: Aadhaar No. | H99: Amount
E100: 1
E101: =E100+1 -> 2
G102: Total | H102: =SUM(PLBD.Amount) -> 0
E104: ii | F104: Others (more than Rs. 1 lakh) where PAN/ Aadhaar No. is not available (provide name and complete address)
D105: Sl. No. | E105: Name | F105: Flat/ Door/ Block No. | G105: Name of Premises / Building / Village | H105: Road/ Street/Post office | I105: Area/ Locality | J105: Town/ City/ District | K105: State | L105: Country | M105: PIN Code | N105: ZIP Code | O105: Amount
D106: 1 | K106: (Select) | L106: (Select)
D107: =D106+1 -> 2 | K107: (Select) | L107: (select)
N108: Total | O108: =SUM(PLOT.Amount) -> 0
E110: iii | F110: Others (amounts less than Rs. 1 lakh) | K110: iii | L110: 0
E111: iv | F111: Total Bad Debt (48i + 48ii + 48iii) | N111: 48iv | O111: =SUM(PLBD.Amount)+SUM(PLOT.Amount)+PL.OthersAmtLt1Lakh -> 0
D112: 49 | E112: Provision for bad and doubtful debts | N112: 49 | O112: 0
D113: 50 | E113: Other provisions | N113: 50 | O113: 0
D114: 51 | E114: Profit before interest, depreciation and taxes [15 – (16 to 21 + 22xi + 23v + 24 to 29 + 30iii + 31iii + 32iii + 33 to 43 + 44x + 45 + 46 + 47iii + 48vii + 49 + 50)] | N114: 51 | O114: =PL.TotCreditsToPL-(SUM(O24:O29)+PL.TotEmployeeComp+PL.TotInsurances+SUM(O50:O55)+PL.CommissionExpdr+PLRY.Total+PLPC.Total+SUM(O68:O78)+PLRateEx.TotExciseCustomsVAT+PL.AuditFee+PL.SalRemToPartnerFirm+PL.OtherExpenses+PL.BadDebt+PL.ProvForBadDoubtDebt+PL.OthProvisionsExpdr) -> 4580600
D115: 52 | E115: Interest
E116: i | F116: Paid outside India, or paid in India to a non-resident other than a company or a foreign company
E117: a | F117: To Partners | K117: ia
E118: b | F118: To others | K118: ib | L118: 0
E119: ii | F119: Paid in India, or paid to a resident
E120: a | F120: To Partners | K120: iia | L120: 750000
E121: b | F121: To others | K121: iib | L121: 0
E122: iii | F122: Total (ia+ib+iia+iib) | N122: 52iii | O122: =SUM(L116:L121) -> 750000
D123: 53 | E123: Depreciation and amortization | N123: 53 | O123: 1000000
D124: 54 | E124: Net profit before taxes (51 – 52iii – 53) | N124: 54 | O124: =O114-O122-O123 -> 2830600
D125: 55 | E125: Provision for current tax | N125: 55 | O125: 0
D126: 56 | E126: Provision for Deferred Tax | N126: 56 | O126: 0
D127: 57 | E127: Profit after tax (54 – 55 – 56) | N127: 57 | O127: =O124-O125-O126 -> 2830600
D128: 58 | E128: Balance brought forward from previous year | N128: 58 | O128: 0
D129: 59 | E129: Amount available for appropriation (57 + 58) | N129: 59 | O129: =SUM(O127:O128) -> 2830600
D130: 60 | E130: Transferred to reserves and surplus | N130: 60 | O130: 0
D131: 61 | E131: Balance carried to balance sheet in proprietor’s account (59 – 60) | N131: 61 | O131: =O129-O130 -> 2830600
D132: 62 | E132: COMPUTATION OF PRESUMPTIVE BUSINESS INCOME UNDER SECTION 44AD (Only for Resident Partnership Firm other than LLP)
F133: Sl.No. | G133: Name of the Business | H133: Business Code | I133: Description
F134: 1
F135: =F134+1 -> 2
F136: =F135+1 -> 3
E137: i | F137: Gross Turnover or Gross Receipts (ia + ib) | N137: 62i | O137: =SUM(L138:L139) -> 0
F138: a | G138: Through a/c payee cheque or a/c payee bank draft or bank electronic clearing system or other prescribed electronic modes received before specified date | K138: ia
F139: b | G139: Any other mode | K139: ib
E140: ii | F140: Presumptive income under section 44AD(iia+iib) | N140: 62ii | O140: =SUM(L141:L142) -> 0
F141: a | G141: 6% of 62ia, or the amount claimed to have been earned, whichever is higher | K141: iia
F142: b | G142: 8% of 62ib, or the amount claimed to have been earned, whichever is higher | K142: iib
E143: Note : | F143: If income is less than the above percentage of Gross Receipts/Turnover, it is mandatory to maintain books of accounts and have a tax audit under 44AB
D144: 63 | E144: COMPUTATION OF PRESUMPTIVE INCOME FROM PROFESSIONS UNDER SECTION 44ADA (Only for Resident Partnership Firm other than LLP)
F145: Sl.No. | G145: Name of the Business | H145: Business Code | I145: Description
F146: 1
F147: =F146+1 -> 2
F148: =F147+1 -> 3
E149: i | F149: Gross Receipts | N149: 63i
E150: ii | F150: Presumptive Income under section 44ADA (50% of 63i, or the amount claimed to have been earned, whichever is higher) | N150: 63ii
E151: Note : | F151: If income is less than 50% of Gross Receipts, it is mandatory to maintain books of accounts and have a tax audit under section 44AB
D152: 64 | E152: COMPUTATION OF PRESUMPTIVE INCOME FROM GOODS CARRIAGES UNDER SECTION 44AE
F153: Sl.No. | G153: Name of the Business | H153: Business Code | I153: Description
F154: 1 | H154: (Select)
F155: =F154+1 -> 2 | H155: (Select)
F156: =F155+1 -> 3 | H156: (Select)
E158: Sl.No. | F158: Registration No. of goods carriage | G158: Whether owned/leased/hired | H158: Tonnage Capacity of goods carriage(in MT) | I158: Number of months for which goods carriage was owned / leased / hired by assessee | J158: Presumptive income u/s 44AE for the goods carriage (Computed @ Rs.1000 per ton per month in case tonnage exceeds 12MT, or else @ Rs.7500 per month) or the amount claimed to have been actually earned, whichever is higher
E159: i | F159: (1) | G159: (2) | H159: (3) | I159: (4) | J159: (5)
E160: 1 | G160: (Select)
E161: =E160+1 -> 2 | G161: (Select)
E162: Total | I162: =SUM(PL44AE2.NoMonthsOwned) -> 0 | J162: =SUM(PL44AE2.PresemptiveIncome) -> 0
E164: Note : | F164: If the profits are lower than prescribed under S.44AE or the number of goods carriage owned at any time during the year exceeds 10,it is mandatory to maintain books of accounts and have a tax audit under 44AB.
E165: ii | F165: Total presumptive income from goods carriage u/s 44AE [total of column (5) of table 64(i)] | N165: 64ii | O165: =SUM(PL44AE2.PresemptiveIncome) -> 0
E166: iii | F166: Less: Salary/Remuneration to Partners of the firm | N166: 64iii
E167: iv | F167: Total Presumptive Income u/s 44AE (ii-iii) | N167: 64iv | O167: =MAX(0,PL.TotalPrsumptvIncGCUs44E-PL.SalRemrtnToPartnerFirm) -> 0
C168: NO ACCOUNT CASE | D168: 65 | E168: IF REGULAR BOOKS OF ACCOUNT OF BUSINESS OR PROFESSION ARE NOT MAINTAINED, furnish the following information for previous year 2021-22 in respect of business or profession -
D169: (i) | E169: For assessee carrying on Business
E170: a | F170: Gross receipts (a1+a2) | N170: 65(i)a | O170: =SUM(O171:O172) -> 0
F171: i Through a/c payee cheque or a/c payee bank draft or bank electronic clearing system or other prescribed electronic modes received before specified date | N171: ai | O171: 0
F172: ii Any other mode | N172: aii | O172: 0
E173: b | F173: Gross profit | N173: 65(i)b | O173: 0
E174: c | F174: Expenses | N174: 65(i)c | O174: 0
E175: d | F175: Net profit | N175: 65(i)d | O175: =MAX(0,PL.GrossProfit-PL.Expenses) -> 0
D176: (ii) | E176: For assessee carrying on Profession
E177: a | F177: Gross receipts (a1 + a2) | N177: 65(ii)a | O177: =SUM(O178:O179) -> 0
F178: i Through a/c payee cheque or a/c payee bank draft or bank electronic clearing system or other prescribed electronic modes received before specified date | N178: ai | O178: 0
F179: ii Any other mode | N179: aii | O179: 0
E180: b | F180: Gross profit | N180: 65(ii)b | O180: 0
E181: c | F181: Expenses | N181: 65(ii)c | O181: 0
E182: d | F182: Net profit | N182: 65(ii)d | O182: =MAX(0,PL.GrossProfitPrf-PL.ExpensesPrf) -> 0
D183: Total Profit (65(i)d + 65(ii)d) | N183: 65 | O183: =PL.NetProfit+PL.NetProfitPrf -> 0
D184: 66 | E184: (i) Turnover from speculative activity | N184: 66i | O184: 0
E185: (ii) Gross Profit | N185: 66ii | O185: 0
E186: (iii) Expenditure, if any | N186: 66iii | O186: 0
E187: (iv) Net income from speculative activity (66ii - 66iii) | N187: 66iv | O187: =PL.GrossProfit_2-PL.Expenditure -> 0

Sheet PART - A OI
C3: Part A- OI | F3: OI Other Information (Mandatory if liable for audit under section 44AB). Where applicable, all fields with Serial nos marked in red, are compulsory and blank numeric fields will be treated as zeroes.
C4: OTHER INFORMATION | D4: 1 | E4: Method of accounting employed in the previous year | K4: 1 | L4: Mercantile
D5: 2 | E5: Is there any change in method of accounting | K5: 2 | L5: No
D6: 3a | E6: Increase in the profit or decrease in loss because of deviation, if any, as per Income Computation Disclosure Standards notified under section 145(2) [column 11a(iii) of Schedule ICDS] | K6: 3a | L6: =ICDS.PositiveTotal -> 0
D7: 3b | E7: Decrease in the profit or increase in loss because of deviation, if any, as per Income Computation Disclosure Standards notified under section 145(2) [column 11b(iii) of Schedule ICDS] | K7: 3b | L7: =ICDS.NegativeTotal -> 0
D8: 4 | E8: Method of valuation of closing stock employed in the previous year (If applicable, fill all serial nos in red, since blank will be treated as zeroes)
E9: a | F9: Raw Material (if at cost or market rates whichever is less write 1, if at cost write 2, if at market rate write 3) | K9: 4a | L9: (Select)
E10: b | F10: Finished goods (if at cost or market rates whichever is less write 1, if at cost write 2, if at market rate write 3) | K10: 4b | L10: (Select)
E11: c | F11: Is there any change in stock valuation method (Select) | K11: 4c | L11: No
E12: d | F12: Increase in the profit or decrease in loss because of deviation, if any, from the method of valuation specified under section 145A | K12: 4d
E13: e | F13: Decrease in the profit or increase in loss because of deviation, if any, from the method of valuation specified under section 145A | K13: 4e
D14: 5 | E14: Amounts not credited to the profit and loss account, being
E15: a | F15: the items falling within the scope of section 28 | I15: 5a
E16: b | F16: The proforma credits, drawbacks, refund of duty of customs or excise or service tax, or refund of sales tax or value added tax, or refund of GST, where such credits, drawbacks or refunds are admitted as due by the authorities concerned | I16: 5b
E17: c | F17: escalation claims accepted during the previous year | I17: 5c
E18: d | F18: Any other item of income | I18: 5d
E19: e | F19: Capital receipt, if any | I19: 5e
E20: f | F20: Total of amounts not credited to profit and loss account (5a+5b+5c+5d+5e) | K20: 5f | L20: =SUM(J15:J19) -> 0
D21: 6 | E21: Amounts debited to the profit and loss account, to the extent disallowable under section 36 due to non-fulfilment of condition specified in relevant clauses-
E22: a | F22: Premium paid for insurance against risk of damage or destruction of stocks or store [36(1)(i)] | I22: 6a
E23: b | F23: Premium paid for insurance on the health of employees [36(1)(ib)] | I23: 6b
E24: c | F24: Any sum paid to an employee as bonus or commission for services rendered, where such sum was otherwise payable to him as profits or dividend [36(1)(ii)] | I24: 6c
E25: d | F25: Any amount of interest paid in respect of borrowed capital [36(1)(iii)] | I25: 6d
E26: e | F26: Amount of discount on a zero-coupon bond [36(1)(iiia)] | I26: 6e
E27: f | F27: Amount of contributions to a recognised provident fund [36(1)(iv)] | I27: 6f
E28: g | F28: Amount of contributions to an approved superannuation fund [36(1)(iv)] | I28: 6g
E29: h | F29: Amount of contribution to a pension scheme referred to in section 80CCD [36(1)(iva)] | I29: 6h
E30: i | F30: Amount of contributions to an approved gratuity fund [36(1)(v)] | I30: 6i
E31: j | F31: Amount of contributions to any other fund | I31: 6j
E32: k | F32: Any sum received from employees as contribution to any provident fund or superannuation fund or any fund set up under ESI Act or any other fund for the welfare of employees to the extent not credited to the employees account on or before the due date [36(1)(va)] | I32: 6k
E33: l | F33: Amount of bad and doubtful debts [36(1)(vii)] | I33: 6l
E34: m | F34: Provision for bad and doubtful debts [36(1)(viia)] | I34: 6m
E35: n | F35: Amount transferred to any special reserve [36(1)(viii)] | I35: 6n
E36: o | F36: Expenditure for the purposes of promoting family planning amongst employees [36(1)(ix)] | I36: 6o
E37: p | F37: Amount of securities transaction paid in respect of transaction in securities if such income is not included in business income [36(1)(xv)] | I37: 6p
E38: q | F38: Marked to market loss or other expected loss as computed in accordance with the ICDS notified u/s 145(2) [36(1)(xviii)] | I38: 6q
E39: r | F39: Expenditure for purchase of sugarcane in excess of the government approved price [36(1)(xvii)] | I39: 6r
E40: s | F40: Any other disallowance | I40: 6s
E41: t | F41: Total amount disallowable under section 36 (total of 6a to 6s) | K41: 6t | L41: =SUM(J22:J40) -> 0
E42: u | F42: Total number of employees employed by the company (mandatory in case company has recognized Provident Fund)
F43: i | G43: Deployed in India | I43: i
F44: ii | G44: Deployed outside India | I44: ii
F45: iii | G45: Total Deployed (i) + (ii) | I45: iii | J45: =SUM(J43:J44) -> 0
D46: 7 | E46: Amounts debited to the profit and loss account, to the extent disallowable under section 37
E47: a | F47: Expenditure of capital nature [37(1)] | I47: 7a | J47: 80000
E48: b | F48: Expenditure of personal nature [37(1)] | I48: 7b
E49: c | F49: Expenditure laid out or expended wholly and exclusively NOT for the purpose of business or profession [37(1)] | I49: 7c | J49: 18000
E50: d | F50: Expenditure on advertisement in any souvenir, brochure, tract, pamphlet or the like, published by a political party [37(2B)] | I50: 7d
E51: e | F51: Expenditure by way of penalty or fine for violation of any law for the time being in force; | I51: 7e
E52: f | F52: Any other penalty or fine; | I52: 7f
E53: g | F53: Expenditure incurred for any purpose which is an offence or which is prohibited by law; | I53: 7g
E54: h | F54: Amount of any liability of a contingent nature | I54: 7h
E55: i | F55: Any other amount not allowable under section 37 | I55: 7i
E56: j | F56: Total amount disallowable under section 37(total of 7a to 7i) | K56: 7j | L56: =SUM(J47:J55) -> 98000
D57: 8 | E57: A | F57: Amounts debited to the profit and loss account, to the extent disallowable under section 40
F58: a | G58: Amount disallowable under section 40 (a)(i), on account of non-compliance with the provisions of Chapter XVII-B | I58: Aa
F59: b | G59: Amount disallowable under section 40(a)(ia) on account of non-compliance with the provisions of Chapter XVII-B | I59: Ab
F60: c | G60: Amount disallowable under section 40 (a)(ib), on account of non-compliance with the provisions of Chapter VIII of the Finance Act, 2016 | I60: Ac
F61: d | G61: Amount disallowable under section 40(a)(iii) on account of non-compliance with the provisions of Chapter XVII-B | I61: Ad
F62: e | G62: Amount of tax or rate levied or assessed on the basis of profits [40(a)(ii)] | I62: Ae | J62: 40000
F63: f | G63: Amount paid as wealth tax [40(a)(iia)] | I63: Af
F64: g | G64: Amount paid by way of royalty, license fee, service fee etc. as per section 40(a)(iib) | I64: Ag
F65: h | G65: Amount of interest, salary, bonus, commission or remuneration paid to any partner or member [40(b)] | I65: Ah
F66: i | G66: Any other disallowance | I66: Ai
F67: j | G67: Total amount disallowable under section 40(total of Aa to Ai) | K67: 8Aj | L67: =SUM(J58:J66) -> 40000
E68: B | F68: Any amount disallowed under section 40 in any preceding previous year but allowable during the previous year | K68: 8B
D69: 9 | E69: Amounts debited to the profit and loss account, to the extent disallowable under section 40A
E70: a | F70: Amounts paid to persons specified in section 40A(2)(b) | I70: 9a | J70: 100000
E71: b | F71: Amount paid, otherwise than by account payee cheque or account payee bank draft or use of electronic clearing system through a bank account, or through such electronic mode as may be prescribed disallowable under section 40A(3) | I71: 9b
E72: c | F72: Provision for payment of gratuity [40A(7)] | I72: 9c
E73: d | F73: any sum paid by the assessee as an employer for setting up or as contribution to any fund, trust, company, AOP, or BOI or society or any other institution [40A(9)] [40A(9)] | I73: 9d
E74: e | F74: Marked to market loss or other expected loss except as allowable u/s 36(1)(xviii) [40A(13)] | I74: 9e
E75: f | F75: Any other disallowance | I75: 9f
E76: g | F76: Total amount disallowable under section 40A | K76: 9g | L76: =SUM(J70:J75) -> 100000
D77: 10 | E77: Any amount disallowed under section 43B in any preceding previous year but allowable during the previous year
E78: a | F78: Any sum in the nature of tax, duty, cess or fee under any law | I78: 10a
E79: b | F79: Any sum payable by way of contribution to any provident fund or superannuation fund or gratuity fund or any other fund for the welfare of employees | I79: 10b
E80: c | F80: Any sum payable to an employee as bonus or commission for services rendered | I80: 10c
E81: d | F81: Any sum payable as interest on any loan or borrowing from any public financial institution or a State financial corporation or a State Industrial investment corporation | I81: 10d
E82: da | F82: Any sum payable as interest on any loan or borrowing from a deposit taking non-banking financial company or systemically important non-deposit taking non-banking financial company, in accordance with the terms and conditions of the agreement governing such loan or borrowing | I82: 10da
E83: e | F83: Any sum payable as interest on any loan or borrowing from any scheduled bank or a co-operative bank other than a primary agricultural credit society or a primary co-operative agricultural and rural development bank | I83: 10e
E84: f | F84: Any sum payable towards leave encashment | I84: 10f
E85: g | F85: Any sum payable to the Indian Railways for the use of railway assets | I85: 10g
E86: h | F86: Total amount allowable under section 43B (total of 10a to 10g) | K86: 10h | L86: =SUM(J78:J85) -> 0
D87: 11 | E87: Any amount debited to profit and loss account of the previous year but disallowable under section 43B:-
E88: a | F88: Any sum in the nature of tax, duty, cess or fee under any law | I88: 11a | J88: 800000
E89: b | F89: Any sum payable by way of contribution to any provident fund or superannuation fund or gratuity fund or any other fund for the welfare of employees | I89: 11b
E90: c | F90: Any sum payable to an employee as bonus or commission for services rendered | I90: 11c
E91: d | F91: Any sum payable as interest on any loan or borrowing from any public financial institution or a State financial corporation or a State Industrial investment corporation | I91: 11d
E92: da | F92: Any sum payable as interest on any loan or borrowing from a deposit taking non-banking financial company or systemically important non-deposit taking non-banking financial company, in accordance with the terms and conditions of the agreement governing such loan or borrowing | I92: 11da
E93: e | F93: Any sum payable as interest on any loan or borrowing from any scheduled bank or a co-operative bank other than a primary agricultural credit society or a primary co-operative agricultural and rural development bank | I93: 11e
E94: f | F94: Any sum payable towards leave encashment | I94: 11f
E95: g | F95: Any sum payable to the Indian Railways for the use of railway assets | I95: 11g
E96: h | F96: Total amount disallowable under Section 43B(total of 11a to 11g) | K96: 11h | L96: =SUM(J88:J95) -> 800000
D97: 12 | E97: Amount of credit outstanding in the accounts in respect of
E98: a | F98: Union Excise Duty | I98: 12a
E99: b | F99: Service tax | I99: 12b
E100: c | F100: VAT/sales tax | I100: 12c
E101: d | F101: Central Goods & Service Tax (CGST) | I101: 12d
E102: e | F102: State Goods & Services Tax (SGST) | I102: 12e
E103: f | F103: Integrated Goods & Services Tax (IGST) | I103: 12f
E104: g | F104: Union Territory Goods & Services Tax (UTGST) | I104: 12g
E105: h | F105: Any other tax | I105: 12h
E106: i | F106: Total amount outstanding (total of 12a to 12h) | K106: 12i | L106: =SUM(J98:J105) -> 0
D107: 13 | E107: Amounts deemed to be profits and gains under section 33AB or 33ABA or 33 AC (13a + 13b +13c) | K107: 13 | L107: =SUM(L108:L110) -> 0
E108: a | F108: 33AB | K108: 13a
E109: b | F109: 33ABA | K109: 13b
E110: c | F110: 33AC | K110: 13c
D111: 14 | E111: Any amount of profit chargeable to tax under section 41 | K111: 14
D112: 15 | E112: Amount of income or expenditure of prior period credited or debited to the profit and loss account (net) | K112: 15
D113: 16 | E113: Amount of expenditure disallowed u/s 14A | K113: 16
D114: 17 | E114: Whether assessee is exercising option under subsection 2A of section 92CE ? [If yes , please fill schedule TPSA] | K114: 17 | L114: No

Sheet PDTCAse (hidden)
A1: Q1 | B1: Q2 | C1: Q3 | D1: Q4_1 | E1: Q4_2 | F1: Q4_3 | G1: Q4_4 | H1: Q4_Case1 | I1: Q4_Case2
A2: =UPPER(IF(OR(PAG2.Sec160_1="(Select)",PAG2.Sec160_1=""),"NA",PAG2.Sec160_1)) -> NA | B2: =UPPER(IF(OR(PAG2.Sec160_2="(Select)",PAG2.Sec160_2=""),"NA",PAG2.Sec160_2)) -> NA | C2: =UPPER(IF(OR(PAG2.Sec160_3="(Select)",PAG2.Sec160_3=""),"NA",PAG2.Sec160_3)) -> NA | D2: =UPPER(IF(OR(PAG2.Sec160_4_1="(Select)",PAG2.Sec160_4_1=""),"NA",PAG2.Sec160_4_1)) -> NA | E2: =UPPER(IF(OR(PAG2.Sec160_4_2="(Select)",PAG2.Sec160_4_2=""),"NA",PAG2.Sec160_4_2)) -> NA | F2: =UPPER(IF(OR(PAG2.Sec160_4_3="(Select)",PAG2.Sec160_4_3=""),"NA",PAG2.Sec160_4_3)) -> NA | G2: =UPPER(IF(OR(PAG2.Sec160_4_4="(Select)",PAG2.Sec160_4_4=""),"NA",PAG2.Sec160_4_4)) -> NA | H2: =IF(PDT.Q41_1="N",IF(PDT.Q42_1="N",IF(PDT.Q43_1="N",IF(PDT.Q44_1="N",FALSE,TRUE),TRUE),TRUE), TRUE) -> TRUE | I2: =IF(PDT.Q41_1="N",IF(PDT.Q42_1="N",IF(PDT.Q43_1="N",IF(PDT.Q44_1="N",TRUE,FALSE),FALSE),FALSE), FALSE) -> FALSE
A5: =IF(PDT.Q1_1="Y",IF(PDT.Q2_1="Y",IF(PDT.Q3_1="Y",TRUE, FALSE),FALSE),FALSE) -> FALSE | B5: =IF(OR(PDT.C1_1=TRUE,PDT.C4_1=TRUE,PDT.C6_1=TRUE),TRUE,FALSE) -> FALSE
A6: =IF(PDT.Q1_1="Y",IF(PDT.Q2_1="Y",IF(PDT.Q3_1="N",TRUE, FALSE),FALSE),FALSE) -> FALSE | B6: =IF(OR(PDT.C2_1=TRUE,PDT.C3_1=TRUE,PDT.C5_1=TRUE,PDT.C7_1=TRUE),TRUE,FALSE) -> FALSE
A7: =IF(PDT.Q1_1="Y",IF(PDT.Q2_1="N",IF(PDT.Q3_1="NA",TRUE, FALSE),FALSE),FALSE) -> FALSE | F7: =ISNA(MATCH(MID(sheet1.SubStatus,1,1),{"4","6"},0)) -> TRUE | G7: =ISNA(MATCH(MID(sheet1.MainStatus,1,1),{"3"},0)) -> TRUE
A8: =IF(PDT.Q1_1="N",IF(PDT.Q2_1="Y",IF(PDT.Q3_1="Y",TRUE, FALSE),FALSE),FALSE) -> FALSE
A9: =IF(PDT.Q1_1="N",IF(PDT.Q2_1="Y",IF(PDT.Q3_1="N",TRUE, FALSE),FALSE),FALSE) -> FALSE
A10: =IF(PDT.Q1_1="N",IF(PDT.Q2_1="N",IF(PDT.Q3_1="NA",IF(Q4_Case1_1=TRUE,TRUE,FALSE),FALSE),FALSE)) -> FALSE | C10: =IF(GrpsB_1,FALSE,IF(GrpB.Grp3.PDT_1,FALSE,IF((PDT.C3_1=TRUE),TRUE,FALSE))) -> FALSE
A11: =IF(PDT.Q1_1="N",IF(PDT.Q2_1="N",IF(PDT.Q3_1="NA",IF(Q4_Case2_1=TRUE,TRUE,FALSE),FALSE),FALSE)) -> FALSE

Sheet Tax(N) (hidden)
A1: BASIC TAX CALCULATION PART | G1: Special Benefit Income | H1: =MAX(0,SI.111ASTCG+C167+C170+SI_Income_5AD1iDiv+SI_Income_PTI_5AD1iDiv+SI_Income_PTI_5AD1IBd+SI_Income_5AD1IBd) -> 0 | I1: Special Benefit Income Tax | J1: =SI!J10+SI!J13+SI!J14+SI!J15+SI!J30+SI!J31+SI!J46+SI!J47+SI!J48+SI!J73+SI!J74+SI!J75+SI!J77+K1 -> 0 | K1: =IF(TaxAtNormalRate>0,(TaxAtNormalRate*K2),0) -> 0 | L1: =MIN(DivInc,MIN(osBFLA,OSSW1))+Surcharge_IncomeEH2 -> 0 | M1: STATUS | N1: Group A | O1: Group B | P1: Group C | Q1: Is any member of the AOP/BOI a foreign company | R1: If Yes, mention the percentage of share of the foreign company in the AOP/BOI | S1: 0 | T1: Particulars of persons who were partners/ members in the firm/AOP/BOI or settlor/trustee/beneficiary in the trust on 31st day of March, 2014 | U1: Interest 234C in case MATC higher than Normal Tax
G2: other Income | H2: =MAX(0,H3-H1) -> 5256350 | J2: =K1 -> 0 | K2: =IF(OSSW1>0,(Surcharge_IncomeEH/OSSW1),0) -> 0 | L2: =MIN(0.15,Surcharge_Rate) -> 0.12 | M2: =IF(bacValue=1,0.1,IF(ISNA(MATCH(MID(sheet1.MainStatus,1,1),{"1","2","3"},0)),IF(H1=0,M4,IF(M5=0,M6,M5)),IF(GrpsB,0.12,IF(GrpsB.1,IF(H1=0,M4,IF(M5=0,M6,M5)),0.12)))) -> 0.12 | N2: =ISNA(MATCH(MID(sheet1.MainStatus,1,1),{"1","2"},0)) -> FALSE | O2: =ISNA(MATCH(MID(sheet1.MainStatus,1,1),{"3"},0)) -> TRUE | P2: =ISNA(MATCH(MID(sheet1.MainStatus,1,1),{"4"},0)) -> TRUE | Q2: =UPPER(IF(OR(PMInfo.PartnerForeignCompFlg="(Select)",PMInfo.PartnerForeignCompFlg=""),"NA",PMInfo.PartnerForeignCompFlg)) -> NO | R2: =IF(Q2="YES",PMInfo.PercentageOfShareForeignComp,"NA") -> NA | S2: =IF(Q2="YES","NA",UPPER(IF(PMInfo.TotIncFrmMemberOfAop="Y",PMInfo.TotIncFrmMemberOfAop,"NA"))) -> NA | T2: =IF(SUM(PMInfo.SharePercentage)>=99.9,TRUE,FALSE) -> TRUE | U2: MATC Tax higher than Gross Tax | W2: =sheet9.TotalTax_DI>Sheet9.GrossTaxLiability -> FALSE
A3: Reference Of Tax Head | C3: Tax Head | D3: Value | G3: Total Income | H3: =MAX(0,TotalIncome) -> 5256350 | L3: =MIN(OSSW1,MIN(MAX(0,PL.Dividends-sheet10.IncRecCredPLOthHeads4Div),busipofincl.IncOfCurYrAfterSetOffBFLosses2)) -> 0 | U3: TotalTax_DI | W3: =sheet9.TotalTax_DI -> 0
A4: Point (16) of Part B-TI | C4: Taxable Income | D4: =Sheet8b.AggregateIncome -> 5256350 | E4: =Sheet8b.AggregateIncome -> 5256350 | L4: BI = 0 | M4: =IF(TotalIncome>50000000,0.37,IF(TotalIncome>20000000,0.25,IF(TotalIncome>10000000,0.15,IF(TotalIncome>5000000,0.1,0)))) -> 0.1 | O4: =ISNA(MATCH(MID(sheet1.SubStatus,1,1),{"1","3"},0)) -> FALSE | P4: =ISNA(MATCH(MID(sheet1.SubStatus,1,1),{"1"},0)) -> FALSE | U4: Basic Exemption | W4: =IF(ISERROR(getExemption(MID(sheet1.MainStatus, 1, 1))),0,getExemption(MID(sheet1.MainStatus, 1, 1))) -> 0 | AB4: Qtr | AC4: Income given by assessee in CG schedule | AD4: Basic Exemption [2lkh] | AE4: Net Fig | AF4: Cumulative tax to be paid | AG4: Tax paid | AH4: 12 & 36 % for 1,2 Qtr | AI4: Cumulative Tax paid | AJ4: Amount on which interst is payable | AK4: Net tax
G5: OI<2Cr and TI >2cr<5cr | H5: 0.15 | I5: 0.15 | J5: =IF(AND(H2<=20000000,AND(H3>20000000,H3<=50000000)),TRUE,FALSE) -> FALSE | L5: BI > 0 | M5: =IF(J5,0.15,IF(J6,0.25,IF(J7,0.15,IF(J8,0.25,IF(J9,0.37,0))))) -> 0 | N5: =IF(MID(sheet1.SubStatus,1,2)="6","2",sheet1.SubStatus) -> 1-Partnership Firm | O5: =ISNA(MATCH(MID(sheet1.SubStatus,1,1),{"2","2"},0)) -> TRUE | P5: =ISNA(MATCH(MID(sheet1.SubStatus,1,1),{"2"},0)) -> TRUE | AB5: On or before 15th June | AC5: =IF(Higher_MATC,MAX(TotalTax_DI-(Tax.TDS+Tax.TCS+sheet9.CreditUS115JD+Sheet9.TotTaxRelief),0),0) -> 0 | AF5: =FLOOR(AC5*0.15,100) -> 0 | AG5: =IT.Qtr1 -> 0 | AH5: =FLOOR(0.12*AC5,100) -> 0 | AI5: =AG5 -> 0 | AJ5: =IF(AI5>=AH5,0,MAX(0,FLOOR(MAX(0,AF5-AI5),100))) -> 0 | AK5: =AJ5*0.01*3 -> 0
A6: Group A | G6: OI>2cr<5cr andTI >2cr<5cr | H6: 0.15 | I6: 0.25 | J6: =IF(AND(AND(H2>20000000,H2<=50000000),AND(H3>20000000,H3<=50000000)),TRUE,FALSE) -> FALSE | L6: Special BI | M6: =IF(bacValue=1,0.1,IF(ISNA(MATCH(MID(sheet1.MainStatus,1,1),{"1","2","3"},0)),IF(OR(J5,J6,J7,J8,J9),0.15,IF(TotalIncome>50000000,0.37,IF(TotalIncome>20000000,0.25,IF(TotalIncome>10000000,0.15,IF(TotalIncome>5000000,0.1,0))))),IF(GrpsB,0.12,IF(GrpsB.1,IF(OR(J5,J6,J7,J8,J9),0.15,IF(TotalIncome>50000000,0.37,IF(TotalIncome>20000000,0.25,IF(TotalIncome>10000000,0.15,IF(TotalIncome>5000000,0.1,0))))),0.12)))) -> 0.12 | N6: =MID(sheet1.SubStatus,1,2) -> 1- | O6: =ISNA(MATCH(MID(sheet1.SubStatus,1,1),{"6"},0)) -> TRUE | P6: =ISNA(MATCH(MID(sheet1.SubStatus,1,1),{"3"},0)) -> TRUE | AB6: On or before 15th Sept | AC6: =IF(Higher_MATC,MAX(TotalTax_DI-(Tax.TDS+Tax.TCS+sheet9.CreditUS115JD+Sheet9.TotTaxRelief),0),0) -> 0 | AF6: =FLOOR(AC6*0.45,100) -> 0 | AG6: =IT.Qtr2 -> 0 | AH6: =FLOOR(0.36*AC6,100) -> 0 | AI6: =AG6+AI5 -> 0 | AJ6: =IF(AI6>=AH6,0,MAX(0,FLOOR(MAX(0,AF6-AI6),100))) -> 0 | AK6: =AJ6*0.01*3 -> 0
C7: =IF(GrpsA,0,ROUND(VALUE(TaxableIncome)*0.3,0)) -> 1576905 | G7: OI<2cr and TI>5cr | H7: 0.15 | I7: 0.15 | J7: =IF(AND(H2<=20000000,H3>50000000),TRUE,FALSE) -> FALSE | O7: =ISNA(MATCH(MID(sheet1.SubStatus,1,1),{"4","5","7"},0)) -> TRUE | P7: =ISNA(MATCH(MID(sheet1.SubStatus,1,1),{"6"},0)) -> TRUE | AB7: On or before 15th Dec | AC7: =IF(Higher_MATC,MAX(TotalTax_DI-(Tax.TDS+Tax.TCS+sheet9.CreditUS115JD+Sheet9.TotTaxRelief),0),0) -> 0 | AF7: =FLOOR(AC7*0.75,100) -> 0 | AG7: =IT.Qtr3 -> 85000 | AI7: =AG7+AI6 -> 85000 | AJ7: =MAX(AF7-AI7,0) -> 0 | AK7: =AJ7*0.01*3 -> 0
G8: OI>2cr<5cr andTI >5cr | H8: 0.15 | I8: 0.25 | J8: =IF(AND(AND(H2>20000000,H2<=50000000),H3>50000000),TRUE,FALSE) -> FALSE | P8: =ISNA(MATCH(MID(sheet1.SubStatus,1,1),{"6"},0)) -> TRUE | AB8: On or before 15th Mar | AC8: =IF(Higher_MATC,MAX(TotalTax_DI-(Tax.TDS+Tax.TCS+sheet9.CreditUS115JD+Sheet9.TotTaxRelief),0),0) -> 0 | AF8: =FLOOR(AC8*1,100) -> 0 | AG8: =IT.Qtr4 -> 0 | AI8: =AG8+AI7 -> 85000 | AJ8: =MAX(AF8-AI8,0) -> 0 | AK8: =AJ8*0.01*1 -> 0
A9: Group B | G9: OI>5cr and TI>5cr | H9: 0.15 | I9: 0.37 | J9: =IF(AND(H2>50000000,H3>50000000),TRUE,FALSE) -> FALSE | AB9: On or before 31th Mar | AC9: 0 | AF9: =FLOOR(AC9*1,100) -> 0 | AG9: =IT.Qtr5 -> 0 | AI9: =AG9 -> 0 | AJ9: =MAX(AF9-AI9,0) -> 0 | AK9: =AJ9*0.01*1 -> 0
A10: 10000 | C10: =IF(GrpsB,0,IF(GrpsB.1,0,IF(AND(TaxableIncome>=0,TaxableIncome<=A10),ROUND(VALUE(TaxableIncome)*0.1,0),0))) -> 0 | D10: GrpsB.Grp1 | O10: PDT CASES
A11: 20000 | C11: =IF(GrpsB,0,IF(GrpsB.1,0,IF(AND(TaxableIncome>=10001,TaxableIncome<=A11),(ROUND(VALUE(TaxableIncome-A10) * 0.2,0))+1000,0))) -> 0 | O11: Q1 | P11: =UPPER(IF(OR(PAG2.Sec160_1="(Select)",PAG2.Sec160_1=""),"NA",PAG2.Sec160_1)) -> NA | U11: Interest 234C | AK11: =ROUND(SUM(AK5:AK10),0) -> 0
A12: 20001 | C12: =IF(GrpsB,0,IF(GrpsB.1,0,IF(bacValue=1,IF(AND(TaxableIncome>0),(ROUND(VALUE(TaxableIncome) * 0.22,0)),0),IF(AND(TaxableIncome>=A12),(ROUND(VALUE(TaxableIncome-A11) * 0.3,0))+3000,0)))) -> 0 | D12: =IF(GrpsB,0,IF(GrpsB.1,0,IF(AND(TaxableIncome>=A12),(ROUND(VALUE(TaxableIncome-A11) * 0.3,0))+3000,0))) -> 0 | O12: Q2 | P12: =UPPER(IF(OR(PAG2.Sec160_2="(Select)",PAG2.Sec160_2=""),"NA",PAG2.Sec160_2)) -> NA | U12: Normal Income | W12: =MAX(Sheet8b.GrossTotalIncome-(W13+W14+W15+W16+W17+W18+W20),0) -> 1814000 | AS12: Q5 Calculation
O13: Q3 | P13: =UPPER(IF(OR(PAG2.Sec160_3="(Select)",PAG2.Sec160_3=""),"NA",PAG2.Sec160_3)) -> NA | U13: CG income | W13: =CGIncome_SR+SI!H8+SI!H9 -> 0 | AJ13: AggriIncome | AT13: STEP 1
A14: 250000 | C14: =IF(GrpsB,0,IF(GrpsB.2,0,IF(AND(TaxableIncome>=0,TaxableIncome<=A14),0,0))) -> 0 | D14: GrpsB.Grp2 | O14: Q4_1 | P14: =UPPER(IF(OR(PAG2.Sec160_4_1="(Select)",PAG2.Sec160_4_1=""),"NA",PAG2.Sec160_4_1)) -> NA | U14: Winning from lottery | W14: 0 | AB14: NORMAL INCOME+ CG AR Income | AD14: Balanced Basic Exemption | AF14: =IF(Normal_Income_234C+AJ14>BasicExemption,0, MAX(0,BasicExemption-MIN(Normal_Income_234C+AJ14,BasicExemption))) -> 0 | AH14: Normal Income Excluding BE | AI14: =MAX(IF(Normal_Income_234C+AJ14>BasicExemption,(Normal_Income_234C+AJ14-BasicExemption),Normal_Income_234C+AJ14-MIN(Normal_Income_234C+AJ14,BasicExemption)),0) -> 1814000 | AJ14: =IF(sheet9.RebateOnAgriInc>0,Sheet8b.NetAgricultureIncomeOrOtherIncomeForRate,0) -> 0 | AU14: AR Income (Qtr1 to Qtr4) | AV14: =SUM($AM$16:$AM$20,NormalIncome_MinusBE) -> 22839400
A15: 500000 | C15: =IF(GrpsB,0,IF(GrpsB.2,0,IF(AND(TaxableIncome>=250001,TaxableIncome<=A15),(ROUND(VALUE(TaxableIncome-A14) * 0.05,0)),0))) -> 0 | O15: Q4_2 | P15: =UPPER(IF(OR(PAG2.Sec160_4_2="(Select)",PAG2.Sec160_4_2=""),"NA",PAG2.Sec160_4_2)) -> NA | U15: OS Special rate | W15: =os.IncChargeableSpecialRates -> 0 | AB15: Due date Qtr | AC15: BP - Normal, Speculation and Specified | AD15: Income Break AR | AE15: AC15+AF15 | AF15: B.E | AG15: Final Fig | AH15: Cumulative Income | AI15: Normal Income | AJ15: Total Income For TaX | AK15: Chapter VIA + Us 10 | AL15: Deduction set off against TI | AM15: TI after deduction | AN15: Tax | AO15: Tax on tot Income - Agri_Rebate | AU15: Tax | AV15: =IF(ISERROR(CalculateTax(AV14+BasicExemption)),0,CalculateTax(AV14+BasicExemption)) -> 6851820
A16: 1000000 | C16: =IF(GrpsB,0,IF(GrpsB.2,0,IF(AND(TaxableIncome>=500001,TaxableIncome<=A16),(ROUND(VALUE(TaxableIncome-A15) * 0.2,0))+12500,0))) -> 0 | O16: Q4_3 | P16: =UPPER(IF(OR(PAG2.Sec160_4_3="(Select)",PAG2.Sec160_4_3=""),"NA",PAG2.Sec160_4_3)) -> NA | U16: CG AR Income | W16: =stcg.IncOfCurYrAfterSetOffBFLosses3b -> 0 | Y16: Q1 | Z16: =IF(W50<2021,TRUE,IF(AND(W50=2021,W51<6),TRUE,IF(AND(W51=6,W52<=15),TRUE,FALSE))) -> TRUE | AB16: On or before 15th June | AC16: =IF(Z16,$W$17-(IF(Is_44_AD_Applicable,MIN(busipofincl.IncOfCurYrAfterSetOffBFLosses2,Income_44_AD),0)),0) -> 3777350 | AD16: =AccSTCGOTH.Upto15Of6+OS10_Upto15Of6 -> 0 | AE16: =AC16+AD16 -> 3777350 | AF16: =AE16-AG16 -> 0 | AG16: =IF(ISERROR(applyExemption(Consumed_BE,1,$AE$16:$AE$20)),0,applyExemption(Consumed_BE,1,$AE$16:$AE$20)) -> 3777350 | AH16: =AG16 -> 3777350 | AI16: =NormalIncome_MinusBE -> 1814000 | AJ16: =AH16+AI16 -> 5591350 | AK16: =Sheet8b.DeductionsUnderScheduleVIA+Sheet8b.IncomeNotPart10 -> 335000 | AL16: =MIN(AJ16,AK16) -> 335000 | AM16: =AJ16-AL16 -> 5256350 | AN16: =MAX(IF(ISERROR(CalculateTax(AM16+BasicExemption)),0,CalculateTax(AM16+BasicExemption)),0) -> 1576905 | AO16: =MAX(AN16-sheet9.RebateOnAgriInc,0) -> 1576905 | AT16: STEP 2
A17: 1000001 | C17: =IF(GrpsB,0,IF(GrpsB.2,0,IF((TaxableIncome>=A17),(ROUND(VALUE(TaxableIncome-A16) * 0.3,0))+112500,0))) -> 0 | O17: Q4_4 | P17: =UPPER(IF(OR(PAG2.Sec160_4_4="(Select)",PAG2.Sec160_4_4=""),"NA",PAG2.Sec160_4_4)) -> NA | U17: BP - Normal, Speculation and Specified | W17: =busipofincl.IncOfCurYrAfterSetOffBFLosses2-(IF(Is_44_AD_Applicable,MIN(busipofincl.IncOfCurYrAfterSetOffBFLosses2,Income_44_AD),0))+busipofinclspec.IncOfCurYrAfterSetOffBFLosses2a+busipofinclspecified.IncOfCurYrAfterSetOffBFLosses2b+(IF(Is_44_AD_Applicable,MIN(busipofincl.IncOfCurYrAfterSetOffBFLosses2,Income_44_AD),0)) -> 3777350 | Y17: Q2 | Z17: =IF(Z16,FALSE,IF(AND(W51>=6,W51<=9),IF(AND(W51=6,W52>15),TRUE,IF(AND(W51>6,W51<9),TRUE,IF(W51=9,IF(W52<=15,TRUE,FALSE)))),FALSE)) -> FALSE | AB17: On or before 15th Sept | AC17: =IF(Z17,$W$17-(IF(Is_44_AD_Applicable,MIN(busipofincl.IncOfCurYrAfterSetOffBFLosses2,Income_44_AD),0)),0) -> 0 | AD17: =AccSTCGOTH.Upto15Of9+OS10_Up16Of6To15Of9 -> 0 | AE17: =AC17+AD17 -> 0 | AF17: =AE17-AG17 -> 0 | AG17: =IF(ISERROR(applyExemption(Consumed_BE,2,$AE$16:$AE$20)),0,applyExemption(Consumed_BE,2,$AE$16:$AE$20)) -> 0 | AH17: =AG17+AH16 -> 3777350 | AI17: =NormalIncome_MinusBE -> 1814000 | AJ17: =AH17+AI17 -> 5591350 | AK17: =Sheet8b.DeductionsUnderScheduleVIA+Sheet8b.IncomeNotPart10 -> 335000 | AL17: =MIN(AJ17,AK17) -> 335000 | AM17: =AJ17-AL17 -> 5256350 | AN17: =MAX(IF(ISERROR(CalculateTax(AM17+BasicExemption)),0,CalculateTax(AM17+BasicExemption)),0) -> 1576905 | AO17: =MAX(AN17-sheet9.RebateOnAgriInc,0) -> 1576905 | AU17: AR Income (Qtr1 to Qtr3) | AV17: =SUM($AM$16:$AM$19,NormalIncome_MinusBE) -> 22839400
U18: BP-115B, 115BBF, 115BBG | W18: =B115Inc+SI!I38+SI!I41 -> 0 | Y18: Q3 | Z18: =IF(OR(Z16,Z17),FALSE,IF(AND(W51>=9,W51<=12),IF(AND(W51=9,W52>15),TRUE,IF(AND(W51>9,W51<12),TRUE,IF(W51=12,IF(W52<=15,TRUE,FALSE)))),FALSE)) -> FALSE | AB18: On or before 15th Dec | AC18: =IF(Z18,$W$17-(IF(Is_44_AD_Applicable,MIN(busipofincl.IncOfCurYrAfterSetOffBFLosses2,Income_44_AD),0)),0) -> 0 | AD18: =AccSTCGOTH.Up16Of9To15Of12+OS10_Up16Of9To15Of12 -> 0 | AE18: =AC18+AD18 -> 0 | AF18: =AE18-AG18 -> 0 | AG18: =IF(ISERROR(applyExemption(Consumed_BE,3,$AE$16:$AE$20)),0,applyExemption(Consumed_BE,3,$AE$16:$AE$20)) -> 0 | AH18: =AG18+AH17 -> 3777350 | AI18: =NormalIncome_MinusBE -> 1814000 | AJ18: =AH18+AI18 -> 5591350 | AK18: =Sheet8b.DeductionsUnderScheduleVIA+Sheet8b.IncomeNotPart10 -> 335000 | AL18: =MIN(AJ18,AK18) -> 335000 | AM18: =AJ18-AL18 -> 5256350 | AN18: =MAX(IF(ISERROR(CalculateTax(AM18+BasicExemption)),0,CalculateTax(AM18+BasicExemption)),0) -> 1576905 | AO18: =MAX(AN18-sheet9.RebateOnAgriInc,0) -> 1576905 | AU18: Tax | AV18: =IF(ISERROR(CalculateTax(AV17+BasicExemption)),0,CalculateTax(AV17+BasicExemption)) -> 6851820
C19: =IF(GrpsB,0,IF(GrpsB.3,0,IF(PDT.MMR,ROUND(VALUE(TaxableIncome)*0.3,0),0))) -> 0 | D19: GrpsB.Grp3 | O19: Q4_Case1 | P19: =IF(PDT.Q41="N",IF(PDT.Q42="N",IF(PDT.Q43="N",IF(PDT.Q44="N",FALSE,TRUE),TRUE),TRUE), TRUE) -> TRUE | U19: Tax on 115B, 115BBF and 115BBG | W19: =SI!J6+SI!J38+SI!J41 -> 0 | Y19: Q4 | Z19: =IF(OR(Z16,Z17,Z18),FALSE,IF(W50=2021,IF(AND(W51=12,W52>15),TRUE,FALSE),IF(W50=2022,IF(W51<3,TRUE,IF(AND(W51=3,W52<16),TRUE,FALSE)),FALSE))) -> FALSE | AB19: On or before 15th Mar | AC19: =IF(Z19,$W$17-(IF(Is_44_AD_Applicable,MIN(busipofincl.IncOfCurYrAfterSetOffBFLosses2,Income_44_AD),0)),0)+IF(Is_44_AD_Applicable,MIN(busipofincl.IncOfCurYrAfterSetOffBFLosses2,Income_44_AD),0) -> 0 | AD19: =AccSTCGOTH.Up16Of12To15Of3+OS10_Up16Of12To15Of3 -> 0 | AE19: =AC19+AD19 -> 0 | AF19: =AE19-AG19 -> 0 | AG19: =IF(ISERROR(applyExemption(Consumed_BE,4,$AE$16:$AE$20)),0,applyExemption(Consumed_BE,4,$AE$16:$AE$20)) -> 0 | AH19: =AG19+AH18 -> 3777350 | AI19: =NormalIncome_MinusBE -> 1814000 | AJ19: =AH19+AI19 -> 5591350 | AK19: =Sheet8b.DeductionsUnderScheduleVIA+Sheet8b.IncomeNotPart10 -> 335000 | AL19: =MIN(AJ19,AK19) -> 335000 | AM19: =AJ19-AL19 -> 5256350 | AN19: =MAX(IF(ISERROR(CalculateTax(AM19+BasicExemption)),0,CalculateTax(AM19+BasicExemption)),0) -> 1576905 | AO19: =MAX(AN19-sheet9.RebateOnAgriInc,0) -> 1576905
C20: =IF(GrpsB,0,IF(GrpsB.4,IF(GrpsB.3,0,IF(PDT.AOP,IF(Case1,ROUND(VALUE(TaxableIncome)*0.3,0),0),0)),IF(Case1,ROUND(VALUE(TaxableIncome)*0.3,0),0))) -> 0 | D20: GrpsB.Grp3/ GrpsB.Grp4.Case1 | O20: Q4_Case2 | P20: =IF(PDT.Q41="N",IF(PDT.Q42="N",IF(PDT.Q43="N",IF(PDT.Q44="N",TRUE,FALSE),FALSE),FALSE), FALSE) -> FALSE | U20: Dividend Income | W20: =DivInc -> 0 | Y20: Q5 | Z20: =IF(OR(Z16,Z17,Z18,Z19),FALSE,TRUE) -> FALSE | AB20: On or before 31th Mar | AC20: =IF(Z20,$W$17-(IF(Is_44_AD_Applicable,MIN(busipofincl.IncOfCurYrAfterSetOffBFLosses2,Income_44_AD),0)),0) -> 0 | AD20: =AccSTCGOTH.Up16Of3To31Of3+OS10_Up16Of3To31Of3 -> 0 | AE20: =AC20+AD20 -> 0 | AF20: =AE20-AG20 -> 0 | AG20: =IF(ISERROR(applyExemption(Consumed_BE,5,$AE$16:$AE$20)),0,applyExemption(Consumed_BE,5,$AE$16:$AE$20)) -> 0 | AH20: =AG20 -> 0 | AI20: 0 | AJ20: =AH20+AI20 -> 0 | AK20: =Sheet8b.DeductionsUnderScheduleVIA+Sheet8b.IncomeNotPart10 -> 335000 | AL20: =IF(AK19>AL19,MIN(AJ20,AK19-AL19),0) -> 0 | AM20: =AJ20-AL20 -> 0 | AN20: =MAX(Step1Tax-Step2Tax,0) -> 0 | AO20: =MAX(AN20-MAX(0,sheet9.RebateOnAgriInc-AN19),0) -> 0
U21: 44AD Calculaion
A22: 250000 | C22: =IF(GrpsB,0,IF(GrpsB.4,IF(GrpsB.3,0,IF(PDT.AOP,IF(Case2,IF(AND(TaxableIncome>=0,TaxableIncome<=A22),0,0),0),0)),IF(Case2,IF(AND(TaxableIncome>=0,TaxableIncome<=A22),0,0),0))) -> 0 | D22: GrpsB.Grp3/ GrpsB.Grp4.Case2 | U22: IS FIRM | W22: =IF(AND(MID(sheet1.MainStatus,1,1)="1",MID(sheet1.SubStatus,1,1)="1"),TRUE,FALSE) -> TRUE
A23: 500000 | C23: =IF(GrpsB,0,IF(GrpsB.4,IF(GrpsB.3,0,IF(PDT.AOP,IF(Case2,IF(AND(TaxableIncome>=250001,TaxableIncome<=A23),(ROUND(VALUE(TaxableIncome-A22) * 0.05,0)),0),0),0)),IF(Case2,IF(AND(TaxableIncome>=250001,TaxableIncome<=A23),(ROUND(VALUE(TaxableIncome-A22) * 0.05,0)),0),0))) -> 0 | O23: =IF(PDT.Q1="Y",IF(PDT.Q2="Y",IF(PDT.Q3="Y",TRUE, FALSE),FALSE),FALSE) -> FALSE | AB23: SPECIAL RATE TAX
A24: 1000000 | C24: =IF(GrpsB,0,IF(GrpsB.4,IF(GrpsB.3,0,IF(PDT.AOP,IF(Case2,IF(AND(TaxableIncome>=500001,TaxableIncome<=A24),(ROUND(VALUE(TaxableIncome-A23) * 0.2,0))+12500,0),0),0)),IF(Case2,IF(AND(TaxableIncome>=500001,TaxableIncome<=A24),(ROUND(VALUE(TaxableIncome-A23) * 0.2,0))+12500,0),0))) -> 0 | O24: =IF(PDT.Q1="Y",IF(PDT.Q2="Y",IF(PDT.Q3="N",TRUE, FALSE),FALSE),FALSE) -> FALSE | U24: scvia.TotPartCchapterVIA_Calc | W24: =scvia.TotPartCchapterVIA_Calc -> 0 | AC24: Income from SI | AD24: Tax From SI
A25: 1000001 | C25: =IF(GrpsB,0,IF(GrpsB.4,IF(GrpsB.3,0,IF(PDT.AOP,IF(Case2,IF((TaxableIncome>=A25),(ROUND(VALUE(TaxableIncome-A24) * 0.3,0))+112500,0),0),0)),IF(Case2,IF((TaxableIncome>=A25),(ROUND(VALUE(TaxableIncome-A24) * 0.3,0))+112500,0),0))) -> 0 | O25: =IF(PDT.Q1="Y",IF(PDT.Q2="N",IF(PDT.Q3="NA",TRUE, FALSE),FALSE),FALSE) -> FALSE | U25: SEZA10.TotalDedUs10Sub | W25: 0 | AC25: =SI!I6+SI!I17+SI!I18+SI!I19+SI!I20+SI!I21+SI!I22+SI!I23+SI!I24+SI!I25+SI!I26+SI!I27+SI!I28+SI!I29+SI!I32+SI!I33+SI_115BBC+SI!I36+SI_115EA -> 0 | AD25: =SI.TotSplRateIncTax-(SI!J6+SI!J7+SI!J8+SI!J9+SI!J10+SI!J11+SI!J12+SI!J13+SI!J14+SI!J15+SI!J16+SI!J27+SI!J30+SI!J31+SI!J32+SI!J35+SI!J38+SI!J41+SI!J44+SI!J46+SI!J47+SI!J48+SI!J49+SI!J50+SI!J66+SI!J73+SI!J74+SI!J75+SI!J77+SI!J79+SI!J80+SI!J51+SI!J17) -> 0
O26: =IF(PDT.Q1="N",IF(PDT.Q2="Y",IF(PDT.Q3="Y",TRUE, FALSE),FALSE),FALSE) -> FALSE | P26: =IF(OR(PDT.C1=TRUE,PDT.C3=TRUE,PDT.C4=TRUE,PDT.C6=TRUE),TRUE,FALSE) -> FALSE | U26: AA10.TotalDedUs10Sub | W26: =AA10.TotalDedUs10Sub -> 0
C27: =IF(GrpsB,0,IF(GrpsB.4,IF(GrpsB.3,0,IF(PDT.AOP,IF(Case3,ROUND(VALUE(TaxableIncome *IF(R2="NA",0,(R2/100)))*0.4,0)+ROUND(VALUE(TaxableIncome *IF(R2="NA",0,((100-R2)/100)))*0.3,0),0),0)),IF(Case3,ROUND(VALUE(TaxableIncome *IF(R2="NA",0,(R2/100)))*0.4,0)+ROUND(VALUE(TaxableIncome *IF(R2="NA",0,((100-R2)/100)))*0.3,0),0))) -> 0 | D27: GrpsB.Grp3/ GrpsB.Grp4.Case3 | O27: =IF(PDT.Q1="N",IF(PDT.Q2="Y",IF(PDT.Q3="N",TRUE, FALSE),FALSE),FALSE) -> FALSE | P27: =IF(OR(PDT.C2=TRUE,PDT.C5=TRUE,PDT.C7=TRUE),TRUE,FALSE) -> FALSE | U27: IS 44 AD Applicable | W27: =IF(IS_FIRM, IF(Income_44_AD>0,IF(OR(W24>0,W25>0,W26>0),FALSE,TRUE),FALSE),FALSE) -> FALSE | AB27: CG INCOME
O28: =IF(PDT.Q1="N",IF(PDT.Q2="N",IF(PDT.Q3="NA",IF(Q4_Case1=TRUE,TRUE,FALSE),FALSE),FALSE)) -> FALSE | U28: 44 AD Income | W28: =IF(sheet11.Section44AD="",0,sheet11.Section44AD) + IF(sheet11.Section44ADA="",0,sheet11.Section44ADA) -> 0
C29: =IF(GrpsB,0,IF(GrpsB.4,IF(GrpsB.3,0,IF(PDT.AOP,IF(Case4,ROUND(VALUE(TaxableIncome)*0.3,0),0),0)),IF(Case4,ROUND(VALUE(TaxableIncome)*0.3,0),0))) -> 0 | D29: GrpsB.Grp3/ GrpsB.Grp4.Case4 | O29: =IF(PDT.Q1="N",IF(PDT.Q2="N",IF(PDT.Q3="NA",IF(Q4_Case2=TRUE,TRUE,FALSE),FALSE),FALSE)) -> FALSE | U29: Surcharge | W29: =IF(ISERROR(ROUND(Income_44_AD * (Sheet9.Surcharge_ii/(MAX(1,(Sheet8b.TotalIncome-SI!H36)))),0)),0,ROUND(Income_44_AD * (Sheet9.Surcharge_ii/(MAX(1,(Sheet8b.TotalIncome-SI!H36)))),0)) -> 0 | AB29: STCG 15 % | AC29: CG 15% Exemption | AD29: =MAX(exmp15Inc-exmp15TaxInc,0) -> 0
AB30: Qtr | AC30: Income given by assessee in CG schedule | AD30: Basic Exemption | AE30: Net Fig | AF30: Cumulative Income | AG30: Tax Rate will be depend upon the nature of Captial Gain | AH30: Total Tax
C31: =IF(GrpsB,0,IF(GrpsB.4,IF(GrpsB.3,0,IF(PDT.AOP,IF(Case5,ROUND(VALUE(TaxableIncome)*0.4,0),0),0)),IF(Case5,ROUND(VALUE(TaxableIncome)*0.4,0),0))) -> 0 | D31: GrpsB.Grp3/ GrpsB.Grp4.Case5 | P31: =IF(GrpsB,FALSE,IF(GrpsB.3,FALSE,IF((PDT.C3=TRUE),TRUE,FALSE))) -> FALSE | AB31: On or before 15th June | AC31: =AccSTCG.Upto15Of6 -> 0 | AD31: =AC31-AE31 -> 0 | AE31: =IF(ISERROR(applyExemption(CGExmptn15Per,1,$AC$31:$AC$35)),0,applyExemption(CGExmptn15Per,1,$AC$31:$AC$35)) -> 0 | AF31: =AE31 -> 0 | AG31: 15 | AH31: =ROUND(AF31*AG31/100,0) -> 0
AB32: On or before 15th Sept | AC32: =AccSTCG.Upto15Of9 -> 0 | AD32: =AC32-AE32 -> 0 | AE32: =IF(ISERROR(applyExemption(CGExmptn15Per,2,$AC$31:$AC$35)),0,applyExemption(CGExmptn15Per,2,$AC$31:$AC$35)) -> 0 | AF32: =AE32+AF31 -> 0 | AG32: 15 | AH32: =ROUND(AF32*AG32/100,0) -> 0
A33: Group C | AB33: On or before 15th Dec | AC33: =AccSTCG.Up16Of9To15Of12 -> 0 | AD33: =AC33-AE33 -> 0 | AE33: =IF(ISERROR(applyExemption(CGExmptn15Per,3,$AC$31:$AC$35)),0,applyExemption(CGExmptn15Per,3,$AC$31:$AC$35)) -> 0 | AF33: =AE33+AF32 -> 0 | AG33: 15 | AH33: =ROUND(AF33*AG33/100,0) -> 0
A34: 250000 | C34: =IF(GrpsC,0,IF(GrpsC.1,0,IF(CaseEstateOfDeceased,IF(AND(TaxableIncome>=0,TaxableIncome<=A34),0,0),0))) -> 0 | D34: GrpsC.1 | U34: Interest u/s 234A | W34: 65695 | AB34: On or before 15th Mar | AC34: =AccSTCG.Up16Of12To15Of3 -> 0 | AD34: =AC34-AE34 -> 0 | AE34: =IF(ISERROR(applyExemption(CGExmptn15Per,4,$AC$31:$AC$35)),0,applyExemption(CGExmptn15Per,4,$AC$31:$AC$35)) -> 0 | AF34: =AE34+AF33 -> 0 | AG34: 15 | AH34: =ROUND(AF34*AG34/100,0) -> 0
A35: 500000 | C35: =IF(GrpsC,0,IF(GrpsC.1,0,IF(CaseEstateOfDeceased,IF(AND(TaxableIncome>=250001,TaxableIncome<=A35),(ROUND(VALUE(TaxableIncome-A34) * 0.05,0)),0),0))) -> 0 | O35: AOP/BOI CASES | P35: Estate of Deceased CASE | U35: Interest u/s 234B | W35: 157668 | AB35: On or before 31th Mar | AC35: =AccSTCG.Up16Of3To31Of3 -> 0 | AD35: =AC35-AE35 -> 0 | AE35: =IF(ISERROR(applyExemption(CGExmptn15Per,5,$AC$31:$AC$35)),0,applyExemption(CGExmptn15Per,5,$AC$31:$AC$35)) -> 0 | AF35: =AE35 -> 0 | AG35: 15 | AH35: =ROUND(AF35*AG35/100,0) -> 0
A36: 1000000 | C36: =IF(GrpsC,0,IF(GrpsC.1,0,IF(CaseEstateOfDeceased,IF(AND(TaxableIncome>=500001,TaxableIncome<=A36),(ROUND(VALUE(TaxableIncome-A35) * 0.2,0))+12500,0),0))) -> 0 | O36: =IF(GrpsB,FALSE,IF(GrpsB.4,IF(GrpsB.3,FALSE,IF(PDT.AOP,IF(S2="Y",IF(T2=TRUE,TRUE,TRUE)),FALSE)),IF(Q2="NO",IF(R2="NA",IF(S2="Y",IF(T2=TRUE,TRUE,TRUE)))))) -> FALSE | P36: =IF(GrpsC.1,FALSE,IF(AND(('PART A - GENERAL(2)'!L15)>=99.9,'PART A - GENERAL(2)'!Q15="EXECUTOR"),TRUE,FALSE)) -> FALSE | U36: Interest u/s 234C | W36: 67244
A37: 1000001 | C37: =IF(GrpsC,0,IF(GrpsC.1,0,IF(CaseEstateOfDeceased,IF((TaxableIncome>=A37),(ROUND(VALUE(TaxableIncome-A36)*0.3,0))+112500,0),ROUND(VALUE(TaxableIncome)*0.3,0)))) -> 0 | O37: =IF(GrpsB,FALSE,IF(GrpsB.4,IF(GrpsB.3,FALSE,IF(PDT.AOP,IF(S2="NA",IF(T2=TRUE,TRUE,FALSE)),FALSE)),IF(Q2="NO",IF(R2="NA",IF(S2="NA",IF(T2=TRUE,TRUE,FALSE)))))) -> FALSE | U37: Interest u/s 234F | W37: 5000 | AB37: STCG 30 %
O38: =IF(GrpsB,FALSE,IF(GrpsB.4,IF(GrpsB.3,FALSE,IF(PDT.AOP,FALSE,FALSE)),IF(Q2="YES",IF(R2>0,IF(S2="NA",IF(T2=TRUE,TRUE,FALSE)))))) -> FALSE | S38: =CONCATENATE(MID(sheet9.Date,7,4),"-",MID(sheet9.Date,4,2),"-",MID(sheet9.Date,1,2)) -> 2023-03-02 | U38: Normal Income | AB38: Qtr | AC38: Income given by assessee in CG schedule | AD38: Basic Exemption | AE38: Net Fig | AF38: Cumulative Income | AG38: Tax Rate will be depend upon the nature of Captial Gain | AH38: Total Tax
C39: =IF(GrpsC,0,IF(GrpsC.2,0,ROUND(VALUE(TaxableIncome)*0.3,0))) -> 0 | D39: GrpsC.2 | O39: =IF(GrpsB,FALSE,IF(GrpsB.4,IF(GrpsB.3,FALSE,IF(PDT.AOP,IF(S2="NA",IF(T2=FALSE,TRUE,FALSE)),FALSE)),IF(Q2="NO",IF(R2="NA",IF(S2="NA",IF(T2=FALSE,TRUE,FALSE)))))) -> FALSE | U39: TDS | W39: =Sheet9.TDS -> 241000 | AB39: On or before 15th June | AC39: =AccSTCG30.Upto15Of6 -> 0 | AF39: =AC39 -> 0 | AG39: 30 | AH39: =ROUND(AF39*AG39/100,0) -> 0
O40: =IF(GrpsB,FALSE,IF(GrpsB.4,IF(GrpsB.3,FALSE,IF(PDT.AOP,FALSE,FALSE)),IF(Q2="YES",IF(R2>0,IF(S2="NA",IF(T2=FALSE,TRUE,FALSE)))))) -> FALSE | U40: TCS | W40: =Sheet9.TCS -> 0 | AB40: On or before 15th Sept | AC40: =AccSTCG30.Upto15Of9 -> 0 | AF40: =AC40+AF39 -> 0 | AG40: 30 | AH40: =ROUND(AF40*AG40/100,0) -> 0
A41: 250000 | C41: =IF(GrpsC,0,IF(GrpsC.3,0,IF(AND(TaxableIncome>=0,TaxableIncome<=A41),0,0))) -> 0 | D41: GrpsC.3 | AB41: On or before 15th Dec | AC41: =ACCSTCG30.Up16Of9To15Of12 -> 0 | AF41: =AC41+AF40 -> 0 | AG41: 30 | AH41: =ROUND(AF41*AG41/100,0) -> 0
A42: 500000 | C42: =IF(GrpsC,0,IF(GrpsC.3,0,IF(AND(TaxableIncome>=250001,TaxableIncome<=A42),(ROUND(VALUE(TaxableIncome-A41) * 0.05,0)),0))) -> 0 | U42: Date of filing | W42: 02/03/2023 | AB42: On or before 15th Mar | AC42: =ACCSTCG30.Up16Of12To15Of3 -> 0 | AF42: =AC42+AF41 -> 0 | AG42: 30 | AH42: =ROUND(AF42*AG42/100,0) -> 0
A43: 1000000 | C43: =IF(GrpsC,0,IF(GrpsC.3,0,IF(AND(TaxableIncome>=500001,TaxableIncome<=A43),(ROUND(VALUE(TaxableIncome-A42) * 0.2,0))+12500,0))) -> 0 | U43: Date Of interest calculation | W43: =CONCATENATE(YEAR(TODAY()),"-",IF(MONTH(TODAY())<10,"0",""),MONTH(TODAY()),"-",IF(DAY(TODAY())<10,"0",""),DAY(TODAY())) -> 2023-03-02 | X43: =CONCATENATE(YEAR(TODAY()),"-",IF(MONTH(TODAY())<10,"0",""),MONTH(TODAY()),"-",IF(DAY(TODAY())<10,"0",""),DAY(TODAY())) -> 2023-03-02 | AB43: On or before 31th Mar | AC43: =ACCSTCG30.Up16Of3To31Of3 -> 0 | AF43: =AC43 -> 0 | AG43: 30 | AH43: =ROUND(AF43*AG43/100,0) -> 0
A44: 1000001 | C44: =IF(GrpsC,0,IF(GrpsC.3,0,IF((TaxableIncome>=A44),(ROUND(VALUE(TaxableIncome-A43)*0.3,0))+112500,0))) -> 0 | U44: Due date for filing of returns
U45: Date of filing 234A | W45: 05/05/2022 | AB45: STCG DTAA
A46: Tax on Taxable Income | C46: =SUM(C7:C44) -> 1576905 | U46: Date of filing 234B | AB46: Qtr | AC46: Income given by assessee in CG schedule | AD46: Basic Exemption | AE46: Net Fig | AF46: Cumulative Income | AG46: Tax from SI | AH46: Total Tax
U47: Date of filing 234C | AB47: On or before 15th June | AC47: =AccSTCGDTAA.Upto15Of6 -> 0 | AF47: =AC47 -> 0 | AG47: =SI!J8 -> 0 | AH47: =IF(ISERROR(ROUND(AG47*AF47/($AF$51+$AF$50),0)),0,ROUND(AG47*AF47/($AF$51+$AF$50),0)) -> 0
AB48: On or before 15th Sept | AC48: =AccSTCGDTAA.Upto15Of9 -> 0 | AF48: =AC48+AF47 -> 0 | AG48: =SI!J8 -> 0 | AH48: =IF(ISERROR(ROUND(AG48*AF48/($AF$51+$AF$50),0)),0,ROUND(AG48*AF48/($AF$51+$AF$50),0)) -> 0
U49: Date of commencement | W49: =sheet1.DOC -> 23/09/1970 | AB49: On or before 15th Dec | AC49: =ACCSTCGDTAA.Up16Of9To15Of12 -> 0 | AF49: =AC49+AF48 -> 0 | AG49: =SI!J8 -> 0 | AH49: =IF(ISERROR(ROUND(AG49*AF49/($AF$51+$AF$50),0)),0,ROUND(AG49*AF49/($AF$51+$AF$50),0)) -> 0
U50: Year | W50: =IF(ISERROR(VALUE(MID(W49,7,4))),VALUE(2020),VALUE(MID(W49,7,4))) -> 1970 | AB50: On or before 15th Mar | AC50: =ACCSTCGDTAA.Up16Of12To15Of3 -> 0 | AF50: =AC50+AF49 -> 0 | AG50: =SI!J8 -> 0 | AH50: =IF(ISERROR(ROUND(AG50*AF50/($AF$51+$AF$50),0)),0,ROUND(AG50*AF50/($AF$51+$AF$50),0)) -> 0
U51: Month | W51: =IF(ISERROR(VALUE(MID(W49,4,2))),VALUE(4),VALUE(MID(W49,4,2))) -> 9 | AB51: On or before 31th Mar | AC51: =ACCSTCGDTAA.Up16Of3To31Of3 -> 0 | AF51: =AC51 -> 0 | AG51: =SI!J8 -> 0 | AH51: =IF(ISERROR(ROUND(AG51*AF51/($AF$51+$AF$50),0)),0,ROUND(AG51*AF51/($AF$51+$AF$50),0)) -> 0
A52: REBATE ON AGRICULTURAL INCOME CALCULATION PART | U52: Day | W52: =IF(ISERROR(VALUE(MID(W49,1,2))),VALUE(1),VALUE(MID(W49,1,2))) -> 23
A53: Reference Of Tax Head | C53: Tax Head | AB53: LTCG 10 % | AC53: CG 10% Exemption | AD53: =MAX(exmp10Inc-exmp10TaxInc,0) -> 0
A54: Point 15of Part B-TI | C54: Agriculture Income | D54: =IF(Sheet8b.NetAgricultureIncomeOrOtherIncomeForRate>0,IF(GrpsA,IF(GrpsB,AggregateIncome,IF(GrpsB.4,IF(GrpsB.3,IF(GrpsB.2,Sheet8b.NetAgricultureIncomeOrOtherIncomeForRate,AggregateIncome),IF(PDT.AOP, IF(Case2,AggregateIncome,Sheet8b.NetAgricultureIncomeOrOtherIncomeForRate),Sheet8b.NetAgricultureIncomeOrOtherIncomeForRate)),IF(Case2,AggregateIncome,Sheet8b.NetAgricultureIncomeOrOtherIncomeForRate))),Sheet8b.NetAgricultureIncomeOrOtherIncomeForRate),0) -> 0 | F54: =IF(MAX(0,Sheet8b.TotalIncome-Sheet8b.IncChargeTaxSplRate111A112)> 250000,Sheet8b.NetAgricultureIncomeOrOtherIncomeForRate + 250000,0) -> 250000 | AB54: Qtr | AC54: Income given by assessee in CG schedule | AD54: Basic Exemption | AE54: Net Fig | AF54: Cumulative Income | AG54: Tax Rate will be depend upon the nature of Captial Gain | AH54: Total Tax | AI54: =SI_Income_112A +SI_Income_112A_PTI+SI_Income_112A_115AD -> 0 | AJ54: 0
AB55: On or before 15th June | AC55: =MAX(0,AccLTCG.Upto15Of6+IncD_115ACQ1+IncD_115AD1i10PQ1-LTCG10Per_Benefit_Q1) -> 0 | AD55: =AC55-AE55 -> 0 | AE55: =IF(ISERROR(applyExemption(CGExmptn10Per,1,$AC$55:$AC$59)),0,applyExemption(CGExmptn10Per,1,$AC$55:$AC$59)) -> 0 | AF55: =AE55 -> 0 | AG55: 10 | AH55: =ROUND(AF55*AG55/100,0) -> 0 | AI55: =LTCG10Per_Benefit_Q12A+LTCG10Per_Benefit_Q15AD -> 0 | AJ55: =MIN(AccLTCG.Upto15Of6,MIN(100000,TI2A)) -> 0 | AK55: =MIN(AccLTCG.Upto15Of6-LTCG10Per_Benefit_Q12A,MIN(100000,TI5AD)) -> 0
A56: Group A | AB56: On or before 15th Sept | AC56: =MAX(0,AccLTCG.Upto15Of9+IncD_115ACQ2+IncD_115AD1i10PQ2-LTCG10Per_Benefit_Q2) -> 0 | AD56: =AC56-AE56 -> 0 | AE56: =IF(ISERROR(applyExemption(CGExmptn10Per,2,$AC$55:$AC$59)),0,applyExemption(CGExmptn10Per,2,$AC$55:$AC$59)) -> 0 | AF56: =AE56+AF55 -> 0 | AG56: 10 | AH56: =ROUND(AF56*AG56/100,0) -> 0 | AI56: =LTCG10Per_Benefit_Q22A+LTCG10Per_Benefit_Q25AD -> 0 | AJ56: =MIN(AccLTCG.Upto15Of9,MIN(MAX(0,100000-LTCG10Per_Benefit_Q12A),TI2A-LTCG10Per_Benefit_Q12A)) -> 0 | AK56: =MIN(AccLTCG.Upto15Of9-LTCG10Per_Benefit_Q22A,MIN(MAX(0,100000-LTCG10Per_Benefit_Q15AD),TI5AD-LTCG10Per_Benefit_Q15AD)) -> 0
C57: =IF(GrpsA,0,ROUND(VALUE(AgricultureIncome)*0.3,0)) -> 0 | AB57: On or before 15th Dec | AC57: =MAX(0,AccLTCG.Up16Of9To15Of12+IncD_115ACQ3+IncD_115AD1i10PQ3-LTCG10Per_Benefit_Q3) -> 0 | AD57: =AC57-AE57 -> 0 | AE57: =IF(ISERROR(applyExemption(CGExmptn10Per,3,$AC$55:$AC$59)),0,applyExemption(CGExmptn10Per,3,$AC$55:$AC$59)) -> 0 | AF57: =AE57+AF56 -> 0 | AG57: 10 | AH57: =ROUND(AF57*AG57/100,0) -> 0 | AI57: =LTCG10Per_Benefit_Q32A+LTCG10Per_Benefit_Q35AD -> 0 | AJ57: =MIN(AccLTCG.Up16Of9To15Of12,MIN(MAX(0,100000-LTCG10Per_Benefit_Q12A-LTCG10Per_Benefit_Q22A),TI2A-LTCG10Per_Benefit_Q12A-LTCG10Per_Benefit_Q22A)) -> 0 | AK57: =MIN(AccLTCG.Up16Of9To15Of12,MIN(MAX(0,100000-LTCG10Per_Benefit_Q15AD-LTCG10Per_Benefit_Q25AD),TI5AD-LTCG10Per_Benefit_Q15AD-LTCG10Per_Benefit_Q25AD)) -> 0
AB58: On or before 15th Mar | AC58: =MAX(0,AccLTCG.Up16Of12To15Of3+IncD_115ACQ4+IncD_115AD1i10PQ4-LTCG10Per_Benefit_Q4) -> 0 | AD58: =AC58-AE58 -> 0 | AE58: =IF(ISERROR(applyExemption(CGExmptn10Per,4,$AC$55:$AC$59)),0,applyExemption(CGExmptn10Per,4,$AC$55:$AC$59)) -> 0 | AF58: =AE58+AF57 -> 0 | AG58: 10 | AH58: =ROUND(AF58*AG58/100,0) -> 0 | AI58: =LTCG10Per_Benefit_Q42A+LTCG10Per_Benefit_Q45AD -> 0 | AJ58: =MIN(AccLTCG.Up16Of12To15Of3,MIN(MAX(0,100000-LTCG10Per_Benefit_Q12A-LTCG10Per_Benefit_Q22A-LTCG10Per_Benefit_Q32A),TI2A-LTCG10Per_Benefit_Q12A-LTCG10Per_Benefit_Q22A-LTCG10Per_Benefit_Q32A)) -> 0 | AK58: =MIN(AccLTCG.Up16Of12To15Of3,MIN(MAX(0,100000-LTCG10Per_Benefit_Q15AD-LTCG10Per_Benefit_Q25AD-LTCG10Per_Benefit_Q35AD),TI5AD-LTCG10Per_Benefit_Q15AD-LTCG10Per_Benefit_Q25AD-LTCG10Per_Benefit_Q35AD)) -> 0
A59: Group B | AB59: On or before 31th Mar | AC59: =MAX(0,AccLTCG.Up16Of3To31Of3+IncD_115ACQ5+IncD_115AD1i10PQ5-LTCG10Per_Benefit_Q5) -> 0 | AD59: =AC59-AE59 -> 0 | AE59: =IF(ISERROR(applyExemption(CGExmptn10Per,5,$AC$55:$AC$59)),0,applyExemption(CGExmptn10Per,5,$AC$55:$AC$59)) -> 0 | AF59: =AE59 -> 0 | AG59: 10 | AH59: =ROUND(AF59*AG59/100,0) -> 0 | AI59: =LTCG10Per_Benefit_Q52A+LTCG10Per_Benefit_Q55AD -> 0 | AJ59: =MIN(AccLTCG.Up16Of3To31Of3,MIN(MAX(0,100000-LTCG10Per_Benefit_Q12A-LTCG10Per_Benefit_Q22A-LTCG10Per_Benefit_Q32A-LTCG10Per_Benefit_Q42A),TI2A--LTCG10Per_Benefit_Q12A--LTCG10Per_Benefit_Q22A--LTCG10Per_Benefit_Q32A--LTCG10Per_Benefit_Q42A)) -> 0 | AK59: =MIN(AccLTCG.Up16Of3To31Of3,MIN(MAX(0,100000-LTCG10Per_Benefit_Q15AD-LTCG10Per_Benefit_Q25AD-LTCG10Per_Benefit_Q35AD-LTCG10Per_Benefit_Q45AD),TI5AD-LTCG10Per_Benefit_Q15AD-LTCG10Per_Benefit_Q25AD-LTCG10Per_Benefit_Q35AD-LTCG10Per_Benefit_Q45AD)) -> 0
A60: 10000 | C60: =IF(GrpsB,0,IF(GrpsB.1,0,IF(AND(AgricultureIncome>=0,AgricultureIncome<=A60),ROUND(VALUE(AgricultureIncome)*0.1,0),0))) -> 0 | D60: GrpsB.Grp1
A61: 20000 | C61: =IF(GrpsB,0,IF(GrpsB.1,0,IF(AND(AgricultureIncome>=10001,AgricultureIncome<=A61),(ROUND(VALUE(AgricultureIncome-A60) * 0.2,0))+1000,0))) -> 0 | AB61: LTCG 20 % | AC61: CG 20% Exemption | AD61: =MAX(exmp20Inc-exmp20TaxInc,0) -> 0
A62: 20001 | C62: =IF(GrpsB,0,IF(GrpsB.1,0,IF(AND(AgricultureIncome>=A62),(ROUND(VALUE(AgricultureIncome-A61) * 0.3,0))+3000,0))) -> 0 | AB62: Qtr | AC62: Income given by assessee in CG schedule | AD62: Basic Exemption | AE62: Net Fig | AF62: Cumulative Income | AG62: Tax Rate will be depend upon the nature of Captial Gain | AH62: Total Tax
AB63: On or before 15th June | AC63: =AccLTCGNP.Upto15Of6+IncD_115A1aiQ1+IncD_115AD1iQ1 -> 0 | AD63: =AC63-AE63 -> 0 | AE63: =IF(ISERROR(applyExemption(CGExmptn20Per,1,$AC$63:$AC$67)),0,applyExemption(CGExmptn20Per,1,$AC$63:$AC$67)) -> 0 | AF63: =AE63 -> 0 | AG63: 20 | AH63: =ROUND(AF63*AG63/100,0) -> 0
A64: 250000 | C64: =IF(GrpsB,0,IF(GrpsB.2,0,IF(AND(AgricultureIncome>=0,AgricultureIncome<=A64),0,0))) -> 0 | D64: GrpsB.Grp2 | AB64: On or before 15th Sept | AC64: =AccLTCGNP.Upto15Of9+IncD_115A1aiQ2+IncD_115AD1iQ2 -> 0 | AD64: =AC64-AE64 -> 0 | AE64: =IF(ISERROR(applyExemption(CGExmptn20Per,2,$AC$63:$AC$67)),0,applyExemption(CGExmptn20Per,2,$AC$63:$AC$67)) -> 0 | AF64: =AE64+AF63 -> 0 | AG64: 20 | AH64: =ROUND(AF64*AG64/100,0) -> 0
A65: 500000 | C65: =IF(GrpsB,0,IF(GrpsB.2,0,IF(AND(AgricultureIncome>=250001,AgricultureIncome<=A65),(ROUND(VALUE(AgricultureIncome-A64) * 0.05,0)),0))) -> 0 | AB65: On or before 15th Dec | AC65: =AccLTCGNP.Up16Of9To15Of12+IncD_115A1aiQ3+IncD_115AD1iQ3 -> 0 | AD65: =AC65-AE65 -> 0 | AE65: =IF(ISERROR(applyExemption(CGExmptn20Per,3,$AC$63:$AC$67)),0,applyExemption(CGExmptn20Per,3,$AC$63:$AC$67)) -> 0 | AF65: =AE65+AF64 -> 0 | AG65: 20 | AH65: =ROUND(AF65*AG65/100,0) -> 0
A66: 1000000 | C66: =IF(GrpsB,0,IF(GrpsB.2,0,IF(AND(AgricultureIncome>=500001,AgricultureIncome<=A66),(ROUND(VALUE(AgricultureIncome-A65) * 0.2,0))+12500,0))) -> 0 | AB66: On or before 15th Mar | AC66: =AccLTCGNP.Up16Of12To15Of3+IncD_115A1aiQ4+IncD_115AD1iQ4 -> 0 | AD66: =AC66-AE66 -> 0 | AE66: =IF(ISERROR(applyExemption(CGExmptn20Per,4,$AC$63:$AC$67)),0,applyExemption(CGExmptn20Per,4,$AC$63:$AC$67)) -> 0 | AF66: =AE66+AF65 -> 0 | AG66: 20 | AH66: =ROUND(AF66*AG66/100,0) -> 0
A67: 1000001 | C67: =IF(GrpsB,0,IF(GrpsB.2,0,IF((AgricultureIncome>=A67),(ROUND(VALUE(AgricultureIncome-A66) * 0.3,0))+112500,0))) -> 0 | AB67: On or before 31th Mar | AC67: =AccLTCGNP.Up16Of3To31Of3+IncD_115A1aiQ5+IncD_115AD1iQ5 -> 0 | AD67: =AC67-AE67 -> 0 | AE67: =IF(ISERROR(applyExemption(CGExmptn20Per,5,$AC$63:$AC$67)),0,applyExemption(CGExmptn20Per,5,$AC$63:$AC$67)) -> 0 | AF67: =AE67 -> 0 | AG67: 20 | AH67: =ROUND(AF67*AG67/100,0) -> 0
C69: =IF(GrpsB,0,IF(GrpsB.3,0,IF(PDT.MMR,ROUND(VALUE(AgricultureIncome)*0.3,0),0))) -> 0 | D69: GrpsB.Grp3 | AB69: LTCG DTAA
C70: =IF(GrpsB,0,IF(GrpsB.4,IF(GrpsB.3,0,IF(PDT.AOP,IF(Case1,ROUND(VALUE(AgricultureIncome)*0.3,0),0),0)),IF(Case1,ROUND(VALUE(AgricultureIncome)*0.3,0),0))) -> 0 | D70: GrpsB.Grp3/ GrpsB.Grp4.Case1 | AB70: Qtr | AC70: Income given by assessee in CG schedule | AD70: Basic Exemption | AE70: Net Fig | AF70: Cumulative Income | AG70: Tax from SI | AH70: Total Tax
AB71: On or before 15th June | AC71: =AccLTCGDTAA.Upto15Of6 -> 0 | AF71: =AC71 -> 0 | AG71: =SI!J9 -> 0 | AH71: =IF(ISERROR(ROUND(AG71*AF71/($AF$75+$AF$74),0)),0,ROUND(AG71*AF71/($AF$75+$AF$74),0)) -> 0
A72: 250000 | C72: =IF(GrpsB,0,IF(GrpsB.4,IF(GrpsB.3,0,IF(PDT.AOP,IF(Case2,IF(AND(AgricultureIncome>=0,AgricultureIncome<=A72),0,0),0),0)),IF(Case2,IF(AND(AgricultureIncome>=0,AgricultureIncome<=A72),0,0),0))) -> 0 | D72: GrpsB.Grp3/ GrpsB.Grp4.Case2 | AB72: On or before 15th Sept | AC72: =AccLTCGDTAA.Upto15Of9 -> 0 | AF72: =AC71+AC72 -> 0 | AG72: =SI!J9 -> 0 | AH72: =IF(ISERROR(ROUND(AG72*AF72/($AF$75+$AF$74),0)),0,ROUND(AG72*AF72/($AF$75+$AF$74),0)) -> 0
A73: 500000 | C73: =IF(GrpsB,0,IF(GrpsB.4,IF(GrpsB.3,0,IF(PDT.AOP,IF(Case2,IF(AND(AgricultureIncome>=250001,AgricultureIncome<=A73),(ROUND(VALUE(AgricultureIncome-A72) * 0.05,0)),0),0),0)),IF(Case2,IF(AND(AgricultureIncome>=250001,AgricultureIncome<=A73),(ROUND(VALUE(AgricultureIncome-A72) * 0.05,0)),0),0))) -> 0 | AB73: On or before 15th Dec | AC73: =ACCLTCGDTAA.Up16Of9To15Of12 -> 0 | AF73: =AC71+AC72+AC73 -> 0 | AG73: =SI!J9 -> 0 | AH73: =IF(ISERROR(ROUND(AG73*AF73/($AF$75+$AF$74),0)),0,ROUND(AG73*AF73/($AF$75+$AF$74),0)) -> 0
A74: 1000000 | C74: =IF(GrpsB,0,IF(GrpsB.4,IF(GrpsB.3,0,IF(PDT.AOP,IF(Case2,IF(AND(AgricultureIncome>=500001,AgricultureIncome<=A74),(ROUND(VALUE(AgricultureIncome-A73) * 0.2,0))+12500,0),0),0)),IF(Case2,IF(AND(AgricultureIncome>=500001,AgricultureIncome<=A74),(ROUND(VALUE(AgricultureIncome-A73) * 0.2,0))+12500,0),0))) -> 0 | AB74: On or before 15th Mar | AC74: =ACCLTCGDTAA.Up16Of12To15Of3 -> 0 | AF74: =AC71+AC72+AC73+AC74 -> 0 | AG74: =SI!J9 -> 0 | AH74: =IF(ISERROR(ROUND(AG74*AF74/($AF$75+$AF$74),0)),0,ROUND(AG74*AF74/($AF$75+$AF$74),0)) -> 0
A75: 1000001 | C75: =IF(GrpsB,0,IF(GrpsB.4,IF(GrpsB.3,0,IF(PDT.AOP,IF(Case2,IF((AgricultureIncome>=A75),(ROUND(VALUE(AgricultureIncome-A74) * 0.3,0))+112500,0),0),0)),IF(Case2,IF((AgricultureIncome>=A75),(ROUND(VALUE(AgricultureIncome-A74) * 0.3,0))+112500,0),0))) -> 0 | AB75: On or before 31th Mar | AC75: =ACCLTCGDTAA.Up16Of3To31Of3 -> 0 | AF75: =AC75 -> 0 | AG75: =SI!J9 -> 0 | AH75: =IF(ISERROR(ROUND(AG75*AF75/($AF$75+$AF$74),0)),0,ROUND(AG75*AF75/($AF$75+$AF$74),0)) -> 0
C77: =IF(GrpsB,0,IF(GrpsB.4,IF(GrpsB.3,0,IF(PDT.AOP,IF(Case3,ROUND(VALUE(AgricultureIncome *IF(R2="NA",0,(R2/100)))*0.4,0)+ROUND(VALUE(AgricultureIncome *IF(R2="NA",0,((100-R2)/100)))*0.3,0),0),0)),IF(Case3,ROUND(VALUE(AgricultureIncome *IF(R2="NA",0,(R2/100)))*0.4,0)+ROUND(VALUE(AgricultureIncome *IF(R2="NA",0,((100-R2)/100)))*0.3,0),0))) -> 0 | D77: GrpsB.Grp3/ GrpsB.Grp4.Case3 | AB77: 115BB
AB78: Qtr | AC78: Income given by assessee in CG schedule | AD78: Basic Exemption | AE78: Net Fig | AF78: Cumulative Income | AG78: Tax from SI | AH78: Total Tax
C79: =IF(GrpsB,0,IF(GrpsB.4,IF(GrpsB.3,0,IF(PDT.AOP,IF(Case4,ROUND(VALUE(AgricultureIncome)*0.3,0),0),0)),IF(Case4,ROUND(VALUE(AgricultureIncome)*0.3,0),0))) -> 0 | D79: GrpsB.Grp3/ GrpsB.Grp4.Case4 | AB79: On or before 15th June | AC79: =OS30_Upto15Of6 -> 0 | AF79: =AC79 -> 0 | AG79: 30 | AH79: =ROUND(AF79*AG79/100,0) -> 0
AB80: On or before 15th Sept | AC80: =OS30_Up16Of6To15Of9 -> 0 | AF80: =AC79+AC80 -> 0 | AG80: 30 | AH80: =ROUND(AF80*AG80/100,0) -> 0
C81: =IF(GrpsB,0,IF(GrpsB.4,IF(GrpsB.3,0,IF(PDT.AOP,IF(Case5,ROUND(VALUE(AgricultureIncome)*0.4,0),0),0)),IF(Case5,ROUND(VALUE(AgricultureIncome)*0.4,0),0))) -> 0 | D81: GrpsB.Grp3/ GrpsB.Grp4.Case5 | AB81: On or before 15th Dec | AC81: =OS30_Up16Of9To15Of12 -> 0 | AF81: =AC79+AC80+AC81 -> 0 | AG81: 30 | AH81: =ROUND(AF81*AG81/100,0) -> 0
AB82: On or before 15th Mar | AC82: =OS30_Up16Of12To15Of3 -> 0 | AF82: =AC79+AC80+AC81+AC82 -> 0 | AG82: 30 | AH82: =ROUND(AF82*AG82/100,0) -> 0
A83: Group C | AB83: On or before 31th Mar | AC83: =OS30_Up16Of3To31Of3 -> 0 | AF83: =AC83 -> 0 | AG83: 30 | AH83: =ROUND(AF83*AG83/100,0) -> 0
A84: 250000 | C84: =IF(GrpsC,0,IF(GrpsC.1,0,IF(CaseEstateOfDeceased,IF(AND(AgricultureIncome>=0,AgricultureIncome<=A84),0,0),0))) -> 0 | D84: GrpsC.1
A85: 500000 | C85: =IF(GrpsC,0,IF(GrpsC.1,0,IF(CaseEstateOfDeceased,IF(AND(AgricultureIncome>=250001,AgricultureIncome<=A85),(ROUND(VALUE(AgricultureIncome-A84) * 0.05,0)),0),0))) -> 0 | AB85: 115 BBDA
A86: 1000000 | C86: =IF(GrpsC,0,IF(GrpsC.1,0,IF(CaseEstateOfDeceased,IF(AND(AgricultureIncome>=500001,AgricultureIncome<=A86),(ROUND(VALUE(AgricultureIncome-A85) * 0.2,0))+12500,0),0))) -> 0 | AB86: Qtr | AC86: Income given by assessee in CG schedule | AD86: Basic Exemption | AE86: Net Fig | AF86: Cumulative Income | AG86: Tax from SI | AH86: Total Tax
A87: 1000001 | C87: =IF(GrpsC,0,IF(GrpsC.1,0,IF(CaseEstateOfDeceased,IF((AgricultureIncome>=A87),(ROUND(VALUE(AgricultureIncome-A86)*0.3,0))+112500,0),ROUND(VALUE(AgricultureIncome)*0.3,0)))) -> 0 | AB87: On or before 15th June | AC87: 0 | AF87: =AC87 -> 0 | AG87: 10 | AH87: =ROUND(AF87*AG87/100,0) -> 0
AB88: On or before 15th Sept | AC88: 0 | AF88: =AC87+AC88 -> 0 | AG88: 10 | AH88: =ROUND(AF88*AG88/100,0) -> 0
C89: =IF(GrpsC,0,IF(GrpsC.2,0,ROUND(VALUE(AgricultureIncome)*0.3,0))) -> 0 | D89: GrpsC.2 | AB89: On or before 15th Dec | AC89: 0 | AF89: =AC87+AC88+AC89 -> 0 | AG89: 10 | AH89: =ROUND(AF89*AG89/100,0) -> 0
AB90: On or before 15th Mar | AC90: 0 | AF90: =AC87+AC88+AC89+AC90 -> 0 | AG90: 10 | AH90: =ROUND(AF90*AG90/100,0) -> 0
A91: 250000 | C91: =IF(GrpsC,0,IF(GrpsC.3,0,IF(AND(AgricultureIncome>=0,AgricultureIncome<=A91),0,0))) -> 0 | D91: GrpsC.3 | AB91: On or before 31th Mar | AC91: 0 | AF91: =AC91 -> 0 | AG91: 10 | AH91: =ROUND(AF91*AG91/100,0) -> 0
A92: 500000 | C92: =IF(GrpsC,0,IF(GrpsC.3,0,IF(AND(AgricultureIncome>=250001,AgricultureIncome<=A92),(ROUND(VALUE(AgricultureIncome-A91)*0.05,0)),0))) -> 0
A93: 1000000 | C93: =IF(GrpsC,0,IF(GrpsC.3,0,IF(AND(AgricultureIncome>=500001,AgricultureIncome<=A93),(ROUND(VALUE(AgricultureIncome-A92) * 0.2,0))+12500,0))) -> 0 | AB93: 115 BBF, 115 BBG and 115B
A94: 1000001 | C94: =IF(GrpsC,0,IF(GrpsC.3,0,IF((AgricultureIncome>=A94),(ROUND(VALUE(AgricultureIncome-A93) * 0.3,0))+112500,0))) -> 0 | AB94: Qtr | AC94: Income given by assessee in CG schedule | AD94: Basic Exemption | AE94: Net Fig | AF94: Cumulative Income | AG94: Tax from SI | AH94: Total Tax
AB95: On or before 15th June | AC95: =IF(Z16,$W$18,0) -> 0 | AF95: =AC95 -> 0 | AG95: =IF(Z16,$W$19,0) -> 0 | AH95: =AG95 -> 0
A96: Rebate On Agricultural Income | C96: =SUM(C57:C94) -> 0 | AB96: On or before 15th Sept | AC96: =IF(Z17,$W$18,0) -> 0 | AF96: =AC95+AC96 -> 0 | AG96: =IF(Z17,$W$19,0) -> 0 | AH96: =AH95+AG96 -> 0
AB97: On or before 15th Dec | AC97: =IF(Z18,$W$18,0) -> 0 | AF97: =AC95+AC96+AC97 -> 0 | AG97: =IF(Z18,$W$19,0) -> 0 | AH97: =AH96+AG97 -> 0
AB98: On or before 15th Mar | AC98: =IF(Z19,$W$18,0) -> 0 | AF98: =AC95+AC96+AC97+AC98 -> 0 | AG98: =IF(Z19,$W$19,0) -> 0 | AH98: =AH97+AG98 -> 0
AB99: On or before 31th Mar | AC99: =IF(Z20,$W$18,0) -> 0 | AF99: =AC99 -> 0 | AG99: =IF(Z20,$W$19,0) -> 0 | AH99: =AG99 -> 0
C100: >1 Crore | AJ100: Tax on 115BBE | AK100: =SI_115BBE -> 0 | AL100: Surcharge 115BBE | AM100: =Sheet9.Surcharge_i -> 0 | AN100: SurCharge 44AD | AO100: =IF(Is_44_AD_Applicable,MIN(busipofincl.IncOfCurYrAfterSetOffBFLosses2,Surcharge_44AD),0) -> 0
A101: SURCHARGE CALCULATION PART | C101: =IF(MID(sheet1.ForeignExchangeFlag,1,1)="Y",0.09,0.185) -> 0.185 | D101: 9 & 18.5% CHECK | G101: >50 Lakh | K101: > 2 Crore | O101: > 5 Crore | AJ101: Tax on Other | AK101: =IF(MAX(0,sheet9.TaxPayableOnTotInc-AO101-AK100)=0,1,sheet9.TaxPayableOnTotInc-AO101-AK100) -> 1576905 | AL101: Surcharge Normal | AM101: =Sheet9.Surcharge_ii -> 0 | AN101: Tax on 44 AD | AO101: =IF(Is_44_AD_Applicable,MAX(0,(MIN(busipofincl.IncOfCurYrAfterSetOffBFLosses2,Income_44_AD)*0.3),0),0) -> 0
C102: =IF(ISNA(MATCH(MID(sheet1.MainStatus,1,1),{"1","2","3"},0)),0.15,IF(GrpsB,0.12,IF(GrpsB.1,0.15,0.12))) -> 0.12 | D102: Surcharge Rate(AMT) | G102: =IF(ISNA(MATCH(MID(sheet1.MainStatus,1,1),{"1","2","3"},0)),0.1,IF(GrpsB,0,IF(GrpsB.1,0.1,0))) -> 0 | H102: Surcharge Rate(AMT) | K102: =IF(ISNA(MATCH(MID(sheet1.MainStatus,1,1),{"1","2","3"},0)),0.25,IF(GrpsB,0.12,IF(GrpsB.1,0.25,0.12))) -> 0.12 | L102: Surcharge Rate(AMT) | O102: =IF(ISNA(MATCH(MID(sheet1.MainStatus,1,1),{"1","2","3"},0)),0.37,IF(GrpsB,0.12,IF(GrpsB.1,0.37,0.12))) -> 0.12 | P102: Surcharge Rate(AMT) | AB102: Calculation of Interest u/s 234C | AN102: Tax on Other | AO102: =IF(MAX(0,sheet9.TaxPayableOnTotInc-SI_115BBE-AO101)=0,1,MAX(0,sheet9.TaxPayableOnTotInc-SI_115BBE-AO101)) -> 1576905
A103: Surcharge on AMT Income | C103: =AMT.AdjustedUnderSec115JC -> 5256350 | D103: Total Income | AB103: Qtr | AC103: Tax on Normal Income | AD103: Tax on OS 10% | AE103: Tax on OS 30% | AF103: Tax SI | AG103: Tax on STCG 15% | AH103: Tax on STCG 30% | AI103: Tax on STCG DTAA | AJ103: Tax on LTCG 10% | AK103: Tax on LTCG 20% | AL103: Tax on LTCG DTAA | AM103: Tax on 115 BBF, 115 BBG and 115BB | AN103: Total Tax | AO103: Total Income after Rebate, if applicable (u/s87E) | AP103: Surchage | AQ103: Education Cess | AR103: Total Tax Liability | AS103: Final Fig Post TDS/TCS, Relief,MATC Deduction | AT103: Tax Income Breakup Quaterly | AU103: 12 & 36 % for 1,2 Qtr in Case of Company | AV103: Advance Tax Quaterly | AW103: Amount on which interest is payable | AX103: Net Interest
A104: Tax Payable on deemed total Income under section 115JC | C104: =ROUND(sheet9.TaxDeemedTISec115JC,0) -> 0 | D104: Tax | AB104: On or before 15th June | AC104: =AO16 -> 1576905 | AD104: =AH87 -> 0 | AE104: =AH79 -> 0 | AF104: =$AD$25 -> 0 | AG104: =AH31 -> 0 | AH104: =AH39 -> 0 | AI104: =AH47+AH113 -> 0 | AJ104: =AH55 -> 0 | AK104: =AH63 -> 0 | AL104: =AH71 -> 0 | AM104: =AH95 -> 0 | AN104: =SUM(AC104:AM104) -> 1576905 | AO104: =MAX(AN104,0) -> 1576905 | AP104: =MAX($AM$101-$AO$100,0)/$AO$102*(MAX(0,AO104-SI_115BBE))+$AM$100 -> 0 | AQ104: =(AO104+AP104)*0.04 -> 63076.2 | AR104: =AO104+AP104+AQ104 -> 1639981.2 | AS104: =MAX(AR104-(Tax.TDS+Tax.TCS+sheet9.CreditUS115JD+Sheet9.TotTaxRelief),0) -> 1398981.2 | AT104: =FLOOR(0.15*AS104,100) -> 209800 | AU104: =FLOOR(0.12*AS104,100) -> 167800 | AV104: =IT.Qtr1 -> 0 | AW104: =IF(AV104>=AU104,0,MAX(0,FLOOR(MAX(0,AT104-AV104),100))) -> 209800 | AX104: =ROUNDDOWN(AW104,-2) *0.01*3 -> 6294 | AY104: =ROUNDDOWN(AW104,-2) *(IT.Q1Rate/100)*3 -> 6294
AB105: On or before 15th Sept | AC105: =AO17 -> 1576905 | AD105: =AH88 -> 0 | AE105: =AH80 -> 0 | AF105: =$AD$25 -> 0 | AG105: =AH32 -> 0 | AH105: =AH40 -> 0 | AI105: =AH48+AH114 -> 0 | AJ105: =AH56 -> 0 | AK105: =AH64 -> 0 | AL105: =AH72 -> 0 | AM105: =AH96 -> 0 | AN105: =SUM(AC105:AM105) -> 1576905 | AO105: =MAX(AN105,0) -> 1576905 | AP105: =MAX($AM$101-$AO$100,0)/$AO$102*(MAX(0,AO105-SI_115BBE))+$AM$100 -> 0 | AQ105: =(AO105+AP105)*0.04 -> 63076.2 | AR105: =AO105+AP105+AQ105 -> 1639981.2 | AS105: =MAX(AR105-(Tax.TDS+Tax.TCS+sheet9.CreditUS115JD+Sheet9.TotTaxRelief),0) -> 1398981.2 | AT105: =FLOOR(0.45*AS105,100) -> 629500 | AU105: =FLOOR(0.36*AS105,100) -> 503600 | AV105: =IT.Qtr1+IT.Qtr2 -> 0 | AW105: =IF(AV105>=AU105,0,MAX(0,FLOOR(MAX(0,AT105-AV105),100))) -> 629500 | AX105: =ROUNDDOWN(AW105,-2) *0.01*3 -> 18885
A106: Surcharge on Such Income | C106: =IF(C103>10000000,ROUND(C104*SurchargeRate_AMT,0),0) -> 0 | G106: Surcharge on Such Income | I106: =IF(C103>5000000,ROUND(C104*SurchargeRate_AMT2,0),0) -> 0 | K106: Surcharge on Such Income | M106: =IF(C103>20000000,ROUND(C104*SurchargeRate_AMT3,0),0) -> 0 | O106: Surcharge on Such Income | Q106: =IF(C103>50000000,ROUND(C104*SurchargeRate_AMT4,0),0) -> 0 | AB106: On or before 15th Dec | AC106: =AO18 -> 1576905 | AD106: =AH89 -> 0 | AE106: =AH81 -> 0 | AF106: =$AD$25 -> 0 | AG106: =AH33 -> 0 | AH106: =AH41 -> 0 | AI106: =AH49+AH115 -> 0 | AJ106: =AH57 -> 0 | AK106: =AH65 -> 0 | AL106: =AH73 -> 0 | AM106: =AH97 -> 0 | AN106: =SUM(AC106:AM106) -> 1576905 | AO106: =MAX(AN106,0) -> 1576905 | AP106: =MAX($AM$101-$AO$100,0)/$AO$102*(MAX(0,AO106-SI_115BBE))+$AM$100 -> 0 | AQ106: =(AO106+AP106)*0.04 -> 63076.2 | AR106: =AO106+AP106+AQ106 -> 1639981.2 | AS106: =MAX(AR106-(Tax.TDS+Tax.TCS+sheet9.CreditUS115JD+Sheet9.TotTaxRelief),0) -> 1398981.2 | AT106: =FLOOR(0.75*AS106,100) -> 1049200 | AV106: =IT.Qtr1+IT.Qtr2+IT.Qtr3 -> 85000 | AW106: =MAX(0,FLOOR(MAX(0,AT106-AV106),100)) -> 964200 | AX106: =ROUNDDOWN(AW106,-2) *0.01*3 -> 28926
A107: Total1 | C107: =C104+C106 -> 0 | G107: Total1 | I107: =C104+I106 -> 0 | K107: Total1 | M107: =C104+M106 -> 0 | O107: Total1 | Q107: =C104+Q106 -> 0 | AB107: On or before 15th Mar | AC107: =AO19 -> 1576905 | AD107: =AH90 -> 0 | AE107: =AH82 -> 0 | AF107: =$AD$25 -> 0 | AG107: =AH34 -> 0 | AH107: =AH42 -> 0 | AI107: =AH50+AH116 -> 0 | AJ107: =AH58 -> 0 | AK107: =AH66 -> 0 | AL107: =AH74 -> 0 | AM107: =AH98 -> 0 | AN107: =SUM(AC107:AM107) -> 1576905 | AO107: =MAX(AN107,0) -> 1576905 | AP107: =MAX(0,(AM100+AM101)-AP108) -> 0 | AQ107: =(AO107+AP107)*0.04 -> 63076.2 | AR107: =AO107+AP107+AQ107 -> 1639981.2 | AS107: =MAX(AR107-(Tax.TDS+Tax.TCS+sheet9.CreditUS115JD+Sheet9.TotTaxRelief),0) -> 1398981.2 | AT107: =FLOOR(1*AS107,100) -> 1398900 | AV107: =IT.Qtr1+IT.Qtr2+IT.Qtr3+IT.Qtr4 -> 85000 | AW107: =MAX(0,FLOOR(MAX(0,AT107-AV107),100)) -> 1313900 | AX107: =ROUNDDOWN(AW107,-2) *0.01*1 -> 13139
A108: Income Exceeding 1 Crore | C108: =IF(C103>10000000,MAX(C103-10000000,0),0) -> 0 | G108: Income Exceeding 50 lakhs | I108: =IF(C103>5000000,MAX(C103-5000000,0),0) -> 256350 | K108: Income Exceeding 2 Crores | M108: =IF(C103>20000000,MAX(C103-20000000,0),0) -> 0 | O108: Income Exceeding 5 Crores | Q108: =IF(C103>50000000,MAX(C103-50000000,0),0) -> 0 | AB108: On or before 31th Mar | AC108: =AO20 -> 0 | AD108: =AH91 -> 0 | AE108: =AH83 -> 0 | AF108: 0 | AG108: =AH35 -> 0 | AH108: =AH43 -> 0 | AI108: =AH51+AH117 -> 0 | AJ108: =AH59 -> 0 | AK108: =AH67 -> 0 | AL108: =AH75 -> 0 | AM108: =AH99 -> 0 | AN108: =SUM(AC108:AM108) -> 0 | AO108: =MAX(AN108,0) -> 0 | AP108: =MAX($AM$101-$AO$100,0)/$AO$102*(MAX(0,AO108)) -> 0 | AQ108: =(AO108+AP108)*0.04 -> 0 | AR108: =AO108+AP108+AQ108 -> 0 | AS108: =MAX(0,AR108-(MAX(0, (Tax.TDS+Tax.TCS+sheet9.CreditUS115JD+Sheet9.TotTaxRelief)-AR107))) -> 0 | AT108: =FLOOR(1*AS108,100) -> 0 | AV108: =IT.Qtr5 -> 0 | AW108: =MAX(0,FLOOR(MAX(0,AT108-AV108-MAX(0,AV107-AT107)),100)) -> 0 | AX108: =ROUNDDOWN(AW108,-2) *0.01*1 -> 0
A109: Tax on 1 Crore | C109: =IF(C103>10000000,ROUND(AMT.BTax_1cr,0),0) -> 0 | G109: Tax on 50 lakhs | I109: =IF(C103>5000000,ROUND(AMT.BTax_50L,0),0) -> 0 | K109: Tax on 2 Crores | M109: =IF(C103>20000000,ROUND(AMT.BTax_2cr,0),0) -> 0 | O109: Tax on 5 Crores | Q109: =IF(C103>50000000,ROUND(AMT.BTax_5cr,0),0) -> 0 | AX109: =MAX(interest234C_MATC,SUM(AX104:AX108)) -> 67244
A110: Total2(Including 10% Surcharge on Tax on 1 crore) | C110: =C108+C109+(SurchargeRate_AMT2*C109) -> 0 | G110: Total2 | I110: =I108+I109 -> 256350 | K110: Total2 | M110: =M108+M109+(SurchargeRate_AMT*M109) -> 0 | O110: Total2 | Q110: =Q108+Q109+(SurchargeRate_AMT3*Q109) -> 0
A111: Marginal Relief | C111: =IF(C103>10000000,IF((C107-C110)>0,(C107-C110),0),0) -> 0 | G111: Marginal Relief | I111: =IF(C103>5000000,IF((I107-I110)>0,(I107-I110),0),0) -> 0 | K111: Marginal Relief | M111: =IF(C103>20000000,IF((M107-M110)>0,(M107-M110),0),0) -> 0 | O111: Marginal Relief | Q111: =IF(C103>50000000,IF((Q107-Q110)>0,(Q107-Q110),0),0) -> 0 | AB111: OS DTAA
A112: Surcharge After Marginal Relief | C112: =IF(C103>10000000,IF(C111<=0,ROUND(C104*SurchargeRate_AMT,0),MAX(C106-C111,0)),0) -> 0 | G112: Surcharge After Marginal Relief | I112: =IF(C103>5000000,IF(I111<=0,ROUND(C104*SurchargeRate_AMT2,0),MAX(I106-I111,0)),0) -> 0 | K112: Surcharge After Marginal Relief | M112: =IF(C103>20000000,IF(M111<=0,ROUND(C104*SurchargeRate_AMT3,0),MAX(M106-M111,0)),0) -> 0 | O112: Surcharge After Marginal Relief | Q112: =IF(C103>50000000,IF(Q111<=0,ROUND(C104*SurchargeRate_AMT4,0),MAX(Q106-Q111,0)),0) -> 0 | AB112: Qtr | AC112: Income given by assessee in CG schedule | AD112: Basic Exemption | AE112: Net Fig | AF112: Cumulative Income | AG112: Tax from SI | AH112: Total Tax
AB113: On or before 15th June | AC113: =OSDTAA_Upto15Of6 -> 0 | AF113: =AC113 -> 0 | AG113: =SI!J7 -> 0 | AH113: =IF(ISERROR(ROUND(AG113*AF113/($AF$117+$AF$116),0)),0,ROUND(AG113*AF113/($AF$117+$AF$116),0)) -> 0
D114: Final AMT Surcharge | E114: =ROUND(IF(C103>50000000,Q112,IF(C103>20000000,M112,IF(C103>10000000,C112,I112))),0) -> 0 | AB114: On or before 15th Sept | AC114: =OSDTAA_Up16Of6To15Of9 -> 0 | AF114: =AC114+AF113 -> 0 | AG114: =SI!J7 -> 0 | AH114: =IF(ISERROR(ROUND(AG114*AF114/($AF$117+$AF$116),0)),0,ROUND(AG114*AF114/($AF$117+$AF$116),0)) -> 0
A115: Normal Surcharge | AB115: On or before 15th Dec | AC115: =OSDTAA_Up16Of9To15Of12 -> 0 | AF115: =AC115+AF114 -> 0 | AG115: =SI!J7 -> 0 | AH115: 0
A116: Reference Of Tax Head | AB116: On or before 15th Mar | AC116: =OSDTAA_Up16Of12To15Of3 -> 0 | AF116: =AC116+AF115 -> 0 | AG116: =SI!J7 -> 0 | AH116: 0
AB117: On or before 31th Mar | AC117: =OSDTAA_Up16Of3To31Of3 -> 0 | AF117: =AC117 -> 0 | AG117: =SI!J7 -> 0 | AH117: 0
A118: Total Income | C118: =Sheet8b.TotalIncome -> 5256350
A119: Tax on Income
A120: Surcharge Interest Rate | C120: =IF(TotalIncome>10000000,0.15,IF(TotalIncome>5000000,0.1,0)) -> 0.1
A121: Normal Income | C121: =TotalIncome-Sheet8b.IncChargeTaxSplRate111A112 -> 5256350
A124: Group A
B125: 0.3 | C125: =IF(GrpsA,0,NormalIncome) -> 5256350 | F125: GrpB
F126: =MAX(IF(NormalIncome>1000000,250000,IF(AND(NormalIncome>0,NormalIncome<=250000),NormalIncome,IF(NormalIncome>250000,250000,0))),0) -> 250000 | G126: 0 | H126: =MAX(IF(NormalIncome>20000,10000,IF(AND(NormalIncome>0,NormalIncome<=10000),NormalIncome,IF(NormalIncome>10000,10000,0))),0) -> 10000 | I126: 0.1
A127: Group B | F127: =MAX(IF(NormalIncome>1000000,250000,IF(AND((NormalIncome-250000)>=250001,(NormalIncome-250000)<=500000),MIN(NormalIncome-F126,250000), IF((NormalIncome-250000)>500000, 250000,NormalIncome-250000))),0) -> 250000 | G127: 0.05 | H127: =MAX(IF(NormalIncome>20000,10000,IF(AND(NormalIncome>=10001,NormalIncome<=20000),NormalIncome-H126,0)),0) -> 10000 | I127: 0.2
A128: 10000 | B128: 0.1 | C128: =IF(GrpsB,0,IF(GrpsB.1,0,MAX(IF(NormalIncome>20000,10000,IF(AND(NormalIncome>0,NormalIncome<=10000),NormalIncome,IF(NormalIncome>10000,10000,0))),0))) -> 0 | D128: GrpsB.Grp1 | F128: =MAX(IF(NormalIncome>1000000,500000,IF(AND(NormalIncome>=500001,NormalIncome<=1000000),MIN(NormalIncome-(F126+F127),500000),0)),0) -> 500000 | G128: 0.2 | H128: =MAX(IF(NormalIncome>20000,NormalIncome-(H126+H127),0),0) -> 5236350 | I128: 0.3
A129: 20000 | B129: 0.2 | C129: =IF(GrpsB,0,IF(GrpsB.1,0,MAX(IF(NormalIncome>20000,10000,IF(AND(NormalIncome>=10001,NormalIncome<=20000),NormalIncome-H126,0)),0))) -> 0 | F129: =MAX(IF(NormalIncome>1000000,NormalIncome-(F126+F127+F128),0),0) -> 4256350 | G129: 0.3
A130: 20001 | B130: 0.3 | C130: =IF(GrpsB,0,IF(GrpsB.1,0,MAX(IF(NormalIncome>20000,NormalIncome-(H126+H127),0),0))) -> 0
A132: 250000 | B132: 0 | C132: =IF(GrpsB,0,IF(GrpsB.2,0,MAX(IF(NormalIncome>1000000,250000,IF(AND(NormalIncome>0,NormalIncome<=250000),NormalIncome,IF(NormalIncome>250000,250000,0))),0))) -> 0 | D132: GrpsB.Grp2
A133: 500000 | B133: 0.05 | C133: =IF(GrpsB,0,IF(GrpsB.2,0,MAX(IF(NormalIncome>1000000,250000,IF(AND((NormalIncome-250000)>=250001,(NormalIncome-250000)<=500000),MIN(NormalIncome-F126,250000), IF((NormalIncome-250000)>500000, 250000,NormalIncome-250000))),0))) -> 0
A134: 1000000 | B134: 0.2 | C134: =IF(GrpsB,0,IF(GrpsB.2,0,MAX(IF(NormalIncome>1000000,500000,IF(AND(NormalIncome>=500001,NormalIncome<=1000000),MIN(NormalIncome-(F126+F127),500000),0)),0))) -> 0
A135: 1000001 | B135: 0.3 | C135: =IF(GrpsB,0,IF(GrpsB.2,0,MAX(IF(NormalIncome>1000000,NormalIncome-(F126+F127+F128),0),0))) -> 0
B137: 0.3 | C137: =IF(GrpsB,0,IF(GrpsB.3,0,IF(PDT.MMR,NormalIncome,0))) -> 0 | D137: GrpsB.Grp3
B138: 0.3 | C138: =IF(GrpsB,0,IF(GrpsB.4,IF(GrpsB.3,0,IF(PDT.AOP,IF(Case1,NormalIncome,0),0)),IF(Case1,NormalIncome,0))) -> 0 | D138: GrpsB.Grp3/ GrpsB.Grp4.Case1
A140: 250000 | B140: 0 | C140: =IF(GrpsB,0,IF(GrpsB.3,IF(GrpsB.4,0,IF(Case2,MAX(IF(NormalIncome>1000000,250000,IF(AND(NormalIncome>0,NormalIncome<=250000),NormalIncome,IF(NormalIncome>250000,250000,0))),0),0)),IF(Case2,MAX(IF(NormalIncome>1000000,250000,IF(AND(NormalIncome>0,NormalIncome<=250000),NormalIncome,IF(NormalIncome>250000,250000,0))),0),0))) -> 0 | D140: GrpsB.Grp3/ GrpsB.Grp4.Case2
A141: 500000 | B141: 0.05 | C141: =IF(GrpsB,0,IF(GrpsB.3,IF(GrpsB.4,0,IF(Case2,MAX(IF(NormalIncome>1000000,250000,IF(AND((NormalIncome-250000)>=250001,(NormalIncome-250000)<=500000),MIN(NormalIncome-F126,250000), IF((NormalIncome-250000)>500000, 250000,NormalIncome-250000))),0),0)),IF(Case2,MAX(IF(NormalIncome>1000000,250000,IF(AND((NormalIncome-250000)>=250001,(NormalIncome-250000)<=500000),MIN(NormalIncome-F126,250000), IF((NormalIncome-250000)>500000, 250000,NormalIncome-250000))),0),0))) -> 0
A142: 1000000 | B142: 0.2 | C142: =IF(GrpsB,0,IF(GrpsB.3,IF(GrpsB.4,0,IF(Case2,MAX(IF(NormalIncome>1000000,500000,IF(AND(NormalIncome>=500001,NormalIncome<=1000000),MIN(NormalIncome-(F126+F127),500000),0)),0),0)),IF(Case2,MAX(IF(NormalIncome>1000000,500000,IF(AND(NormalIncome>=500001,NormalIncome<=1000000),MIN(NormalIncome-(F126+F127),500000),0)),0),0))) -> 0
A143: 1000001 | B143: 0.3 | C143: =IF(GrpsB,0,IF(GrpsB.3,IF(GrpsB.4,0,IF(Case2,MAX(IF(NormalIncome>1000000,NormalIncome-(F126+F127+F128),0),0),0)),IF(Case2,MAX(IF(NormalIncome>1000000,NormalIncome-(F126+F127+F128),0),0),0))) -> 0
B145: 0.3 | C145: =IF(GrpsB,0,IF(GrpsB.4,IF(GrpsB.3,0,IF(PDT.AOP,IF(Case3,ROUND(VALUE(NormalIncome*G146),0),0),0)),IF(Case3,ROUND(VALUE(NormalIncome*G146),0),0))) -> 0 | D145: GrpsB.Grp3/ GrpsB.Grp4.Case3 | F145: =PMInfo.PercentageOfShareForeignComp -> 0 | G145: =MIN(100,F145)/100 -> 0 | H145: Foreign
B146: 0.4 | C146: =IF(GrpsB,0,IF(GrpsB.4,IF(GrpsB.3,0,IF(PDT.AOP,IF(Case3,ROUND(VALUE(NormalIncome*G145),0),0),0)),IF(Case3,ROUND(VALUE(NormalIncome*G145),0),0))) -> 0 | G146: =MAX(0,100-F145)/100 -> 1 | H146: Domestic
B148: 0.3 | C148: =IF(GrpsB,0,IF(GrpsB.4,IF(GrpsB.3,0,IF(PDT.AOP,IF(Case4,ROUND(VALUE(NormalIncome),0),0),0)),IF(Case4,ROUND(VALUE(NormalIncome),0),0))) -> 0 | D148: GrpsB.Grp3/ GrpsB.Grp4.Case4
B150: 0.4 | C150: =IF(GrpsB,0,IF(GrpsB.4,IF(GrpsB.3,0,IF(PDT.AOP,IF(Case5,ROUND(VALUE(NormalIncome),0),0),0)),IF(Case5,ROUND(VALUE(NormalIncome),0),0))) -> 0 | D150: GrpsB.Grp3/ GrpsB.Grp4.Case5
A152: Group C
A153: 250000 | B153: 0 | C153: =IF(GrpsC,0,IF(GrpsC.1,0,IF(CaseEstateOfDeceased,MAX(IF(NormalIncome>1000000,250000,IF(AND(NormalIncome>0,NormalIncome<=250000),NormalIncome,IF(NormalIncome>250000,250000,0))),0),0))) -> 0 | D153: GrpsC.1
A154: 500000 | B154: 0.05 | C154: =IF(GrpsC,0,IF(GrpsC.1,0,IF(CaseEstateOfDeceased,MAX(IF(NormalIncome>1000000,250000,IF(AND((NormalIncome-250000)>=250001,(NormalIncome-250000)<=500000),MIN(NormalIncome-F126,250000), IF((NormalIncome-250000)>500000, 250000,NormalIncome-250000))),0),0))) -> 0
A155: 1000000 | B155: 0.2 | C155: =IF(GrpsC,0,IF(GrpsC.1,0,IF(CaseEstateOfDeceased,MAX(IF(NormalIncome>1000000,500000,IF(AND(NormalIncome>=500001,NormalIncome<=1000000),MIN(NormalIncome-(F126+F127),500000),0)),0),0))) -> 0
A156: 1000001 | B156: 0.3 | C156: =IF(GrpsC,0,IF(GrpsC.1,0,IF(CaseEstateOfDeceased,MAX(IF(NormalIncome>1000000,NormalIncome-(F126+F127+F128),0),0),NormalIncome))) -> 0
B158: 0.3 | C158: =IF(GrpsC,0,IF(GrpsC.2,0,NormalIncome)) -> 0 | D158: GrpsC.2
A160: 250000 | B160: 0 | C160: =IF(GrpsC,0,IF(GrpsC.3,0,MAX(IF(NormalIncome>1000000,250000,IF(AND(NormalIncome>0,NormalIncome<=250000),NormalIncome,IF(NormalIncome>250000,250000,0))),0))) -> 0 | D160: GrpsC.3
A161: 500000 | B161: 0.05 | C161: =IF(GrpsC,0,IF(GrpsC.3,0,MAX(IF(NormalIncome>1000000,250000,IF(AND((NormalIncome-250000)>=250001,(NormalIncome-250000)<=500000),MIN(NormalIncome-F126,250000), IF((NormalIncome-250000)>500000, 250000,NormalIncome-250000))),0))) -> 0
A162: 1000000 | B162: 0.2 | C162: =IF(GrpsC,0,IF(GrpsC.3,0,MAX(IF(NormalIncome>1000000,500000,IF(AND(NormalIncome>=500001,NormalIncome<=1000000),MIN(NormalIncome-(F126+F127),500000),0)),0))) -> 0
A163: 1000001 | B163: 0.3 | C163: =IF(GrpsC,0,IF(GrpsC.3,0,MAX(IF(NormalIncome>1000000,NormalIncome-(F126+F127+F128),0),0))) -> 0
B165: 0.15 | C165: =SI_111A+SI!I10+SI!I46 -> 0 | D165: For Special Surcharge benefit
B166: 0.1 | C166: =SI!I12+SI!I16+SI!I27+taxablesi+SI_115EA+SI!I26+SI!I25+SI!I24+SI!I38+SI!I39+SI!I35+SI!I41+SI!I42+SI!I24+SI!I58++SI!I59+SI!I60+SI!I61+SI!I66+SI!I67+SI!I68+SI!I49 -> 0
B167: 0.1 | C167: =SI!I13+SI!I15+SI!I31+SI!I48 -> 0 | D167: For Special Surcharge benefit
B168: 0.2 | C168: =SI!I11+SI!I17+SI!I18+SI!I23+SI!I28+SI!I33+SI!I45+SI!I50+SI!I51+SI!I52+SI!I57+SI!I62+SI!I64+SI!I81 -> 0 | D168: =SI!I73+SI!I74 -> 0 | E168: For OS Special Surcharge benefit
B169: 0.3 | C169: =SI_115BBC+SI!I32+SI!I65 -> 0
B170: 0.3 | C170: =SI!I30+SI!I47 -> 0 | D170: For Special Surcharge benefit
B171: 0.05 | C171: =SI!I19+SI!I20+SI!I21+SI!I29+SI!I22+SI!I53+SI!I54+SI!I55+SI!I56+SI!I63 -> 0
B172: 0.125 | C172: =B115Inc -> 0
B173: 0.25 | C173: 0
B174: 0.5 | C174: 0
B175: 0.6 | C175: =SI!I36 -> 0
A176: Marginal Relief | C176: 1766134
A177: Surcharge | C177: 0
C178: 189229
C179: 0
A183: BASIC TAX CALCULATION PART [For Surcharge Calc]
A185: Reference Of Tax Head | C185: Tax Head | D185: Value
A186: Point (16) of Part B-TI | C186: Taxable Income | D186: 5000000
A188: Group A
C189: =IF(GrpsA,0,ROUND(VALUE(TaxableIncome1)*0.3,0)) -> 1500000
A191: Group B
A192: 10000 | C192: =IF(GrpsB,0,IF(GrpsB.1,0,IF(AND(TaxableIncome1>=0,TaxableIncome1<=A192),ROUND(VALUE(TaxableIncome1)*0.1,0),0))) -> 0 | D192: GrpsB.Grp1
A193: 20000 | C193: =IF(GrpsB,0,IF(GrpsB.1,0,IF(AND(TaxableIncome1>=10001,TaxableIncome1<=A193),(ROUND(VALUE(TaxableIncome1-A192) * 0.2,0))+1000,0))) -> 0
A194: 20001 | C194: =IF(GrpsB,0,IF(GrpsB.1,0,IF(AND(TaxableIncome1>=A194),(ROUND(VALUE(TaxableIncome1-A193) * 0.3,0))+3000,0))) -> 0
A196: 250000 | C196: =IF(GrpsB,0,IF(GrpsB.2,0,IF(AND(TaxableIncome1>=0,TaxableIncome1<=A196),0,0))) -> 0 | D196: GrpsB.Grp2
A197: 500000 | C197: =IF(GrpsB,0,IF(GrpsB.2,0,IF(AND(TaxableIncome1>=250001,TaxableIncome1<=A197),(ROUND(VALUE(TaxableIncome1-A196) * 0.05,0)),0))) -> 0
A198: 1000000 | C198: =IF(GrpsB,0,IF(GrpsB.2,0,IF(AND(TaxableIncome1>=500001,TaxableIncome1<=A198),(ROUND(VALUE(TaxableIncome1-A197) * 0.2,0))+12500,0))) -> 0
A199: 1000001 | C199: =IF(GrpsB,0,IF(GrpsB.2,0,IF((TaxableIncome1>=A199),(ROUND(VALUE(TaxableIncome1-A198) * 0.3,0))+112500,0))) -> 0
C201: =IF(GrpsB,0,IF(GrpsB.3,0,IF(PDT.MMR,ROUND(VALUE(TaxableIncome1)*0.3,0),0))) -> 0 | D201: GrpsB.Grp3
C202: =IF(GrpsB,0,IF(GrpsB.4,IF(GrpsB.3,0,IF(PDT.AOP,IF(Case1,ROUND(VALUE(TaxableIncome1)*0.3,0),0),0)),IF(Case1,ROUND(VALUE(TaxableIncome1)*0.3,0),0))) -> 0 | D202: GrpsB.Grp3/ GrpsB.Grp4.Case1
A204: 250000 | C204: =IF(GrpsB,0,IF(GrpsB.4,IF(GrpsB.3,0,IF(PDT.AOP,IF(Case2,IF(AND(TaxableIncome1>=0,TaxableIncome1<=A204),0,0),0),0)),IF(Case2,IF(AND(TaxableIncome1>=0,TaxableIncome1<=A204),0,0),0))) -> 0 | D204: GrpsB.Grp3/ GrpsB.Grp4.Case2
A205: 500000 | C205: =IF(GrpsB,0,IF(GrpsB.4,IF(GrpsB.3,0,IF(PDT.AOP,IF(Case2,IF(AND(TaxableIncome1>=250001,TaxableIncome1<=A205),(ROUND(VALUE(TaxableIncome1-A204) * 0.05,0)),0),0),0)),IF(Case2,IF(AND(TaxableIncome1>=250001,TaxableIncome1<=A205),(ROUND(VALUE(TaxableIncome1-A204) * 0.05,0)),0),0))) -> 0
A206: 1000000 | C206: =IF(GrpsB,0,IF(GrpsB.4,IF(GrpsB.3,0,IF(PDT.AOP,IF(Case2,IF(AND(TaxableIncome1>=500001,TaxableIncome1<=A206),(ROUND(VALUE(TaxableIncome1-A205) * 0.2,0))+12500,0),0),0)),IF(Case2,IF(AND(TaxableIncome1>=500001,TaxableIncome1<=A206),(ROUND(VALUE(TaxableIncome1-A205) * 0.2,0))+12500,0),0))) -> 0
A207: 1000001 | C207: =IF(GrpsB,0,IF(GrpsB.4,IF(GrpsB.3,0,IF(PDT.AOP,IF(Case2,IF((TaxableIncome1>=A207),(ROUND(VALUE(TaxableIncome1-A206) * 0.3,0))+112500,0),0),0)),IF(Case2,IF((TaxableIncome1>=A207),(ROUND(VALUE(TaxableIncome1-A206) * 0.3,0))+112500,0),0))) -> 0
H208: =MIN(TaxableIncome1-H209) -> 5000000 | I208: Foreign
C209: =IF(GrpsB,0,IF(GrpsB.4,IF(GrpsB.3,0,IF(PDT.AOP,IF(Case3,ROUND(H208*0.4,0)+ROUND(H209*0.3,0),0),0)),IF(Case3,ROUND(H208*0.4,0)+ROUND(H209*0.3,0),0))) -> 0 | D209: GrpsB.Grp3/ GrpsB.Grp4.Case3 | H209: =VALUE(MIN(10000000,GrpsB.Grp4.Case3.Income1)) -> 0 | I209: Domestic
C211: =IF(GrpsB,0,IF(GrpsB.4,IF(GrpsB.3,0,IF(PDT.AOP,IF(Case4,ROUND(VALUE(TaxableIncome1)*0.3,0),0),0)),IF(Case4,ROUND(VALUE(TaxableIncome1)*0.3,0),0))) -> 0 | D211: GrpsB.Grp3/ GrpsB.Grp4.Case4
C213: =IF(GrpsB,0,IF(GrpsB.4,IF(GrpsB.3,0,IF(PDT.AOP,IF(Case5,ROUND(VALUE(TaxableIncome1)*0.4,0),0),0)),IF(Case5,ROUND(VALUE(TaxableIncome1)*0.4,0),0))) -> 0 | D213: GrpsB.Grp3/ GrpsB.Grp4.Case5
A215: Group C
A216: 250000 | C216: =IF(GrpsC,0,IF(GrpsC.1,0,IF(CaseEstateOfDeceased,IF(AND(TaxableIncome1>=0,TaxableIncome1<=A216),0,0),0))) -> 0 | D216: GrpsC.1
A217: 500000 | C217: =IF(GrpsC,0,IF(GrpsC.1,0,IF(CaseEstateOfDeceased,IF(AND(TaxableIncome1>=250001,TaxableIncome1<=A217),(ROUND(VALUE(TaxableIncome1-A216) * 0.05,0)),0),0))) -> 0
A218: 1000000 | C218: =IF(GrpsC,0,IF(GrpsC.1,0,IF(CaseEstateOfDeceased,IF(AND(TaxableIncome1>=500001,TaxableIncome1<=A218),(ROUND(VALUE(TaxableIncome1-A217) * 0.2,0))+12500,0),0))) -> 0
A219: 1000001 | C219: =IF(GrpsC,0,IF(GrpsC.1,0,IF(CaseEstateOfDeceased,IF((TaxableIncome1>=A219),(ROUND(VALUE(TaxableIncome1-A218)*0.3,0))+112500,0),ROUND(VALUE(TaxableIncome1)*0.3,0)))) -> 0
C221: =IF(GrpsC,0,IF(GrpsC.2,0,ROUND(VALUE(TaxableIncome1)*0.3,0))) -> 0 | D221: GrpsC.2
A223: 250000 | C223: =IF(GrpsC,0,IF(GrpsC.3,0,IF(AND(TaxableIncome1>=0,TaxableIncome1<=A223),0,0))) -> 0 | D223: GrpsC.3
A224: 500000 | C224: =IF(GrpsC,0,IF(GrpsC.3,0,IF(AND(TaxableIncome1>=250001,TaxableIncome1<=A224),(ROUND(VALUE(TaxableIncome1-A223) * 0.05,0)),0))) -> 0
A225: 1000000 | C225: =IF(GrpsC,0,IF(GrpsC.3,0,IF(AND(TaxableIncome1>=500001,TaxableIncome1<=A225),(ROUND(VALUE(TaxableIncome1-A224) * 0.2,0))+12500,0))) -> 0
A226: 1000001 | C226: =IF(GrpsC,0,IF(GrpsC.3,0,IF((TaxableIncome1>=A226),(ROUND(VALUE(TaxableIncome1-A225) * 0.3,0))+112500,0))) -> 0
A228: Tax on Taxable Income | C228: =SUM(C189:C226) -> 1500000

Sheet Tax (hidden)
A1: BASIC TAX CALCULATION PART | E1: GrpA.PDT | F1: Group A | G1: Group B | H1: Group C | I1: Group D | J1: Surcharge Rate | L1: Is any member of the AOP/BOI a foreign company | M1: If Yes, mention the percentage of share of the foreign company in the AOP/BOI | N1: Whether total income of any member of the AOP/BOI (excluding his share from such association or body) exceeds the maximum amount which is not chargeable to tax in the case of that member? | O1: Particulars of persons who were partners/ members in the firm/AOP/BOI or settlor/trustee/beneficiary in the trust on 31st day of March, 2014 | P1: Basic Exemption | Q1: =IF(ISERROR(getExemption(MID(sheet1.SubStatus, 1, 1))),0,getExemption(MID(sheet1.SubStatus, 1, 1))) -> 0 | R1: Interest 234C in Case MATC Higher than Normal Tax
C2: Working | E2: =AND(ISNA(MATCH(MID(sheet1.SubStatus,1,1),{"7"},0))=FALSE) -> FALSE | F2: =ISNA(MATCH(MID(sheet1.SubStatus,1,1),{"7","8"},0)) -> TRUE | G2: =ISNA(MATCH(MID(sheet1.SubStatus,1,1),{"6"},0)) -> TRUE | H2: =ISNA(MATCH(MID(sheet1.SubStatus,1,1),{"1","2","5"},0)) -> FALSE | I2: =ISNA(MATCH(MID(sheet1.SubStatus,1,1),{"3","4"},0)) -> TRUE | J2: =IF(ISNA(MATCH(MID(sheet1.SubStatus,1,1),{"1","2","3","4","5"},0)),0.15,0.12) -> 0.12 | L2: =UPPER(IF(OR(PMInfo.PartnerForeignCompFlg="(Select)",PMInfo.PartnerForeignCompFlg=""),"NA",PMInfo.PartnerForeignCompFlg)) -> NO | M2: =IF(L2="YES",PMInfo.PercentageOfShareForeignComp,"NA") -> NA | N2: =IF(L2="YES","NA",UPPER(IF(PMInfo.TotIncFrmMemberOfAop="Y",PMInfo.TotIncFrmMemberOfAop,"NA"))) -> NA | O2: =IF(SUM(PMInfo.SharePercentage)>=99.9,TRUE,FALSE) -> TRUE | P2: Net Tax | Q2: =IF(Is_44_AD_Applicable,TaxPayableOnTotInc_1,sheet9.TaxPayableOnTotInc) -> 1576905 | R2: Qtr | S2: Income given by assessee in CG schedule | T2: Basic Exemption [2lkh] | U2: Net Fig | V2: Cumulative tax to be paid | W2: Tax paid | X2: 12 & 36 % for 1,2 Qtr | Y2: Cumulative Tax paid | Z2: Amount on which interst is payable | AA2: Net tax
A3: Reference Of Tax Head | C3: Tax Head | D3: Value | P3: Net Surcharge | Q3: =IF(Is_44_AD_Applicable,Surcharge_44AD,Sheet9.SurchargeOnTaxPayable) -> 0 | R3: On or before 15th June | S3: =IF(Higher_MATC,MAX(TotalTax_DI-(Tax.TDS+Tax.TCS+sheet9.CreditUS115JD+Sheet9.TotTaxRelief),0),0) -> 0 | V3: =FLOOR(S3*0.15,100) -> 0 | W3: =IT.Qtr1 -> 0 | X3: =FLOOR(0.12*S3,100) -> 0 | Y3: =W3 -> 0 | Z3: =IF(Y3>=X3,0,MAX(0,FLOOR(MAX(0,V3-Y3),100))) -> 0 | AA3: =Z3*0.01*3 -> 0
A4: Point (16) of Part B-TI | C4: Taxable Income | D4: =Sheet8b.AggregateIncome -> 5256350 | P4: TotalTax_DI | Q4: =sheet9.TotalTax_DI -> 0 | R4: On or before 15th Sept | S4: =IF(Higher_MATC,MAX(TotalTax_DI-(Tax.TDS+Tax.TCS+sheet9.CreditUS115JD+Sheet9.TotTaxRelief),0),0) -> 0 | V4: =FLOOR(S4*0.45,100) -> 0 | W4: =IT.Qtr2 -> 0 | X4: =FLOOR(0.36*S4,100) -> 0 | Y4: =W4+Y3 -> 0 | Z4: =IF(Y4>=X4,0,MAX(0,FLOOR(MAX(0,V4-Y4),100))) -> 0 | AA4: =Z4*0.01*3 -> 0
F5: Q1 | G5: Q2 | H5: Q3 | I5: Q4_1 | J5: Q4_2 | R5: On or before 15th Dec | S5: =IF(Higher_MATC,MAX(TotalTax_DI-(Tax.TDS+Tax.TCS+sheet9.CreditUS115JD+Sheet9.TotTaxRelief),0),0) -> 0 | V5: =FLOOR(S5*0.75,100) -> 0 | W5: =IT.Qtr3 -> 85000 | Y5: =W5+Y4 -> 85000 | Z5: =MAX(V5-Y5,0) -> 0 | AA5: =Z5*0.01*3 -> 0
A6: Group A | F6: =UPPER(IF(OR(PAG2.Sec160_1="(Select)",PAG2.Sec160_1=""),"NA",PAG2.Sec160_1)) -> NA | G6: =UPPER(IF(OR(PAG2.Sec160_2="(Select)",PAG2.Sec160_2=""),"NA",PAG2.Sec160_2)) -> NA | H6: =UPPER(IF(OR(PAG2.Sec160_3="(Select)",PAG2.Sec160_3=""),"NA",PAG2.Sec160_3)) -> NA | I6: =UPPER(IF(OR(PAG2.Sec160_4_1="(Select)",PAG2.Sec160_4_1=""),"NA",PAG2.Sec160_4_1)) -> NA | J6: =UPPER(IF(OR(PAG2.Sec160_4_2="(Select)",PAG2.Sec160_4_2=""),"NA",PAG2.Sec160_4_2)) -> NA | R6: On or before 15th Mar | S6: =IF(Higher_MATC,MAX(TotalTax_DI-(Tax.TDS+Tax.TCS+sheet9.CreditUS115JD+Sheet9.TotTaxRelief),0),0) -> 0 | V6: =FLOOR(S6*1,100) -> 0 | W6: =IT.Qtr4 -> 0 | Y6: =W6+Y5 -> 85000 | Z6: =MAX(V6-Y6,0) -> 0 | AA6: =Z6*0.01*1 -> 0
A7: 250000 | C7: =IF(GrpA,0,IF(GrpA.PDT,0,IF(AND(TaxableIncome>=0,TaxableIncome<=A7),0,0))) -> 0 | E7: =IF(PDT.Q1="Y",IF(PDT.Q2="Y",IF(PDT.Q3="Y",TRUE, FALSE),FALSE),FALSE) -> FALSE | N7: INTEREST PAYABLE CALCULATION PART | O7: Working | R7: On or before 31th Mar | S7: 0 | V7: =FLOOR(S7*1,100) -> 0 | W7: =IT.Qtr5 -> 0 | Y7: =W7 -> 0 | Z7: =MAX(V7-Y7,0) -> 0 | AA7: =Z7*0.01*1 -> 0
A8: 500000 | C8: =IF(GrpA,0,IF(GrpA.PDT,0,IF(AND(TaxableIncome>=250001,TaxableIncome<=A8),(ROUND(VALUE(TaxableIncome-A7) * 0.1,0)),0))) -> 0 | E8: =IF(PDT.Q1="Y",IF(PDT.Q2="Y",IF(PDT.Q3="N",TRUE, FALSE),FALSE),FALSE) -> FALSE | I8: Q4_3 | J8: Q4_4 | N8: Date of filing | O8: 01/04/2015
A9: 1000000 | C9: =IF(GrpA,0,IF(GrpA.PDT,0,IF(AND(TaxableIncome>=500001,TaxableIncome<=A9),(ROUND(VALUE(TaxableIncome-A8) * 0.2,0))+25000,0))) -> 0 | E9: =IF(PDT.Q1="Y",IF(PDT.Q2="N",IF(PDT.Q3="NA",TRUE, FALSE),FALSE),FALSE) -> FALSE | F9: =IF(OR(PDT.C1=TRUE,PDT.C4=TRUE,PDT.C6=TRUE),TRUE,FALSE) -> FALSE | I9: =UPPER(IF(OR(PAG2.Sec160_4_3="(Select)",PAG2.Sec160_4_3=""),"NA",PAG2.Sec160_4_3)) -> NA | J9: =UPPER(IF(OR(PAG2.Sec160_4_4="(Select)",PAG2.Sec160_4_4=""),"NA",PAG2.Sec160_4_4)) -> NA | N9: Date Of interest calculation | O9: =CONCATENATE(YEAR(TODAY()),"-",IF(MONTH(TODAY())<10,"0",""),MONTH(TODAY()),"-",IF(DAY(TODAY())<10,"0",""),DAY(TODAY())) -> 2023-03-02 | AA9: =ROUND(SUM(AA3:AA8),0) -> 0
A10: 1000001 | C10: =IF(GrpA,0,IF(GrpA.PDT,0,IF((TaxableIncome>=A10),(ROUND(VALUE(TaxableIncome-A9) * 0.3,0))+125000,0))) -> 0 | E10: =IF(PDT.Q1="N",IF(PDT.Q2="Y",IF(PDT.Q3="Y",TRUE, FALSE),FALSE),FALSE) -> FALSE | F10: =IF(OR(PDT.C2=TRUE,PDT.C3=TRUE,PDT.C5=TRUE,PDT.C7=TRUE),TRUE,FALSE) -> FALSE | N10: Due date for filing of returns | R10: =sheet9.TotalTax_DI>Sheet9.GrossTaxLiability -> FALSE | S10: MATC Tax higher than Gross Tax
E11: =IF(PDT.Q1="N",IF(PDT.Q2="Y",IF(PDT.Q3="N",TRUE, FALSE),FALSE),FALSE) -> FALSE | N11: Date of filing 234A
A12: GrpA.PDT | C12: =IF(GrpA,0,IF(GrpA.PDT,IF(PDT.MMR,ROUND(VALUE(TaxableIncome)*0.3,0),0),0)) -> 0 | E12: =IF(PDT.Q1="N",IF(PDT.Q2="N",IF(PDT.Q3="NA",IF(Q4_Case1=TRUE,TRUE,FALSE),FALSE),FALSE)) -> FALSE | H12: Q4_Case1 | I12: Q4_Case2 | N12: Date of filing 234B | AD12: Q5 Calculation | AF12: STEP 1 | AJ12: STEP 2
A13: Group C | E13: =IF(PDT.Q1="N",IF(PDT.Q2="N",IF(PDT.Q3="NA",IF(Q4_Case2=TRUE,TRUE,FALSE),FALSE),FALSE)) -> FALSE | H13: =IF(PDT.Q41="N",IF(PDT.Q42="N",IF(PDT.Q43="N",IF(PDT.Q44="N",FALSE,TRUE),TRUE),TRUE), TRUE) -> TRUE | I13: =IF(PDT.Q41="N",IF(PDT.Q42="N",IF(PDT.Q43="N",IF(PDT.Q44="N",TRUE,FALSE),FALSE),FALSE), FALSE) -> FALSE | N13: Date of filing 234C | X13: AggriIncome | AG13: AR Income (Qtr1 to Qtr4) | AH13: =SUM(U16:U20,NormalIncome_MinusBE) -> 1814000 | AK13: AR Income (Qtr1 to Qtr3) | AL13: =SUM(U16:U19,NormalIncome_MinusBE) -> 1814000
C14: =IF(GrpC,0,ROUND(VALUE(TaxableIncome)*0.3,0)) -> 1576905 | F14: =IF(GrpA,FALSE,IF(GrpA.PDT,IF((PDT.C3=TRUE),TRUE,FALSE),FALSE)) -> FALSE | R14: NORMAL INCOME+ CG AR Income | S14: Balanced Basic Exemption | T14: =IF(Normal_Income_234C+X14>BasicExemption,0, MAX(0,BasicExemption-MIN(Normal_Income_234C+X14,BasicExemption))) -> 0 | V14: Normal Income Excluding BE | W14: =MAX(IF(Normal_Income_234C+X14>BasicExemption,(Normal_Income_234C+X14-BasicExemption),Normal_Income_234C+X14-MIN(Normal_Income_234C+X14,BasicExemption))-IF(Is_44_AD_Applicable,Income_44_AD,0),0) -> 1814000 | X14: =IF(sheet9.RebateOnAgriInc>0,Sheet8b.NetAgricultureIncomeOrOtherIncomeForRate,0) -> 0 | AG14: Tax | AH14: =IF(ISERROR(CalculateTax(AH13+BasicExemption)),0,CalculateTax(AH13+BasicExemption)) -> 544200 | AK14: Tax | AL14: =IF(ISERROR(CalculateTax(AL13+BasicExemption)),0,CalculateTax(AL13+BasicExemption)) -> 544200
A15: Group D | R15: Due date Qtr | S15: Income Break AR | T15: B.E | U15: Final Fig | V15: Cumulative Income | W15: Normal Income | X15: Total Income For TaX | Y15: Tax | Z15: Tax on tot Income - Agri_Rebate | AA15: Surcharge | AB15: EC | AC15: ToTal Tax | AG15: Surcharge | AH15: =IF(Is_44_AD_Applicable,ROUND((NET_Surcharge*Step1Tax)/NET_TAX,0),IF(MarginalRelief>0,ROUND((NET_Surcharge*Step1Tax)/NET_TAX,0),IF((TotalIncome>10000000),ROUND(Step1Tax*SurchargeInterestRate,0),0))) -> 0 | AK15: Surcharge | AL15: =IF(Is_44_AD_Applicable,ROUND((NET_Surcharge*Step2Tax)/NET_TAX,0),IF(MarginalRelief>0,ROUND((NET_Surcharge*Step2Tax)/NET_TAX,0),IF((TotalIncome>10000000),ROUND(Step2Tax*SurchargeInterestRate,0),0))) -> 0
A16: 10000 | C16: =IF(GrpD,0,IF(AND(TaxableIncome>=0,TaxableIncome<=A16),ROUND(VALUE(TaxableIncome)*0.1,0),0)) -> 0 | N16: Interest u/s 234A | O16: 1359600 | R16: On or before 15th June | S16: =AccSTCGOTH.Upto15Of6 -> 0 | T16: =S16-U16 -> 0 | U16: =IF(ISERROR(applyExemption(Consumed_BE,1,$S$16:$S$20)),0,applyExemption(Consumed_BE,1,$S$16:$S$20)) -> 0 | V16: =U16 -> 0 | W16: =NormalIncome_MinusBE -> 1814000 | X16: =V16+W16 -> 1814000 | Y16: =MAX(IF(ISERROR(CalculateTax(X16+BasicExemption)),0,CalculateTax(X16+BasicExemption)),0) -> 544200 | Z16: =MAX(Y16-sheet9.RebateOnAgriInc,0) -> 544200 | AA16: =IF(Is_44_AD_Applicable,ROUND((NET_Surcharge*Y16)/NET_TAX,0),IF(MarginalRelief>0,ROUND((NET_Surcharge*Y16)/NET_TAX,0),IF((TotalIncome>10000000),ROUND(Y16*SurchargeInterestRate,0),0))) -> 0 | AB16: =ROUND((Y16+AA16)*0.03,0) -> 16326 | AC16: =MAX(Y16+AA16+AB16,0) -> 560526 | AG16: EC | AH16: =ROUND((AH14+AH15)*0.03,0) -> 16326 | AK16: EC | AL16: =ROUND((AL14+AL15)*0.03,0) -> 16326
A17: 20000 | C17: =IF(GrpD,0,IF(AND(TaxableIncome>=10001,TaxableIncome<=A17),(ROUND(VALUE(TaxableIncome-A16) * 0.2,0))+1000,0)) -> 0 | N17: Interest u/s 234B | O17: 3399000 | R17: On or before 15th Sept | S17: =AccSTCGOTH.Upto15Of9 -> 0 | T17: =S17-U17 -> 0 | U17: =IF(ISERROR(applyExemption(Consumed_BE,2,$S$16:$S$20)),0,applyExemption(Consumed_BE,2,$S$16:$S$20)) -> 0 | V17: =U17+V16 -> 0 | W17: =NormalIncome_MinusBE -> 1814000 | X17: =V17+W17 -> 1814000 | Y17: =MAX(IF(ISERROR(CalculateTax(X17+BasicExemption)),0,CalculateTax(X17+BasicExemption)),0) -> 544200 | Z17: =MAX(Y17-sheet9.RebateOnAgriInc,0) -> 544200 | AA17: =IF(Is_44_AD_Applicable,ROUND((NET_Surcharge*Y17)/NET_TAX,0),IF(MarginalRelief>0,ROUND((NET_Surcharge*Y17)/NET_TAX,0),IF((TotalIncome>10000000),ROUND(Y17*SurchargeInterestRate,0),0))) -> 0 | AB17: =ROUND((Y17+AA17)*0.03,0) -> 16326 | AC17: =MAX(Y17+AA17+AB17,0) -> 560526 | AG17: Total Tax | AH17: =Step1Tax+AH15+AH16 -> 6868146 | AK17: Total Tax | AL17: =Step2Tax+AL15+AL16 -> 6868146
A18: 20001 | C18: =IF(GrpD,0,IF(AND(TaxableIncome>=A18),(ROUND(VALUE(TaxableIncome-A17) * 0.3,0))+3000,0)) -> 0 | N18: Interest u/s 234C | O18: 1257630 | R18: On or before 15th Dec | S18: =AccSTCGOTH.Up16Of9To15Of12 -> 0 | T18: =S18-U18 -> 0 | U18: =IF(ISERROR(applyExemption(Consumed_BE,3,$S$16:$S$20)),0,applyExemption(Consumed_BE,3,$S$16:$S$20)) -> 0 | V18: =U18+V17 -> 0 | W18: =NormalIncome_MinusBE -> 1814000 | X18: =V18+W18 -> 1814000 | Y18: =MAX(IF(ISERROR(CalculateTax(X18+BasicExemption)),0,CalculateTax(X18+BasicExemption)),0) -> 544200 | Z18: =MAX(Y18-sheet9.RebateOnAgriInc,0) -> 544200 | AA18: =IF(Is_44_AD_Applicable,ROUND((NET_Surcharge*Y18)/NET_TAX,0),IF(MarginalRelief>0,ROUND((NET_Surcharge*Y18)/NET_TAX,0),IF((TotalIncome>10000000),ROUND(Y18*SurchargeInterestRate,0),0))) -> 0 | AB18: =ROUND((Y18+AA18)*0.03,0) -> 16326 | AC18: =MAX(Y18+AA18+AB18,0) -> 560526
A19: Group B | D19: =L2 -> NO | E19: =M2 -> NA | F19: =N2 -> NA | G19: =O2 -> TRUE | N19: Normal Income | R19: On or before 15th Mar | S19: =AccSTCGOTH.Up16Of12To15Of3+ IF(Is_44_AD_Applicable,Income_44_AD,0) -> 0 | T19: =S19-U19 -> 0 | U19: =IF(ISERROR(applyExemption(Consumed_BE,4,$S$16:$S$20)),0,applyExemption(Consumed_BE,4,$S$16:$S$20)) -> 0 | V19: =U19+V18 -> 0 | W19: =NormalIncome_MinusBE -> 1814000 | X19: =V19+W19 -> 1814000 | Y19: =MAX(IF(ISERROR(CalculateTax(X19+BasicExemption)),0,CalculateTax(X19+BasicExemption)),0) -> 544200 | Z19: =MAX(Y19-sheet9.RebateOnAgriInc,0) -> 544200 | AA19: =IF(Is_44_AD_Applicable,ROUND((NET_Surcharge*Y19)/NET_TAX,0),IF(MarginalRelief>0,ROUND((NET_Surcharge*Y19)/NET_TAX,0),IF((TotalIncome>10000000),ROUND(Y19*SurchargeInterestRate,0),0))) -> 0 | AB19: =ROUND((Y19+AA19)*0.03,0) -> 16326 | AC19: =MAX(Y19+AA19+AB19,0) -> 560526
N20: TDS | O20: =Sheet9.TDS -> 241000 | R20: On or before 31th Mar | S20: =AccSTCGOTH.Up16Of3To31Of3 -> 0 | T20: =S20-U20 -> 0 | U20: =IF(ISERROR(applyExemption(Consumed_BE,5,$S$16:$S$20)),0,applyExemption(Consumed_BE,5,$S$16:$S$20)) -> 0 | V20: =U20 -> 0 | W20: 0 | X20: 0 | Y20: =MAX(Step1Tax-Step2Tax,0) -> 0 | Z20: =MAX(Y20-MAX(0,sheet9.RebateOnAgriInc-Y19),0) -> 0 | AA20: 0 | AB20: 0 | AC20: =MAX(Y20+AA20+AB20,0) -> 0
A21: Case1 | C21: =IF(GrpB,IF(GrpA,0,IF(GrpA.PDT,IF(PDT.AOP,IF(Case1,ROUND(VALUE(TaxableIncome)*0.3,0),0),0),0)),IF(Case1,ROUND(VALUE(TaxableIncome)*0.3,0),0)) -> 0 | E21: =IF(GrpB,IF(GrpA,FALSE,IF(GrpA.PDT,IF(PDT.AOP,IF(L2="NO",IF(M2="NA",IF(N2="Y",IF(O2=TRUE,TRUE,TRUE)))),FALSE),FALSE)),IF(L2="NO",IF(M2="NA",IF(N2="Y",IF(O2=TRUE,TRUE,TRUE))))) -> FALSE | N21: TCS | O21: =Sheet9.TCS -> 0
A22: Case2 | N22: Assessed Tax | O22: 0
A23: 250000 | C23: =IF(GrpB,IF(GrpA,0,IF(GrpA.PDT,IF(PDT.AOP,IF(Case2,IF(AND(TaxableIncome>=0,TaxableIncome<=A23),0,0),0),0),0)),IF(Case2,IF(AND(TaxableIncome>=0,TaxableIncome<=A23),0,0),0)) -> 0 | E23: =IF(GrpB,IF(GrpA,FALSE,IF(GrpA.PDT,IF(PDT.AOP,IF(L2="NO",IF(M2="NA",IF(N2="NA",IF(O2=TRUE,TRUE,FALSE)))),FALSE),FALSE)),IF(L2="NO",IF(M2="NA",IF(N2="NA",IF(O2=TRUE,TRUE,FALSE))))) -> FALSE | N23: Total Income Segregation Bucket | O23: TOTAL INCOME | P23: =Sheet8b.TotalIncome -> 5256350 | R23: SPECIAL RATE TAX
A24: 500000 | C24: =IF(GrpB,IF(GrpA,0,IF(GrpA.PDT,IF(PDT.AOP,IF(Case2,IF(AND(TaxableIncome>=250001,TaxableIncome<=A24),(ROUND(VALUE(TaxableIncome-A23) * 0.1,0)),0),0),0),0)),IF(Case2,IF(AND(TaxableIncome>=250001,TaxableIncome<=A24),(ROUND(VALUE(TaxableIncome-A23) * 0.1,0)),0),0)) -> 0 | N24: 1 | O24: Normal Income | P24: =MAX(Sheet8b.TotalIncome-(P25+P26+P27+P28),0) -> 5256350 | Q24: Income from SI | R24: Tax From SI | S24: Surcharge | T24: EC | U24: TOTAL TAX
A25: 1000000 | C25: =IF(GrpB,IF(GrpA,0,IF(GrpA.PDT,IF(PDT.AOP,IF(Case2,IF(AND(TaxableIncome>=500001,TaxableIncome<=A25),(ROUND(VALUE(TaxableIncome-A24) * 0.2,0))+25000,0),0),0),0)),IF(Case2,IF(AND(TaxableIncome>=500001,TaxableIncome<=A25),(ROUND(VALUE(TaxableIncome-A24) * 0.2,0))+25000,0),0)) -> 0 | N25: 2 | O25: CG income | P25: 0 | Q25: =SI!I6+SI!I17+SI!I18+SI!I19+SI!I20+SI!I21+SI!I22+SI!I23+SI!I24+SI!I25+SI!I26+SI!I27+SI!I28+SI!I29+SI!I32+SI!I33+SI_115BBC+SI!I36+SI_115EA -> 0 | R25: =SI.TotSplRateIncTax-(SI!J10+SI!J14+SI!J11+SI!J12+SI!J16+SI!J27+SI!J30+SI!J31+SI!J44+SI!J35+SI!J32) -> 0 | S25: =IF(Is_44_AD_Applicable,ROUND((NET_Surcharge*R25)/NET_TAX,0),IF(MarginalRelief>0,ROUND((NET_Surcharge*R25)/NET_TAX,0),IF((TotalIncome>10000000),ROUND(R25*SurchargeInterestRate,0),0))) -> 0 | T25: =ROUND((R25+S25)*0.03,0) -> 0 | U25: =MAX(R25+S25+T25,0) -> 0
A26: 1000001 | C26: =IF(GrpB,IF(GrpA,0,IF(GrpA.PDT,IF(PDT.AOP,IF(Case2,IF((TaxableIncome>=A26),(ROUND(VALUE(TaxableIncome-A25) * 0.3,0))+125000,0),0),0),0)),IF(Case2,IF((TaxableIncome>=A26),(ROUND(VALUE(TaxableIncome-A25) * 0.3,0))+125000,0),0)) -> 0 | N26: 3 | O26: Winning from lottery | P26: 0
A27: Case3 | E27: =IF(GrpB,IF(GrpA,FALSE,IF(GrpA.PDT,IF(PDT.AOP,IF(L2="YES",IF(M2>0,IF(N2="NA",IF(O2=TRUE,TRUE,FALSE)))),FALSE),FALSE)),IF(L2="YES",IF(M2>0,IF(N2="NA",IF(O2=TRUE,TRUE,FALSE))))) -> FALSE | N27: 4 | O27: OS Special rate | P27: 0
C28: =IF(GrpB,IF(GrpA,0,IF(GrpA.PDT,IF(PDT.AOP,IF(Case3,ROUND(VALUE(TaxableIncome *IF(M2="NA",0,(M2/100)))*0.4,0)+ROUND(VALUE(TaxableIncome *IF(M2="NA",0,((100-M2)/100)))*0.3,0),0),0),0)),IF(Case3,ROUND(VALUE(TaxableIncome *IF(M2="NA",0,(M2/100)))*0.4,0)+ROUND(VALUE(TaxableIncome *IF(M2="NA",0,((100-M2)/100)))*0.3,0),0)) -> 0 | N28: 6 | O28: CG AR Income | P28: 0
N29: 44AD Calculaion | O29: Working | R29: CG INCOME
A30: Case4 | N30: IS FIRM | O30: scvia.TotPartCchapterVIA_Calc | P30: =scvia.TotPartCchapterVIA_Calc -> 0 | R30: STCG 15 % | S30: CG 15% Exemption | T30: =MAX(exmp15Inc-exmp15TaxInc,0) -> 0 | AE30: STCG 30 % | AP30: LTCG 10 % | AQ30: CG 10% Exemption | AR30: =MAX(exmp10Inc-exmp10TaxInc,0) -> 0 | AZ30: LTCG 20 % | BA30: CG 20% Exemption | BB30: =MAX(exmp20Inc-exmp20TaxInc,0) -> 0
C31: =IF(GrpB,IF(GrpA,0,IF(GrpA.PDT,IF(PDT.AOP,IF(Case4,ROUND(VALUE(TaxableIncome)*0.3,0),0),0),0)),IF(Case4,ROUND(VALUE(TaxableIncome)*0.3,0),0)) -> 0 | E31: =IF(GrpB,IF(GrpA,FALSE,IF(GrpA.PDT,IF(PDT.AOP,IF(L2="NO",IF(M2="NA",IF(N2="NA",IF(O2=FALSE,TRUE,FALSE)))),FALSE),FALSE)),IF(L2="NO",IF(M2="NA",IF(N2="NA",IF(O2=FALSE,TRUE,FALSE))))) -> FALSE | N31: =MID(sheet1.SubStatus,1,1)="1" -> TRUE | O31: SEZA10.TotalDedUs10Sub | P31: 0 | R31: Qtr | S31: Income given by assessee in CG schedule | T31: Basic Exemption | U31: Net Fig | V31: Cumulative Income | W31: Tax Rate will be depend upon the nature of Captial Gain | X31: Total Tax | Y31: Surcharge | Z31: EC | AA31: Total Tax | AB31: Qtr | AC31: Income given by assessee in CG schedule | AD31: Basic Exemption | AF31: Net Fig | AG31: Cumulative Income | AH31: Tax Rate will be depend upon the nature of Captial Gain | AI31: Total Tax | AJ31: Surcharge | AK31: EC | AL31: Total Tax | AM31: Qtr | AN31: Income given by assessee in CG schedule | AO31: Basic Exemption | AP31: Net Fig | AQ31: Cumulative Income | AR31: Tax Rate will be depend upon the nature of Captial Gain | AS31: Total Tax | AT31: Surcharge | AU31: EC | AV31: Total Tax | AW31: Qtr | AX31: Income given by assessee in CG schedule | AY31: Basic Exemption | AZ31: Net Fig | BA31: Cumulative Income | BB31: Tax Rate will be depend upon the nature of Captial Gain | BC31: Total Tax | BD31: Surcharge | BE31: EC | BF31: Total Tax
N32: Normal Income Minus 44 AD Income | O32: AA10.TotalDedUs10Sub | P32: =AA10.TotalDedUs10Sub -> 0 | R32: On or before 15th June | S32: =AccSTCG.Upto15Of6 -> 0 | T32: =S32-U32 -> 0 | U32: =IF(ISERROR(applyExemption(CGExmptn15Per,1,$S$32:$S$36)),0,applyExemption(CGExmptn15Per,1,$S$32:$S$36)) -> 0 | V32: =U32 -> 0 | W32: 15 | X32: =ROUND(V32*W32/100,0) -> 0 | Y32: =IF(Is_44_AD_Applicable,ROUND((NET_Surcharge*X32)/NET_TAX,0),IF(MarginalRelief>0,ROUND((NET_Surcharge*X32)/NET_TAX,0),IF((TotalIncome>10000000),ROUND(X32*SurchargeInterestRate,0),0))) -> 0 | Z32: =ROUND((X32+Y32)*0.03,0) -> 0 | AA32: =X32+Y32+Z32 -> 0 | AB32: On or before 15th June | AC32: =AccSTCG30.Upto15Of6 -> 0 | AG32: =AC32 -> 0 | AH32: 30 | AI32: =ROUND(AG32*AH32/100,0) -> 0 | AJ32: =IF(Is_44_AD_Applicable,ROUND((NET_Surcharge*AI32)/NET_TAX,0),IF(MarginalRelief>0,ROUND((NET_Surcharge*AI32)/NET_TAX,0),IF((TotalIncome>10000000),ROUND(AI32*SurchargeInterestRate,0),0))) -> 0 | AK32: =ROUND((AI32+AJ32)*0.03,0) -> 0 | AL32: =AI32+AJ32+AK32 -> 0 | AM32: On or before 15th June | AN32: =AccLTCG.Upto15Of6 -> 0 | AO32: =AN32-AP32 -> 0 | AP32: =IF(ISERROR(applyExemption(CGExmptn10Per,1,$AN$32:$AN$36)),0,applyExemption(CGExmptn10Per,1,$AN$32:$AN$36)) -> 0 | AQ32: =AP32 -> 0 | AR32: 10 | AS32: =ROUND(AQ32*AR32/100,0) -> 0 | AT32: =IF(Is_44_AD_Applicable,ROUND((NET_Surcharge*AS32)/NET_TAX,0),IF(MarginalRelief>0,ROUND((NET_Surcharge*AS32)/NET_TAX,0),IF((TotalIncome>10000000),ROUND(AS32*SurchargeInterestRate,0),0))) -> 0 | AU32: =ROUND((AS32+AT32)*0.03,0) -> 0 | AV32: =AS32+AT32+AU32 -> 0 | AW32: On or before 15th June | AX32: =AccLTCGNP.Upto15Of6 -> 0 | AY32: =AX32-AZ32 -> 0 | AZ32: =IF(ISERROR(applyExemption(CGExmptn20Per,1,$AX$32:$AX$36)),0,applyExemption(CGExmptn20Per,1,$AX$32:$AX$36)) -> 0 | BA32: =AZ32 -> 0 | BB32: 20 | BC32: =ROUND(BA32*BB32/100,0) -> 0 | BD32: =IF(Is_44_AD_Applicable,ROUND((NET_Surcharge*BC32)/NET_TAX,0),IF(MarginalRelief>0,ROUND((NET_Surcharge*BC32)/NET_TAX,0),IF((TotalIncome>10000000),ROUND(BC32*SurchargeInterestRate,0),0))) -> 0 | BE32: =ROUND((BC32+BD32)*0.03,0) -> 0 | BF32: =BC32+BD32+BE32 -> 0
N33: =MAX(0,Sheet8b.TotalIncome-Income_44_AD) -> 5256350 | O33: IS 44 AD Applicable | P33: =IF(IS_FIRM, IF(Income_44_AD>0,IF(OR(P30>0,P31>0,P32>0),FALSE,TRUE),FALSE),FALSE) -> FALSE | R33: On or before 15th Sept | S33: =AccSTCG.Upto15Of9 -> 0 | T33: =S33-U33 -> 0 | U33: =IF(ISERROR(applyExemption(CGExmptn15Per,2,$S$32:$S$36)),0,applyExemption(CGExmptn15Per,2,$S$32:$S$36)) -> 0 | V33: =U33+V32 -> 0 | W33: 15 | X33: =ROUND(V33*W33/100,0) -> 0 | Y33: =IF(Is_44_AD_Applicable,ROUND((NET_Surcharge*X33)/NET_TAX,0),IF(MarginalRelief>0,ROUND((NET_Surcharge*X33)/NET_TAX,0),IF((TotalIncome>10000000),ROUND(X33*SurchargeInterestRate,0),0))) -> 0 | Z33: =ROUND((X33+Y33)*0.03,0) -> 0 | AA33: =X33+Y33+Z33 -> 0 | AB33: On or before 15th Sept | AC33: =AccSTCG30.Upto15Of9 -> 0 | AG33: =AC33+AG32 -> 0 | AH33: 30 | AI33: =ROUND(AG33*AH33/100,0) -> 0 | AJ33: =IF(Is_44_AD_Applicable,ROUND((NET_Surcharge*AI33)/NET_TAX,0),IF(MarginalRelief>0,ROUND((NET_Surcharge*AI33)/NET_TAX,0),IF((TotalIncome>10000000),ROUND(AI33*SurchargeInterestRate,0),0))) -> 0 | AK33: =ROUND((AI33+AJ33)*0.03,0) -> 0 | AL33: =AI33+AJ33+AK33 -> 0 | AM33: On or before 15th Sept | AN33: =AccLTCG.Upto15Of9 -> 0 | AO33: =AN33-AP33 -> 0 | AP33: =IF(ISERROR(applyExemption(CGExmptn10Per,2,$AN$32:$AN$36)),0,applyExemption(CGExmptn10Per,2,$AN$32:$AN$36)) -> 0 | AQ33: =AP33+AQ32 -> 0 | AR33: 10 | AS33: =ROUND(AQ33*AR33/100,0) -> 0 | AT33: =IF(Is_44_AD_Applicable,ROUND((NET_Surcharge*AS33)/NET_TAX,0),IF(MarginalRelief>0,ROUND((NET_Surcharge*AS33)/NET_TAX,0),IF((TotalIncome>10000000),ROUND(AS33*SurchargeInterestRate,0),0))) -> 0 | AU33: =ROUND((AS33+AT33)*0.03,0) -> 0 | AV33: =AS33+AT33+AU33 -> 0 | AW33: On or before 15th Sept | AX33: =AccLTCGNP.Upto15Of9 -> 0 | AY33: =AX33-AZ33 -> 0 | AZ33: =IF(ISERROR(applyExemption(CGExmptn20Per,2,$AX$32:$AX$36)),0,applyExemption(CGExmptn20Per,2,$AX$32:$AX$36)) -> 0 | BA33: =AZ33+BA32 -> 0 | BB33: 20 | BC33: =ROUND(BA33*BB33/100,0) -> 0 | BD33: =IF(Is_44_AD_Applicable,ROUND((NET_Surcharge*BC33)/NET_TAX,0),IF(MarginalRelief>0,ROUND((NET_Surcharge*BC33)/NET_TAX,0),IF((TotalIncome>10000000),ROUND(BC33*SurchargeInterestRate,0),0))) -> 0 | BE33: =ROUND((BC33+BD33)*0.03,0) -> 0 | BF33: =BC33+BD33+BE33 -> 0
A34: Case5 | O34: 44 AD Income | P34: =IF(sheet11.Section44AD="",0,sheet11.Section44AD) + IF(sheet11.Section44ADA="",0,sheet11.Section44ADA) -> 0 | R34: On or before 15th Dec | S34: =AccSTCG.Up16Of9To15Of12 -> 0 | T34: =S34-U34 -> 0 | U34: =IF(ISERROR(applyExemption(CGExmptn15Per,3,$S$32:$S$36)),0,applyExemption(CGExmptn15Per,3,$S$32:$S$36)) -> 0 | V34: =U34+V33 -> 0 | W34: 15 | X34: =ROUND(V34*W34/100,0) -> 0 | Y34: =IF(Is_44_AD_Applicable,ROUND((NET_Surcharge*X34)/NET_TAX,0),IF(MarginalRelief>0,ROUND((NET_Surcharge*X34)/NET_TAX,0),IF((TotalIncome>10000000),ROUND(X34*SurchargeInterestRate,0),0))) -> 0 | Z34: =ROUND((X34+Y34)*0.03,0) -> 0 | AA34: =X34+Y34+Z34 -> 0 | AB34: On or before 15th Dec | AC34: =ACCSTCG30.Up16Of9To15Of12 -> 0 | AG34: =AC34+AG33 -> 0 | AH34: 30 | AI34: =ROUND(AG34*AH34/100,0) -> 0 | AJ34: =IF(Is_44_AD_Applicable,ROUND((NET_Surcharge*AI34)/NET_TAX,0),IF(MarginalRelief>0,ROUND((NET_Surcharge*AI34)/NET_TAX,0),IF((TotalIncome>10000000),ROUND(AI34*SurchargeInterestRate,0),0))) -> 0 | AK34: =ROUND((AI34+AJ34)*0.03,0) -> 0 | AL34: =AI34+AJ34+AK34 -> 0 | AM34: On or before 15th Dec | AN34: =AccLTCG.Up16Of9To15Of12 -> 0 | AO34: =AN34-AP34 -> 0 | AP34: =IF(ISERROR(applyExemption(CGExmptn10Per,3,$AN$32:$AN$36)),0,applyExemption(CGExmptn10Per,3,$AN$32:$AN$36)) -> 0 | AQ34: =AP34+AQ33 -> 0 | AR34: 10 | AS34: =ROUND(AQ34*AR34/100,0) -> 0 | AT34: =IF(Is_44_AD_Applicable,ROUND((NET_Surcharge*AS34)/NET_TAX,0),IF(MarginalRelief>0,ROUND((NET_Surcharge*AS34)/NET_TAX,0),IF((TotalIncome>10000000),ROUND(AS34*SurchargeInterestRate,0),0))) -> 0 | AU34: =ROUND((AS34+AT34)*0.03,0) -> 0 | AV34: =AS34+AT34+AU34 -> 0 | AW34: On or before 15th Dec | AX34: =AccLTCGNP.Up16Of9To15Of12 -> 0 | AY34: =AX34-AZ34 -> 0 | AZ34: =IF(ISERROR(applyExemption(CGExmptn20Per,3,$AX$32:$AX$36)),0,applyExemption(CGExmptn20Per,3,$AX$32:$AX$36)) -> 0 | BA34: =AZ34+BA33 -> 0 | BB34: 20 | BC34: =ROUND(BA34*BB34/100,0) -> 0 | BD34: =IF(Is_44_AD_Applicable,ROUND((NET_Surcharge*BC34)/NET_TAX,0),IF(MarginalRelief>0,ROUND((NET_Surcharge*BC34)/NET_TAX,0),IF((TotalIncome>10000000),ROUND(BC34*SurchargeInterestRate,0),0))) -> 0 | BE34: =ROUND((BC34+BD34)*0.03,0) -> 0 | BF34: =BC34+BD34+BE34 -> 0
C35: =IF(GrpB,IF(GrpA,0,IF(GrpA.PDT,IF(PDT.AOP,IF(Case5,ROUND(VALUE(TaxableIncome)*0.4,0),0),0),0)),IF(Case5,ROUND(VALUE(TaxableIncome)*0.4,0),0)) -> 0 | E35: =IF(GrpB,IF(GrpA,FALSE,IF(GrpA.PDT,IF(PDT.AOP,IF(L2="YES",IF(M2>0,IF(N2="NA",IF(O2=FALSE,TRUE,FALSE)))),FALSE),FALSE)),IF(L2="YES",IF(M2>0,IF(N2="NA",IF(O2=FALSE,TRUE,FALSE))))) -> FALSE | O35: Tax at Normal Rate | P35: =IF(ISERROR(CalculateTax(Normal_Income_234C+P28)),0,CalculateTax(Normal_Income_234C+P28)) -> 544200 | R35: On or before 15th Mar | S35: =AccSTCG.Up16Of12To15Of3 -> 0 | T35: =S35-U35 -> 0 | U35: =IF(ISERROR(applyExemption(CGExmptn15Per,4,$S$32:$S$36)),0,applyExemption(CGExmptn15Per,4,$S$32:$S$36)) -> 0 | V35: =U35+V34 -> 0 | W35: 15 | X35: =ROUND(V35*W35/100,0) -> 0 | Y35: =IF(Is_44_AD_Applicable,ROUND((NET_Surcharge*X35)/NET_TAX,0),IF(MarginalRelief>0,ROUND((NET_Surcharge*X35)/NET_TAX,0),IF((TotalIncome>10000000),ROUND(X35*SurchargeInterestRate,0),0))) -> 0 | Z35: =ROUND((X35+Y35)*0.03,0) -> 0 | AA35: =X35+Y35+Z35 -> 0 | AB35: On or before 15th Mar | AC35: =ACCSTCG30.Up16Of12To15Of3 -> 0 | AG35: =AC35+AG34 -> 0 | AH35: 30 | AI35: =ROUND(AG35*AH35/100,0) -> 0 | AJ35: =IF(Is_44_AD_Applicable,ROUND((NET_Surcharge*AI35)/NET_TAX,0),IF(MarginalRelief>0,ROUND((NET_Surcharge*AI35)/NET_TAX,0),IF((TotalIncome>10000000),ROUND(AI35*SurchargeInterestRate,0),0))) -> 0 | AK35: =ROUND((AI35+AJ35)*0.03,0) -> 0 | AL35: =AI35+AJ35+AK35 -> 0 | AM35: On or before 15th Mar | AN35: =AccLTCG.Up16Of12To15Of3 -> 0 | AO35: =AN35-AP35 -> 0 | AP35: =IF(ISERROR(applyExemption(CGExmptn10Per,4,$AN$32:$AN$36)),0,applyExemption(CGExmptn10Per,4,$AN$32:$AN$36)) -> 0 | AQ35: =AP35+AQ34 -> 0 | AR35: 10 | AS35: =ROUND(AQ35*AR35/100,0) -> 0 | AT35: =IF(Is_44_AD_Applicable,ROUND((NET_Surcharge*AS35)/NET_TAX,0),IF(MarginalRelief>0,ROUND((NET_Surcharge*AS35)/NET_TAX,0),IF((TotalIncome>10000000),ROUND(AS35*SurchargeInterestRate,0),0))) -> 0 | AU35: =ROUND((AS35+AT35)*0.03,0) -> 0 | AV35: =AS35+AT35+AU35 -> 0 | AW35: On or before 15th Mar | AX35: =AccLTCGNP.Up16Of12To15Of3 -> 0 | AY35: =AX35-AZ35 -> 0 | AZ35: =IF(ISERROR(applyExemption(CGExmptn20Per,4,$AX$32:$AX$36)),0,applyExemption(CGExmptn20Per,4,$AX$32:$AX$36)) -> 0 | BA35: =AZ35+BA34 -> 0 | BB35: 20 | BC35: =ROUND(BA35*BB35/100,0) -> 0 | BD35: =IF(Is_44_AD_Applicable,ROUND((NET_Surcharge*BC35)/NET_TAX,0),IF(MarginalRelief>0,ROUND((NET_Surcharge*BC35)/NET_TAX,0),IF((TotalIncome>10000000),ROUND(BC35*SurchargeInterestRate,0),0))) -> 0 | BE35: =ROUND((BC35+BD35)*0.03,0) -> 0 | BF35: =BC35+BD35+BE35 -> 0
O36: Tax at special rates (total of (ii) of Schedule-SI) | P36: =sheet9.TaxAtSpecialRates -> 0 | R36: On or before 31th Mar | S36: =AccSTCG.Up16Of3To31Of3 -> 0 | T36: =S36-U36 -> 0 | U36: =IF(ISERROR(applyExemption(CGExmptn15Per,5,$S$32:$S$36)),0,applyExemption(CGExmptn15Per,5,$S$32:$S$36)) -> 0 | V36: =U36 -> 0 | W36: 15 | X36: =ROUND(V36*W36/100,0) -> 0 | Y36: =IF(Is_44_AD_Applicable,ROUND((NET_Surcharge*X36)/NET_TAX,0),IF(MarginalRelief>0,ROUND((NET_Surcharge*X36)/NET_TAX,0),IF((TotalIncome>10000000),ROUND(X36*SurchargeInterestRate,0),0))) -> 0 | Z36: =ROUND((X36+Y36)*0.03,0) -> 0 | AA36: =X36+Y36+Z36 -> 0 | AB36: On or before 31th Mar | AC36: =ACCSTCG30.Up16Of3To31Of3 -> 0 | AG36: =AC36 -> 0 | AH36: 30 | AI36: =ROUND(AG36*AH36/100,0) -> 0 | AJ36: =IF(Is_44_AD_Applicable,ROUND((NET_Surcharge*AI36)/NET_TAX,0),IF(MarginalRelief>0,ROUND((NET_Surcharge*AI36)/NET_TAX,0),IF((TotalIncome>10000000),ROUND(AI36*SurchargeInterestRate,0),0))) -> 0 | AK36: =ROUND((AI36+AJ36)*0.03,0) -> 0 | AL36: =AI36+AJ36+AK36 -> 0 | AM36: On or before 31th Mar | AN36: =AccLTCG.Up16Of3To31Of3 -> 0 | AO36: =AN36-AP36 -> 0 | AP36: =IF(ISERROR(applyExemption(CGExmptn10Per,5,$AN$32:$AN$36)),0,applyExemption(CGExmptn10Per,5,$AN$32:$AN$36)) -> 0 | AQ36: =AP36 -> 0 | AR36: 10 | AS36: =ROUND(AQ36*AR36/100,0) -> 0 | AT36: =IF(Is_44_AD_Applicable,ROUND((NET_Surcharge*AS36)/NET_TAX,0),IF(MarginalRelief>0,ROUND((NET_Surcharge*AS36)/NET_TAX,0),IF((TotalIncome>10000000),ROUND(AS36*SurchargeInterestRate,0),0))) -> 0 | AU36: =ROUND((AS36+AT36)*0.03,0) -> 0 | AV36: =AS36+AT36+AU36 -> 0 | AW36: On or before 31th Mar | AX36: =AccLTCGNP.Up16Of3To31Of3 -> 0 | AY36: =AX36-AZ36 -> 0 | AZ36: =IF(ISERROR(applyExemption(CGExmptn20Per,5,$AX$32:$AX$36)),0,applyExemption(CGExmptn20Per,5,$AX$32:$AX$36)) -> 0 | BA36: =AZ36 -> 0 | BB36: 20 | BC36: =ROUND(BA36*BB36/100,0) -> 0 | BD36: =IF(Is_44_AD_Applicable,ROUND((NET_Surcharge*BC36)/NET_TAX,0),IF(MarginalRelief>0,ROUND((NET_Surcharge*BC36)/NET_TAX,0),IF((TotalIncome>10000000),ROUND(BC36*SurchargeInterestRate,0),0))) -> 0 | BE36: =ROUND((BC36+BD36)*0.03,0) -> 0 | BF36: =BC36+BD36+BE36 -> 0
A37: Tax on Taxable Income | C37: =SUM(C7:C35) -> 1576905 | O37: Rebate On Agri Income | P37: =sheet9.RebateOnAgriInc -> 0
O38: Tax Payable on Total Income | P38: =P36+P35-P37 -> 544200 | Z38: Tax on 115BBE | AA38: =SI_115BBE -> 0 | AB38: Surcharge 115BBE | AC38: =Sheet9.Surcharge_i -> 0 | AD38: SurCharge 44AD | AE38: =IF(Is_44_AD_Applicable,Surcharge_44AD,0) -> 0 | AK38: BBDA 10% | AM38: Qtr | AN38: Income given by assessee in CG schedule | AO38: Basic Exemption | AP38: Net Fig | AQ38: Cumulative Income | AR38: Tax Rate will be depend upon the nature of Captial Gain | AS38: Total Tax | AT38: Surcharge | AU38: EC | AV38: Total Tax | AW38: Income from Lottery | AX38: Qtr | AY38: Income given by assessee in CG schedule | AZ38: Basic Exemption | BB38: Net Fig | BC38: Cumulative Income | BD38: Tax Rate will be depend upon the nature of Captial Gain | BE38: Total Tax | BF38: Surcharge | BG38: EC | BH38: Total Tax
O39: Surcharge | P39: =IF(ISERROR(ROUND(Income_44_AD * (Sheet9.Surcharge_ii/(MAX(1,(Sheet8b.TotalIncome)))),0)),0,ROUND(Income_44_AD * (Sheet9.Surcharge_ii/(MAX(1,(Sheet8b.TotalIncome)))),0)) -> 0 | Z39: Tax on Other | AA39: =IF(MAX(0,sheet9.TaxPayableOnTotInc-AE39-AA38)=0,1,sheet9.TaxPayableOnTotInc-AE39-AA38) -> 1576905 | AB39: Surcharge Normal | AC39: =Sheet9.Surcharge_ii -> 0 | AD39: Tax on 44 AD | AE39: =IF(Is_44_AD_Applicable,MAX(0,(Income_44_AD*0.3),0),0) -> 0 | AM39: On or before 15th June | AN39: =BBDA.Upto15Of6 ->  | AO39: =AN39-AP39 ->  | AP39: =AN39 ->  | AQ39: =AP39 ->  | AR39: 10 | AS39: =ROUND(AQ39*AR39/100,0) ->  | AT39: =IF(Is_44_AD_Applicable,ROUND((NET_Surcharge*AS39)/NET_TAX,0),IF(MarginalRelief>0,ROUND((NET_Surcharge*AS39)/NET_TAX,0),IF((TotalIncome>10000000),ROUND(AS39*SurchargeInterestRate,0),0))) ->  | AU39: =ROUND((AS39+AT39)*0.03,0) ->  | AV39: =AS39+AT39+AU39 ->  | AX39: On or before 15th June | AY39: =IncomefrmLottery.Upto15Of6 ->  | BC39: =AY39 ->  | BD39: 30 | BE39: =ROUND(BC39*BD39/100,0) ->  | BF39: =IF(Is_44_AD_Applicable,ROUND((NET_Surcharge*BE39)/NET_TAX,0),IF(MarginalRelief>0,ROUND((NET_Surcharge*BE39)/NET_TAX,0),IF((TotalIncome>10000000),ROUND(BE39*SurchargeInterestRate,0),0))) ->  | BG39: =ROUND((BE39+BF39)*0.03,0) ->  | BH39: =BE39+BF39+BG39 -> 
O40: Education Cess | P40: =ROUND(0.03*(P38+P39),0) -> 16326 | R40: Calculation of Interest u/s 234C | AD40: Tax on Other | AE40: =IF(MAX(0,sheet9.TaxPayableOnTotInc-SI_115BBE-AE39)=0,1,MAX(0,sheet9.TaxPayableOnTotInc-SI_115BBE-AE39)) -> 1576905 | AM40: On or before 15th Sept | AN40: =BBDA.Upto15Of9 ->  | AO40: =AN40-AP40 ->  | AP40: =AN40 ->  | AQ40: =AP40+AQ39 ->  | AR40: 10 | AS40: =ROUND(AQ40*AR40/100,0) ->  | AT40: =IF(Is_44_AD_Applicable,ROUND((NET_Surcharge*AS40)/NET_TAX,0),IF(MarginalRelief>0,ROUND((NET_Surcharge*AS40)/NET_TAX,0),IF((TotalIncome>10000000),ROUND(AS40*SurchargeInterestRate,0),0))) ->  | AU40: =ROUND((AS40+AT40)*0.03,0) ->  | AV40: =AS40+AT40+AU40 ->  | AX40: On or before 15th Sept | AY40: =IncomefrmLottery.Upto15Of9 ->  | BC40: =AY40+BC39 ->  | BD40: 30 | BE40: =ROUND(BC40*BD40/100,0) ->  | BF40: =IF(Is_44_AD_Applicable,ROUND((NET_Surcharge*BE40)/NET_TAX,0),IF(MarginalRelief>0,ROUND((NET_Surcharge*BE40)/NET_TAX,0),IF((TotalIncome>10000000),ROUND(BE40*SurchargeInterestRate,0),0))) ->  | BG40: =ROUND((BE40+BF40)*0.03,0) ->  | BH40: =BE40+BF40+BG40 -> 
A41: REBATE ON AGRICULTURAL INCOME CALCULATION PART | C41: Working | O41: Gross Tax Liability | P41: =P40+P39+P38 -> 560526 | Q41: Qtr Breakkdown | R41: Qtr | S41: Tax on Normal Income | T41: Tax SI | U41: Tax on STCG 15% | V41: Tax on STCG 30% | W41: Tax on LTCG 10% | X41: Tax on LTCG 20% | Y41: Total Tax | Z41: Total Income after Rebate, if applicable (u/s87E) | AA41: Surchage | AB41: Education Cess | AC41: Total Tax Liability | AD41: Final Fig Post TDS/TCS, Relief,MATC Deduction | AE41: Tax Income Breakup Quaterly | AF41: 12 & 36 % for 1,2 Qtr in Case of Company | AG41: Advance Tax Quaterly | AH41: Amount on which interest is payable | AI41: Net Interest | AM41: On or before 15th Dec | AN41: =BBDA.Up16Of9To15Of12 ->  | AO41: =AN41-AP41 ->  | AP41: =AN41 ->  | AQ41: =AP41+AQ40 ->  | AR41: 10 | AS41: =ROUND(AQ41*AR41/100,0) ->  | AT41: =IF(Is_44_AD_Applicable,ROUND((NET_Surcharge*AS41)/NET_TAX,0),IF(MarginalRelief>0,ROUND((NET_Surcharge*AS41)/NET_TAX,0),IF((TotalIncome>10000000),ROUND(AS41*SurchargeInterestRate,0),0))) ->  | AU41: =ROUND((AS41+AT41)*0.03,0) ->  | AV41: =AS41+AT41+AU41 ->  | AX41: On or before 15th Dec | AY41: =IncomefrmLottery.Up16Of9To15Of12 ->  | BC41: =AY41+BC40 ->  | BD41: 30 | BE41: =ROUND(BC41*BD41/100,0) ->  | BF41: =IF(Is_44_AD_Applicable,ROUND((NET_Surcharge*BE41)/NET_TAX,0),IF(MarginalRelief>0,ROUND((NET_Surcharge*BE41)/NET_TAX,0),IF((TotalIncome>10000000),ROUND(BE41*SurchargeInterestRate,0),0))) ->  | BG41: =ROUND((BE41+BF41)*0.03,0) ->  | BH41: =BE41+BF41+BG41 -> 
A42: Reference Of Tax Head | C42: Tax Head | O42: Gross Tax Payable | P42: =MAX(P41,R57) -> 560526 | Q42: 0.15 | R42: On or before 15th June | S42: =Z16 -> 544200 | T42: =$R$25 -> 0 | U42: =X32 -> 0 | V42: =AI32+BE39 ->  | W42: =AS32+AS39 ->  | X42: =BC32 -> 0 | Y42: =SUM(S42:X42) ->  | Z42: =MAX(Y42,0) ->  | AA42: =MAX($AC$39-$AE$38,0)/$AE$40*(MAX(0,Z42-SI_115BBE))+$AC$38 ->  | AB42: =(Z42+AA42)*0.03 ->  | AC42: =Z42+AA42+AB42 ->  | AD42: =MAX(AC42-(Tax.TDS+Tax.TCS+sheet9.CreditUS115JD+Sheet9.TotTaxRelief),0) ->  | AE42: =FLOOR(0.15*AD42,100) ->  | AF42: =FLOOR(0.12*AD42,100) ->  | AG42: =IT.Qtr1 -> 0 | AH42: =IF(AG42>=AF42,0,MAX(0,FLOOR(MAX(0,AE42-AG42),100))) ->  | AI42: =ROUNDDOWN(AH42,-2) *0.01*3 ->  | AM42: On or before 15th Mar | AN42: =BBDA.Up16Of12To15Of3 ->  | AO42: =AN42-AP42 ->  | AP42: =AN42 ->  | AQ42: =AP42+AQ41 ->  | AR42: 10 | AS42: =ROUND(AQ42*AR42/100,0) ->  | AT42: =IF(Is_44_AD_Applicable,ROUND((NET_Surcharge*AS42)/NET_TAX,0),IF(MarginalRelief>0,ROUND((NET_Surcharge*AS42)/NET_TAX,0),IF((TotalIncome>10000000),ROUND(AS42*SurchargeInterestRate,0),0))) ->  | AU42: =ROUND((AS42+AT42)*0.03,0) ->  | AV42: =AS42+AT42+AU42 ->  | AX42: On or before 15th Mar | AY42: =IncomefrmLottery.Up16Of12To15Of3 ->  | BC42: =AY42+BC41 ->  | BD42: 30 | BE42: =ROUND(BC42*BD42/100,0) ->  | BF42: =IF(Is_44_AD_Applicable,ROUND((NET_Surcharge*BE42)/NET_TAX,0),IF(MarginalRelief>0,ROUND((NET_Surcharge*BE42)/NET_TAX,0),IF((TotalIncome>10000000),ROUND(BE42*SurchargeInterestRate,0),0))) ->  | BG42: =ROUND((BE42+BF42)*0.03,0) ->  | BH42: =BE42+BF42+BG42 -> 
A43: Point 15of Part B-TI | C43: Agriculture Income | D43: =IF(Sheet8b.NetAgricultureIncomeOrOtherIncomeForRate>0,IF(GrpA,IF(GrpB,Sheet8b.NetAgricultureIncomeOrOtherIncomeForRate,IF(Case2,(Sheet8b.NetAgricultureIncomeOrOtherIncomeForRate+250000),Sheet8b.NetAgricultureIncomeOrOtherIncomeForRate)),IF(GrpA.PDT, IF(PDT.AOP, IF(Case2,Sheet8b.NetAgricultureIncomeOrOtherIncomeForRate+250000,Sheet8b.NetAgricultureIncomeOrOtherIncomeForRate),Sheet8b.NetAgricultureIncomeOrOtherIncomeForRate),Sheet8b.NetAgricultureIncomeOrOtherIncomeForRate+250000)),0) -> 0 | O43: Credit under 115JD | P43: =IF(P41<=R57,0,AMTC.TaxSection115JD) -> 0 | Q43: 0.45 | R43: On or before 15th Sept | S43: =Z17 -> 544200 | T43: =$R$25 -> 0 | U43: =X33 -> 0 | V43: =AI33+BE40 ->  | W43: =AS33+AS40 ->  | X43: =BC33 -> 0 | Y43: =SUM(S43:X43) ->  | Z43: =MAX(Y43,0) ->  | AA43: =MAX($AC$39-$AE$38,0)/$AE$40*(MAX(0,Z43-SI_115BBE))+$AC$38 ->  | AB43: =(Z43+AA43)*0.03 ->  | AC43: =Z43+AA43+AB43 ->  | AD43: =MAX(AC43-(Tax.TDS+Tax.TCS+sheet9.CreditUS115JD+Sheet9.TotTaxRelief),0) ->  | AE43: =FLOOR(0.45*AD43,100) ->  | AF43: =FLOOR(0.36*AD43,100) ->  | AG43: =IT.Qtr1+IT.Qtr2 -> 0 | AH43: =IF(AG43>=AF43,0,MAX(0,FLOOR(MAX(0,AE43-AG43),100))) ->  | AI43: =ROUNDDOWN(AH43,-2) *0.01*3 ->  | AM43: On or before 31th Mar | AN43: =BBDA.Up16Of3To31Of3 ->  | AO43: =AN43-AP43 ->  | AP43: =AN43 ->  | AQ43: =AP43 ->  | AR43: 10 | AS43: =ROUND(AQ43*AR43/100,0) ->  | AT43: =IF(Is_44_AD_Applicable,ROUND((NET_Surcharge*AS43)/NET_TAX,0),IF(MarginalRelief>0,ROUND((NET_Surcharge*AS43)/NET_TAX,0),IF((TotalIncome>10000000),ROUND(AS43*SurchargeInterestRate,0),0))) ->  | AU43: =ROUND((AS43+AT43)*0.03,0) ->  | AV43: =AS43+AT43+AU43 ->  | AX43: On or before 31th Mar | AY43: =IncomefrmLottery.Up16Of3To31Of3 ->  | BC43: =AY43 ->  | BD43: 30 | BE43: =ROUND(BC43*BD43/100,0) ->  | BF43: =IF(Is_44_AD_Applicable,ROUND((NET_Surcharge*BE43)/NET_TAX,0),IF(MarginalRelief>0,ROUND((NET_Surcharge*BE43)/NET_TAX,0),IF((TotalIncome>10000000),ROUND(BE43*SurchargeInterestRate,0),0))) ->  | BG43: =ROUND((BE43+BF43)*0.03,0) ->  | BH43: =BE43+BF43+BG43 -> 
O44: Tax Payablle after credit | P44: =MAX(0,P42-P43) -> 560526 | Q44: 0.75 | R44: On or before 15th Dec | S44: =Z18 -> 544200 | T44: =$R$25 -> 0 | U44: =X34 -> 0 | V44: =AI34+BE41 ->  | W44: =AS34+AS41 ->  | X44: =BC34 -> 0 | Y44: =SUM(S44:X44) ->  | Z44: =MAX(Y44,0) ->  | AA44: =MAX($AC$39-$AE$38,0)/$AE$40*(MAX(0,Z44-SI_115BBE))+$AC$38 ->  | AB44: =(Z44+AA44)*0.03 ->  | AC44: =Z44+AA44+AB44 ->  | AD44: =MAX(AC44-(Tax.TDS+Tax.TCS+sheet9.CreditUS115JD+Sheet9.TotTaxRelief),0) ->  | AE44: =FLOOR(0.75*AD44,100) ->  | AG44: =IT.Qtr1+IT.Qtr2+IT.Qtr3 -> 85000 | AH44: =MAX(0,FLOOR(MAX(0,AE44-AG44),100)) ->  | AI44: =ROUNDDOWN(AH44,-2) *0.01*3 -> 
O45: TAX Relief | P45: =Sheet9.TotTaxRelief -> 0 | Q45: 1 | R45: On or before 15th Mar | S45: =Z19 -> 544200 | T45: =$R$25 -> 0 | U45: =X35 -> 0 | V45: =AI35+BE42 ->  | W45: =AS35+AS42 ->  | X45: =BC35 -> 0 | Y45: =SUM(S45:X45) ->  | Z45: =MAX(Y45,0) ->  | AA45: =MAX(0,(AC38+AC39)-AA46) ->  | AB45: =(Z45+AA45)*0.03 ->  | AC45: =Z45+AA45+AB45 ->  | AD45: =MAX(AC45-(Tax.TDS+Tax.TCS+sheet9.CreditUS115JD+Sheet9.TotTaxRelief),0) ->  | AE45: =FLOOR(1*AD45,100) ->  | AG45: =IT.Qtr1+IT.Qtr2+IT.Qtr3+IT.Qtr4 -> 85000 | AH45: =MAX(0,FLOOR(MAX(0,AE45-AG45),100)) ->  | AI45: =ROUNDDOWN(AH45,-2) *0.01*1 -> 
A46: Group A | M46: AMT Calculation for 44AD | N46: Working | O46: Net Tax Liablity | P46: =MAX(0,P44-P45) -> 560526 | Q46: 1 | R46: On or before 31th Mar | S46: =Z20 -> 0 | T46: 0 | U46: =X36 -> 0 | V46: =AI36+BE43 ->  | W46: =AS36+AS43 ->  | X46: =BC36 -> 0 | Y46: =SUM(S46:X46) ->  | Z46: =MAX(Y46,0) ->  | AA46: =MAX($AC$39-$AE$38,0)/$AE$40*(MAX(0,Z46)) ->  | AB46: =(Z46+AA46)*0.03 ->  | AC46: =Z46+AA46+AB46 ->  | AD46: =MAX(0,AC46-(MAX(0, (Tax.TDS+Tax.TCS+sheet9.CreditUS115JD+Sheet9.TotTaxRelief)-AC45))) ->  | AE46: =FLOOR(1*AD46,100) ->  | AG46: =IT.Qtr5 -> 0 | AH46: =MAX(0,FLOOR(MAX(0,AE46-AG46-MAX(0,AG45-AE45)),100)) ->  | AI46: =ROUNDDOWN(AH46,-2) *0.01*1 -> 
A47: 250000 | C47: =IF(GrpA,0,IF(GrpA.PDT,0,IF(AND(AgricultureIncome>=0,AgricultureIncome<=A47),0,0))) -> 0 | L47: 1 | M47: Total Income as per item 13 of PART-B-TI | AI47: =MAX(interest234C_MATC,SUM(AI42:AI46)) -> 
A48: 500000 | C48: =IF(GrpA,0,IF(GrpA.PDT,0,IF(AND(AgricultureIncome>=250001,AgricultureIncome<=A48),(ROUND(VALUE(AgricultureIncome-A47) * 0.1,0)),0))) -> 0 | L48: 2 | M48: Adjustment as per section 115JC(2) | R48: =MAX(Sheet8b.TotalIncome-P34,0) -> 5256350
A49: 1000000 | C49: =IF(GrpA,0,IF(GrpA.PDT,0,IF(AND(AgricultureIncome>=500001,AgricultureIncome<=A49),(ROUND(VALUE(AgricultureIncome-A48) * 0.2,0))+25000,0))) -> 0 | M49: a | N49: Deduction Claimed under any section included in Chapter VI-A under the heading “C.—Deductions in respect of certain incomes” | O49: 2a | P49: =MAX(0,MIN(Sheet8b.GrossTotalIncome-Sheet8b.IncChargeableTaxSplRates-Sheet8b.DeductionsUnder10Aor10AA-Sheet8b.ProfGainSpecifiedBus,scvia.TotPartCchapterVIA_Calc-scvia.Section80P_Calc)) -> 0 | Y49: TDS/TCS Value will not be considered for last Qtr
A50: 1000001 | C50: =IF(GrpA,0,IF(GrpA.PDT,0,IF((AgricultureIncome>=A50),(ROUND(VALUE(AgricultureIncome-A49) * 0.3,0))+125000,0))) -> 0 | M50: b | N50: Deduction Claimed u/s 10AA | O50: 2b | P50: =MIN(busipofincl.IncOfCurYrAfterSetOffBFLosses2+busipofinclspec.IncOfCurYrAfterSetOffBFLosses2a+busipofinclspecified.IncOfCurYrAfterSetOffBFLosses2b,AA10.TotalDedUs10Sub) -> 0
A51: GrpA.PDT | C51: =IF(GrpA,0,IF(GrpA.PDT,IF(PDT.MMR,ROUND(VALUE(AgricultureIncome)*0.3,0),0),0)) -> 0 | M51: c | N51: Total Adjustment (2a+ 2b) | O51: 2c | P51: =P49+P50 -> 0
A52: Group C | L52: 3 | M52: Adjusted Total Income under section 115JC(1) (1+2c) | Q52: 3
C53: =IF(GrpC,0,ROUND(VALUE(AgricultureIncome)*0.3,0)) -> 0 | L53: 4 | M53: Tax payable under section 115JC [18.5% of (3)] (In the case of Individual, HUF, AOP, BOI, AJP this is applicable if 3 is greater than Rs. 20 lakhs) | Q53: 4 | R53: =P51+R48 -> 5256350
A54: Group D | P54: Surcharge | Q54: 5 | R54: =IF(FormulaOfAMT="N",IF(P51<=0,0,IF(R53<=2000000,0,MAX(0,ROUND(0.185*R53,0)))),IF(P51<=0,0,MAX(0,ROUND(0.185*R53,0)))) -> 0
A55: 10000 | C55: =IF(GrpD,0,IF(AND(AgricultureIncome>=0,AgricultureIncome<=A55),ROUND(VALUE(AgricultureIncome)*0.1,0),0)) -> 0 | P55: Education Cess | Q55: 6 | R55: =IF(ISERROR(ROUND(((R48*sheet9.deemeds)/Sheet8b.TotalIncome),0)),0,ROUND(((R48*sheet9.deemeds)/Sheet8b.TotalIncome),0)) -> 0
A56: 20000 | C56: =IF(GrpD,0,IF(AND(AgricultureIncome>=10001,AgricultureIncome<=A56),(ROUND(VALUE(AgricultureIncome-A55) * 0.2,0))+1000,0)) -> 0 | P56: Total Tax Deemed | Q56: 7 | R56: =ROUND(0.03*(R54+R55),0) -> 0
A57: 20001 | C57: =IF(GrpD,0,IF(AND(AgricultureIncome>=A57),(ROUND(VALUE(AgricultureIncome-A56) * 0.3,0))+3000,0)) -> 0 | R57: =R54+R55+R56 -> 0
A59: Group B
A61: Case1 | C61: =IF(GrpB,IF(GrpA,0,IF(GrpA.PDT,IF(PDT.AOP,IF(Case1,ROUND(VALUE(AgricultureIncome)*0.3,0),0),0),0)),IF(Case1,ROUND(VALUE(AgricultureIncome)*0.3,0),0)) -> 0
A62: Case2
A63: 250000 | C63: =IF(GrpB,IF(GrpA,0,IF(GrpA.PDT,IF(PDT.AOP,IF(Case2,IF(AND(AgricultureIncome>=0,AgricultureIncome<=A63),0,0),0),0),0)),IF(Case2,IF(AND(AgricultureIncome>=0,AgricultureIncome<=A63),0,0),0)) -> 0
A64: 500000 | C64: =IF(GrpB,IF(GrpA,0,IF(GrpA.PDT,IF(PDT.AOP,IF(Case2,IF(AND(AgricultureIncome>=250001,AgricultureIncome<=A64),(ROUND(VALUE(AgricultureIncome-A63) * 0.1,0)),0),0),0),0)),IF(Case2,IF(AND(AgricultureIncome>=250001,AgricultureIncome<=A64),(ROUND(VALUE(AgricultureIncome-A63) * 0.1,0)),0),0)) -> 0
A65: 1000000 | C65: =IF(GrpB,IF(GrpA,0,IF(GrpA.PDT,IF(PDT.AOP,IF(Case2,IF(AND(AgricultureIncome>=500001,AgricultureIncome<=A65),(ROUND(VALUE(AgricultureIncome-A64) * 0.2,0))+25000,0),0),0),0)),IF(Case2,IF(AND(AgricultureIncome>=500001,AgricultureIncome<=A65),(ROUND(VALUE(AgricultureIncome-A64) * 0.2,0))+25000,0),0)) -> 0 | R65: SURCHARGE CALCULATION PART For 44 AD
A66: 1000001 | C66: =IF(GrpB,IF(GrpA,0,IF(GrpA.PDT,IF(PDT.AOP,IF(Case2,IF((AgricultureIncome>=A66),(ROUND(VALUE(AgricultureIncome-A65) * 0.3,0))+125000,0),0),0),0)),IF(Case2,IF((AgricultureIncome>=A66),(ROUND(VALUE(AgricultureIncome-A65) * 0.3,0))+125000,0),0)) -> 0 | R66: Reference Of Tax Head
A67: Case3 | R67: Point 13 of Part B-TI
C68: =IF(GrpB,IF(GrpA,0,IF(GrpA.PDT,IF(PDT.AOP,IF(Case3,ROUND(VALUE(AgricultureIncome *IF(M2="NA",0,(M2/100)))*0.4,0)+ROUND(VALUE(AgricultureIncome *IF(M2="NA",0,((100-M2)/100)))*0.3,0),0),0),0)),IF(Case3,ROUND(VALUE(AgricultureIncome *IF(M2="NA",0,(M2/100)))*0.4,0)+ROUND(VALUE(AgricultureIncome *IF(M2="NA",0,((100-M2)/100)))*0.3,0),0)) -> 0 | R68: Point 2f of Part B-TTI | S68: Not Working
T69: Tax Head | U69: Value
A70: Case4 | T70: Total Income | U70: =MAX(Sheet8b.TotalIncome-P34,0) -> 5256350
C71: =IF(GrpB,IF(GrpA,0,IF(GrpA.PDT,IF(PDT.AOP,IF(Case4,ROUND(VALUE(AgricultureIncome)*0.3,0),0),0),0)),IF(Case4,ROUND(VALUE(AgricultureIncome)*0.3,0),0)) -> 0 | T71: Tax on Income
T72: Surcharge Interest Rate | U72: =IF(TotalIncome>10000000,Surcharge_Rate,0) -> 0
R73: Group A | AE73: GrpA | AG73: GrpD | AI73: 0.1
A74: Case5 | T74: Normal Income | U74: =TotalIncome1-Sheet8b.IncChargeTaxSplRate111A112 -> 5256350 | AD74: K107 | AE74: =MAX(IF(U74>1000000,250000,IF(AND(U74>0,U74<=250000),U74,IF(U74>250000,250000,0))),0) -> 250000 | AF74: 0 | AG74: =MAX(IF(U74>20000,10000,IF(AND(U74>0,U74<=10000),U74,IF(U74>10000,10000,0))),0) -> 10000 | AI74: 0.2
C75: =IF(GrpB,IF(GrpA,0,IF(GrpA.PDT,IF(PDT.AOP,IF(Case5,ROUND(VALUE(AgricultureIncome)*0.4,0),0),0),0)),IF(Case5,ROUND(VALUE(AgricultureIncome)*0.4,0),0)) -> 0 | AD75: K108 | AE75: =MAX(IF(U74>1000000,250000,IF(AND((U74-250000)>=250001,(U74-250000)<=500000),MIN(U74-AE74,250000), IF((U74-250000)>500000, 250000,U74-250000))),0) -> 250000 | AF75: 0.1 | AG75: =MAX(IF(U74>20000,10000,IF(AND(U74>=10001,U74<=20000),U74-AG74,0)),0) -> 10000 | AI75: 0.3
T76: =IF(GrpA,0,MAX(IF(NormalIncome1>1000000,250000,IF(AND(NormalIncome1>0,NormalIncome1<=250000),NormalIncome1,IF(NormalIncome1>250000,250000,0))),0)) -> 0 | U76: 0 | AD76: K109 | AE76: =MAX(IF(U74>1000000,500000,IF(AND(U74>=500001,U74<=1000000),MIN(U74-(AE74+AE75),500000),0)),0) -> 500000 | AF76: 0.2 | AG76: =MAX(IF(U74>20000,U74-(AG74+AG75),0),0) -> 5236350
R77: Group C | T77: =IF(GrpA,0,MAX(IF(NormalIncome1>1000000,250000,IF(AND((NormalIncome1-250000)>=250001,(NormalIncome1-250000)<=500000),MIN(NormalIncome1-AE74,250000), IF((NormalIncome1-250000)>500000, 250000,NormalIncome1-250000))),0)) -> 0 | U77: 0.1 | AD77: K110 | AE77: =MAX(IF(U74>1000000,U74-(AE74+AE75+AE76),0),0) -> 4256350 | AF77: 0.3
A78: Rebate On Agricultural Income | C78: =SUM(C47:C75) -> 0 | T78: =IF(GrpA,0,MAX(IF(NormalIncome1>1000000,500000,IF(AND(NormalIncome1>=500001,NormalIncome1<=1000000),MIN(NormalIncome1-(AE74+AE75),500000),0)),0)) -> 0 | U78: 0.2
T79: =IF(GrpA,0,MAX(IF(NormalIncome1>1000000,NormalIncome1-(AE74+AE75+AE76),0),0)) -> 0 | U79: 0.3
R80: Group D
T81: =IF(GrpC,0,NormalIncome1) -> 5256350 | U81: 0.3
A82: Surcharge on AMT Income | C82: Working
A83: Tax Payable on deemed total Income under section 115JC | C83: Total Income | D83: =AMT.AdjustedUnderSec115JC -> 5256350 | E83: D83 | T83: =IF(GrpD,0,MAX(IF(NormalIncome1>20000,10000,IF(AND(NormalIncome1>0,NormalIncome1<=10000),NormalIncome1,IF(NormalIncome1>10000,10000,0))),0)) -> 0 | U83: 0.1
C84: Tax | D84: =ROUND(sheet9.TaxDeemedTISec115JC,0) -> 0 | E84: D84 | R84: Group B | T84: =IF(GrpD,0,MAX(IF(NormalIncome1>20000,10000,IF(AND(NormalIncome1>=10001,NormalIncome1<=20000),NormalIncome1-AG74,0)),0)) -> 0 | U84: 0.2
A85: Surcharge on Such Income | D85: =IF(D83>10000000,ROUND(D84*Surcharge_Rate,0),0) -> 0 | E85: D85 | R85: Case1 | T85: =IF(GrpD,0,MAX(IF(NormalIncome1>20000,NormalIncome1-(AG74+AG75),0),0)) -> 0 | U85: 0.3
A86: Total1 | D86: =D84+D85 -> 0 | E86: D86 | R86: Case2
A87: Income Exceeding 1 Crores | D87: =IF(D83>10000000,MAX(D83-10000000,0),0) -> 0 | E87: D87
A88: Tax on 1 Crores | D88: =IF(D83>10000000,ROUND(10000000*0.185,0),0) -> 0 | E88: D88 | T88: =IF(GrpB,0,IF(Case1,ROUND(VALUE(NormalIncome1),0),0)) -> 0 | U88: 0.3
A89: Total2 | D89: =D87+D88 -> 0 | E89: D89
A90: Marginal Relief | D90: =IF(D83>10000000,IF((D86-D89)>0,(D86-D89),0),0) -> 0 | E90: D90 | T90: =IF(GrpA,0,MAX(IF(NormalIncome1>1000000,250000,IF(AND(NormalIncome1>0,NormalIncome1<=250000),NormalIncome1,IF(NormalIncome1>250000,250000,0))),0)) -> 0 | U90: 0
A91: Surcharge After Marginal Relief | D91: =IF(D83>10000000,IF(D90<=0,ROUND(D84*Surcharge_Rate,0),MAX(D85-D90,0)),0) -> 0 | E91: D91 | R91: Case3 | T91: =IF(GrpA,0,MAX(IF(NormalIncome1>1000000,250000,IF(AND((NormalIncome1-250000)>=250001,(NormalIncome1-250000)<=500000),MIN(NormalIncome1-AE74,250000), IF((NormalIncome1-250000)>500000, 250000,NormalIncome1-250000))),0)) -> 0 | U91: 0.1
T92: =IF(GrpA,0,MAX(IF(NormalIncome1>1000000,500000,IF(AND(NormalIncome1>=500001,NormalIncome1<=1000000),MIN(NormalIncome1-(AE74+AE75),500000),0)),0)) -> 0 | U92: 0.2
T93: =IF(GrpA,0,MAX(IF(NormalIncome1>1000000,NormalIncome1-(AE74+AE75+AE76),0),0)) -> 0 | U93: 0.3
R94: Case4
T95: =IF(GrpB,0,IF(Case3,ROUND(VALUE(NormalIncome1),0))) -> 0 | U95: 0.4
R97: Case5
T98: =IF(GrpB,0,IF(Case4,ROUND(VALUE(NormalIncome1),0),0)) -> 0 | U98: 0.3
C100: Partial Working | R100: 111A - STCG on shares where STT paid - 15 % CG & OS
A101: SURCHARGE CALCULATION PART | R101: 112 - LTCG on listed securities/ units without indexation -10 % CG & OS | T101: =IF(GrpB,0,IF(Case5,ROUND(VALUE(NormalIncome1),0),0)) -> 0 | U101: 0.4
A102: Reference Of Tax Head | C102: Tax Head | D102: Value | R102: 112 - LTCG on others-20 % & OS
A103: Point 13 of Part B-TI | C103: Total Income | D103: =Sheet8b.TotalIncome -> 5256350 | E103: D103 | R103: 30 % ALL CG & OS | T103: =SI_111A+SI!I10 -> 0 | U103: 0.15
A104: Point 2f of Part B-TTI | C104: Tax on Income | E104: D104 | R104: OS 5% | T104: =SI!I12+SI!I16+SI!I27+SI!I31+taxablesi+SI_115EA+SI!I26+SI!I25+SI!I24 -> 0 | U104: 0.1
C105: Surcharge Interest Rate | D105: =IF(TotalIncome>10000000,Surcharge_Rate,0) -> 0 | R105: OS 12.5% | T105: =SI!I11+SI!I17+SI!I18+SI!I23+SI!I28+SI!I33 -> 0 | U105: 0.2
K106: GrpA | M106: GrpD | R106: OS 25% | T106: =SI!I30+SI!I36+SI_115BBC -> 0 | U106: 0.3
C107: Normal Income | D107: =TotalIncome-Sheet8b.IncChargeTaxSplRate111A112 -> 5256350 | E107: D107 | J107: K107 | K107: =MAX(IF(D107>1000000,250000,IF(AND(D107>0,D107<=250000),D107,IF(D107>250000,250000,0))),0) -> 250000 | L107: 0 | M107: =MAX(IF(D107>20000,10000,IF(AND(D107>0,D107<=10000),D107,IF(D107>10000,10000,0))),0) -> 10000 | N107: 0.1 | R107: OS 50% | T107: =SI!I19+SI!I20+SI!I21+SI!I29 -> 0 | U107: 0.05
J108: K108 | K108: =MAX(IF(D107>1000000,250000,IF(AND((D107-250000)>=250001,(D107-250000)<=500000),MIN(D107-K107,250000), IF((D107-250000)>500000, 250000,D107-250000))),0) -> 250000 | L108: 0.1 | M108: =MAX(IF(D107>20000,10000,IF(AND(D107>=10001,D107<=20000),D107-M107,0)),0) -> 10000 | N108: 0.2 | T108: =B115Inc -> 0 | U108: 0.125
A109: Group A | C109: =IF(GrpA,0,IF(GrpA.PDT,0,MAX(IF(NormalIncome>1000000,250000,IF(AND(NormalIncome>0,NormalIncome<=250000),NormalIncome,IF(NormalIncome>250000,250000,0))),0))) -> 0 | D109: 0 | E109: D109 | J109: K109 | K109: =MAX(IF(D107>1000000,500000,IF(AND(D107>=500001,D107<=1000000),MIN(D107-(K107+K108),500000),0)),0) -> 500000 | L109: 0.2 | M109: =MAX(IF(D107>20000,D107-(M107+M108),0),0) -> 5236350 | N109: 0.3 | R109: Marginal Relief | T109: 0 | U109: 0.25
C110: =IF(GrpA,0,IF(GrpA.PDT,0,MAX(IF(NormalIncome>1000000,250000,IF(AND((NormalIncome-250000)>=250001,(NormalIncome-250000)<=500000),MIN(NormalIncome-K107,250000), IF((NormalIncome-250000)>500000, 250000,NormalIncome-250000))),0))) -> 0 | D110: 0.1 | E110: D110 | J110: K110 | K110: =MAX(IF(D107>1000000,D107-(K107+K108+K109),0),0) -> 4256350 | L110: 0.3 | R110: Surcharge | T110: =SI!#REF! ->  | U110: 0.5
C111: =IF(GrpA,0,IF(GrpA.PDT,0,MAX(IF(NormalIncome>1000000,500000,IF(AND(NormalIncome>=500001,NormalIncome<=1000000),MIN(NormalIncome-(K107+K108),500000),0)),0))) -> 0 | D111: 0.2 | E111: D111
A112: GrpA.PDT | C112: =IF(GrpA,0,IF(GrpA.PDT,IF(PDT.MMR,NormalIncome,0),MAX(IF(NormalIncome>1000000,NormalIncome-(K107+K108+K109),0),0))) -> 0 | D112: 0.3 | E112: D112 | T112: 0
A113: Group C | T113: 0
C114: =IF(GrpC,0,NormalIncome) -> 5256350 | D114: 0.3 | E114: D114
A116: Group D | C116: =IF(GrpD,0,MAX(IF(NormalIncome>20000,10000,IF(AND(NormalIncome>0,NormalIncome<=10000),NormalIncome,IF(NormalIncome>10000,10000,0))),0)) -> 0 | D116: 0.1 | E116: D116
C117: =IF(GrpD,0,MAX(IF(NormalIncome>20000,10000,IF(AND(NormalIncome>=10001,NormalIncome<=20000),NormalIncome-M107,0)),0)) -> 0 | D117: 0.2 | E117: D117
C118: =IF(GrpD,0,MAX(IF(NormalIncome>20000,NormalIncome-(M107+M108),0),0)) -> 0 | D118: 0.3 | E118: D118
A120: Group B
A121: Case1 | C121: =IF(GrpB,IF(GrpA,0,IF(GrpA.PDT,IF(PDT.AOP,IF(Case1,ROUND(VALUE(NormalIncome),0),0),0),0)),IF(Case1,ROUND(VALUE(NormalIncome),0),0)) -> 0 | D121: 0.3
A122: Case2
C123: =IF(GrpB,IF(GrpA,0,IF(GrpA.PDT,IF(PDT.AOP,E123,0),0)),E123) -> 0 | D123: 0 | E123: =IF(Case2,MAX(IF(NormalIncome>1000000,250000,IF(AND(NormalIncome>0,NormalIncome<=250000),NormalIncome,IF(NormalIncome>250000,250000,0))),0),0) -> 0
C124: =IF(GrpB,IF(GrpA,0,IF(GrpA.PDT,IF(PDT.AOP,E124,0),0)),E124) -> 0 | D124: 0.1 | E124: =IF(Case2,MAX(IF(NormalIncome>1000000,250000,IF(AND((NormalIncome-250000)>=250001,(NormalIncome-250000)<=500000),MIN(NormalIncome-K107,250000), IF((NormalIncome-250000)>500000, 250000,NormalIncome-250000))),0),0) -> 0
C125: =IF(GrpB,IF(GrpA,0,IF(GrpA.PDT,IF(PDT.AOP,E125,0),0)),E125) -> 0 | D125: 0.2 | E125: =IF(Case2,MAX(IF(NormalIncome>1000000,500000,IF(AND(NormalIncome>=500001,NormalIncome<=1000000),MIN(NormalIncome-(K107+K108),500000),0)),0),0) -> 0
C126: =IF(GrpB,IF(GrpA,0,IF(GrpA.PDT,IF(PDT.AOP,E126,0),0)),E126) -> 0 | D126: 0.3 | E126: =IF(Case2,MAX(IF(NormalIncome>1000000,NormalIncome-(K107+K108+K109),0),0),0) -> 0
A127: Case3 | C127: =IF(GrpB,IF(GrpA,0,IF(GrpA.PDT,IF(PDT.AOP,IF(Case3,ROUND(VALUE(NormalIncome*H128),0),0),0),0)),IF(Case3,ROUND(VALUE(NormalIncome*H128),0),0)) -> 0 | D127: 0.3 | G127: =PMInfo.PercentageOfShareForeignComp -> 0 | H127: =MIN(100,G127)/100 -> 0 | I127: Foreign
C128: =IF(GrpB,IF(GrpA,0,IF(GrpA.PDT,IF(PDT.AOP,IF(Case3,ROUND(VALUE(NormalIncome*H127),0),0),0),0)),IF(Case3,ROUND(VALUE(NormalIncome*H127),0),0)) -> 0 | D128: 0.4 | H128: =MAX(0,100-G127)/100 -> 1 | I128: Domestic
A130: Case4
C131: =IF(GrpB,IF(GrpA,0,IF(GrpA.PDT,IF(PDT.AOP,IF(Case4,ROUND(VALUE(NormalIncome),0),0),0),0)),IF(Case4,ROUND(VALUE(NormalIncome),0),0)) -> 0 | D131: 0.3
A133: Case5
C134: =IF(GrpB,IF(GrpA,0,IF(GrpA.PDT,IF(PDT.AOP,IF(Case5,ROUND(VALUE(NormalIncome),0),0),0),0)),IF(Case5,ROUND(VALUE(NormalIncome),0),0)) -> 0 | D134: 0.4
A136: 111A - STCG on shares where STT paid - 15 % CG & OS | C136: =SI_111A+SI!I10 -> 0 | D136: 0.15
A137: 112 - LTCG on listed securities/ units without indexation -10 % CG & OS | C137: =SI!I12+SI!I16+SI!I27+SI!I31+taxablesi+SI_115EA+SI!I26+SI!I25+SI!I24+SI!I38+SI!I39 -> 0 | D137: 0.1
A138: 112 - LTCG on others-20 % & OS | C138: =SI!I11+SI!I17+SI!I18+SI!I23+SI!I28+SI!I33 -> 0 | D138: 0.2
A139: 30 % ALL CG & OS | C139: =SI!I30+SI_115BBC -> 0 | D139: 0.3
A140: OS 5% | C140: =SI!I19+SI!I20+SI!I21+SI!I29+SI!I22 -> 0 | D140: 0.05
A141: OS 12.5% | C141: =B115Inc -> 0 | D141: 0.125
A142: OS 25% | C142: 0 | D142: 0.25
A143: OS 50% | C143: =SI!#REF! ->  | D143: 0.5
A144: OS 60% | C144: =SI!I36 -> 0 | D144: 0.6
A145: Marginal Relief | C145: 0
A146: Surcharge | C146: 0
A156: FOR Surcharge:- Tax Calc | C156: Working
A158: Reference Of Tax Head | C158: Tax Head
A159: Point (16) of Part B-TI | C159: Taxable Income | D159: 100000000
A161: Group A
A162: 250000 | C162: =IF(GrpA,0,IF(GrpA.PDT,0,IF(AND(TaxableIncome1>=0,TaxableIncome1<=A162),0,0))) -> 0
A163: 500000 | C163: =IF(GrpA,0,IF(GrpA.PDT,0,IF(AND(TaxableIncome1>=250001,TaxableIncome1<=A163),(ROUND(VALUE(TaxableIncome1-A162) * 0.1,0)),0))) -> 0
A164: 1000000 | C164: =IF(GrpA,0,IF(GrpA.PDT,0,IF(AND(TaxableIncome1>=500001,TaxableIncome1<=A164),(ROUND(VALUE(TaxableIncome1-A163) * 0.2,0))+25000,0))) -> 0
A165: 1000001 | C165: =IF(GrpA,0,IF(GrpA.PDT,0,IF((TaxableIncome1>=A165),(ROUND(VALUE(TaxableIncome1-A164) * 0.3,0))+125000,0))) -> 0
A167: GrpA.PDT | C167: =IF(GrpA,0,IF(GrpA.PDT,IF(PDT.MMR,ROUND(VALUE(TaxableIncome1)*0.3,0),0),0)) -> 0
A168: Group C
C169: =IF(GrpC,0,ROUND(VALUE(TaxableIncome1)*0.3,0)) -> 1500000
A170: Group D
A171: 10000 | C171: =IF(GrpD,0,IF(AND(TaxableIncome1>=0,TaxableIncome1<=A171),ROUND(VALUE(TaxableIncome1)*0.1,0),0)) -> 0
A172: 20000 | C172: =IF(GrpD,0,IF(AND(TaxableIncome1>=10001,TaxableIncome1<=A172),(ROUND(VALUE(TaxableIncome1-A171) * 0.2,0))+1000,0)) -> 0
A173: 20001 | C173: =IF(GrpD,0,IF(AND(TaxableIncome1>=A173),(ROUND(VALUE(TaxableIncome1-A172) * 0.3,0))+3000,0)) -> 0
A174: Group B
A176: Case1 | C176: =IF(GrpB,IF(GrpA,0,IF(GrpA.PDT,IF(PDT.AOP,IF(Case1,ROUND(VALUE(TaxableIncome1)*0.3,0),0),0),0)),IF(Case1,ROUND(VALUE(TaxableIncome1)*0.3,0),0)) -> 0
A177: Case2
A178: 250000 | C178: =IF(GrpB,IF(GrpA,0,IF(GrpA.PDT,IF(PDT.AOP,IF(Case2,IF(AND(TaxableIncome1>=0,TaxableIncome1<=A178),0,0),0),0),0)),IF(Case2,IF(AND(TaxableIncome1>=0,TaxableIncome1<=A178),0,0),0)) -> 0
A179: 500000 | C179: =IF(GrpB,IF(GrpA,0,IF(GrpA.PDT,IF(PDT.AOP,IF(Case2,IF(AND(TaxableIncome1>=250001,TaxableIncome1<=A179),(ROUND(VALUE(TaxableIncome1-A178) * 0.1,0)),0),0),0),0)),IF(Case2,IF(AND(TaxableIncome1>=250001,TaxableIncome1<=A179),(ROUND(VALUE(TaxableIncome1-A178) * 0.1,0)),0),0)) -> 0
A180: 1000000 | C180: =IF(GrpB,IF(GrpA,0,IF(GrpA.PDT,IF(PDT.AOP,IF(Case2,IF(AND(TaxableIncome1>=500001,TaxableIncome1<=A180),(ROUND(VALUE(TaxableIncome1-A179) * 0.2,0))+25000,0),0),0),0)),IF(Case2,IF(AND(TaxableIncome1>=500001,TaxableIncome1<=A180),(ROUND(VALUE(TaxableIncome1-A179) * 0.2,0))+25000,0),0)) -> 0
A181: 1000001 | C181: =IF(GrpB,IF(GrpA,0,IF(GrpA.PDT,IF(PDT.AOP,IF(Case2,IF((TaxableIncome1>=A181),(ROUND(VALUE(TaxableIncome1-A180) * 0.3,0))+125000,0),0),0),0)),IF(Case2,IF((TaxableIncome1>=A181),(ROUND(VALUE(TaxableIncome1-A180) * 0.3,0))+125000,0),0)) -> 0
A182: Case3 | F182: =MIN(TaxableIncome1-F183) -> 5000000
C183: =IF(GrpB,IF(GrpA,0,IF(GrpA.PDT,IF(PDT.AOP,D183,0),0)),D183) -> 0 | D183: =IF(Case3,ROUND(F182*0.4,0)+ROUND(F183*0.3,0),0) -> 0 | F183: =VALUE(MIN(10000000,GrpB.Case3.Income2)) -> 0
A185: Case4
C186: =IF(GrpB,IF(GrpA,0,IF(GrpA.PDT,IF(PDT.AOP,IF(Case4,ROUND(VALUE(TaxableIncome1)*0.3,0),0),0),0)),IF(Case4,ROUND(VALUE(TaxableIncome1)*0.3,0),0)) -> 0
A189: Case5
C190: =IF(GrpB,IF(GrpA,0,IF(GrpA.PDT,IF(PDT.AOP,IF(Case5,ROUND(VALUE(TaxableIncome1)*0.4,0),0),0),0)),IF(Case5,ROUND(VALUE(TaxableIncome1)*0.4,0),0)) -> 0
A192: Tax on Taxable Income | C192: =SUM(C162:C190) -> 1500000

Sheet QUANTITATIVE_DETAILS
C3: Part A – QD | D3: Quantitative details (mandatory if liable for audit under section 44AB) (Note: If no entry is made in first row then other rows will not be considered)
C4: (a) In the case of a trading concern
C5: Item Name | D5: Unit | E5: Opening stock | F5: Purchase during the previous year | G5: Sales during the previous year | H5: Closing stock | I5: Shortage/ excess, if any
C6: 1 | D6: 2 | E6: 3 | F6: 4 | G6: 7 | H6: 8 | I6: 9
C7: HOUSEHOLD PRODUCTS | D7: 107-numbers | E7: 4400 | F7: 86400 | G7: 79800 | H7: 11000 | I7: 0
D8: (Select)
D9: (Select)
D10: (Select)
D11: (Select)
D12: (Select)
D13: (Select)
D14: (Select)
D15: (Select)
D16: (Select)
D17: (Select)
D18: (Select)
D19: (Select)
D20: (Select)
D21: (Select)
D22: (Select)
D23: (Select)
D24: (Select)
D25: (Select)
D26: (Select)
C29: (b) In the case of a manufacturing concern - Raw Materials
C30: Item Name | D30: Unit | E30: Opening stock | F30: Purchase during the previous year | G30: Consumption during the previous year | H30: Sales during the previous year | I30: Closing stock | J30: Yield Finished Products | K30: Percentage of yield | L30: Shortage/ excess, if any
C31: 1 | D31: 2 | E31: 3 | F31: 4 | G31: 5 | H31: 6 | I31: 7 | J31: 8 | K31: 9 | L31: 10
D32: (Select)
D33: (Select)
D34: (Select)
D35: (Select)
D36: (Select)
D37: (Select)
D38: (Select)
D39: (Select)
D40: (Select)
D41: (Select)
D42: (Select)
D43: (Select)
D44: (Select)
D45: (Select)
D46: (Select)
D47: (Select)
D48: (Select)
D49: (Select)
D50: (Select)
D51: (Select)
C55: (C) In the case of a manufacturing concern - 7.Finished products/ By-products.
C56: Item Name | D56: Unit | E56: Opening stock | F56: Purchase during the previous year | G56: Quantity manufactured during the previous year | H56: Sales during the previous year | I56: Closing stock | J56: Shortage/ excess, if any
C57: 1 | D57: 2 | E57: 3 | F57: 4 | G57: 5 | H57: 6 | I57: 7 | J57: 8
D58: (Select)
D59: (Select)
D60: (Select)
D61: (Select)
D62: (Select)
D63: (Select)
D64: (Select)
D65: (Select)
D66: (Select)
D67: (Select)
D68: (Select)
D69: (Select)
D70: (Select)
D71: (Select)
D72: (Select)
D73: (Select)
D74: (Select)
D75: (Select)
D76: (Select)
D77: (Select)

Sheet HOUSE_PROPERTY
C3: Schedule HP | F3: Details of Income from House Property (Please refer to instructions) | M3: HP loss for 2 lakh adjustment | P3: =MAX(HP.TotalIncomeChargeableUnHP,-200000) -> 1279000 | Q3: HP loss remaining after adjustment | T3: =MAX(0,(-HP.TotalIncomeChargeableUnHP-200000)) -> 0
D4: 1 | E4: Address of property | F4: Town/ City | G4: State | H4: Country | I4: PIN Code | J4: Zip Code
E5: 25, SECTOR-7, ROHINI | F5: NEW DELHI | G5: 09-Delhi | H5: 91-INDIA | I5: 110075
E6: Owner of the Property | F6: Self | G6: Is property co-owned (if “YES” please enter following details) | H6: No | I6: Assessee’s percentage of share in the Property (%) | J6: =IF(MID(HP.CoOwnedYN1,1,1)="Y",100-SUM(HP.Co.Share1),IF(MID(HP.CoOwnedYN1,1,1)="N",100,0)) -> 100 | U6: 26 | W6: 1
E7: Sl.No | F7: Name of Other co-owner(s) | G7: PAN of Other co-owner(s) | H7: Aadhaar No. of Other co-owner(s) | I7: Percentage share of other Co-owner(s) in property(%)
E8: 1
E9: =E8+1 -> 2
E10: =E9+1 -> 3
E11: =E10+1 -> 4
E12: =E11+1 -> 5
D13: 1
E14: Type of House property? | I14: Let Out
E15: Sl.No | F15: Name(s) of Tenant(s) (if let out) | G15: PAN of Tenant(s) (if available) | H15: Aadhaar No. of tenant(s) | I15: PAN/TAN of Tenant(s) (if TDS credit is claimed)
E16: 1 | F16: AMRITANSHU LIMITED | G16: AAACA1247K | I16: DELA12381D
E17: =E16+1 -> 2
D18: 1
D19: a | E19: Gross rent received or receivable or letable value (higher of the two, if let out for whole of the year, lower of the two if let out for part of the year) | I19: a | J19: 2050000
D20: b | E20: The amount of rent which cannot be realized
D21: c | E21: Tax paid to local authorities | H21: 50000
D22: d | E22: Total (b + c) | H22: =SUM(H20:H21) -> 50000
D23: e | E23: Annual value (a – d) | I23: e | J23: =J19-H22 -> 2000000
D24: f | E24: Annual value of the property owned (own percentage share x 1e) | I24: f | J24: =ROUND(J23*J6/100,0) -> 2000000
D25: g | E25: 30% of f | H25: =MAX(ROUND(0.3*J24,0),0) -> 600000
D26: h | E26: Interest payable on borrowed capital | H26: 121000
D27: i | E27: Total (g + h) | I27: i | J27: =SUM(H25:H26) -> 721000
D28: j | E28: Arrears/Unrealised rent received during the year less 30% | I28: j
D29: k | E29: Income from house property (f – i + j) | I29: k | J29: =J24-J27+J28 -> 1279000
D32: Income under the head “Income from house property”
D33: 2 | E33: Pass through income/ loss if any * | I33: 2 | J33: 0
D34: =D33+1 -> 3 | E34: Income under the head “Income from house property” (1k +…...+ 2) (if negative take the figure to 2i of schedule CYLA) | I34: 3 | J34: 1279000
C35: Note : | E35: Furnishing of PAN/Aadhaar No. of tenant is mandatory, if tax is deducted under section 194-IB. Furnishing of TAN of tenant is mandatory, if tax is deducted under section 194-I.

Sheet BP
C3: Schedule BP | F3: Computation of income from business or profession
C4: INCOME FROM BUSINESS OR PROFESSION | D4: A | E4: From business or profession other than speculative business and specified business
E5: 1 | F5: Profit before tax as per profit and loss account (item 54, 62ii, 63ii, 64iv and 65iii & 66(iv) of Part A-P&L ) | J5: 1 | K5: =SUM(PL.PBT,PL.TotPersumptiveInc44AD,PL.TotPersumptiveInc44ADA,PL.TotalPrsumptvIncUs44E,PL.NetIncomeFrmSpecActivity,PL.TotalNetProfit) -> 2830600
E6: 2a | F6: Net profit or loss from speculative business included in 1 (enter –ve sign in case of loss) [Sl. No. 66iv of Schedule P&L] | H6: 2a | I6: 0
E7: 2b | F7: Net profit or Loss from Specified Business u/s 35AD included in 1 (enter –ve sign in case of loss) | H7: 2b
E8: 3 | F8: Income/ receipts credited to profit and loss account considered under other heads of income/chargeable u/s 115BBF/ chargeable u/s 115BBG
F9: a | G9: House Property | H9: 3a
F10: b | G10: Capital Gains | H10: 3b
F11: c | G11: Other Sources | H11: 3c | I11: =sheet10.IncRecCredPLOthHeads4Div+sheet10.IncRecCredPLOthHeads4OthDiv -> 0
F12: ci | G12: Dividend Income | H12: 3ci
F13: cii | G13: Other than Dividend Income | H13: 3cii
F14: d | G14: u/s 115BBF | H14: 3d
F15: e | G15: u/s 115BBG | H15: 3e | I15: 0
E16: 4a | F16: Profit or loss included in 1, which is referred to in section 44AD/ 44ADA/44AE/44B/44BB/44BBA/44D/44DA/ First Schedule of Income-tax Act (other than profit from life insurance business referred to in section 115B) | H16: 4a | I16: =MAX(0,SUM(H18:H28)) -> 0 | N16: =PL.GrsTrnOverOrReceipt+PL.TotPersumptiveInc44AD -> 0
F17: Sl. No. | G17: Section | H17: Amount
F18: 1 | G18: 44AD | H18: =IF(AND(PL.TotPersumptiveInc44AD>0,MID(sheet1.ResidentialStatus1,1,3)="RES",MID(sheet1.SubStatus,1,1)="1",MID(sheet1.MainStatus,1,1)="1"),sheet11.Section44AD,0) -> 0
F19: =F18+1 -> 2 | G19: 44ADA | H19: =IF(AND(PL.TotPersumptiveInc44ADA>0,MID(sheet1.ResidentialStatus1,1,3)="RES",MID(sheet1.SubStatus,1,1)="1",MID(sheet1.MainStatus,1,1)="1"),sheet11.Section44ADA,0) -> 0
F20: =F19+1 -> 3 | G20: 44AE | H20: =sheet11.Section44AE -> 0
F21: 4 | G21: 44B | H21: =IF(MID(sheet1.ResidentialStatus1,1,3)="NRI",sheet11.Section44B,0) -> 0
F22: 5 | G22: 44BB | H22: =IF(MID(sheet1.ResidentialStatus1,1,3)="NRI",Sheet11.Section44BB,0) -> 0
F23: 6 | G23: 44BBA | H23: =IF(MID(sheet1.ResidentialStatus1,1,3)="NRI",sheet11.Section44BBA,0) -> 0
F24: 7 | G24: 44BBB
F25: =F23+1 -> 7 | G25: 44D | H25: =0 -> 0
F26: =F23+1 -> 7 | G26: 44DA | H26: =IF(MID(sheet1.ResidentialStatus1,1,3)="NRI",sheet12.Section44DA,0) -> 0
F27: 8 | G27: 44DB | H27: =sheet12.Section44DB -> 0
F28: =F26+1 -> 8 | G28: First schedule of income tax Act (other than profit from life insurance business referred to in section 115B) | N28: =IF(AND(PL44AD>0,MID(sheet1.ResidentialStatus1,1,3)="RES",MID(sheet1.SubStatus,1,1)="1",MID(sheet1.MainStatus,1,1)="1"),4,0) -> 0
E29: 4b | F29: Profit and gains from life insurance business referred to in section 115B | H29: 4b
E30: 4c | F30: Profit from activities covered under rule 7, 7A, 7B(1), 7B(1A) and 8 | H30: 4c | I30: =MAX(0,SUM(H32:H36)) -> 0
F31: Sl. No. | G31: Section | H31: Amount
F32: (i) | G32: Profit from activities covered under rule 7 | H32: 0
F33: (ii) | G33: Profit from activities covered under rule 7A
F34: (iii) | G34: Profit from activities covered under rule 7B(1)
F35: (iv) | G35: Profit from activities covered under rule 7B(1A)
F36: (v) | G36: Profit from activities covered under rule 8
E37: 5 | F37: Income credited to Profit and Loss account (included in 1)which is exempt
F38: a | G38: share of income from firm(s) | H38: 5a | I38: 0
F39: b | G39: Share of income from AOP/ BOI | H39: 5b | I39: 0
F40: c | G40: Any other exempt income (specify nature and amount)
F41: Sl. No. | G41: Nature | I41: Amount
F42: 1
F43: =F42+1 -> 2
F44: =F43+1 -> 3
G45: Total | H45: 5c | I45: =SUM(I42:I44) -> 0
F47: d | G47: Total exempt income(5a+5b+5c) | H47: 5d | I47: =SUM(I38:I44) -> 0
E48: 6 | F48: Balance (1– 2a – 2b – 3a - 3b – 3c –3d –3e –4a –4b –4c– 5d) | J48: 6 | K48: =K5-I6-I7-I9-I10-I11-I14-I15-I16-I29-I30-I47 -> 2830600
E49: 7 | F49: Expenses debited to profit and loss account considered under other heads of income/related to income chargeable u/s 115BBF / 115BBG
F50: a | G50: House Property | H50: 7a | I50: 0
F51: b | G51: Capital Gains | H51: 7b | I51: 0
F52: c | G52: Other Sources | H52: 7c | I52: 0
F53: d | G53: u/s 115BBF | H53: 7d
F54: e | G54: u/s 115BBG | H54: 7e | I54: 0
E55: 8a | F55: Expenses debited to profit and loss account which relate to exempt income | H55: 8a | I55: 0
E56: 8b | F56: Expenses debited to profit and loss account which relate to exempt income and disallowed u/s 14A (16 of Part A-OI) | H56: 8b | I56: =MAX(0,sheet7.AmtExpDisallowed) -> 0
E57: 9 | F57: Total (7a + 7b + 7c +7d+7e+ 8a+8b) | H57: 9 | I57: =sheet11.ExpDebToPLExemptInc+sheet11.ExpDebToPLOthHeads2+sheet11.ExpDebToPLOthHeads3+sheet11.ExpDebToPLOthHeads4+sheet11.ExpDebToPL115BBF+sheet11.ExpDebToPL115BBG+sheet12.ExpDebToPLExemptIncDisAllwUs14A -> 0
E58: 10 | F58: Adjusted profit or loss (6+9) | J58: 10 | K58: =sheet11.BalancePLOthThanSpecBus+sheet11.TotExpDebPL -> 2830600
E59: 11 | F59: Depreciation and Amortization debited to profit and loss account (item 53 of Schedule – P&L & E(vi) of Manufacturing Account) | J59: 11 | K59: =MAX(PL.DepreciationAmort+ManuFactureAcc_DepreciationOfFactoryMachinary,0) -> 1000000
E60: 12 | F60: Depreciation allowable under Income-tax Act
F61: i | G61: Depreciation allowable under section 32(1)(ii) and 32(1)(iia) (column 6 of Schedule-DEP) | H61: 12i | I61: =IF(DEP_DCG!$J$18>0,DEP_DCG!$J$18,0) -> 1091250
F62: ii | G62: Depreciation allowable under section 32(1)(i) (Make your own computation refer Appendix IA of IncomeTax Rules) | H62: 12ii
F63: iii | G63: Total (12i + 12ii) | J63: 12iii | K63: =SUM(I61:I62) -> 1091250
E64: 13 | F64: Profit or loss after adjustment for depreciation (10 +11 - 12iii) | J64: 13 | K64: =sheet11.AdjustedPLOthThanSpecBus+sheet11.DepreciationDebPLCosAct-sheet11.TotDeprAllowITAct -> 2739350
E65: 14 | F65: Amounts debited to the profit and loss account, to the extent disallowable under section 36 (6t of Part A-OI) | H65: 14 | I65: ='PART - A OI'!$L$41 -> 0
E66: 15 | F66: Amounts debited to the profit and loss account, to the extent disallowable under section 37 (7j of Part-OI) | H66: 15 | I66: ='PART - A OI'!$L$56 -> 98000
E67: 16 | F67: Amounts debited to the profit and loss account, to the extent disallowable under section 40 (8Aj of Part-OI) | H67: 16 | I67: ='PART - A OI'!$L$67 -> 40000
E68: 17 | F68: Amounts debited to the profit and loss account, to the extent disallowable under section 40A (9g of Part A-OI) | H68: 17 | I68: ='PART - A OI'!$L$76 -> 100000
E69: 18 | F69: Any amount debited to profit and loss account of the previous year but disallowable under section 43B (11h of Part-OI) | H69: 18 | I69: ='PART - A OI'!$L$96 -> 800000
E70: 19 | F70: Interest disallowable under section 23 of the Micro, Small and Medium Enterprises Development Act,2006 | H70: 19 | I70: 0
E71: 20 | F71: Deemed income under section 41 | H71: 20 | I71: 0
E72: 21 | F72: Deemed income under section 32AC/32AD/33AB/33ABA/35ABA/35ABB/35AC/40A(3A)/33AC/ 72A/80HHD/80-IA (21a+21b+21c+21d+21e+21f+21g+21h+21i+21j+21k+21l) | H72: 21 | I72: =SUM(I73:I84) -> 0
F73: a | G73: 32AC | H73: 21a | I73: 0
F74: b | G74: 32AD | H74: 21b | I74: 0
F75: c | G75: 33AB | H75: 21c | I75: 0
F76: d | G76: 33ABA | H76: 21d | I76: 0
F77: e | G77: 35ABA | H77: 21e | I77: 0
F78: f | G78: 35ABB | H78: 21f | I78: 0
F79: g | G79: 35AC | H79: 21g | I79: 0
F80: h | G80: 40A(3A) | H80: 21h | I80: 0
F81: i | G81: 33AC | H81: 21i | I81: 0
F82: j | G82: 72A | H82: 21j | I82: 0
F83: k | G83: 80HHD | H83: 21k | I83: 0
F84: l | G84: 80-IA | H84: 21l | I84: 0
E85: 22 | F85: Deemed income under section 43CA | H85: 22 | I85: 0
E86: 23 | F86: Any other item or items of addition under section 28 to 44DB | H86: 23 | I86: 0
E87: 24 | F87: Any other income not included in profit and loss account/any other expense not allowable (including income from salary, commission, bonus and interest from firms in which assessee is a partner) | H87: 24 | I87: =SUM(I88:I92) -> 0
F88: a | G88: Salary | H88: 24a | I88: 0
F89: b | G89: Bonus | H89: 24b | I89: 0
F90: c | G90: Commission | H90: 24c | I90: 0
F91: d | G91: Interest | H91: 24d | I91: 0
F92: e | G92: Others | H92: 24e | I92: 0
E93: 25 | F93: Increase in profit or decrease in loss on account of ICDS adjustments and deviation in method of valuation of stock (Column 3a + 4d of Part A- OI) | H93: 25 | I93: =MAX(0,sheet5.ProfDeviatDueAcctMeth+sheet6.EffectOnPL) -> 0
E94: 26 | F94: Total (14 + 15 +16 +17 +18 +19 + 20 +21 + 22 + 23 + 24 + 25) | J94: 26 | K94: =SUM(I65:I93)-sheet11.DeemIncUs3380HHD80IA-SUM(I88:I92) -> 1038000
E95: 27 | F95: Deduction allowable under section 32(1)(iii) | H95: 27 | I95: 0
E96: 28 | F96: Deduction allowable under section 32AD | H96: 28 | I96: 0
E97: 29 | F97: Amount of deduction under section 35 or 35CCC or 35CCD in excess of the amount debited to profit and loss account (item X(4) of Schedule ESR) (if amount deductible under section 35 or 35CCC or 35CCD is lower than amount debited to P&L account, it will go to item 24) | H97: 29 | I97: =ESR!$G$14 -> 0
E98: 30 | F98: Any amount disallowed under section 40 in any preceding previous year but allowable during the previous year(8Bof Part-OI) | H98: 30 | I98: ='PART - A OI'!$L$68 -> 0
E99: 31 | F99: Any amount disallowed under section 43B in any preceding previous year but allowable during the previous year(10h of Part A-OI) | H99: 31 | I99: ='PART - A OI'!$L$86 -> 0
E104: 32 | F104: Any other amount allowable as deduction | H104: 32 | I104: 0
E105: 33 | F105: Decrease in profit or increase in loss on account of ICDS adjustments and deviation in method of valuation of stock (Column 3b + 4e of Schedule OI) | H105: 33 | I105: =MAX(0,sheet5.LossDeviatDueAcctMeth+sheet6.NegEffectOnPL) -> 0
E106: 34 | F106: Total (27+28+29+30+31+32+33) | J106: 34 | K106: =SUM(I95:I99)+sheet11.AnyOthAmtAllDeduct+sheet11.LossOrProfICDS -> 0
E107: 35 | F107: Income (13+26-34) | J107: 35 | K107: =sheet11.AdjustPLAfterDeprOthSpecInc+sheet11.TotAfterAddToPLDeprOthSpecInc-sheet11.TotDeductionAmts -> 3777350
E108: 36 | F108: Profits and gains of business or profession deemed to be under -
F109: i | G109: Section 44AD [62(ii) of schedule P&L] | H109: i | I109: =PL.TotPersumptiveInc44AD -> 0
F110: ii | G110: Section 44ADA [63(ii) of schedule P&L] | H110: ii | I110: =PL.TotPersumptiveInc44ADA -> 0
F111: iii | G111: Section 44AE [64(v) of schedule P&L] | H111: iii | I111: =PL.TotalPrsumptvIncUs44E -> 0
F112: iv | G112: Section 44B | H112: iv | I112: 0
F113: v | G113: Section 44BB | H113: v | I113: 0
F114: vi | G114: Section 44BBA | H114: vi | I114: 0
F115: vii | G115: Section 44BBB | H115: vii
F116: vii | G116: Section 44D | H116: viii | I116: 0
F117: viii | G117: Section 44DA | H117: ix | I117: 0
F118: x | G118: Section 44DB | H118: x
F119: x | G119: First Schedule of Income-tax Act (other than 115B) | H119: xi
F120: xi | G120: Total (36i to 36x) | J120: 36xi | K120: =SUM(I109:I119) -> 0
E121: 37 | F121: Net profit or loss from business or profession other than speculative and specified business (35 + 36xi) | J121: 37 | K121: =sheet11.PLAftAdjDedBusOthThanSpec+sheet12.TotDeemedProfitBusUs -> 3777350
E122: 38 | F122: Net Profit or loss from business or profession other than speculative business and specified business after applying rule 7A, 7B or 8, if applicable (If rule 7A, 7B or 8 is not applicable, enter same figure as in 37) (If loss take the figure to 2i of item E)(38a+ 38b + 38c + 38d + 38e + 38f) | J122: A38 | K122: =SUM(I123:I128) -> 3777350
F123: a | G123: Chargeable income under Rule 7 | H123: a | I123: 0
F124: b | G124: Deemed chargeable Income under Rule 7A | H124: b | I124: 0
F125: c | G125: Deemed chargeable Income under Rule 7B(1) | H125: c | I125: 0
F126: d | G126: Deemed chargeable Income under Rule 7B(1A) | H126: d | I126: 0
F127: e | G127: Deemed chargeable Income under Rule 8 | H127: e | I127: 0
F128: f | G128: Income other than Rule 7A, 7B & 8 (Item No. 37) | H128: f | I128: =sheet12.NetPLAftAdjBusOthThanSpec -> 3777350
E129: 39 | F129: Balance of income deemed to be from agriculture, after applying Rule 7, 7A, 7B(1), 7B(1A) and Rule 8 for the purpose of aggregation of income as per Finance Act [4c-(38a+38b+38c+38d+38e)] | J129: 39 | K129: =MAX(0,sheet12.TotalProfitFrmActCvrd-SUM(I123:I127)) -> 0
D130: B | E130: Computation of income from speculative business
E131: 40 | F131: Net profit or loss from speculative business as per profit or loss account | J131: 40 | K131: =sheet10.NetPLFromSpecBus -> 0
E132: 41 | F132: Additions in accordance with section 28 to 44DB | J132: 41 | K132: 0
E133: 42 | F133: Deductions in accordance with section 28 to 44DB | J133: 42 | K133: 0
E134: 43 | F134: Income from speculative business (if loss, take the figure to 6xv of schedule CFL) (40+41-42) | J134: B43 | K134: =sheet12.NetPLFrmSpecBus+sheet12.AdditionUs28to44DA-sheet12.DeductUs28to44DA -> 0
D135: C | E135: Computation of income from specified business under section 35AD
E136: 44 | F136: Net profit or loss from specified business as per profit or loss account | J136: 44 | K136: =sheet10.NetPLFromSpecifiedBus -> 0
E137: 45 | F137: Additions in accordance with section 28 to 44DB | J137: 45 | K137: 0
E138: 46 | F138: Deductions in accordance with section 28 to 44DB (other than deduction under section,- (i) 35AD, (ii)32 or 35 on which deduction u/s 35AD is claimed) | J138: 46 | K138: 0
E139: 47 | F139: Profit or loss from specified business (44+45-46) | J139: 47 | K139: =sheet12.NetPLFrmSpecifiedBus+sheet12.AddSec2844DA-sheet12.DedSec2844DA -> 0
E140: 48 | F140: Deductions in accordance with section 35AD(1) | J140: 48
F141: a | G141: 35AD(1) | J141: 47a
F142: b | G142: 35AD(1A) | J142: 47b
E143: 49 | F143: Income from specified business (47-48)(if loss, take the figure to 7xiv of schedule CFL) | J143: C49 | K143: =sheet12.ProfLossFromSpecifiedBus-sheet12.DeductUs35AD -> 0
E144: 50 | F144: Relevant clause of sub-section (5) of section 35AD which covers the specified business (to be selected from drop down menu)
F145: 1 | G145: (Select)
D147: D | E147: Income chargeable under the head ‘Profits and gains’ from business or profession’ (A38+B43+C49) | J147: D | K147: =MAX(0,sheet12.AdjustedPLFrmSpecifiedBus)+MAX(0,sheet12.AdjustedPLFrmSpecuBus)+sheet12.NetPLBusOthThanSpec7A7B7C -> 3777350
D148: E | E148: Computation of income from life insurance business referred to in section 115B
E149: (i) | F149: Net Profit or loss from life insurance business referred to in section 115B | J149: (i) | K149: =MAX(0,sheet10.PLUs44sChapXIIGOthers) -> 0
E150: (ii) | F150: Additions in accordance with Section 30 to Section 43B | J150: (ii)
E151: (iii) | F151: Deductions in accordance with Section 30 to Section 43B | J151: (iii)
E152: (iv) | F152: Income from life insurance business under section 115B | J152: (iv) | K152: =sheet12.NetPrftorLoss115B+sheet12.AddAccordance43B-sheet12.DedAccordance43B -> 0
D153: E | E153: Intra head set off of business loss of current year
D154: Type of Business income | H154: Income of current year (Fill this column only if figure is zero or positive) | I154: Business loss set off | K154: Business income remaining after set off (3) = (1)-(2)
D155: (i) Loss to be set off (Fill this row only if figure is negative) | I155: =ABS(MIN(0,sheet12.NetPLBusOthThanSpec7A7B7C)) -> 0
D156: (ii) Income from speculative business | H156: =MAX(0,sheet12.AdjustedPLFrmSpecuBus) -> 0 | I156: =MIN(I155,H156) -> 0 | K156: =H156-I156 -> 0
D157: (iii) Income from specified business | H157: =MAX(0,sheet12.AdjustedPLFrmSpecifiedBus) -> 0 | I157: =MIN(I155-I156,H157) -> 0 | K157: =H157-I157 -> 0
D158: (iv) Profit and gains from life insurance business u/s 115B
D159: (v) Total loss set off (ii + iii ) | I159: =SUM(I156:J158) -> 0
D160: (vi) Loss remaining after set off (i – v) | I160: =I155-I159 -> 0

Sheet DPM_DOA
C3: Schedule DPM | E3: Depreciation on Plant and Machinery (Other than assets on which full capital expenditure is allowable as deduction under any other section) | Q3: =F11+F14-F7-F10-F13 -> -2700000
C4: DEPRECIATION ON PLANT AND MACHINERY | D4: 1 | E4: Block of assets | F4: Plant and machinery | Q4: =G11+G14-G7-G10-G13 -> 0
D5: 2 | E5: Rate (%) | F5: 15 | G5: 30 | H5: 40 | I5: 45 | Q5: =H11+H14-H7-H10-H13 -> -1800000
F6: (i) | G6: (ii) | H6: (iii) | I6: (iv) | Q6: =I11+I14-I7-I10-I13 -> 0
D7: 3 | E7: Written down value on the first day of previous year | F7: 3240000 | H7: 2160000 | Q7: =G36+G39-G34-G35-G38 -> 0
D8: 3a | E8: Amount as adjusted on account of opting for taxation under section 115BAD | Q8: =H36+H39-H34-H35-H38 -> 0
D9: 3b | E9: Adjusted Written down value on the first day of previous year (3) + (3a) | F9: =DPM15.WDVFirstDay+DPM15.WDVFirstDayBAC -> 3240000 | G9: =DPM30.WDVFirstDay+DPM30.WDVFirstDayBAC -> 0 | H9: =DPM40.WDVFirstDay+DPM40.WDVFirstDayBAC -> 2160000 | I9: =DPM45.WDVFirstDay+DPM45.WDVFirstDayBAC -> 0 | Q9: =I36+I39-I34-I35-I38 -> 0
D10: 4 | E10: Additions for a period of 180 days or more in the previous year | F10: 648000 | H10: 432000 | Q10: =J36+J39-J34-J35-J38 -> 0
D11: 5 | E11: Consideration or other realization during the previous year out of 3 or 4 | F11: 1350000 | H11: 900000 | Q11: =K36+K39-K34-K35-K38 -> 0
D12: 6 | E12: Amount on which depreciation at full rate to be allowed (3 + 4 - 5) (enter 0, if result is negative) | F12: =MAX(0,F7+F10-F11) -> 2538000 | G12: =MAX(0,G7+G10-G11) -> 0 | H12: =MAX(0,H7+H10-H11) -> 1692000 | I12: =MAX(0,I7+I10-I11) -> 0 | Q12: =L36+L39-L34-L35-L38 -> 0
D13: 7 | E13: Additions for a period of less than 180 days in the previous year | F13: 432000 | H13: 288000
D14: 8 | E14: Consideration or other realizations during the year out of 7 | F14: 270000 | H14: 180000
D15: 9 | E15: Amount on which depreciation at half rate to be allowed (7 - 8) (enter 0, if result in negative) | F15: =MAX(0,F13-F14+MIN(0,F7+F10-F11)) -> 162000 | G15: =MAX(0,G13-G14+MIN(0,G7+G10-G11)) -> 0 | H15: =MAX(0,H13-H14+MIN(0,H7+H10-H11)) -> 108000 | I15: =MAX(0,I13-I14+MIN(0,I7+I10-I11)) -> 0
D16: 10 | E16: Depreciation on 6 at full rate | F16: =ROUND(DPM15.FullRateDeprAmt*DPM15.RATE/100,0) -> 380700 | G16: =ROUND(DPM30.FullRateDeprAmt*DPM30.RATE/100,0) -> 0 | H16: =ROUND(DPM40.FullRateDeprAmt*DPM40.RATE/100,0) -> 676800 | I16: =ROUND(DPM45.FullRateDeprAmt*DPM45.RATE/100,0) -> 0
D17: 11 | E17: Depreciation on 9 at half rate | F17: =ROUND(DPM15.HalfRateDeprAmt*DPM15.RATE/200,0) -> 12150 | G17: =ROUND(DPM30.HalfRateDeprAmt*DPM30.RATE/200,0) -> 0 | H17: =ROUND(DPM40.HalfRateDeprAmt*DPM40.RATE/200,0) -> 21600 | I17: =ROUND(DPM45.HalfRateDeprAmt*DPM45.RATE/200,0) -> 0
D18: 12 | E18: Additional depreciation, if any, on 4
D19: 13 | E19: Additional depreciation, if any, on 7
D20: 14 | E20: Additional depreciation relating to immediately preceding year' on asset put to use for less than 180 days
D21: 15 | E21: Total depreciation* (10+11+12+13+14) | F21: =DPM15.DepreciationAtHalfRate + DPM15.DepreciationAtFullRate + DPM15.AddlnDeprDuringYearAdditions + DPM15.AddlnDeprOnGT180DayAdditions + DPM15.AddlnDeprlessthan180days -> 392850 | G21: =DPM30.DepreciationAtHalfRate + DPM30.DepreciationAtFullRate + DPM30.AddlnDeprDuringYearAdditions + DPM30.AddlnDeprOnGT180DayAdditions + DPM30.AddlnDeprlessthan180days -> 0 | H21: =DPM40.DepreciationAtHalfRate + DPM40.DepreciationAtFullRate + DPM40.AddlnDeprDuringYearAdditions + DPM40.AddlnDeprOnGT180DayAdditions + DPM40.AddlnDeprlessthan180days -> 698400 | I21: =DPM45.DepreciationAtHalfRate + DPM45.DepreciationAtFullRate + DPM45.AddlnDeprDuringYearAdditions + DPM45.AddlnDeprOnGT180DayAdditions + DPM45.AddlnDeprlessthan180days -> 0
D22: 16 | E22: Depreciation disallowed under section 38(2) of the I.T. Act (out of column 15)
D23: 17 | E23: Net aggregate depreciation (15-16) | F23: =MAX(F21-F22,0) -> 392850 | G23: =MAX(G21-G22,0) -> 0 | H23: =MAX(H21-H22,0) -> 698400 | I23: =MAX(I21-I22,0) -> 0
D24: 18 | E24: Proportionate aggregate depreciation allowable in the event of succession, amalgamation, demerger etc. (out of column 17)
D25: 19 | E25: Expenditure incurred in connection with transfer of asset/ assets
D26: 20 | E26: Capital gains/ loss under section 50* (5 + 8 – 3 – 4 -7 - 19) (enter negative only if block ceases to exist)
D27: 21 | E27: Written down value on the last day of previous year* (6+ 9 -15) (enter 0 if result is negative) | F27: =MAX(DPM15.WDVFirstDay+DPM15.AdditionsGrThan180Days -DPM15.RealizationTotalPeriod + DPM15.AdditionsLessThan180Days - DPM15.RealizationPeriodDuringYear - DPM15.TotalDepreciation,0) -> 2307150 | G27: =MAX(DPM30.WDVFirstDay+DPM30.AdditionsGrThan180Days -DPM30.RealizationTotalPeriod + DPM30.AdditionsLessThan180Days - DPM30.RealizationPeriodDuringYear - DPM30.TotalDepreciation,0) -> 0 | H27: =MAX(DPM40.WDVFirstDay+DPM40.AdditionsGrThan180Days -DPM40.RealizationTotalPeriod + DPM40.AdditionsLessThan180Days - DPM40.RealizationPeriodDuringYear - DPM40.TotalDepreciation,0) -> 1101600 | I27: =MAX(DPM45.WDVFirstDay+DPM45.AdditionsGrThan180Days -DPM45.RealizationTotalPeriod + DPM45.AdditionsLessThan180Days - DPM45.RealizationPeriodDuringYear - DPM45.TotalDepreciation,0) -> 0
C29: Schedule DOA | E29: Depreciation on other assets (Other than assets on which full capital expenditure is allowable as deduction)
C30: DEPRECIATION ON OTHER ASSETS | D30: 1 | E30: Block of assets | F30: Land | G30: Building (not including land) | J30: Furniture and fittings | K30: Intangible Assets | L30: Ships
D32: 2 | E32: Rate (%) | F32: Nil | G32: 5 | H32: 10 | I32: 40 | J32: 10 | K32: 25 | L32: 20
F33: (i) | G33: (ii) | H33: (iii) | I33: (iv) | J33: (v) | K33: (vi) | L33: (vii)
D34: 3 | E34: Written down value on the first day of previous year
D35: 4 | E35: Additions for a period of 180 days or more in the previous year
D36: 5 | E36: Consideration or other realization during the previous year out of 3 or 4
D37: 6 | E37: Amount on which depreciation at full rate to be allowed (3 + 4 -5) (enter 0, if result is negative) | G37: =MAX(0,G34+G35-G36) -> 0 | H37: 0 | I37: 0 | J37: 0 | K37: 0 | L37: 0
D38: 7 | E38: Additions for a period of less than 180 days in the previous year
D39: 8 | E39: Consideration or other realizations during the year out of 7
D40: 9 | E40: Amount on which depreciation at half rate to be allowed (7-8) (enter 0, if result in negative) | G40: =MAX(0,G38-G39+MIN(0,G34+G35-G36)) -> 0 | H40: 0 | I40: 0 | J40: 0 | K40: 0 | L40: 0
D41: 10 | E41: Depreciation on 6 at full rate | G41: =ROUND(DAOB5.FullRateDeprAmt*DAOB5.RATE/100,0) -> 0 | H41: =ROUND(DAOB10.FullRateDeprAmt*DAOB10.RATE/100,0) -> 0 | I41: =ROUND(DAOB100.FullRateDeprAmt*DAOB100.RATE/100,0) -> 0 | J41: =ROUND(DAOF10.FullRateDeprAmt*DAOF10.RATE/100,0) -> 0 | K41: =ROUND(DAOI25.FullRateDeprAmt*DAOI25.RATE/100,0) -> 0 | L41: =ROUND(DAOS20.FullRateDeprAmt*DAOS20.RATE/100,0) -> 0
D42: 11 | E42: Depreciation on 9 at half rate | G42: =ROUND(DAOB5.HalfRateDeprAmt*DAOB5.RATE/200,0) -> 0 | H42: =ROUND(DAOB10.HalfRateDeprAmt*DAOB10.RATE/200,0) -> 0 | I42: =ROUND(DAOB100.HalfRateDeprAmt*DAOB100.RATE/200,0) -> 0 | J42: =ROUND(DAOF10.HalfRateDeprAmt*DAOF10.RATE/200,0) -> 0 | K42: =ROUND(DAOI25.HalfRateDeprAmt*DAOI25.RATE/200,0) -> 0 | L42: =ROUND(DAOS20.HalfRateDeprAmt*DAOS20.RATE/200,0) -> 0
D43: 12 | E43: Additional depreciation, if any, on 4 | G43: 0
D44: 13 | E44: Additional depreciation, if any, on 7 | G44: 0
D45: 12 | E45: Total depreciation (10+11) | G45: =DAOB5.DepreciationAtHalfRate + DAOB5.DepreciationAtFullRate + DAOB5.AddlnDeprDuringYearAdditions + DAOB5.AddlnDeprOnGT180DayAdditions -> 0 | H45: =DAOB10.DepreciationAtHalfRate + DAOB10.DepreciationAtFullRate + DAOB10.AddlnDeprDuringYearAdditions + DAOB10.AddlnDeprOnGT180DayAdditions -> 0 | I45: =DAOB100.DepreciationAtHalfRate + DAOB100.DepreciationAtFullRate + DAOB100.AddlnDeprDuringYearAdditions + DAOB100.AddlnDeprOnGT180DayAdditions -> 0 | J45: =DAOF10.DepreciationAtHalfRate + DAOF10.DepreciationAtFullRate + DAOF10.AddlnDeprDuringYearAdditions + DAOF10.AddlnDeprOnGT180DayAdditions -> 0 | K45: =DAOI25.DepreciationAtHalfRate + DAOI25.DepreciationAtFullRate + DAOI25.AddlnDeprDuringYearAdditions + DAOI25.AddlnDeprOnGT180DayAdditions -> 0 | L45: =DAOS20.DepreciationAtHalfRate + DAOS20.DepreciationAtFullRate + DAOS20.AddlnDeprDuringYearAdditions + DAOS20.AddlnDeprOnGT180DayAdditions -> 0
D46: 13 | E46: Depreciation disallowed under section 38(2) of the I.T. Act (out of column 12)
D47: 14 | E47: Net aggregate depreciation (12-13) | G47: =MAX(G45-G46,0) -> 0 | H47: 0 | I47: 0 | J47: 0 | K47: 0 | L47: 0
D48: 15 | E48: Proportionate aggregate depreciation allowable in the event of succession, amalgamation, demerger etc. (out of column 14)
D49: 16 | E49: Expenditure incurred in connection with transfer of asset/ assets
D50: 17 | E50: Capital gains/ loss under section 50 (5 + 8 -3-4 -7 -16) (enter negative only if block ceases to exist)
D51: 18 | E51: Written down value on the last day of previous year* (6+ 9 -12) (enter 0 if result is negative) | F51: =MAX(DAOB0.WDVFirstDay,0) -> 0 | G51: =MAX(DAOB5.WDVFirstDay+DAOB5.AdditionsGrThan180Days -DAOB5.RealizationTotalPeriod + DAOB5.AdditionsLessThan180Days - DAOB5.RealizationPeriodDuringYear - DAOB5.TotalDepreciation,0) -> 0 | H51: =MAX(DAOB10.WDVFirstDay+DAOB10.AdditionsGrThan180Days -DAOB10.RealizationTotalPeriod + DAOB10.AdditionsLessThan180Days - DAOB10.RealizationPeriodDuringYear - DAOB10.TotalDepreciation,0) -> 0 | I51: =MAX(DAOB100.WDVFirstDay+DAOB100.AdditionsGrThan180Days -DAOB100.RealizationTotalPeriod + DAOB100.AdditionsLessThan180Days - DAOB100.RealizationPeriodDuringYear - DAOB100.TotalDepreciation,0) -> 0 | J51: =MAX(DAOF10.WDVFirstDay+DAOF10.AdditionsGrThan180Days -DAOF10.RealizationTotalPeriod + DAOF10.AdditionsLessThan180Days - DAOF10.RealizationPeriodDuringYear - DAOF10.TotalDepreciation,0) -> 0 | K51: =MAX(DAOI25.WDVFirstDay+DAOI25.AdditionsGrThan180Days -DAOI25.RealizationTotalPeriod + DAOI25.AdditionsLessThan180Days - DAOI25.RealizationPeriodDuringYear - DAOI25.TotalDepreciation,0) -> 0 | L51: =MAX(DAOS20.WDVFirstDay+DAOS20.AdditionsGrThan180Days -DAOS20.RealizationTotalPeriod + DAOS20.AdditionsLessThan180Days - DAOS20.RealizationPeriodDuringYear - DAOS20.TotalDepreciation,0) -> 0

Sheet DEP_DCG
C3: Sch DEP | E3: Summary of depreciation on assets (Other than assets on which full capital expenditure is allowable as deduction under any other section)
C4: SUMMARY OF DEPRECIATION ON ASSETS | D4: 1 | E4: Plant and machinery
E5: a | F5: Block entitled for depreciation @ 15 per cent ( Schedule DPM -17i or 18i as applicable) | G5: 1a | H5: =IF(DPM15.DepreciationAllowed>0,DPM15.DepreciationAllowed,DPM15.NetDepreciation) -> 392850
E6: b | F6: Block entitled for depreciation @ 30 per cent ( Schedule DPM - 17ii or 18ii as applicable) | G6: 1b | H6: =IF(DPM30.DepreciationAllowed>0,DPM30.DepreciationAllowed,DPM30.NetDepreciation) -> 0
E7: c | F7: Block entitled for depreciation @ 40 per cent ( Schedule DPM - 17iii or 18iii as applicable) | G7: 1c | H7: =IF(DPM40.DepreciationAllowed>0,DPM40.DepreciationAllowed,DPM40.NetDepreciation) -> 698400
E8: d | F8: Block entitled for depreciation @ 45 per cent ( Schedule DPM – 17iv or 18iv as applicable) | G8: 1d | H8: =IF(DPM45.DepreciationAllowed>0,DPM45.DepreciationAllowed,DPM45.NetDepreciation) -> 0
E9: e | F9: Total depreciation - plant and machinery (1a+1b+1c+1d) | I9: 1e | J9: =SUM(H5:H8) -> 1091250
D10: 2 | E10: Building (not including land)
E11: a | F11: Block entitled for depreciation @ 5 per cent (Schedule DOA- 14ii or 15ii as applicable) | G11: 2a | H11: =IF(DAOB5.DepreciationAllowed>0,DAOB5.DepreciationAllowed,DAOB5.NetDepreciation) -> 0
E12: b | F12: Block entitled for depreciation @ 10 per cent (Schedule DOA- 14iii or 15iii as applicable) | G12: 2b | H12: =IF(DAOB10.DepreciationAllowed>0,DAOB10.DepreciationAllowed,DAOB10.NetDepreciation) -> 0
E13: c | F13: Block entitled for depreciation @ 40 per cent (Schedule DOA- 14iv or 15iv as applicable) | G13: 2c | H13: =IF(DAOB100.DepreciationAllowed>0,DAOB100.DepreciationAllowed,DAOB100.NetDepreciation) -> 0
E14: d | F14: Total depreciation on building (2a+2b+2c) | I14: 2d | J14: =SUM(H11:H13) -> 0
D15: 3 | E15: Furniture and fittings (Schedule DOA- 14v or 15v as applicable) | I15: 3 | J15: =IF(DAOF10.DepreciationAllowed>0,DAOF10.DepreciationAllowed,DAOF10.NetDepreciation) -> 0
D16: 4 | E16: Intangible assets (Schedule DOA- 14vi or 15vi as applicable) | I16: 4 | J16: =IF(DAOI25.DepreciationAllowed>0,DAOI25.DepreciationAllowed,DAOI25.NetDepreciation) -> 0
D17: 5 | E17: Ships (Schedule DOA- 14vii or 15vii as applicable) | I17: 5 | J17: =IF(DAOS20.DepreciationAllowed>0,DAOS20.DepreciationAllowed,DAOS20.NetDepreciation) -> 0
D18: 6 | E18: Total depreciation ( 1e+2d+3+4+5) | I18: 6 | J18: =MAX(0,J9+SUM(J14:J17)) -> 1091250
C20: Sch DCG | E20: Deemed Capital Gains on sale of depreciable assets
D21: 1 | E21: Plant and machinery
E22: a | F22: Block entitled for depreciation @ 15 per cent (Schedule DPM - 20i) | G22: 1a | H22: =DPM_DOA!$F$26 -> 0
E23: b | F23: Block entitled for depreciation @ 30 per cent (Schedule DPM – 20ii) | G23: 1b | H23: =DPM_DOA!$G$26 -> 0
E24: c | F24: Block entitled for depreciation @ 40 per cent (Schedule DPM - 20iii) | G24: 1c | H24: =DPM_DOA!$H$26 -> 0
E25: d | F25: Block entitled for depreciation @ 45 per cent (Schedule DPM - 20iv) | G25: 1d | H25: =DPM_DOA!$I$26 -> 0
E26: e | F26: Total ( 1a +1b + 1c +1d) | I26: 1e | J26: =SUM(H22:H25) -> 0
D27: 2 | E27: Building (not including land)
E28: a | F28: Block entitled for depreciation @ 5 per cent (Schedule DOA- 17ii) | G28: 2a | H28: =DPM_DOA!$G$50 -> 0
E29: b | F29: Block entitled for depreciation @ 10 per cent (Schedule DOA- 17iii) | G29: 2b | H29: =DPM_DOA!$H$50 -> 0
E30: c | F30: Block entitled for depreciation @ 40 per cent (Schedule DOA- 17iv) | G30: 2c | H30: =DPM_DOA!$I$50 -> 0
E31: d | F31: Total ( 2a + 2b + 2c) | I31: 2d | J31: =SUM(H28:H30) -> 0
D32: 3 | E32: Furniture and fittings ( Schedule DOA- 17v) | I32: 3 | J32: =DPM_DOA!$J$50 -> 0
D33: 4 | E33: Intangible assets (Schedule DOA- 17vi) | I33: 4 | J33: =DPM_DOA!$K$50 -> 0
D34: 5 | E34: Ships (Schedule DOA- 17vii) | I34: 5 | J34: =DPM_DOA!$L$50 -> 0
D35: 6 | E35: Total ( 1e+2d+3+4+5) | I35: 6 | J35: =SUM(J31:J34)+DCGP.TotPlntMach -> 0

Sheet ESR
C3: Schedule ESR | E3: Expenditure on scientific Research etc. Deduction under section 35 or 35CCC or 35CCD | J3: CheckRA | K3: =IF(SUM(ESR1ii.AmtDebPL,ESR1iia.AmtDebPL,ESR1iii.AmtDebPL,ESR2AA.AmtDebPL,ESR1ii.AmtUs35Allowable,ESR1iia.AmtUs35Allowable,ESR1iii.AmtUs35Allowable,ESR2AA.AmtUs35Allowable)>0,TRUE,FALSE) -> FALSE
C4: Sl. No. | D4: Expenditure of the nature referred to in section (1) | E4: Amount, if any, debited to profit and loss account (2) | F4: Amount of deduction allowable (3) | G4: Amount of deduction in excess of the amount debited to profit and loss account (4) = (3) - (2)
C5: i | D5: 35(1)(i) | G5: =MAX(0,F5-E5) -> 0
C6: ii | D6: 35(1)(ii) | G6: =MAX(0,F6-E6) -> 0
C7: iii | D7: 35(1)(iia) | G7: 0
C8: iv | D8: 35(1)(iii) | G8: 0
C9: v | D9: 35(1)(iv) | G9: 0
C10: vi | D10: 35(2AA) | G10: 0
C11: vii | D11: 35(2AB) | G11: 0
C12: viii | D12: 35CCC | G12: 0
C13: ix | D13: 35CCD | G13: 0
C14: x | D14: Total | E14: =SUM(E5:E13) -> 0 | F14: =SUM(F5:F13) -> 0 | G14: =MAX(0,SUM(G5:G13)) -> 0
C15: Note : | D15: In case any deduction is claimed under sections 35(1)(ii) or 35(1)(iia) or 35(1)(iii) or 35(2AA), please provide the details as per Schedule RA

Sheet CG
C3: Schedule CG | G3: Capital Gains
D4: A | E4: Short-term Capital Gains (STCG) (Sub-items 4 & 5 are not applicable for residents)
E5: 1 | F5: From sale of land or building or both (fill up details separately for each property) | V5: TRC Flag | AI5: STCG BreakUp | AJ5: Actual Value | AK5: STCG DTAA | AL5: DTAA Value | AM5: LTCG BreakUp | AN5: Actual Value | AO5: LTCG DTAA | AP5: DTAA Value
F6: Date of Purchase
F7: Date of Sale
F8: a | G8: i | H8: Full value of consideration received/receivable | P8: ai | V8: ResidentialCheck | W8: =IF(MID(sheet1.ResidentialStatus1,1,2)="RE","RE","NR") -> RE | AI8: A1e | AJ8: =STCG_SaleLand_Total -> 0 | AK8: =IF(ResidentialCheck="NR",SUMIFS(STCG.A8_StcgAmt,STCG.A8_CertiStatus,"=Yes",STCG.A8_ItemNo,AI8),SUMIF(STCG.A8_ItemNo,AI8,STCG.A8_StcgAmt)) -> 0 | AL8: =SUMIF(STCG.A8_ItemNo,AI8,STCG.A8_StcgAmt) -> 0 | AM8: B1e | AN8: =LTCG_SaleLand_Total -> 0 | AO8: =IF(ResidentialCheck="NR",SUMIFS(LTCG.B10_StcgAmt,LTCG.B10_CertiStatus,"=Yes",LTCG.B10_ItemNo,AM8),SUMIF(LTCG.B10_ItemNo,AM8,LTCG.B10_StcgAmt)) -> 0 | AP8: =SUMIF(LTCG.B10_ItemNo,AM8,LTCG.B10_StcgAmt) -> 0
G9: ii | H9: Value of property as per stamp valuation authority | P9: aii | V9: STCG DTAA Sum | W9: =SUM(STCG.A8_StcgAmt) -> 0 | Y9: LTCG DTAA Sum | Z9: =SUM(LTCG.B10_StcgAmt) -> 0 | AB9: F_54D | AC9: =DEDN.AmtDeducted54D -> 0 | AD9: D_54D | AE9: =STCG.A5ei_ExemptionAmount+LTCG.B7di_ExemptionAmount0+D_54D_Block -> 0 | AF9: D_54D_Block | AG9: 0 | AI9: A2c | AJ9: =STCG.A20ic_CapgainonAssets -> 0 | AK9: 0 | AL9: 0 | AM9: B2e | AN9: =LTCG.B02e_CapgainonAssets -> 0 | AO9: 0 | AP9: 0
G10: iii | H10: Full value of consideration adopted as per section 50C for the purpose of Capital Gains [in case (aii) does not exceed 1.10 times (ai), take this figure as (ai), or else take (aii)] | P10: aiii | Q10: =IF(Q9>(1.1*Q8),Q9,Q8) -> 0 | V10: Sum of A1e | W10: 0 | Y10: Sum of B1e | Z10: 0 | AB10: F_54EC | AC10: =DEDN.AmtDeductedEC -> 0 | AD10: D_54EC | AE10: =LTCG.B02di_ExemptionAmount+D_54EC_Block -> 0 | AF10: D_54EC_Block | AG10: 0 | AI10: A3e-111A | AJ10: =STCG.A2ie_CapgainonAssets -> 0 | AK10: 0 | AL10: 0 | AM10: B3c | AN10: =LTCG.B2e_CapgainonAssets -> 0 | AO10: 0 | AP10: 0
F11: b | G11: Deductions under section 48 | V11: Sum of aiii | W11: 0 | Y11: Sum of aiii | Z11: 0 | AB11: F_54G | AC11: =DEDN.AmtDeductedG -> 0 | AD11: D_54G | AE11: =STCG.A5eii_ExemptionAmount+LTCG.B7diii_ExemptionAmount+D_54G_Block -> 0 | AF11: D_54G_Block | AG11: 0 | AI11: A3e-115D | AJ11: =STCG.A2iie_CapgainonAssets -> 0 | AK11: 0 | AL11: 0 | AM11: B4c | AN11: =LTCG.B3e_CapgainonAssets -> 0 | AO11: 0 | AP11: 0
G12: i | H12: Reduction as per clause (iii) of section 48 of the Act, read with rule 8AB of the Rules | P12: bi
G13: ii | H13: Cost of acquisition without indexation | P13: bii | V13: CG_A_Count | W13: 1 | Y13: CG_B_Count | Z13: 1 | AB13: F_54GA | AC13: =DEDN.AmtDeductedGA -> 0 | AD13: D_54GA | AE13: =STCG.A5eiii_ExemptionAmount+LTCG.B7div_ExemptionAmount+D_54GA_Block -> 0 | AF13: D_54GA_Block | AG13: 0 | AI13: A4a | AJ13: =STCG.A3a_NRItaxSTTPaid -> 0 | AK13: 0 | AL13: 0 | AM13: B5c | AN13: =LTCG.B5f_LTCGonSale -> 0 | AO13: 0 | AP13: 0
G14: iii | H14: Cost of Improvement without indexation | P14: biii | V14: CG_A_frmsize | W14: 26 | Y14: CG_B_frmsize | Z14: 33 | AB14: F_54EE | AC14: 0 | AD14: D_54EE | AE14: 0 | AF14: D_54EE_Block | AG14: 0 | AI14: A4b | AJ14: =STCG.A3b_NRItaxSTTNotPaid -> 0 | AK14: 0 | AL14: 0 | AM14: B6c | AN14: =LTCG.B4d_LTCGOnListedSecurity -> 0 | AO14: 0 | AP14: 0
G15: biv | H15: Expenditure wholly and exclusively in connection with transfer | P15: biv | AI15: A5e | AJ15: =STCG.A4e_CapgainonAssets -> 0 | AK15: 0 | AL15: 0 | AM15: B7c-112(1)(c) | AN15: =LTCG.Bi5e_CapgainonAssets -> 0 | AO15: 0 | AP15: 0
G16: bv | H16: Total (bi + bii + biii+biv) | P16: bv | Q16: =SUM(Q12:Q15) -> 0 | AI16: A6g | AJ16: =STCG.A5e_CapgainonAssets -> 0 | AK16: 0 | AL16: 0 | AM16: B7c-115AB1b | AN16: =LTCG.Bii3e_CapgainonAssets -> 0 | AO16: 0 | AP16: 0
F17: c | G17: Balance (aiii – bv) | P17: 1c | Q17: =Q10-Q16 -> 0 | AI17: A7 | AJ17: =STCG.A7_AmtDeemed -> 0 | AK17: 0 | AL17: 0 | AM17: B7c-115AC | AN17: =LTCG.Bii5e_CapgainonAssets -> 0 | AO17: 0 | AP17: 0
F18: di | G18: Deduction under section 54D(Specify details in item D below) | P18: dii | AI18: A8a | AJ18: =STCG_PTI_15Percent -> 0 | AK18: 0 | AL18: 0 | AM18: B7c-115AD | AN18: =LTCG.Biii5e_CapgainonAssets -> 0 | AO18: 0 | AP18: 0
F19: dii | G19: Deduction under section 54G(Specify details in item D below) | P19: diii | AI19: A8b | AJ19: =STCG_PTI_30Percent -> 0 | AK19: 0 | AL19: 0 | AM19: B8c | AN19: =LTCG.B8f_LTCGonSale -> 0 | AO19: 0 | AP19: 0
F20: dii | G20: Deduction under section 54GA(Specify details in item D below) | P20: div | AI20: A8c | AJ20: =STCG_PTI_ApplicableRate -> 0 | AK20: 0 | AL20: 0 | AM20: B9e | AN20: =LTCG.B7e_CapgainonAssets -> 0 | AO20: 0 | AP20: 0
F21: d | G21: Total Deduction under section 54D/54G/54GA | P21: 1d | Q21: =SUM(Q18:Q20) -> 0 | AM21: B10 | AN21: =LTCG.B9_AmtDeemed -> 0 | AO21: 0 | AP21: 0
F22: e | G22: Short-term Capital Gains on Immovable property (1c - 1d) | R22: A1e | S22: =IF(Q17<0,Q17,MAX(0,Q17-Q21)) -> 0 | AM22: B11a1 | AN22: =LTCG_PTI_10Percent_112A -> 0 | AO22: 0 | AP22: 0
F23: f | G23: In case of transfer of immovable property, please furnish the following details (see note) | AM23: B11a2 | AN23: =LTCG_PTI_10Percent -> 0 | AO23: 0 | AP23: 0
G24: Sl. No. | H24: Name of buyer(s) | I24: PAN of buyer(s) | J24: Aadhaar No. of buyer(s) | K24: Percentage share | L24: Amount | M24: Address of property | N24: State Code | O24: PIN Code | P24: Country | Q24: ZipCode | AM24: B11b | AN24: =LTCG_PTI_20Percent -> 0 | AO24: 0 | AP24: 0
G25: 1
G26: =G25+1 -> 2
G27: =G26+1 -> 3
G28: =G27+1 -> 4
E29: 1
E32: Note : | G32: Furnishing of PAN/Aadhaar No. is mandatory, if the tax is deduced under section 194-IA or is quoted by buyer in the documents. In case of more than one buyer, please indicate the respective percentage share and amount
E33: 2 | F33: From Slump sale
F34: ai | G34: Fair market value as per Rule 11UAE(2) | P34: ai
F35: aii | G35: Fair market value as per Rule 11UAE(3) | P35: aii
F36: aiii | G36: Full value of consideration (higher of ai or aii) | P36: aiii | Q36: =MAX(STCG.A20iia_FullConsideration11UAEii,STCG.A20ia_FullConsideration11UAEi) -> 0
F37: b | G37: Net worth of the under taking or division | P37: 2b
F38: c | G38: Short term capital gains from slump sale (2aiii-2b) | R38: A2c | S38: =STCG.A20ia_FullConsideration-STCG.A20ib_NetWorthOfDivision -> 0
E39: 3 | F39: (i) From sale of equity share or unit of equity oriented Mutual Fund (MF) or unit of a business trust on which STT is paid u/s 111A
F40: ia | G40: Full value of consideration | P40: 3ia
F41: ib | G41: Deductions under section 48
G42: i | H42: Reduction as per clause (iii) of section 48 of the Act, read with rule 8AB of the Rules | P42: bi
G43: ii | H43: Cost of acquisition without indexation | P43: bii
G44: iii | H44: Cost of Improvement without indexation | P44: biii
G45: iv | H45: Expenditure wholly and exclusively in connection with transfer | P45: biv
G46: v | H46: Total ( i + ii + iii+iv) | P46: bv | Q46: =SUM(Q42:Q45) -> 0
F47: ic | G47: Balance (3a – 3bv) | P47: 3ic | Q47: =STCG.A2ia_FullConsideration-STCG.A2ibiv_TotalDedn -> 0
F48: id | G48: Loss to be disallowed u/s 94(7) or 94(8) - for example if asset bought/acquired within 3 months prior to record date and dividend/income/bonus units are received, then loss arising out of sale of such asset to be ignored (Enter positive value only) | P48: 3id
F49: ie | G49: Short-term capital gain on equity share or equity oriented MF (STT paid) u/s 111A [for others] (3ic +3id) | R49: A3ie | S49: =STCG.A2ic_BalanceCG+STCG.A2id_LossSec94of7Or94of8 -> 0
F50: ii | G50: From sale of equity share or unit of equity oriented Mutual Fund (MF) on which STT is paid u/s 115AD(1)(b)(ii) [for Foreign Institutional Investors]
F51: iia | G51: Full value of consideration | P51: 3iia
F52: iib | G52: Deductions under section 48
G53: i | H53: Cost of acquisition without indexation | P53: bi
G54: ii | H54: Cost of Improvement without indexation | P54: bii
G55: iii | H55: Expenditure wholly and exclusively in connection with transfer | P55: biii
G56: iv | H56: Total ( i + ii + iii) | P56: biv | Q56: =SUM(Q53:Q55) -> 0
F57: iic | G57: Balance (3a – 3biv) | P57: 3iic | Q57: =STCG.A2iia_FullConsideration-STCG.A2iibiv_TotalDedn -> 0
F58: iid | G58: Loss to be disallowed u/s 94(7) or 94(8)- for example if asset bought/acquired within 3 months prior to record date and dividend/income/bonus units are received, then loss arising out of sale of such asset to be ignored (Enter positive value only) | P58: 3iid
F59: iie | G59: Short-term capital gain on equity share or equity oriented MF (STT paid) (3c +3d) | R59: A3iie | S59: =STCG.A2iic_BalanceCG+STCG.A2iid_LossSec94of7Or94of8 -> 0
E60: 4 | F60: For NON-RESIDENT, not being an FII- from sale of shares or debentures of an Indian company (to be computed with foreign exchange adjustment under first proviso to section 48)
F61: a | G61: STCG on transactions on which securities transaction tax (STT) is paid | R61: A4a
F62: b | G62: STCG on transactions on which securities transaction tax (STT) is not paid | R62: A4b
E63: 5 | F63: For NON-RESIDENT- from sale of securities (other than those at A3) by an FII as per section 115AD
F64: i | G64: In case securities sold include shares of a company other than quoted shares, enter the following details
G65: a) Full value of consideration received/receivable in respect of unquoted shares | P65: ia
G66: b) Fair market value of unquoted shares determined in the prescribed manner | P66: ib
G67: c) Full value of consideration in respect of unquoted shares adopted as per section 50CA for the purpose of Capital Gains (higher of a or b) | P67: ic | Q67: =MAX(Q65,Q66) -> 0
F68: ii | G68: Full value of consideration in respect of securities other than unquoted shares | P68: ii
F69: iii | G69: Total (ic + ii) | P69: aiii | Q69: =SUM(Q67,Q68) -> 0
F70: b | G70: Deductions under section 48
G71: bi | H71: Reduction as per clause (iii) of section 48 of the Act, read with rule 8AB of the Rules | P71: bi
G72: bii | H72: Cost of acquisition without indexation | P72: bii
G73: biii | H73: Cost of improvement without indexation | P73: biii
G74: biv | H74: Expenditure wholly and exclusively in connection with transfer | P74: biv
G75: bv | H75: Total (i + ii + iii + iv) | P75: bv | Q75: =SUM(Q71:Q74) -> 0
F76: c | G76: Balance (5aiii – bv) | P76: 5c | Q76: =STCG.A4a_FullConsideration-STCG.A4biv_TotalDedn -> 0
F77: d | G77: Loss to be disallowed u/s 94(7) or 94(8)- for example if security bought/acquired within 3 months prior to record date and dividend/income/bonus units are received, then loss arising out of sale of such security to be ignored (Enter positive value only) | P77: 5d
F78: e | G78: Short-term capital gain on securities by an FII (other than those at A3) (5c +5d) | R78: A5e | S78: =STCG.A4c_BalanceCG+STCG.A4d_LossSec94of7Or94of8 -> 0
E79: 6 | F79: From sale of assets other than at A1 or A2 or A3 or A4 or A5 above
F80: i | G80: In case assets sold include shares of a company other than quoted shares, enter the following details
G81: a) Full value of consideration received/receivable in respect of unquoted shares | P81: ia
G82: b) Fair market value of unquoted shares determined in the prescribed manner | P82: ib
G83: c) Full value of consideration in respect of unquoted shares adopted as per section 50CA for the purpose of Capital Gains (higher of a or b) | P83: ic | Q83: =MAX(Q81,Q82) -> 0
F84: ii | G84: Full value of consideration in respect of assets other than unquoted shares | P84: ii
F85: iii | G85: Total (ic + ii) | P85: aiii | Q85: =SUM(Q83,Q84) -> 0
F86: b | G86: Deductions under section 48
G87: bi | H87: Reduction as per clause (iii) of section 48 of the Act, read with rule 8AB of the Rules | P87: bi
G88: bii | H88: Cost of acquisition without indexation | P88: bii
G89: biii | H89: Cost of Improvement without indexation | P89: biii
G90: biv | H90: Expenditure wholly and exclusively in connection with transfer | P90: biv
G91: bv | H91: Total (i + ii + iii + iv) | P91: bv | Q91: =SUM(Q87:Q90) -> 0
F92: c | G92: Balance (6aiii – bv) | P92: 6c | Q92: =STCG.A5a_FullConsideration-STCG.A5biv_TotalDedn -> 0
F93: d | G93: In case of asset (security/unit) loss to be disallowed u/s 94(7) or 94(8)- for example if asset bought/acquired within 3 months prior to record date and dividend/income/bonus units are received, then loss arising out of sale of such asset to be ignored (Enter positive value only) | P93: 6d
F94: e | G94: Deemed short term capital gains on depreciable assets (6 of schedule- DCG) | P94: e | Q94: =DCG.TotalDepreciation -> 0
F95: fi | G95: Deduction under section 54D (Specify details in item D below) | P95: fi
F96: fii | G96: Deduction under section 54G (Specify details in item D below) | P96: fii
F97: fiii | G97: Deduction under section 54GA (Specify details in item D below) | P97: fiii
F98: f | G98: Deduction under section 54D/54G/54GA | P98: 6f | Q98: =SUM(Q95:Q97) -> 0
F99: g | G99: STCG on assets other than at A1 or A2 or A3 or A4 or A5 above (6c + 6d + 6e - 6f) | R99: A6g | S99: =IF(STCG.A5c_BalanceCG+STCG.A5d_LossSec94of7Or94of8+STCG.A8_DeemedStcgOnAssets<0,STCG.A5c_BalanceCG+STCG.A5d_LossSec94of7Or94of8+STCG.A8_DeemedStcgOnAssets,MAX(0,STCG.A5c_BalanceCG+STCG.A5d_LossSec94of7Or94of8+STCG.A8_DeemedStcgOnAssets-STCG.A5e_ExemptionGrandTotal)) -> 0
E100: 7 | F100: Amount deemed to be short-term capital gains
E101: a | F101: Whether any amount of unutilized capital gain on asset transferred during the previous years shown below was deposited in the Capital Gains Accounts Scheme within due date for that year? If yes, then provide the details below | R101: A7a | S101: (Select)
E102: Note : | G102: In case , any amount is utilized out of capital gain account , please fill sl no "C" of schedule DI
G103: Sl. No. | H103: Previous year in which asset transferred | I103: Section under which deduction claimed in that year | J103: New asset acquired/constructed | L103: Amount not used for new asset or remained unutilized in Capital gains account (X)
J104: Year in which asset acquired/constructed | K104: Amount utilised out of Capital Gains account
F105: i | G105: 1
G106: 3
E108: b | F108: Amount deemed to be short term capital gains u/s 54D/54G/54GA, other than at 'a‘ | P108: 7b
E109: c | F109: Amount deemed to be short term capital gains as per Section 45(4) read with Section 9B of the Act | P109: 7c
F110: iii | G110: Amount deemed to be short term capital gains (aXi + b + c) | R110: A7 | S110: =SUM(STCG.A7_AmtNotUsed_1,STCG.A7_AmtNotUsed_2+STCG.7b.AmountDeemedOtherthan_a+AmtDeemedStcg45iv) -> 0
E111: 8 | F111: Pass Through Income/ loss in the nature of Short Term Capital Gain, (Fill up schedule PTI) (A8a + A8b + A8c) | R111: A8 | S111: =SUM(Q112:Q114) -> 0
F112: a | G112: Pass Through Income/ Loss in the nature of Short Term Capital Gain, chargeable @ 15% | P112: 8a
F113: b | G113: Pass Through Income/ Loss in the nature of Short Term Capital Gain, chargeable @ 30% | P113: 8b
F114: c | G114: Pass Through Income/ Loss in the nature of Short Term Capital Gain, chargeable at applicable rates | P114: 8c
E115: 9 | F115: Amount of STCG included in A1-A8 but not chargeable to tax or chargeable at special rates in India as per DTAA
G116: Sl. No. | H116: Amount of income (2) | I116: Item No. A1 to A8 above in which included (3) | J116: Country name, code (4) | K116: Article of DTAA (5) | L116: Rate as per Treaty (enter NIL, if not chargeable) (6) | M116: Whether Tax Residency Certificate obtained? (7) | N116: Section of I.T. Act (8) | O116: Rate as per I.T. Act (9) | P116: Applicable rate [lower of (6) or (9)] (10)
G117: 1 | I117: (Select) | J117: (Select) | P117: =IF(ResidentialCheck="NR",IF(MID(M117,1,1)="Y",MIN(L117,O117),""),MIN(L117,O117)) -> 0
G118: =G117+1 -> 2 | I118: (Select) | J118: (Select) | P118: =IF(ResidentialCheck="NR",IF(MID(M118,1,1)="Y",MIN(L118,O118),""),MIN(L118,O118)) -> 0
G120: 9a | H120: Total amount of STCG not chargeable to tax in India as per DTAA | R120: A9a | S120: =IF(MID(sheet1.ResidentialStatus1,1,3)="NRI",SUM(SUMIFS(STCG.A8_StcgAmt,STCG.A8_CertiStatus,"Yes",STCG.A8_Rate_Applicable,{"","0"})),SUM(SUMIFS(STCG.A8_StcgAmt,STCG.A8_Rate_Applicable,{"","0"}))) -> 0
G121: 9b | H121: Total amount of STCG chargeable to tax at special rates in India as per DTAA | R121: A9b | S121: =IF(MID(sheet1.ResidentialStatus1,1,3)="NRI",SUMIFS(STCG.A8_StcgAmt,STCG.A8_CertiStatus,"Yes",STCG.A8_Rate_Applicable,"<>""",STCG.A8_Rate_Applicable,"<>0"),SUM(SUMIFS(STCG.A8_StcgAmt,STCG.A8_Rate_Applicable,"<>""",STCG.A8_Rate_Applicable,"<>0"))) -> 0
E122: 9 | F122: Deemed short term capital gains on depreciable assets (6 of schedule- DCG)
E123: 10 | F123: Total Short-term Capital Gain (A1e+ A2c+ A3e+ A4a+ A4b+ A5e+ A6g+A7 + A8 – A9a) | R123: A10 | S123: =STCG_SaleLand_Total+STCG.A20ic_CapgainonAssets+STCG.A2ie_CapgainonAssets+STCG.A2iie_CapgainonAssets+STCG.A3a_NRItaxSTTPaid+STCG.A3b_NRItaxSTTNotPaid+STCG.A4e_CapgainonAssets+STCG.A5e_CapgainonAssets+STCG.A7_AmtDeemed+STCG_PTI_Total-STCG.A8a_StcgDTAA -> 0
D124: B | E124: Long-term capital gain (LTCG) (Items 6, 7 & 8 are not applicable for residents)
E125: 1 | F125: From sale of land or building or both (fill up details separately for each property)
F126: Date of Purchase
F127: Date of Sale
F128: a | G128: i | H128: Full value of consideration received/receivable | P128: ai
G129: ii | H129: Value of property as per stamp valuation authority | P129: aii
G130: iii | H130: Full value of consideration adopted as per section 50C for the purpose of Capital Gains [in case (aii) does not exceed 1.10 times (ai), take this figure as (ai), or else take (aii)] | P130: aiii | Q130: =IF(Q129>(1.1*Q128),Q129,Q128) -> 0
F131: b | G131: Deductions under section 48
G132: bi | H132: Reduction as per clause (iii) of section 48 of the Act, read with rule 8AB of the Rules | P132: bi
G133: bii | H133: Cost of acquisition | P133: bii
G134: biia | H134: Cost of acquisition with indexation | P134: biia | Q134: =IF(OR(LEN(Q126)<>10,LEN(Q127)<>10),0,ROUND(Q133*VLOOKUP(VALUE(IF(Q127="",2001,IF(VALUE(MID(Q127,4,2))>3,VALUE(MID(Q127,7,4)),VALUE(MID(Q127,7,4))-1))),CostInflationtbl,2)/VLOOKUP(MAX(2001,VALUE(IF(Q126="",2001,IF(VALUE(MID(Q126,4,2))>3,VALUE(MID(Q126,7,4)),VALUE(MID(Q126,7,4))-1)))),CostInflationtbl,2),0)) -> 0
G135: biib | H135: Total Cost of Improvement with indexation | P135: biib | Q135: =SUM(LTCG_SaleLand_ImproveCost1) -> 0
G136: SrNo | H136: Cost of improvement | I136: Year of Improvement | J136: Cost of Improvement with indexation
G137: 1 | J137: =ROUND(IF(H137="",0,H137*VLOOKUP(VALUE(IF($Q$127="",2001,IF(VALUE(MID($Q$127,4,2))>3,VALUE(MID($Q$127,7,4)),VALUE(MID($Q$127,7,4))-1))),CostInflationtbl,2)/VLOOKUP(MAX(2001,VALUE(IF(_xlfn.CONCAT("01/04/",MID(I137,1,4))="",2001,VALUE(MID(_xlfn.CONCAT("01/04/",MID(I137,1,4)),7,4))))),CostInflationtbl,2)),0) -> 0
G138: =G137+1 -> 2 | J138: =ROUND(IF(H138="",0,H138*VLOOKUP(VALUE(IF($Q$127="",2001,IF(VALUE(MID($Q$127,4,2))>3,VALUE(MID($Q$127,7,4)),VALUE(MID($Q$127,7,4))-1))),CostInflationtbl,2)/VLOOKUP(MAX(2001,VALUE(IF(_xlfn.CONCAT("01/04/",MID(I138,1,4))="",2001,VALUE(MID(_xlfn.CONCAT("01/04/",MID(I138,1,4)),7,4))))),CostInflationtbl,2)),0) -> 0
E139: 1
G141: iii | H141: Expenditure wholly and exclusively in connection with transfer | P141: biii
G142: biv | H142: Total (bi + biia + biib + biii) | P142: biv | Q142: =Q132+Q134+Q135+Q141 -> 0
F143: c | G143: Balance (aiii – biv) | P143: 1c | Q143: =Q130-Q142 -> 0
F144: di | G144: Deduction under section 54D (Specify details in item D below) | P144: di
F145: dii | G145: Deduction under section 54EC (Specify details in item D below) | P145: dii
F146: diii | G146: Deduction under section 54G (Specify details in item D below) | P146: diii
F147: div | G147: Deduction under section 54GA (Specify details in item D below) | P147: div
F148: d | G148: Total Deduction under section 54D/54EC/54G/54GA (Specify details in item D below) | P148: 1d | Q148: =SUM(Q144:Q147) -> 0
F149: e | G149: Long-term Capital Gains on Immovable property (1c - 1d) | R149: B1e | S149: =IF(Q143<0,Q143,MAX(0,Q143-Q148)) -> 0
F150: f | G150: In case of transfer of immovable property, please furnish the following details (see note)
G151: Sl. No. | H151: Name of buyer(s) | I151: PAN of buyer(s) | J151: Aadhaar No. of buyer(s) | K151: Percentage share | L151: Amount | M151: Address of property | N151: State Code | O151: PIN Code | P151: Country | Q151: ZipCode
G152: 1 | N152: (Select) | P152: (Select)
G153: =G152+1 -> 2 | N153: (Select) | P153: (select)
G154: =G153+1 -> 3 | N154: (Select) | P154: (select)
G155: =G154+1 -> 4 | N155: (Select) | P155: (select)
E156: 1
E159: Note : | G159: Furnishing of PAN/Aadhaar No. is mandatory, if the tax is deduced under section 194-IA or is quoted by buyer in the documents. In case of more than one buyer, please indicate the respective percentage share and amount
E160: 2 | F160: From Slump sale
F161: ai | G161: Fair market value as per Rule 11UAE(2) | P161: 2ai | Q161: 0
F162: aii | G162: Fair market value as per Rule 11UAE(3) | P162: 2aii | Q162: 0
F163: aiii | G163: Full value of consideration (higher of ai or aii) | P163: 2aiii | Q163: =MAX(LTCG.B02a_FullConsiderationUAEi,LTCG.B02a_FullConsiderationUAEii) -> 0
F164: b | G164: Net worth of the under taking or division | P164: 2b | Q164: 0
F165: c | G165: Balance (2aiii - 2b) | P165: 2c | Q165: =LTCG.B02a_FullConsideration-LTCG.B02b_NetWorthOfDivision -> 0
F166: d | G166: Deduction u/s 54EC (Specify details in item D below) | P166: di | Q166: 0
F167: e | G167: Long term capital gains from slump sale (2c-2d) | R167: B2e | S167: =IF(LTCG.B02c_SlumpBalance<0,LTCG.B02c_SlumpBalance,MAX(0,LTCG.B02c_SlumpBalance-LTCG.B02di_ExemptionAmount)) -> 0
E168: 3 | F168: From sale of bonds or debenture (other than capital indexed bonds issued by Government)
F169: a | G169: Full value of consideration | P169: 3a | Q169: 0
F170: b | G170: Deductions under section 48
G171: bi | H171: Reduction as per clause (iii) of section 48 of the Act, read with rule 8AB of the Rules | P171: bi | Q171: 0
G172: bii | H172: Cost of acquisition without indexation | P172: bii | Q172: 0
G173: biii | H173: Cost of improvement without indexation | P173: biii | Q173: 0
G174: biv | H174: Expenditure wholly and exclusively in connection with transfer | P174: biv | Q174: 0
G175: bv | H175: Total (bi + bii +biii+biv) | P175: v | Q175: =SUM(Q171:Q174) -> 0
F176: c | G176: LTCG on bonds or debenture (3a – biv) | R176: B3c | S176: =IF(LTCG.B2a_FullConsideration<0,LTCG.B2a_FullConsideration,LTCG.B2a_FullConsideration-LTCG.B2biv_TotalDedn) -> 0
E177: 4 | F177: From sale of listed securities (other than a unit) or zero coupon bonds where proviso under section 112(1) is applicable
F178: a | G178: Full value of consideration | P178: 4ia | Q178: 0
F179: b | G179: Deductions under section 48
G180: 4i | H180: Reduction as per clause (iii) of section 48 of the Act, read with rule 8AB of the Rules | P180: bi | Q180: 0
G181: 4ii | H181: Cost of acquisition without indexation | P181: bii | Q181: 0
G182: 4iii | H182: Cost of improvement without indexation | P182: biii | Q182: 0
G183: 4iv | H183: Expenditure wholly and exclusively in connection with transfer | P183: biv | Q183: 0
G184: 4v | H184: Total (bi + bii + biii + biv) | P184: bv | Q184: =SUM(Q180:Q183) -> 0
F185: c | G185: Long-term Capital Gains on assets at B4 above (4a – bv) | R185: B4c | S185: =IF(LTCG.B3a_FullConsideration<0,LTCG.B3a_FullConsideration,LTCG.B3a_FullConsideration-LTCG.B3biv_TotalDedn) -> 0
E186: 5 | F186: From sale of equity share in a company or unit of equity oriented fund or unit of a business trust on which STT is paid under section 112A
F187: a | G187: Long-term Capital on sale of capital assets at B5 above (column 14 of Schedule 112A). | Q187: =ROUND(Total_Balance_112A,0) -> 0
F188: b | G188: Reduction as per clause (iii) of section 48 of the Act, read with rule 8AB of the Rules
F189: c | G189: Long-term Capital Gains on sale of capital assets at B5 (a) | R189: B5a | S189: =ROUND(LTCG.B5f_LTCGonSalebeforereduction-LTCG.B5f_LTCGonSalereduction,0) -> 0
E190: 6 | F190: For NON-RESIDENTS- from sale of shares or debenture of Indian company (to be computed with foreign exchange adjustment under first proviso to section 48)
F191: LTCG computed without indexation benefit | R191: B6
E192: 7 | F192: For NON-RESIDENTS- from sale of unlisted securities or shares of a company not being a company in which the public are substantially interested as per sec. 112(1)(c)
F193: ai | G193: In case securities sold include shares of a company other than quoted shares, enter the following details
G194: a) Full value of consideration received/receivable in respect of unquoted shares | P194: ia
G195: b) Fair market value of unquoted shares determined in the prescribed manner | P195: ib
G196: c) Full value of consideration in respect of unquoted shares adopted as per section 50CA for the purpose of Capital Gains (higher of a or b) | P196: ic | Q196: =MAX(Q194,Q195) -> 0
F197: ii | G197: Full value of consideration in respect of assets other than unquoted shares | P197: ii
F198: iii | G198: Total (ic + ii) | P198: aiii | Q198: =SUM(Q196,Q197) -> 0
F199: b | G199: Deductions under section 48
G200: bi | H200: Reduction as per clause (iii) of section 48 of the Act, read with rule 8AB of the Rules | P200: bi
G201: bii | H201: Cost of acquisition without indexation | P201: bii
G202: biii | H202: Cost of improvement without indexation | P202: biii
G203: biv | H203: Expenditure wholly and exclusively in connection with transfer | P203: biv
G204: bv | H204: Total (bi + bii + biii + biv) | P204: bv | Q204: =SUM(Q200:Q203) -> 0
F205: c | G205: Long-term Capital Gains on assets at 7 above in case of NON-RESIDENT (7aiii –7bv) | R205: Bi7c | S205: =IF(LTCG.Bi5a_FullConsideration<0,LTCG.Bi5a_FullConsideration,LTCG.Bi5a_FullConsideration-LTCG.Bi5biv_TotalDedn) -> 0
F206: For NON-RESIDENTS- from units referred in sec. 115AB
F207: ai | G207: In case assets sold include shares of a company other than quoted shares, enter the following details
G208: a) Full value of consideration received/receivable in respect of unquoted shares | P208: ia
G209: b) Fair market value of unquoted shares determined in the prescribed manner | P209: ib
... 131 more rows

Sheet Schedule 112A
C3: Tool-112A | E3: From sale of equity share in a company or unit of equity oriented fund or unit of a business trust on which STT is paid under section 112A
D4: Sl. No. | E4: Share/Unit Acquired | F4: ISIN Code | G4: Name of the Share/Unit | H4: No. of Shares/Units | I4: Sale-price per Share/Unit | J4: Full Value of Consideration If shares/units are acquired on or before 31st January, 2018 (Total Sale Value) (4*5) or If shares/units are acquired after 31st January, 2018 - Please enter Full Value of Consideration | K4: Cost of acquisition without indexation Higher of 8 & 9 | L4: Cost of acquisition | M4: If the long term capital asset was acquired before 01.02.201 8, Lower of 6 & 11 | N4: Fair Market Value per share/unit as on 31st January,2018 | O4: Total Fair Market Value as on 31st January, 2018 of capital asset as per section 55(2)(ac)- (4*10) | P4: Expenditure wholly and exclusively in connection with transfer | Q4: Total deductions (7+12) | R4: Balance (6-13) Item 5 of LTCG Schedule of ITR5
D5: (Col 1) | E5: (Col 1a) | F5: (Col 2) | G5: (Col 3) | H5: (Col 4) | I5: (Col 5) | J5: (Col 6) | K5: (Col 7) | L5: (Col 8) | M5: (Col 9) | N5: (Col 10) | O5: (Col 11) | P5: (Col 12) | Q5: (Col 13) | R5: (Col 14)
D6: 1 | E6: (Select) | J6: =ROUND(MAX(0,ROUND(H6,4)*ROUND(I6,4)),0) -> 0 | K6: =ROUND(MAX(0,ROUND(L6,4),ROUND(M6,0)),0) -> 0 | M6: =ROUND(MAX(0,MIN(ROUND(O6,0),ROUND(J6,0))),0) -> 0 | O6: =ROUND(MAX(0,ROUND(H6,4)*ROUND(N6,4)),0) -> 0 | Q6: =ROUND(MAX(0,SUM(ROUND(K6,0),ROUND(P6,4))),0) -> 0 | R6: =ROUND(ROUND(J6,0)-ROUND(Q6,0),0) -> 0 | U6: =IF(ISERROR(VLOOKUP(F6,ISINListTable,2,FALSE)),"",VLOOKUP(F6,ISINListTable,2,FALSE)) -> 
D7: =D6+1 -> 2 | E7: (Select) | J7: =ROUND(MAX(0,ROUND(H7,4)*ROUND(I7,4)),0) -> 0 | K7: =ROUND(MAX(0,ROUND(L7,4),ROUND(M7,0)),0) -> 0 | M7: =ROUND(MAX(0,MIN(ROUND(O7,0),ROUND(J7,0))),0) -> 0 | O7: =ROUND(MAX(0,ROUND(H7,4)*ROUND(N7,4)),0) -> 0 | Q7: =ROUND(MAX(0,SUM(ROUND(K7,0),ROUND(P7,4))),0) -> 0 | R7: =ROUND(ROUND(J7,0)-ROUND(Q7,0),0) -> 0
D8: =D7+1 -> 3 | E8: (Select) | J8: 0 | K8: 0 | M8: 0 | O8: 0 | Q8: 0 | R8: 0
D9: =D8+1 -> 4 | E9: (Select) | J9: 0 | K9: 0 | M9: 0 | O9: 0 | Q9: 0 | R9: 0
J11: =SUM(TotalSaleValue_112A) -> 0 | K11: =SUM(COAwithoutIndex_112A) -> 0 | L11: =SUM(COAwithIndex_112A) -> 0 | M11: =SUM(LTCGAssetAcquired_112A) -> 0 | O11: =SUM(TotalFairMarketValue_112A) -> 0 | P11: =SUM(ExpenditureWholly_112A) -> 0 | Q11: =SUM(TotalDeductions_112A) -> 0 | R11: =SUM(Balance_112A) -> 0

Sheet Instructions (hidden)
C3: Instructions to import CSV file
C4: i | D4: First Column values should be ISIN Code
C5: ii | D5: Second Column values should be No. of Shares/Units
C6: iii | D6: Third Column values should be Sale-price per Share/Unit
C7: iv | D7: Fourth Column values should be Cost of acquisition
C8: v | D8: Fifth Column values should be Fair Market Value per share/unit as on 31st January,2018
C9: vi | D9: Sixth Column values should be Expenditure wholly and exclusively in connection with transfer
C10: vii | D10: Only one Sheet is allowed in CSV Format
C11: viii | D11: CSV file name Should be Same as Schedule Name : Schedule 112A or Schedule 115AD(1)(iii) proviso
C12: ix | D12: Then Click on Import from .CSV file button to import CSV file

Sheet Schedule 115AD(1)(iii)(p)
C3: Tool-115AD(1)(iii)(p) | E3: For NON-RESIDENTS - From sale of equity share in a company or unit of equity oriented fund or unit of a business trust on which STT is paid under section 112A
D4: Sl. No. | E4: Share/Unit Acquired | F4: ISIN Code | G4: Name of the Share/Unit | H4: No. of Shares/Units | I4: Sale-price per Share/Unit | J4: Full Value of Consideration If shares/units are acquired on or before 31st January, 2018 (Total Sale Value) (4*5) or If shares/units are acquired after 31st January, 2018 - Please enter Full Value of Consideration | K4: Cost of acquisition without indexation Higher of 8 & 9 | L4: Cost of acquisition | M4: If the long term capital asset was acquired before 01.02.2018 , Lower of 6 & 11 | N4: Fair Market Value per share/unit as on 31st January,2018 | O4: Total Fair Market Value of capital asset as per section 55(2)(ac)- (4*10) | P4: Expenditure wholly and exclusively in connection with transfer | Q4: Total deductions (7+12) | R4: Balance (6-13) Item 8 of LTCG Schedule of ITR5
D5: (Col 1) | E5: (Col 1a) | F5: (Col 2) | G5: (Col 3) | H5: (Col 4) | I5: (Col 5) | J5: (Col 6) | K5: (Col 7) | L5: (Col 8) | M5: (Col 9) | N5: (Col 10) | O5: (Col 11) | P5: (Col 12) | Q5: (Col 13) | R5: (Col 14)
D6: 1 | K6: =ROUND(MAX(0,ROUND(L6,4),ROUND(M6,0)),0) -> 0 | M6: =ROUND(MAX(0,MIN(ROUND(O6,0),ROUND(J6,0))),0) -> 0 | O6: =ROUND(MAX(0,ROUND(H6,4)*ROUND(N6,4)),0) -> 0 | Q6: =ROUND(MAX(0,SUM(ROUND(K6,0),ROUND(P6,4))),0) -> 0 | R6: =ROUND(ROUND(J6,0)-ROUND(Q6,0),0) -> 0 | U6: =IF(ISERROR(VLOOKUP(F6,ISINListTable,2,FALSE)),"",VLOOKUP(F6,ISINListTable,2,FALSE)) -> 
D7: =D6+1 -> 2 | K7: =ROUND(MAX(0,ROUND(L7,4),ROUND(M7,0)),0) -> 0 | M7: =ROUND(MAX(0,MIN(ROUND(O7,0),ROUND(J7,0))),0) -> 0 | O7: =ROUND(MAX(0,ROUND(H7,4)*ROUND(N7,4)),0) -> 0 | Q7: =ROUND(MAX(0,SUM(ROUND(K7,0),ROUND(P7,4))),0) -> 0 | R7: =ROUND(ROUND(J7,0)-ROUND(Q7,0),0) -> 0
D8: =D7+1 -> 3 | K8: 0 | M8: 0 | O8: 0 | Q8: 0 | R8: 0
D9: =D8+1 -> 4 | K9: 0 | M9: 0 | O9: 0 | Q9: 0 | R9: 0
J11: =SUM(TotalSaleValue_115AD) -> 0 | K11: =SUM(COAwithoutIndex_115AD) -> 0 | L11: =SUM(COAwithIndex_115AD) -> 0 | M11: =SUM(LTCGAssetAcquired_115AD) -> 0 | O11: =SUM(TotalFairMarketValue_115AD) -> 0 | P11: =SUM(ExpenditureWholly_115AD) -> 0 | Q11: =SUM(TotalDeductions_115AD) -> 0 | R11: =SUM(Balance_115AD) -> 0

Sheet HelpCSV (hidden)
B1: Instructions for filling Schedule 112A/115AD(1)(b)(iii)(P)
B2: Option 1 – Fill Data directly in utility
B3: 1 | C3: Enter all the required details. To add rows select "Add" and update the details. To delete rows select the row which is to be deleted and then click on "Delete".
B4: 2 | C4: Click on "Save" to go back to schedule 112A/115AD(1)(b)(iii)(P).
B5: Note: | C5: This option is useful when there are limited number of entries in this schedule .
B8: Option 2 – Upload through CSV
B9: 1 | C9: Download the template through the link.
B10: 2 | C10: Click on the template; provide a file name to save the CSV.
B11: 3 | C11: Update the data as per the headings provided in the CSV template (Refer instructions below to fill the csv file).
B12: 4 | C12: Save the date and upload the CSV file in the utility.
B13: 5 | C13: Maintaining data consistency is important to avoid errors upon upload.
B16: Instructions to fill csv file:
B17: 1 | C17: For the first column, referring to column 1a of schedule 112A in the return, ‘Share/Unit acquired’, enter the value ‘BE’ if the share/unit was acquired on or before 31st January 2018. If share/unit was acquired after 31st January 2018, enter value ‘AE’.
B18: 2 | C18: For column 2 ‘ISIN Code’, enter alphanumeric value and first two characters should start with ‘IN’. In case security/Share does not have ISIN Code, enter "INNOTAVAILAB". If in 1a, ‘AE’ is entered, enter ‘INNOTREQUIRD’.
B19: 3 | C19: For column 3 ‘Name of the Share/Unit’, input should contain only alphanumeric values without any special characters. If in 1a, ‘AE’ entered, enter ‘CONSOLIDATED’.
B20: 4 | C20: Column 4 ‘No. of Shares/Units field’ should be numeric, non- negative and decimals are allowed upto 4 digits. If in 1a, ‘AE’ is entered, leave this field as blank.
B21: 5 | C21: Column 5 ‘Sale-price per Share/Unit’ should be numeric, non- negative and decimals are allowed upto 4 digits. If in 1a, ‘AE’ is entered, leave this field as blank.
B22: 6 | C22: Column 6 ‘Full Value of Consideration (Total Sale Value)’ should be equal to the value at sl. No. 4 multiplied by sl. No. 5 (4*5) if ‘BE’ is entered in 1a. Value should be rounded off to the nearest unit. If in 1a ‘AE’ is entered, enter full value of consideration.
B23: 7 | C23: Column 7 ‘Cost of acquisition without indexation’, entered value should be higher of value mentioned in Column 8 [‘Cost of acquisition’] and Column 9 [“If the long-term capital asset was acquired before 01.02.2018, lower of 11 & 6”].
B24: 8 | C24: Column 8 ‘Cost of acquisition’ field should be numeric, non- negative and decimals are allowed upto 4 digits.
B25: 9 | C25: Column 9 ‘If the long-term capital asset was acquired before 01.02.2018, (i.e., if entry in col 1 is “BE”) lower of 11 & 6’ [field should be lower of value mentioned in column 11‘Total Fair Market Value of capital asset as per section 55(2) (ac)’ and in column 6 ‘Full Value Consideration’].
B26: 10 | C26: Column 10 ‘Fair Market Value per share/unit as on 31st January,2018’ should be numeric, non- negative and decimals are allowed upto 4 digits. If in 1a, ‘AE’ is entered, leave this field as blank.
B27: 11 | C27: Column 11 ‘Total Fair Market Value of capital asset as per section 55(2) (ac)’ field should be equal to value at column 4 ‘No. of Shares/Units’ multiply by Column 10 ‘Fair Market Value per share/unit as on 31st January,2018’. Value should be rounded off to the nearest unit.
B28: 12 | C28: Column 12 ‘Expenditure wholly and exclusively in connection with transfer’ field should be numeric, non- negative and decimals are allowed upto 4 digits.
B29: 13 | C29: Column 13 ‘Total deductions (7+12)’ field should be sum of value at column 7 ‘Cost of acquisition without indexation’ and column 12 ‘Expenditure wholly and exclusively in connection with transfer’. Value should be rounded off to the nearest unit.
B30: 14 | C30: Column 14 ‘Balance (6-13)’ field should be equal to value at column 6 ‘Full Value Consideration’ minus value at column 13 ‘Total deductions (7+12)’. Value should be rounded off to the nearest unit.

Sheet OS
Z1: Source | AK1: DTAA
Z2: 5A1ai | AA2: =SUMIF(OS_Section_Code,Z2,os.SourceAmount) -> 0 | AB2: 5Ea | AC2: =SUMIF(OS_Section_Code,AB2,os.SourceAmount) -> 0 | AD2: 5AD1i | AE2: =SUMIF(OS_Section_Code,AD2,os.SourceAmount) -> 0 | AF2: 5AB1a | AG2: =SUMIF(OS_Section_Code,AF2,os.SourceAmount) -> 0 | AH2: 56i | AI2: =MAX(0,os.DividendGross) -> 0 | AK2: 5A1ai | AL2: =IF(Residentialstatuscheck="NRI",SUMIFS(os.Amount_income,os.TRC,"=Yes",DTAA_Section_Code,AK2),SUMIF(DTAA_Section_Code,AK2,os.Amount_income)) -> 0 | AM2: 5Ea | AN2: =IF(Residentialstatuscheck="NRI",SUMIFS(os.Amount_income,os.TRC,"=Yes",DTAA_Section_Code,AM2),SUMIF(DTAA_Section_Code,AM2,os.Amount_income)) -> 0 | AO2: 5AD1i | AP2: =IF(Residentialstatuscheck="NRI",SUMIFS(os.Amount_income,os.TRC,"=Yes",DTAA_Section_Code,AO2),SUMIF(DTAA_Section_Code,AO2,os.Amount_income)) -> 0 | AQ2: 5AB1a | AR2: =IF(Residentialstatuscheck="NRI",SUMIFS(os.Amount_income,os.TRC,"=Yes",DTAA_Section_Code,AQ2),SUMIF(DTAA_Section_Code,AQ2,os.Amount_income)) -> 0 | AS2: 56i | AT2: =IF(Residentialstatuscheck="NRI",SUMIFS(os.Amount_income,os.TRC,"=Yes",DTAA_Section_Code,AS2),SUMIF(DTAA_Section_Code,AS2,os.Amount_income)) -> 0 | AU2: 5AD1IBd | AV2: =IF(Residentialstatuscheck="NRI",SUMIFS(os.Amount_income,os.TRC,"=Yes",DTAA_Section_Code,AU2),SUMIF(DTAA_Section_Code,AU2,os.Amount_income)) -> 0
C3: Schedule OS | F3: Income from Other Sources | T3: =IF(MID(sheet1.ResidentialStatus1,1,3)="RES","RES","NRI") -> RES | Z3: 5A1aii | AA3: 0 | AB3: 5A1bA | AC3: 0 | AD3: 5AD1iP | AE3: =SUMIF(OS_Section_Code,AD3,os.SourceAmount) -> 0 | AF3: 1 | AG3: 0 | AH3: 56 | AI3: =os.InterestGross -> 410000 | AK3: 5A1aii | AL3: 0 | AM3: 5A1bA | AN3: 0 | AO3: 5AD1iP | AP3: 0 | AQ3: 5BB | AR3: 0 | AS3: 56 | AT3: =IF(Residentialstatuscheck="NRI",SUMIFS(os.Amount_income,os.TRC,"=Yes",DTAA_Section_Code,AS3),SUMIF(DTAA_Section_Code,AS3,os.Amount_income)) -> 0 | AU3: 5AD1IB | AV3: =IF(Residentialstatuscheck="NRI",SUMIFS(os.Amount_income,os.TRC,"=Yes",DTAA_Section_Code,AU3),SUMIF(DTAA_Section_Code,AU3,os.Amount_income)) -> 0
D4: 1 | E4: Gross Income chargeable to tax at normal applicable rates (1a+ 1b+ 1c+ 1d + 1e) | O4: 1 | P4: =SUM(N5,N8,N14,N15,N21) -> 535000 | T4: =SUM(J77:N77) -> 0 | Z4: 5A1aiia | AA4: 0 | AB4: 5ACA1a | AC4: 0 | AD4: 5BBA | AE4: =SUMIF(OS_Section_Code,AD4,os.SourceAmount) -> 0 | AF4: 5BB | AG4: =MAX(0,os.WinLottRacePuzz) -> 0 | AH4: 562iii | AI4: =MAX(0,os.RentFromMachPlantBldgs) -> 0 | AK4: 5A1aiia | AL4: 0 | AM4: 5ACA1a | AN4: 0 | AO4: 5BBA | AP4: 0 | AQ4: 5B | AR4: 0 | AS4: 562iii | AT4: =IF(Residentialstatuscheck="NRI",SUMIFS(os.Amount_income,os.TRC,"=Yes",DTAA_Section_Code,AS4),SUMIF(DTAA_Section_Code,AS4,os.Amount_income)) -> 0 | AU4: 5AC1b | AV4: =IF(Residentialstatuscheck="NRI",SUMIFS(os.Amount_income,os.TRC,"=Yes",DTAA_Section_Code,AU4),SUMIF(DTAA_Section_Code,AU4,os.Amount_income)) -> 0
E5: a | F5: Dividends Gross | M5: 1a | N5: =os.DividendGrossai+os.DividendGrossaii -> 0 | T5: =SUM(J76:N76)+SUM(J83:N83) -> 0 | Z5: 5A1aiiaa | AA5: 0 | AB5: 5AC1a | AC5: 0 | AD5: 5BBC | AE5: =SUMIF(OS_Section_Code,AD5,os.SourceAmount) -> 0 | AF5: 5B | AG5: 0 | AH5: 562x | AI5: =os.Tot562x -> 125000 | AK5: 5A1aiiaa | AL5: 0 | AM5: 5AC1a | AN5: 0 | AO5: 5BBC | AP5: 0 | AQ5: 5BBDA | AR5: 0 | AS5: 562x | AT5: =IF(Residentialstatuscheck="NRI",SUMIFS(os.Amount_income,os.TRC,"=Yes",DTAA_Section_Code,AS5),SUMIF(DTAA_Section_Code,AS5,os.Amount_income)) -> 0
E6: ai | F6: Dividend income [other than (ii)] | M6: 1ai | N6: =OS10_Upto15Of6+OS10_Up16Of6To15Of9+OS10_Up16Of9To15Of12+OS10_Up16Of12To15Of3+OS10_Up16Of3To31Of3+DivDTAA+IF(os.amountinterestexpenditure="",os.expenditureClaimed1,os.amountinterestexpenditure1) -> 0
E7: aii | F7: Dividend income u/s 2(22)(e) | M7: 1aii | N7: 0 | AS7: 5A1aiiaaP | AT7: =IF(Residentialstatuscheck="NRI",SUMIFS(os.Amount_income,os.TRC,"=Yes",DTAA_Section_Code,AS7),SUMIF(DTAA_Section_Code,AS7,os.Amount_income)) -> 0
E8: b | F8: Interest, Gross (bi + bii + biii + biv + bv) | M8: 1b | N8: =SUM(N9:N13) -> 410000 | Z8: 5A1aiiab | AA8: 0 | AB8: 5ACA1a | AC8: 0 | AD8: 5BBD | AE8: =SUMIF(OS_Section_Code,AD8,os.SourceAmount) -> 0 | AF8: 5BBDA | AG8: 0 | AH8: 5A1aiiaaP | AI8: =SUMIF(OS_Section_Code,AH8,os.SourceAmount) -> 0 | AK8: 5A1aiiab | AL8: 0 | AM8: 5ACA1a | AN8: 0 | AO8: 5BBD | AP8: 0 | AQ8: 5BBF | AR8: 0 | AS8: 5A1aiiaci | AT8: =IF(Residentialstatuscheck="NRI",SUMIFS(os.Amount_income,os.TRC,"=Yes",DTAA_Section_Code,AS8),SUMIF(DTAA_Section_Code,AS8,os.Amount_income)) -> 0
F9: i) From Savings bank | M9: bi | Z9: 5A1aiii | AA9: 0 | AB9: 5A1aiiac | AC9: 0 | AD9: 5BBE | AE9: =os.IncChrgblUs115BBE -> 0 | AF9: 5BBF | AG9: 0 | AH9: 5A1aiiaci | AI9: 0 | AK9: 5A1aiii | AL9: 0 | AM9: 5A1aiiac | AN9: 0 | AO9: 5BBE | AP9: 0 | AQ9: 5BBG | AR9: 0 | AS9: 5AD1iDiv | AT9: =IF(Residentialstatuscheck="NRI",SUMIFS(os.Amount_income,os.TRC,"=Yes",DTAA_Section_Code,AS9),SUMIF(DTAA_Section_Code,AS9,os.Amount_income)) -> 0
F10: ii) From Deposits (Bank/ Post Office/ Co-operative Society) | M10: bii | N10: 410000 | AF10: 5BBG | AG10: 0 | AH10: 5AD1iDiv | AI10: 0
F11: iii) From Income Tax refund | M11: biii | AH11: 5AD1IBd | AI11: 0
F12: iv) In the nature of Pass through income/ loss | M12: biv | Z12: PTI_ Source | AH12: 5AD1IB | AI12: 0 | AK12: PTI_ DTAA
F13: v) From others | M13: bv | Z13: PTI_5A1ai | AA13: =SUMIF(PTI_Section_Code,Z13,os.PTIAmount) -> 0 | AB13: PTI_5A1aiii | AC13: =SUMIF(PTI_Section_Code,AB13,os.PTIAmount) -> 0 | AD13: PTI_5AD1iP | AE13: =SUMIF(PTI_Section_Code,AD13,os.PTIAmount) -> 0 | AF13: PTI_5BBDA | AG13: =SUMIF(PTI_Section_Code,AF13,os.PTIAmount) -> 0 | AH13: 5AC1b | AI13: 0 | AK13: PTI_5A1ai | AL13: =IF(Residentialstatuscheck="NRI",SUMIFS(os.Amount_income,os.TRC,"=Yes",DTAA_Section_Code,AK13),SUMIF(DTAA_Section_Code,AK13,os.Amount_income)) -> 0 | AM13: PTI_5A1aiii | AN13: =IF(Residentialstatuscheck="NRI",SUMIFS(os.Amount_income,os.TRC,"=Yes",DTAA_Section_Code,AM13),SUMIF(DTAA_Section_Code,AM13,os.Amount_income)) -> 0 | AO13: PTI_5AD1iP | AP13: =IF(Residentialstatuscheck="NRI",SUMIFS(os.Amount_income,os.TRC,"=Yes",DTAA_Section_Code,AO13),SUMIF(DTAA_Section_Code,AO13,os.Amount_income)) -> 0 | AQ13: PTI_5BBDA | AR13: =IF(Residentialstatuscheck="NRI",SUMIFS(os.Amount_income,os.TRC,"=Yes",DTAA_Section_Code,AQ13),SUMIF(DTAA_Section_Code,AQ13,os.Amount_income)) -> 0
E14: c | F14: Rental income from machinery, plants, buildings, etc., Gross | M14: 1c | Z14: PTI_5A1aii | AA14: 0 | AB14: PTI_5A1bA | AC14: 0 | AD14: PTI_5BBA | AE14: 0 | AF14: PTI_5BBF | AG14: 0 | AK14: PTI_5A1aii | AL14: 0 | AM14: PTI_5A1bA | AN14: 0 | AO14: PTI_5BBA | AP14: 0 | AQ14: PTI_5BBF | AR14: 0
E15: d | F15: Income of the nature referred to in section 56(2)(x) which is chargeable to tax (di + dii + diii + div + dv) | M15: 1d | N15: =SUM(N16:N20) -> 125000 | Z15: PTI_5A1aiia | AA15: 0 | AD15: PTI_5BBC | AE15: 0 | AF15: PTI_5Ea | AG15: 0 | AK15: PTI_5A1aiia | AL15: 0 | AM15: PTI_5AC1b | AN15: 0 | AO15: PTI_5BBC | AP15: 0 | AQ15: PTI_5Ea | AR15: 0
F16: i) Aggregate value of sum of money received without consideration | M16: di | N16: 125000 | Z16: PTI_5A1aiiaa | AA16: 0 | AB16: PTI_5AB1a | AC16: 0 | AD16: PTI_5BBG | AE16: 0 | AF16: PTI_5ACA1a | AG16: 0 | AK16: PTI_5A1aiiaa | AL16: 0 | AM16: PTI_5AB1a | AN16: 0 | AO16: PTI_5BBG | AP16: 0 | AQ16: PTI_5ACA1a | AR16: 0
F17: ii) In case immovable property is received without consideration, stamp duty value of property | M17: dii | Z17: PTI_5A1aiiab | AA17: 0 | AB17: PTI_5AC1a | AC17: 0 | AD17: PTI_5BB | AE17: 0 | AF17: PTI_5A1aiiaaP | AG17: 0 | AK17: PTI_5A1aiiab | AL17: 0 | AM17: PTI_5AC1a | AN17: 0 | AO17: PTI_5BB | AP17: 0 | AQ17: PTI_5A1aiiaaP | AR17: 0
F18: iii) In case immovable property is received for inadequate consideration, stamp duty value of property in excess of such consideration | M18: diii | Z18: PTI_5A1aiiac | AA18: 0 | AB18: PTI_5AD1i | AC18: 0 | AD18: PTI_5BBE | AE18: 0 | AF18: PTI_5A1aiiaci | AG18: 0 | AK18: PTI_5A1aiiac | AL18: 0 | AM18: PTI_5AD1i | AN18: 0 | AO18: PTI_5BBE | AP18: 0 | AQ18: PTI_5A1aiiaci | AR18: 0
F19: iv) In case any other property is received without consideration, fair market value of property | M19: div | AD19: PTI_5AC1b | AE19: =SUMIF(PTI_Section_Code,AD19,os.PTIAmount) -> 0 | AF19: PTI_5AD1iDiv | AG19: 0 | AO19: PTI_5AC1b | AP19: =IF(Residentialstatuscheck="NRI",SUMIFS(os.Amount_income,os.TRC,"=Yes",DTAA_Section_Code,AO19),SUMIF(DTAA_Section_Code,AO19,os.Amount_income)) -> 0 | AQ19: PTI_5AD1iDiv | AR19: 0
F20: v) In case any other property is received for inadequate consideration, Fair market value of property in excess of such consideration. | M20: dv | AF20: PTI_5AD1IBd | AG20: 0 | AQ20: PTI_5AD1IBd | AR20: 0
E21: e | F21: Any other income (please specify nature) | M21: 1e | N21: =SUM(os.AnyotherAmount) -> 0 | V21: =OS10_Upto15Of6+OS10_Up16Of6To15Of9+OS10_Up16Of9To15Of12+OS10_Up16Of12To15Of3+OS10_Up16Of3To31Of3+OSDTAA_Upto15Of6+OSDTAA_Up16Of6To15Of9+OSDTAA_Up16Of9To15Of12+OSDTAA_Up16Of12To15Of3+OSDTAA_Up16Of3To31Of3+IF(os.amountinterestexpenditure="",os.expenditureClaimed,os.amountinterestexpenditure) -> 0 | AF21: PTI_5AD1IB | AG21: 0 | AQ21: PTI_5AD1IB | AR21: 0
F22: Sl. No. | G22: Nature | L22: Amount | V22: =IF(os.amountinterestexpenditure="",os.expenditureClaimed,os.amountinterestexpenditure) -> 0
F23: 1
F24: =F23+1 -> 2
D26: 2 | E26: Income chargeable at special rates (2a+ 2b+ 2c+ 2d + 2e related to sl.no.1) | O26: 2 | P26: =MAX(0,SUM(N27,N28,N35,N41,DTAA_56I_OS,DTAA_56_OS,DTAA_562iii_OS,DTAA_562x_OS)) -> 0
E27: a | F27: Income by way of winnings from lotteries, crossword puzzles etc. chargeable u/s 115BB | M27: 2a
E28: b | F28: Income chargeable u/s 115BBE (bi + bii + biii + biv+ bv + bvi) | M28: 2b | N28: =SUM(N29:N34) -> 0
F29: i) Cash credits u/s 68 | M29: bi
F30: ii) Unexplained investments u/s 69 | M30: bii
F31: iii) Unexplained money etc. u/s 69A | M31: biii
F32: iv) Undisclosed investments etc. u/s 69B | M32: biv
F33: v) Unexplained expenditure etc. u/s 69C | M33: bv
F34: vi) Amount borrowed or repaid on hundi u/s 69D | M34: bvi
E35: c | F35: Any other income chargeable at special rate (total of ci to cxxiii) | M35: 2c | N35: =SUM(os.SourceAmount) -> 0
F36: Sl. No. | G36: Nature | M36: Amount | S36: OS Section Code
F37: =1 -> 1 | G37: (Select) | S37: =MID(G37,1,SEARCH("-",G37)-1) ->  | T37: =VLOOKUP(S37,OS_LOOKUP,2,FALSE) -> 
F38: =F37+1 -> 2 | G38: (Select) | T38: =VLOOKUP(S38,OS_LOOKUP,2,FALSE) -> 
F39: 3 | G39: (Select)
E41: d | F41: Pass through income in the nature of income from other sources chargeable at special rates | M41: 2d | N41: =SUM(os.PTIAmount) -> 0
F42: Sl. No. | G42: Nature | M42: Amount | S42: PTI Section Code
F43: =1 -> 1 | G43: (Select) | S43: =MID(G43,1,SEARCH("-",G43)-1) ->  | T43: =VLOOKUP(S43,PTI_OS_LOOKUP,2,FALSE) -> 
F44: =F43+1 -> 2 | G44: (Select)
F45: =F44+1 -> 3 | G45: (Select)
E47: e | F47: Amount included in 1 and 2 above, which is chargeable at special rates in India as per DTAA (total of column (2) of table below) | M47: 2e | N47: =IF(Residentialstatuscheck="NRI",SUMIF(os.TRC,"Yes",os.Amount_income),SUM(os.Amount_income)) -> 0
E48: Sl. No (Col 1) | F48: Amount of income (Col 2) | G48: Item No.1&2 in which included (Col 3) | H48: Country name, code (Col 4) | I48: Article of DTAA (Col 5) | J48: Rate as per Treaty (enter NIL, if not chargeable) (Col 6) | K48: Whether TRC obtained? (Col 7) | L48: Section of I.T. Act (Col 8) | M48: Rate as per I.T. Act (Col 9) | N48: Applicable rate [lower of (6) or (9)] (Col 10) | T48: =os.expenditureClaimed-MIN(os.expenditureClaimed,os.DividendGrossaii) -> 0 | U48: =IF(os.amountinterestexpenditure="",0,os.amountinterestexpenditure-MIN(os.amountinterestexpenditure,os.DividendGrossaii)) -> 0
E49: 1 | L49: (Select) | N49: =IF(Residentialstatuscheck="NRI",IF(MID(K49,1,1)="Y",MIN(J49,M49),""),MIN(J49,M49)) -> 0 | S49: =MID(L49,1,SEARCH("-",L49)-1) ->  | T49: =VLOOKUP(S49,OS_DTAA_LOOKUP,2,FALSE) -> 
E50: =E49+1 -> 2 | L50: (Select) | N50: =IF(Residentialstatuscheck="NRI",IF(MID(K50,1,1)="Y",MIN(J50,M50),""),MIN(J50,M50)) -> 0 | S50: =MID(L50,1,SEARCH("-",L50)-1) ->  | T50: =VLOOKUP(S50,OS_DTAA_LOOKUP,2,FALSE) -> 
E51: =E50+1 -> 3 | L51: (Select) | N51: =IF(Residentialstatuscheck="NRI",IF(MID(K51,1,1)="Y",MIN(J51,M51),""),MIN(J51,M51)) -> 0 | S51: =MID(L51,1,SEARCH("-",L51)-1) ->  | T51: =VLOOKUP(S51,OS_DTAA_LOOKUP,2,FALSE) -> 
E52: =E51+1 -> 4 | L52: (Select) | N52: =IF(Residentialstatuscheck="NRI",IF(MID(K52,1,1)="Y",MIN(J52,M52),""),MIN(J52,M52)) -> 0 | S52: =MID(L52,1,SEARCH("-",L52)-1) ->  | T52: =VLOOKUP(S52,OS_DTAA_LOOKUP,2,FALSE) -> 
D54: 3 | E54: Deductions under section 57: (other than those relating to income chargeable at special rate under 2a, 2b ,2c, 2d & 2e)
E55: a | F55: Expenses / Deductions other than "C" | M55: 3a
E56: a(ii) | F56: Deduction u/s 57 (iia) (in case of family pension only) | M56: 3aii
E57: b | F57: Depreciation (available only if income offered in 1c of "schedule OS") | M57: 3b
E58: c | F58: Interest expenditure on dividend u/s 57(1 ) (available only if income offered in 1a)
F59: Interest expenditure on dividend entered value
F60: Eligible amount of interest expenditure-computed value | M60: 3c | N60: 0
E61: d | F61: Total | M61: 3d | N61: =os.Depreciation+os.Expenses+os.amountinterestexpenditure -> 0
D62: 4 | E62: Amounts not deductible u/s 58 | O62: 4
D63: 5 | E63: Profits chargeable to tax u/s 59 | O63: 5
D64: 6 | E64: Net Income from other sources chargeable at normal applicable rates 1(after reducing income related to DTAA portion)-3+4+5 (If negative take the figure to 4i of schedule CYLA) | O64: 6 | P64: =os.GrossIncChrgblTaxAtAppRate-os.TotDeductions+MAX(0,os.Amountus58)+os.Profitus59-DTAA_56_OS-DTAA_56I_OS-DTAA_562iii_OS-DTAA_562x_OS -> 535000
D65: 7 | E65: Income from other sources (other than from owning and maintaining race horses) (2 + 6) (enter 6 as nil, if negative) | O65: 7 | P65: =MAX(0,os.BalanceNoRaceHorse)+os.IncChargeableSpecialRates -> 535000
D66: 8 | E66: Income from the activity of owning race horses
E67: a | F67: Receipts | M67: 8a
E68: b | F68: Deductions under section 57 in relation to receipts at 8a only | M68: 8b
E69: c | F69: Amounts not deductible u/s 58 | M69: 8c
E70: d | F70: Profits chargeable to tax u/s 59 | M70: 8d
E71: e | F71: Balance (8a - 8b + 8c + 8d). (if negative take the figure to 11xv of Schedule CFL) | O71: 8e | P71: =os.Receipts-os.DeductSec57+os.Amountus58_2+os.Profitus59_2 -> 0
D72: 9 | E72: Income under the head “Income from other sources” (7+ 8e) (take 8e as nil if negative) | O72: 9 | P72: =os.TotOthSrcNoRaceHorse+MAX(0,os.BalanceOwnRaceHorse) -> 535000 | T72: 4
D73: 10 | E73: Information about accrual/receipt of income from Other Sources | T73: 5256350
E74: Sl. No. | F74: Other Source Income | J74: Upto 15/6 | K74: From 16/6 to 15/9 | L74: From 16/9 to 15/12 | M74: From 16/12 to 15/3 | N74: From 16/3 to 31/3 | T74: 535000 | W74: =IF(Residentialstatuscheck="NRI",SUMIFS(os.Amount_income,os.TRC,"=Yes",os.SectionAct,"5AD1IBd-Income (being dividend) received by a specified fund in respect of securities (other than units referred to in section 115AB) - chargeable u/s 115AD(1)(i)"),SUMIF(os.SectionAct,"5AD1IBd-Income (being dividend) received by a specified fund in respect of securities (other than units referred to in section 115AB) - chargeable u/s 115AD(1)(i)",os.Amount_income)) -> 0 | X74: =IF(Residentialstatuscheck="NRI",SUMIFS(os.Amount_income,os.TRC,"=Yes",os.SectionAct,"PTI_5AD1IBd-PTI- Income (being dividend) received by a specified fund in respect of securities (other than units referred to in section 115AB) - chargeable u/s 115AD(1)(i)"),SUMIF(os.SectionAct,"PTI_5AD1IBd-PTI- Income (being dividend) received by a specified fund in respect of securities (other than units referred to in section 115AB) - chargeable u/s 115AD(1)(i)",os.Amount_income)) -> 0 | Y74: =DTAA_5AD1i10P+DTAA_5AD1i10PPTI -> 0
J75: (i) | K75: (ii) | L75: (iii) | M75: (iv) | N75: (v) | T75: =IF(os.InterestGross_d<0,0,SUMIF(os.Nature_income,"1b",os.Amount_income)) -> 0 | U75: =SUMIF(os.Nature_income,"2a",os.Amount_income) -> 0 | W75: =IF(Residentialstatuscheck="NRI",SUMIFS(os.Amount_income,os.TRC,"=Yes",os.SectionAct,"115AC(1)(a)-Income by way of Interest from bonds purchased in foreign currency in case of a non-resident"),SUMIF(os.SectionAct,"115AC(1)(a)-Income by way of Interest from bonds purchased in foreign currency in case of a non-resident",os.Amount_income)) -> 0 | X75: =IF(Residentialstatuscheck="NRI",SUMIFS(os.Amount_income,os.TRC,"=Yes",os.SectionAct,"PTI_115AC(1)(a)-Income by way of Interest from bonds purchased in foreign currency in case of a non-resident"),SUMIF(os.SectionAct,"PTI_115AC(1)(a)-Income by way of Interest from bonds purchased in foreign currency in case of a non-resident",os.Amount_income)) -> 0 | Y75: =SUMIF(os.SectionAct,"5AC1b-115AC1b - Income by way of Dividend from bonds or GDRs purchased in foreign currency by non-residents - chargeable u/s 115AC",os.Amount_income) -> 0 | Z75: =SUMIF(os.SectionAct,"PTI_5AC1b-PTI -Income by way of Dividend from bonds or GDR purchased in foreign currency in case of a non-resident",os.Amount_income) -> 0 | AA75: =DTAA_5AC1a+DTAA_5AC1aPTI+DTAA_5AC1b+DTAA_5AC1bPTI -> 0
E76: 1 | F76: Dividend Income | J76: 0 | K76: 0 | L76: 0 | M76: 0 | N76: 0 | T76: =SUMIF(os.Nature_income,"1c",os.Amount_income) -> 0 | U76: =SUMIF(os.Nature_income,"2c",os.Amount_income) -> 0
E77: 1 | F77: Income by way of winnings from lotteries, crossword puzzles, races, games, gambling, betting etc. referred to in section 2(24)(ix) | S77: =SUM(J77:N77) -> 0 | T77: =SUMIF(os.Nature_income,"1d",os.Amount_income) -> 0 | U77: =SUMIF(os.Nature_income,"2d",os.Amount_income) -> 0 | W77: =IF(Residentialstatuscheck="NRI",SUMIFS(os.Amount_income,os.TRC,"=Yes",os.SectionAct,"115A(1)(a)(i)-Dividends in the case of non-residents"),SUMIF(os.SectionAct,"115A(1)(a)(i)-Dividends in the case of non-residents",os.Amount_income)) -> 0 | X77: =IF(Residentialstatuscheck="NRI",SUMIFS(os.Amount_income,os.TRC,"=Yes",os.SectionAct,"PTI_115A(1)(a)(i)-Dividends in the case of non-residents"),SUMIF(os.SectionAct,"PTI_115A(1)(a)(i)-Dividends in the case of non-residents",os.Amount_income)) -> 0 | Y77: =DTAA_5A1ai+DTAA_5A1aiPTI -> 0
E78: 2 | F78: Dividend Income referred in Sl. No 1a(i) | J78: 0 | K78: 0 | L78: 0 | M78: 0 | N78: 0 | W78: =IF(Residentialstatuscheck="NRI",SUMIFS(os.Amount_income,os.TRC,"=Yes",os.SectionAct,"5AD1iDiv-Income (being dividend) received by an FII in respect of securities (other than units referred to in section 115AB) - chargeable u/s 115AD(1)(i)"),SUMIF(os.SectionAct,"5AD1iDiv-Income (being dividend) received by an FII in respect of securities (other than units referred to in section 115AB) - chargeable u/s 115AD(1)(i)",os.Amount_income)) -> 0 | X78: =IF(Residentialstatuscheck="NRI",SUMIFS(os.Amount_income,os.TRC,"=Yes",os.SectionAct,"PTI_5AD1iDiv-PTI-Income (being dividend) received by an FII in respect of securities (other than units referred to in section 115AB) - chargeable u/s 115AD(1)(i)"),SUMIF(os.SectionAct,"PTI_5AD1iDiv-PTI-Income (being dividend) received by an FII in respect of securities (other than units referred to in section 115AB) - chargeable u/s 115AD(1)(i)",os.Amount_income)) -> 0 | Y78: =DTAA_5AD1i+DTAA_5AD1iPTI -> 0
E79: 3 | F79: Dividend Income u/s 115A(1)(a)(i) @ 20% ( Including PTI Income) | S79: =SUM(J79:N79) -> 0
E80: 4 | F80: Dividend Income u/s 115AC @ 10% (Including PTI Income) | S80: 0
E81: 5 | F81: Dividend Income (other than units referred to in section 115AB) received by a FII u/s 115AD(1)(i) @ 20% (Including PTI Income) | S81: 0
E82: 6 | F82: Dividend Income (other than units referred to in section 115AB) received by a specified fund u/s 115AD(1)(i) @ 10% (Including PTI Income) | S82: 0
E83: 7 | F83: Dividend income taxable at DTAA rates | J83: 0 | K83: 0 | L83: 0 | M83: 0 | N83: 0 | S83: =SUMIF(os.Nature_income,"1ai",os.Amount_income) -> 0 | T83: =SUM(J83:N83) -> 0 | U83: =OS10_Upto15Of6+OS10_Up16Of6To15Of9+OS10_Up16Of9To15Of12+OS10_Up16Of12To15Of3+OS10_Up16Of3To31Of3 -> 0

Sheet CYLA-BFLA
C3: Schedule CYLA | E3: Details of Income after set-off of current years losses
C4: CURRENT YEAR LOSS ADJUSTMENT | D4: Sl.No. | E4: Head/ Source of Income | F4: Income of current year (Fill this column only if income is zero or positive) | G4: House property loss of the current year set off | H4: Business Loss (other than speculation loss or specified business loss) of the current year set off | I4: Other sources loss (other than loss from race horses and amount chargeable to special rate of tax) of the current year set off | J4: Current year’s Income remaining after set off
F5: 1 | G5: 2 | H5: 3 | I5: 4 | J5: 5=1-2-3-4
G6: Total loss (3 of Schedule – HP) | H6: Total loss (2v of item E of Schedule BP) | I6: Total loss (6 of Schedule-OS)
D7: i | E7: Loss to be set off(Fill this row only, if computed figure is negative) | G7: =ABS(MIN(HP.TotalIncomeChargeableUnHP,0)) -> 0 | H7: =ABS(sheet12.LossRemainSetOffOnBus) -> 0 | I7: =ABS(MIN(os.BalanceNoRaceHorse+MAX(0,0),0)) -> 0
D8: ii | E8: House property | F8: =MAX(HP.TotalIncomeChargeableUnHP,0) -> 1279000 | H8: =MIN(hp.IncOfCurYrUnderThatHead2-hp.OthSrcLossNoRaceHorseSetoff2,cyla.TotBusLoss) -> 0 | I8: =MIN(hp.IncOfCurYrUnderThatHead2,cyla.TotOthSrcLossNoRaceHorse-rh.OthSrcLossNoRaceHorseSetoff4-os.OthSrcLossNoRaceHorseSetoffDTAA) -> 0 | J8: =MAX(0,hp.IncOfCurYrUnderThatHead2-SUM(G8:I8)) -> 1279000 | N8: Loss that can be adjusted | O8: =ABS(MIN(HP.Adjustableloss,0)) -> 0
D9: iii | E9: Business (excluding income from life insurance business u/s 115B, speculation income and income from specified business) | F9: =MAX(sheet12.NetPLBusOthThanSpec7A7B7C,0) -> 3777350 | G9: =MIN(BusinessIncome_Limit,busprof.IncOfCurYrUnderThatHead-busprof.OthSrcLossNoRaceHorseSetoff,cyla.TotHPlossCurYr) -> 0 | I9: =MIN(busprof.IncOfCurYrUnderThatHead,cyla.TotOthSrcLossNoRaceHorse-hp.OthSrcLossNoRaceHorseSetoff2-rh.OthSrcLossNoRaceHorseSetoff4-os.OthSrcLossNoRaceHorseSetoffDTAA) -> 0 | J9: =MAX(0,busprof.IncOfCurYrUnderThatHead-SUM(G9:I9)) -> 3777350 | N9: BusinessIncome_Limit | O9: =cyla.TotHPlossCurYr1 -> 0
D10: iv | E10: Income from life insurance business u/s 115B | N10: SpeculativeIncome_Limit | O10: =BusinessIncome_Limit-busprof.HPlossCurYrSetoff -> 0
D11: v | E11: Speculative Income | F11: =MAX(MAX(0,sheet12.AdjustedPLFrmSpecuBus)-MAX(0,(ABS(MIN(sheet12.NetPLBusOthThanSpec7A7B7C,0))-MAX(sheet12.NetPLBusOthThanSpec7A7B7C,0)-(0))),0) -> 0 | G11: =MIN(SpeculativeIncome_Limit,busprofspec.IncOfCurYrUnderThatHead0a-busprofspec.OthSrcLossNoRaceHorseSetoff0a,cyla.TotHPlossCurYr-busprof.HPlossCurYrSetoff) -> 0 | I11: =MIN(busprofspec.IncOfCurYrUnderThatHead0a,cyla.TotOthSrcLossNoRaceHorse-hp.OthSrcLossNoRaceHorseSetoff2-busprof.OthSrcLossNoRaceHorseSetoff-rh.OthSrcLossNoRaceHorseSetoff4-os.OthSrcLossNoRaceHorseSetoffDTAA) -> 0 | J11: =MAX(0,busprofspec.IncOfCurYrUnderThatHead0a-SUM(G11:I11)) -> 0 | N11: SpecifiedIncome_Limit | O11: =SpeculativeIncome_Limit-busprofspec.HPlossCurYrSetoff0a -> 0
D12: vi | E12: Specified Business Income u/s 35 AD | F12: =MAX(MAX(0,sheet12.AdjustedPLFrmSpecifiedBus)-MAX(0,(ABS(MIN(sheet12.NetPLBusOthThanSpec7A7B7C,0))-MAX(sheet12.NetPLBusOthThanSpec7A7B7C,0)-(MAX(0,sheet12.AdjustedPLFrmSpecuBus)-busprofspec.IncOfCurYrUnderThatHead0a))),0) -> 0 | G12: =MIN(SpecifiedIncome_Limit,busprofspecified.IncOfCurYrUnderThatHead0b-busprofspecified.OthSrcLossNoRaceHorseSetoff0b,cyla.TotHPlossCurYr-busprof.HPlossCurYrSetoff-busprofspec.HPlossCurYrSetoff0a) -> 0 | I12: =MIN(busprofspecified.IncOfCurYrUnderThatHead0b,cyla.TotOthSrcLossNoRaceHorse-hp.OthSrcLossNoRaceHorseSetoff2-busprof.OthSrcLossNoRaceHorseSetoff-busprofspec.OthSrcLossNoRaceHorseSetoff0a-rh.OthSrcLossNoRaceHorseSetoff4-os.OthSrcLossNoRaceHorseSetoffDTAA) -> 0 | J12: =MAX(0,busprofspecified.IncOfCurYrUnderThatHead0b-SUM(G12:I12)) -> 0 | N12: Ins115BIncome_Limit | O12: =SpecifiedIncome_Limit-busprof0b.HPlossCurYrSetoff0b -> 0
D13: vii | E13: Short-term capital gain taxable @ 15% | F13: =STCG_CurrentYrGain15Percent -> 0 | G13: =MIN(Stcg15PercentIncome_Limit,stcg.IncOfCurYrUnderThatHead1-stcg.OthSrcLossNoRaceHorseSetoff1,cyla.TotHPlossCurYr-stcg.HPlossCurYrSetoff1a-stcg.HPlossCurYrSetoff1b-busprof.HPlossCurYrSetoff-bp.HPlossCurYrSetoff115B-busprofspec.HPlossCurYrSetoff0a-busprof0b.HPlossCurYrSetoff0b-ltcg.HPlossCurYrSetoff2a-othSecinclnlhrs.HPlossCurYrSetoff3-rh.HPlossCurYrSetoff4-os.HPlossCurYrSetoffDTAA) -> 0 | H13: =MIN(stcg.IncOfCurYrUnderThatHead1-stcg.HPlossCurYrSetoff1-stcg.OthSrcLossNoRaceHorseSetoff1,cyla.TotBusLoss-stcg.BusLossSetoff1a-stcg.BusLossSetoff1b-hp.BusLossSetoff2-ltcg.BusLossSetoff2a-othSecinclnlhrs.BusLossSetoff3-rh.BusLossSetoff4-os.BusLossSetoffDTAA) -> 0 | I13: =MIN(stcg.IncOfCurYrUnderThatHead1,cyla.TotOthSrcLossNoRaceHorse-hp.OthSrcLossNoRaceHorseSetoff2-busprof.OthSrcLossNoRaceHorseSetoff-bp.OthSrcLossNoRaceHorseSetoff115B-busprofspec.OthSrcLossNoRaceHorseSetoff0a-busprofspecified.OthSrcLossNoRaceHorseSetoff0b-stcg.OthSrcLossNoRaceHorseSetoff1a-stcg.OthSrcLossNoRaceHorseSetoff1b-ltcg.OthSrcLossNoRaceHorseSetoff2a-rh.OthSrcLossNoRaceHorseSetoff4-os.OthSrcLossNoRaceHorseSetoffDTAA) -> 0 | J13: =MAX(0,stcg.IncOfCurYrUnderThatHead1-SUM(G13:I13)) -> 0 | N13: OsNormalIncome_Limit | O13: =Ins115BIncome_Limit-bp.HPlossCurYrSetoff115B -> 0
D14: viii | E14: Short-term capital gain taxable @ 30% | F14: =STCG_CurrentYrGain30Percent -> 0 | G14: =MIN(Stcg30PercentIncome_Limit,stcg.IncOfCurYrUnderThatHead1a-stcg.OthSrcLossNoRaceHorseSetoff1a,cyla.TotHPlossCurYr-busprof.HPlossCurYrSetoff-bp.HPlossCurYrSetoff115B-busprofspec.HPlossCurYrSetoff0a-busprof0b.HPlossCurYrSetoff0b-othSecinclnlhrs.HPlossCurYrSetoff3-rh.HPlossCurYrSetoff4-os.HPlossCurYrSetoffDTAA) -> 0 | H14: =MIN(stcg.IncOfCurYrUnderThatHead1a-stcg.HPlossCurYrSetoff1a-stcg.OthSrcLossNoRaceHorseSetoff1a,cyla.TotBusLoss-hp.BusLossSetoff2-othSecinclnlhrs.BusLossSetoff3-rh.BusLossSetoff4-os.BusLossSetoffDTAA) -> 0 | I14: =MIN(stcg.IncOfCurYrUnderThatHead1a,cyla.TotOthSrcLossNoRaceHorse-hp.OthSrcLossNoRaceHorseSetoff2-busprof.OthSrcLossNoRaceHorseSetoff-bp.OthSrcLossNoRaceHorseSetoff115B-busprofspec.OthSrcLossNoRaceHorseSetoff0a-busprofspecified.OthSrcLossNoRaceHorseSetoff0b-rh.OthSrcLossNoRaceHorseSetoff4-os.OthSrcLossNoRaceHorseSetoffDTAA) -> 0 | J14: =MAX(0,stcg.IncOfCurYrUnderThatHead1a-SUM(G14:I14)) -> 0 | N14: OsHorseRaceIncome_Limit | O14: =OsNormalIncome_Limit-othSecinclnlhrs.HPlossCurYrSetoff3 -> 0
D15: ix | E15: Short-term capital gain taxable @ applicable rates | F15: =STCG_CurrentYrGainAppRate -> 0 | G15: =MIN(StcgAppRateIncome_Limit,stcg.IncOfCurYrUnderThatHead1b-stcg.OthSrcLossNoRaceHorseSetoff1b,cyla.TotHPlossCurYr-busprof.HPlossCurYrSetoff-bp.HPlossCurYrSetoff115B-busprofspec.HPlossCurYrSetoff0a-busprof0b.HPlossCurYrSetoff0b-stcg.HPlossCurYrSetoff1a-othSecinclnlhrs.HPlossCurYrSetoff3-rh.HPlossCurYrSetoff4-os.HPlossCurYrSetoffDTAA) -> 0 | H15: =MIN(stcg.IncOfCurYrUnderThatHead1b-stcg.HPlossCurYrSetoff1b-stcg.OthSrcLossNoRaceHorseSetoff1b,cyla.TotBusLoss-hp.BusLossSetoff2-stcg.BusLossSetoff1a-othSecinclnlhrs.BusLossSetoff3-rh.BusLossSetoff4-os.BusLossSetoffDTAA) -> 0 | I15: =MIN(stcg.IncOfCurYrUnderThatHead1b,cyla.TotOthSrcLossNoRaceHorse-hp.OthSrcLossNoRaceHorseSetoff2-busprof.OthSrcLossNoRaceHorseSetoff-bp.OthSrcLossNoRaceHorseSetoff115B-busprofspec.OthSrcLossNoRaceHorseSetoff0a-busprofspecified.OthSrcLossNoRaceHorseSetoff0b-stcg.OthSrcLossNoRaceHorseSetoff1a-rh.OthSrcLossNoRaceHorseSetoff4-os.OthSrcLossNoRaceHorseSetoffDTAA) -> 0 | J15: =MAX(0,stcg.IncOfCurYrUnderThatHead1b-SUM(G15:I15)) -> 0 | N15: OsDTAAIncome_Limit | O15: =OsHorseRaceIncome_Limit-rh.HPlossCurYrSetoff4 -> 0
D16: x | E16: Short-term capital gain taxable at special rates in India as per DTAA | F16: =STCG_CurrentYrGainDTAARate -> 0 | G16: =MIN(STCGDTAAIncome_Limit,stcg.IncOfCurYrUnderThatHeadDTAA-stcg.OthSrcLossNoRaceHorseSetoffDTAA,cyla.TotHPlossCurYr-ltcg.HPlossCurYrSetoff2-ltcg.HPlossCurYrSetoff2a-busprof.HPlossCurYrSetoff-bp.HPlossCurYrSetoff115B-busprofspec.HPlossCurYrSetoff0a-busprof0b.HPlossCurYrSetoff0b-stcg.HPlossCurYrSetoff1-stcg.HPlossCurYrSetoff1a-stcg.HPlossCurYrSetoff1b-othSecinclnlhrs.HPlossCurYrSetoff3-rh.HPlossCurYrSetoff4-os.HPlossCurYrSetoffDTAA) -> 0 | H16: =MIN(stcg.IncOfCurYrUnderThatHeadDTAA-stcg.HPlossCurYrSetoffDTAA-stcg.OthSrcLossNoRaceHorseSetoffDTAA,cyla.TotBusLoss-ltcg.BusLossSetoff2-ltcg.BusLossSetoff2a-othSecinclnlhrs.BusLossSetoff3-rh.BusLossSetoff4-os.BusLossSetoffDTAA-hp.BusLossSetoff2-stcg.BusLossSetoff1-stcg.BusLossSetoff1a-stcg.BusLossSetoff1b) -> 0 | I16: =MIN(stcg.IncOfCurYrUnderThatHeadDTAA,cyla.TotOthSrcLossNoRaceHorse-hp.OthSrcLossNoRaceHorseSetoff2-busprof.OthSrcLossNoRaceHorseSetoff-bp.OthSrcLossNoRaceHorseSetoff115B-busprofspec.OthSrcLossNoRaceHorseSetoff0a-busprofspecified.OthSrcLossNoRaceHorseSetoff0b-stcg.OthSrcLossNoRaceHorseSetoff1-stcg.OthSrcLossNoRaceHorseSetoff1a-stcg.OthSrcLossNoRaceHorseSetoff1b-ltcg.OthSrcLossNoRaceHorseSetoff2-ltcg.OthSrcLossNoRaceHorseSetoff2a-rh.OthSrcLossNoRaceHorseSetoff4-os.OthSrcLossNoRaceHorseSetoffDTAA) -> 0 | J16: =MAX(0,stcg.IncOfCurYrUnderThatHeadDTAA-SUM(G16:I16)) -> 0 | N16: Stcg30PercentIncome_Limit | O16: =OsDTAAIncome_Limit-os.HPlossCurYrSetoffDTAA -> 0
D17: xi | E17: Long term capital gain taxable @ 10% | F17: =LTCG_CurrentYrGain10Percent -> 0 | G17: =MIN(Ltcg10PercentIncome_Limit,ltcg.IncOfCurYrUnderThatHead2-ltcg.OthSrcLossNoRaceHorseSetoff2,cyla.TotHPlossCurYr-ltcg.HPlossCurYrSetoff2a-busprof.HPlossCurYrSetoff-bp.HPlossCurYrSetoff115B-busprofspec.HPlossCurYrSetoff0a-busprof0b.HPlossCurYrSetoff0b-stcg.HPlossCurYrSetoff1-stcg.HPlossCurYrSetoff1a-stcg.HPlossCurYrSetoff1b-othSecinclnlhrs.HPlossCurYrSetoff3-rh.HPlossCurYrSetoff4-os.HPlossCurYrSetoffDTAA) -> 0 | H17: =MIN(ltcg.IncOfCurYrUnderThatHead2-ltcg.HPlossCurYrSetoff2-ltcg.OthSrcLossNoRaceHorseSetoff2,cyla.TotBusLoss-ltcg.BusLossSetoff2a-othSecinclnlhrs.BusLossSetoff3-rh.BusLossSetoff4-os.BusLossSetoffDTAA-hp.BusLossSetoff2-stcg.BusLossSetoff1-stcg.BusLossSetoff1a-stcg.BusLossSetoff1b) -> 0 | I17: =MIN(ltcg.IncOfCurYrUnderThatHead2,cyla.TotOthSrcLossNoRaceHorse-hp.OthSrcLossNoRaceHorseSetoff2-busprof.OthSrcLossNoRaceHorseSetoff-bp.OthSrcLossNoRaceHorseSetoff115B-busprofspec.OthSrcLossNoRaceHorseSetoff0a-busprofspecified.OthSrcLossNoRaceHorseSetoff0b-stcg.OthSrcLossNoRaceHorseSetoff1-stcg.OthSrcLossNoRaceHorseSetoff1a-stcg.OthSrcLossNoRaceHorseSetoff1b-ltcg.OthSrcLossNoRaceHorseSetoff2a-rh.OthSrcLossNoRaceHorseSetoff4-os.OthSrcLossNoRaceHorseSetoffDTAA) -> 0 | J17: =MAX(0,ltcg.IncOfCurYrUnderThatHead2-SUM(G17:I17)) -> 0 | N17: StcgAppRateIncome_Limit | O17: =Stcg30PercentIncome_Limit-stcg.HPlossCurYrSetoff1a -> 0
D18: xii | E18: Long term capital gain taxable @ 20% | F18: =LTCG_CurrentYrGain20Percent -> 0 | G18: =MIN(Ltcg20PercentIncome_Limit,ltcg.IncOfCurYrUnderThatHead2a-ltcg.OthSrcLossNoRaceHorseSetoff2a,cyla.TotHPlossCurYr-busprof.HPlossCurYrSetoff-bp.HPlossCurYrSetoff115B-busprofspec.HPlossCurYrSetoff0a-busprof0b.HPlossCurYrSetoff0b-stcg.HPlossCurYrSetoff1a-stcg.HPlossCurYrSetoff1b-rh.HPlossCurYrSetoff4-othSecinclnlhrs.HPlossCurYrSetoff3-os.HPlossCurYrSetoffDTAA) -> 0 | H18: =MIN(ltcg.IncOfCurYrUnderThatHead2a-ltcg.HPlossCurYrSetoff2a-ltcg.OthSrcLossNoRaceHorseSetoff2a,cyla.TotBusLoss-hp.BusLossSetoff2-stcg.BusLossSetoff1a-stcg.BusLossSetoff1b-othSecinclnlhrs.BusLossSetoff3-rh.BusLossSetoff4-os.BusLossSetoffDTAA) -> 0 | I18: =MIN(ltcg.IncOfCurYrUnderThatHead2a,cyla.TotOthSrcLossNoRaceHorse-hp.OthSrcLossNoRaceHorseSetoff2-busprof.OthSrcLossNoRaceHorseSetoff-bp.OthSrcLossNoRaceHorseSetoff115B-busprofspec.OthSrcLossNoRaceHorseSetoff0a-busprofspecified.OthSrcLossNoRaceHorseSetoff0b-stcg.OthSrcLossNoRaceHorseSetoff1a-stcg.OthSrcLossNoRaceHorseSetoff1b-rh.OthSrcLossNoRaceHorseSetoff4-os.OthSrcLossNoRaceHorseSetoffDTAA) -> 0 | J18: =MAX(0,ltcg.IncOfCurYrUnderThatHead2a-SUM(G18:I18)) -> 0 | N18: Ltcg20PercentIncome_Limit | O18: =StcgAppRateIncome_Limit-stcg.HPlossCurYrSetoff1b -> 0
D19: xiii | E19: Long term capital gains taxable at special rates in India as per DTAA | F19: =LTCG_CurrentYrGainDTAARate -> 0 | G19: =MIN(LTCGDTAAIncome_Limit,ltcg.IncOfCurYrUnderThatHeadDTAA-ltcg.OthSrcLossNoRaceHorseSetoffDTAA,cyla.TotHPlossCurYr-othSecinclnlhrs.HPlossCurYrSetoff3-rh.HPlossCurYrSetoff4-os.HPlossCurYrSetoffDTAA-busprof.HPlossCurYrSetoff-bp.HPlossCurYrSetoff115B-busprofspec.HPlossCurYrSetoff0a-busprof0b.HPlossCurYrSetoff0b-stcg.HPlossCurYrSetoff1-stcg.HPlossCurYrSetoff1a-stcg.HPlossCurYrSetoff1b-stcg.HPlossCurYrSetoffDTAA-ltcg.HPlossCurYrSetoff2-ltcg.HPlossCurYrSetoff2a) -> 0 | H19: =MIN(ltcg.IncOfCurYrUnderThatHeadDTAA-ltcg.HPlossCurYrSetoffDTAA-ltcg.OthSrcLossNoRaceHorseSetoffDTAA,cyla.TotBusLoss-othSecinclnlhrs.BusLossSetoff3-rh.BusLossSetoff4-os.BusLossSetoffDTAA-hp.BusLossSetoff2-stcg.BusLossSetoff1-stcg.BusLossSetoff1a-stcg.BusLossSetoff1b-stcg.BusLossSetoffDTAA-ltcg.BusLossSetoff2-ltcg.BusLossSetoff2a) -> 0 | I19: =MIN(ltcg.IncOfCurYrUnderThatHeadDTAA,cyla.TotOthSrcLossNoRaceHorse-hp.OthSrcLossNoRaceHorseSetoff2-busprof.OthSrcLossNoRaceHorseSetoff-bp.OthSrcLossNoRaceHorseSetoff115B-busprofspec.OthSrcLossNoRaceHorseSetoff0a-busprofspecified.OthSrcLossNoRaceHorseSetoff0b-stcg.OthSrcLossNoRaceHorseSetoff1-stcg.OthSrcLossNoRaceHorseSetoff1a-stcg.OthSrcLossNoRaceHorseSetoff1b-stcg.OthSrcLossNoRaceHorseSetoffDTAA-ltcg.OthSrcLossNoRaceHorseSetoff2-ltcg.OthSrcLossNoRaceHorseSetoff2a-rh.OthSrcLossNoRaceHorseSetoff4-os.OthSrcLossNoRaceHorseSetoffDTAA) -> 0 | J19: =MAX(0,ltcg.IncOfCurYrUnderThatHeadDTAA-SUM(G19:I19)) -> 0 | N19: Stcg15PercentIncome_Limit | O19: =Ltcg20PercentIncome_Limit-ltcg.HPlossCurYrSetoff2a -> 0
D20: xiv | E20: Net income from other sources chargeable at normal applicable rates | F20: =MAX(os.BalanceNoRaceHorse+MAX(0,0),0) -> 535000 | G20: =MIN(OsNormalIncome_Limit,othSecinclnlhrs.IncOfCurYrUnderThatHead3,cyla.TotHPlossCurYr-busprof.HPlossCurYrSetoff-bp.HPlossCurYrSetoff115B-busprofspec.HPlossCurYrSetoff0a-busprof0b.HPlossCurYrSetoff0b) -> 0 | H20: =MIN(othSecinclnlhrs.IncOfCurYrUnderThatHead3-othSecinclnlhrs.HPlossCurYrSetoff3,cyla.TotBusLoss-hp.BusLossSetoff2) -> 0 | J20: =MAX(0,othSecinclnlhrs.IncOfCurYrUnderThatHead3-SUM(G20:I20)) -> 535000 | N20: Ltcg10PercentIncome_Limit | O20: =Stcg15PercentIncome_Limit-stcg.HPlossCurYrSetoff1 -> 0
D21: xv | E21: Profit from the activity of owning and maintaining race horses | F21: =MAX(0+MAX(os.BalanceOwnRaceHorse,0),0) -> 0 | G21: =MIN(OsHorseRaceIncome_Limit,rh.IncOfCurYrUnderThatHead4-rh.OthSrcLossNoRaceHorseSetoff4,cyla.TotHPlossCurYr-busprof.HPlossCurYrSetoff-bp.HPlossCurYrSetoff115B-busprofspec.HPlossCurYrSetoff0a-busprof0b.HPlossCurYrSetoff0b-othSecinclnlhrs.HPlossCurYrSetoff3) -> 0 | H21: =MIN(rh.IncOfCurYrUnderThatHead4-rh.HPlossCurYrSetoff4-rh.OthSrcLossNoRaceHorseSetoff4,cyla.TotBusLoss-hp.BusLossSetoff2-othSecinclnlhrs.BusLossSetoff3) -> 0 | I21: =MIN(cyla.TotOthSrcLossNoRaceHorse,rh.IncOfCurYrUnderThatHead4) -> 0 | J21: =MAX(0,rh.IncOfCurYrUnderThatHead4-SUM(G21:I21)) -> 0 | N21: STCGDTAAIncome_Limit | O21: =Ltcg10PercentIncome_Limit-ltcg.HPlossCurYrSetoff2 -> 0
D22: xvi | E22: Income from other sources taxable at special rates in India as per DTAA | F22: =MAX(0,os.DTAA_Amt+MAX(0,0)) -> 0 | G22: =MIN(OsDTAAIncome_Limit,os.IncOfCurYrUnderThatHeadDTAA-os.OthSrcLossNoRaceHorseSetoffDTAA,cyla.TotHPlossCurYr-busprof.HPlossCurYrSetoff-bp.HPlossCurYrSetoff115B-busprofspec.HPlossCurYrSetoff0a-busprof0b.HPlossCurYrSetoff0b-othSecinclnlhrs.HPlossCurYrSetoff3-rh.HPlossCurYrSetoff4) -> 0 | H22: =MIN(os.IncOfCurYrUnderThatHeadDTAA-os.HPlossCurYrSetoffDTAA-os.OthSrcLossNoRaceHorseSetoffDTAA,cyla.TotBusLoss-hp.BusLossSetoff2-othSecinclnlhrs.BusLossSetoff3-rh.BusLossSetoff4) -> 0 | I22: =MIN(os.IncOfCurYrUnderThatHeadDTAA,cyla.TotOthSrcLossNoRaceHorse-rh.OthSrcLossNoRaceHorseSetoff4) -> 0 | J22: =MAX(0,os.IncOfCurYrUnderThatHeadDTAA-SUM(G22:I22)) -> 0 | N22: LTCGDTAAIncome_Limit | O22: =STCGDTAAIncome_Limit-stcg.HPlossCurYrSetoffDTAA -> 0
D23: xvii | E23: Total loss set off (ii + iii + iv + v + vi + vii + viii + ix + x + xi + xii + xiii + xiv+xv+xvi) | F23: =SUM(F8:F22) -> 5591350 | G23: =SUM(G8:G22) -> 0 | H23: =SUM(H8:H22) -> 0 | I23: =SUM(I8:I22) -> 0
D24: xviii | E24: Loss remaining after set-off (i - xvii) | G24: =IF(sheet16.TotHPlossCurYrSetoff<200000,MAX(0,((cyla.TotHPlossCurYr1-sheet16.TotHPlossCurYrSetoff)+(HP.lossRemainined_afteradjustment))),HP.lossRemainined_afteradjustment) -> 0 | H24: =MAX(0,cyla.TotBusLoss-sheet16.TotBusLossSetoff) -> 0 | I24: =MAX(0,cyla.TotOthSrcLossNoRaceHorse-sheet16.TotOthSrcLossNoRaceHorseSetoff) -> 0
C26: Schedule BFLA | E26: Details of Income after Set off of Brought Forward Losses of earlier years
C27: BROUGHT FORWARD LOSS ADJUSTMENT | D27: Sl. No. | E27: Head/ Source of Income | F27: Income after set off, if any, of current year’s losses as per 5 of Schedule CYLA) | G27: Brought forward loss set off | H27: Brought forward depreciation set off | I27: Brought forward allowance under section 35(4) set off | J27: Current year’s income remaining after set off
F28: 1 | G28: 2 | H28: 3 | I28: 4 | J28: 5
D30: i | E30: House property | F30: =hp.IncOfCurYrAfterSetOff2 -> 1279000 | G30: =MIN(totofbfloss.HPLossCF8,hp.IncOfCurYrUndHeadFromCYLA1) -> 0 | H30: =MIN(hp.IncOfCurYrUndHeadFromCYLA1-hp.BFlossPrevYrUndSameHeadSetoff1,UD.TotSetoff-busipofincl.BFUnabsorbedDeprSetoff2-bp.BFUnabsorbedDepr115B-busipofinclspec.BFUnabsorbedDeprSetoff2a-busipofinclspecified.BFUnabsorbedDeprSetoff2b) -> 0 | I30: =MIN(hp.IncOfCurYrUndHeadFromCYLA1-hp.BFlossPrevYrUndSameHeadSetoff1-hp.BFUnabsorbedDeprSetoff1,UD2.TotSetoff-busipofincl.BFAllUs35Cl4Setoff2-bp.BFAllUs35Cl4115B-busipofinclspec.BFAllUs35Cl4Setoff2a-busipofinclspecified.BFAllUs35Cl4Setoff2b) -> 0 | J30: =MAX(hp.IncOfCurYrUndHeadFromCYLA1-SUM(G30:I30),0) -> 1279000 | N30: Individual Field Set off | O30: Remaining Loss After Setoff | P30: Income Remaining after Set off
